{"text_format":"1","workbook":"xlsx","n_sheets":15,"sheets":["EDT","Reporter","UserMap","Departments","PostList","MasterList","DataP","DataED","DataAC","DataLR","DataAD","DataFam","Master Cadre","DataDYN","DataNom"],"not_rendered":{"charts":0,"images":1,"macros":1,"external_links":0,"defined_names":0,"comments":0,"pivot_tables":0},"unopened":[],"bounds":{"document_bytes":16777216,"sheet_cells":100000,"rows_first":2000,"rows_last":500,"rows_between":2000,"halvings":0,"cell_chars":16384,"cell_head_chars":4096},"cells_cut":0,"cells_raw":0,"read":"whole","date_system":"1900"}

{"sheet":"EDT","index":0,"n_rows":0,"n_cols":0,"rows_kept":0,"cut":false,"hidden":false,"merged":[]}

{"sheet":"Reporter","index":1,"n_rows":156,"n_cols":9,"rows_kept":156,"cut":false,"hidden":true,"merged":[[147,5,147,7],[149,4,149,8],[154,1,154,2],[155,1,155,2],[155,4,155,8],[146,2,146,4],[146,5,146,7],[141,0,141,1],[141,2,141,8],[142,0,142,1],[142,2,142,8],[143,0,143,1],[143,2,143,8],[145,0,145,1],[145,2,145,8],[136,0,136,1],[136,2,136,8],[137,0,137,1],[137,2,137,8],[139,0,139,8],[140,0,140,8],[133,0,133,1],[133,2,133,8],[134,0,134,1],[134,2,134,8],[135,0,135,1],[135,2,135,8],[128,0,128,2],[128,3,128,7],[130,0,130,8],[131,0,131,8],[132,0,132,1],[132,2,132,8],[125,0,125,2],[125,3,125,7],[126,0,126,2],[126,3,126,7],[127,0,127,2],[127,3,127,7],[121,0,121,2],[121,3,121,7],[122,0,122,2],[122,3,122,7],[123,0,123,8],[124,0,124,2],[124,3,124,7],[116,0,116,8],[117,0,117,6],[117,7,117,8],[118,0,118,6],[118,7,118,8],[120,0,120,8],[110,0,110,4],[110,5,110,6],[112,0,112,8],[113,0,113,6],[113,7,113,8],[114,0,114,6],[114,7,114,8],[106,0,106,1],[106,2,106,8],[108,0,108,8],[109,1,109,2],[109,3,109,4],[109,5,109,6],[103,0,103,1],[103,2,103,8],[104,0,104,1],[104,2,104,8],[105,0,105,1],[105,2,105,8],[98,0,98,1],[98,2,98,8],[99,0,99,1],[99,2,99,8],[101,0,101,8],[102,0,102,8],[95,0,95,1],[95,2,95,8],[96,0,96,1],[96,2,96,8],[97,0,97,1],[97,2,97,8],[89,0,89,1],[89,2,89,8],[90,2,90,8],[91,2,91,8],[92,2,92,8],[94,0,94,1],[94,2,94,8],[86,0,86,1],[86,2,86,8],[87,0,87,1],[87,2,87,8],[88,0,88,1],[88,2,88,8],[82,0,82,2],[82,3,82,8],[83,0,83,8],[84,0,84,1],[84,2,84,8],[85,0,85,1],[85,2,85,8],[79,0,79,2],[79,3,79,8],[80,0,80,2],[80,3,80,8],[81,0,81,2],[81,3,81,8],[76,0,76,2],[76,3,76,8],[77,0,77,2],[77,3,77,8],[78,0,78,2],[78,3,78,8],[73,0,73,2],[73,3,73,8],[74,0,74,2],[74,3,74,8],[75,0,75,2],[75,3,75,8],[68,1,69,7],[70,0,70,8],[71,0,71,2],[71,3,71,8],[72,0,72,2],[72,3,72,8],[64,0,64,8],[65,0,65,2],[65,3,65,4],[66,0,66,2],[66,3,66,4],[67,0,67,8],[61,0,61,2],[61,3,61,8],[62,0,62,2],[62,3,62,8],[63,0,63,2],[63,3,63,8],[57,0,57,8],[58,0,58,1],[58,2,58,8],[59,0,59,1],[59,2,59,8],[60,0,60,1],[60,2,60,8],[54,0,54,2],[54,3,54,8],[55,0,55,1],[55,2,55,8],[56,0,56,2],[56,3,56,8],[50,0,50,1],[50,2,50,8],[52,0,52,1],[52,2,52,8],[53,0,53,1],[53,2,53,8],[46,0,46,8],[47,0,47,1],[47,2,47,8],[48,0,48,1],[48,2,48,8],[49,0,49,1],[49,2,49,8],[42,2,42,3],[42,4,42,5],[42,6,42,7],[44,0,44,8],[45,0,45,3],[45,4,45,6],[37,0,37,1],[38,0,38,1],[38,3,38,4],[38,6,38,7],[40,0,40,8],[41,2,41,3],[41,4,41,5],[41,6,41,7],[34,0,34,1],[34,2,34,8],[35,0,35,1],[35,2,35,8],[36,0,36,1],[36,2,36,8],[29,0,29,1],[29,2,29,3],[29,4,29,5],[32,0,32,8],[33,0,33,1],[33,2,33,8],[26,2,26,3],[26,4,26,5],[27,0,27,1],[27,2,27,3],[27,4,27,5],[28,0,28,1],[28,2,28,3],[28,4,28,5],[22,0,22,1],[22,2,22,8],[23,0,23,1],[23,2,23,8],[24,0,24,8],[25,0,25,1],[25,2,25,8],[19,0,19,1],[19,2,19,8],[20,0,20,1],[20,2,20,8],[21,0,21,1],[21,2,21,8],[16,0,16,1],[16,2,16,8],[17,0,17,1],[17,2,17,8],[18,0,18,1],[18,2,18,8],[13,0,13,1],[13,2,13,8],[14,0,14,1],[14,2,14,8],[15,0,15,1],[15,2,15,8],[9,0,9,8],[10,0,10,1],[10,2,10,8],[11,0,11,1],[11,2,11,8],[12,0,12,1],[12,2,12,8],[8,0,8,2],[8,3,8,8],[4,0,4,8],[5,0,5,1],[5,2,5,3],[5,4,5,5],[5,6,5,7],[6,0,6,1],[6,2,6,3],[6,4,6,5],[6,6,6,7],[0,0,0,8],[1,0,1,8],[2,0,2,1],[2,2,2,8],[3,0,3,1],[3,2,3,8],[7,0,7,1],[7,2,7,3],[7,4,7,5],[7,6,7,7]]}
["Employee Details"]
["DDO Code:  101001"]
["Name:",null,"Mr. A B C"]
["GPF",null,10088]
["Personal Information"]
["Date of Birth:",null,"2014-01-23",null,"Gender:",null,"Female"]
["Marital Status:",null,"Divorced",null,"Category:",null,"Others"]
["Blood Group:",null,"A-",null,"Height:"]
["Personal Identification Marks:"]
["Address"]
["Permanent:",null,12]
[]
[null,null,234]
[null,null,"-D1-Andaman and Nicobar Islands"]
[null,null,12345]
[null,null," 0- 0"]
["Present:",null,12]
[]
[null,null,234]
[null,null,"-D1-Andaman and Nicobar Islands"]
[null,null,12345]
[null,null," 0- 0"]
["Mobile Phone"]
["Email"]
["Identity"]
["PAN"]
[null,null,"Number",null,"Place of Issue",null,"Issue Date","Expiry Date"]
["EPIC",null,null,null,null,null,null,"N/A"]
["Driver's License"]
["Passport"]
[]
["Family"]
["Daughter - Dr. fdf fdsvg vcsw"]
["Employment",null,"Central Government"]
["Date of Birth",null,"2014-01-20"]
["Marital Status",null,"Married"]
["GPF"]
["Family As per"]
["Medical Attendance",null,true,"Pension Rules",null,true,"Travelling Allowance",null,true]
[]
["Education"]
["Level","Field","Qualification",null,"Institute",null,"Board",null,"Date of Award"]
["Diploma","Arts","vcdsvf",null,"rrevsd",null,"erffvds",null,"2014-01-20"]
[]
["Appointment and Posting"]
["Date of Continuous Appointment with GoM",null,null,null,"2014-01-23"]
["First Appointment"]
["Post Appointed to",null,"sad"]
["Order Number",null,"ds"]
["Order Date",null,"2014-01-23"]
["Appointing Authority",null,"sdws"]
[]
["Name of the Cadre",null,"N/A"]
["Grade with Cadre",null,"N/A"]
["Cadre Controlling Authority",null,null,"N/A"]
["Date of Appointment",null,"N/A"]
["Cadre Level/Type",null,null,"N/A"]
["Present Appointment"]
["Name of the Cadre",null,"N/A"]
["Grade with Cadre",null,"N/A"]
["Mode of Allotment",null,"N/A"]
["Cadre Controlling Authority",null,null,"N/A"]
["Date of Appointment/Promotion",null,null,"N/A"]
["Cadre Level/Type",null,null,"N/A"]
["Service Book"]
["Date of Last Entry",null,null,"2014-01-23"]
["Date of Last Verification",null,null,"2014-01-23"]
["Address of where the Service Book is Present"]
[null,"d"]
[]
["Posting"]
["Type of Deployment",null,null,"Lien "]
["Where Deployed",null,null,"Deputation to Central Government/Organisation"]
["Foreign Posting at",null,null,"N/A"]
["Post",null,null,"Addl. Secretary"]
["Generic Name of the Post",null,null,"dsf"]
["Place of Posting",null,null,"df"]
["Group of Post",null,null,"Group A"]
["Post Classification",null,null,"Permanent"]
["Post Type",null,null,"CSS"]
["Head Office",null,null,"sdf"]
["Department",null,null,"Legislative Assembly"]
["Date of Joining Present Post",null,null,"2014-01-23"]
["Office"]
["Name of Office"]
["Office Address"]
[]
[]
[null,null,"--Andaman and Nicobar Islands"]
[]
[null,null," 0- 0- 0"]
[null,null," 0- 0"]
[]
[]
["Headquarters"]
["HQ Address"]
[]
[]
[null,null,"--Andaman and Nicobar Islands"]
[]
[]
["Additional Charges"]
["Additional Charge -  2"]
["Ministry",null,"Council of Ministers"]
["Department",null,"A.H. & VETY."]
["Post",null,"Assistant"]
["Office",null,12]
[]
["Pay Details"]
["Pay Band","1S (4440 - 7440)",null,"Grade Pay",null,1650]
["Current Pay in Pay Band",null,null,null,null,213,null,"Rs."]
[]
["Allowances"]
["Type",null,null,null,null,null,null,"Amount (Rs.)"]
["Cash Handling Allowance",null,null,null,null,null,null,121]
[]
["Mandatory Deductions"]
["Type",null,null,null,null,null,null,"Amount (Rs.)"]
["MGEGIS-Insurance Fund",null,null,null,null,null,null,322]
[]
["GPF"]
["GPF Contribution",null,null,12,null,null,null,null,"Rs."]
["Impounded DA",null,null,2,null,null,null,null,"%DA"]
["Recovery"]
["Advance Amount",null,null,null,null,null,null,null,"Rs."]
["Monthly Recovery Amount",null,null,null,null,null,null,null,"Rs."]
["Installment No."]
["Total Installments"]
["Approval No."]
[]
["Loans and Recoveries"]
["Conveyance Advance"]
["Amount Sanctioned",null,43432]
["Principal/Interest",null,"Principal"]
["Recovery amount",null,324]
["Installment No.",null,32]
["Total Installments",null,3]
["Loan Code/No.",null,"vdsds3"]
[]
["Nominations"]
["Nomination for GPF"]
["Name",null,"32de"]
["Relationship",null,"scdsfs"]
["Allocation %",null,12]
[]
["Remarks"]
[null,null,null,null,null,"17:34:45"]
[null,null,null,null,null,"2014-01-23"]
[]
[null,null,null,null,"Checked and Verifed as per Paybill of December 2013"]
[]
[]
[]
[]
[]
[null,"Date",null,null,"Mr. A B C"]

{"sheet":"UserMap","index":2,"n_rows":724,"n_cols":9,"rows_kept":724,"cut":false,"hidden":true,"merged":[]}
[{"$f":"COUNTA(A3:A1048576)","v":722}]
["ID","DDO Code","DDO","Department","Ministry","Treasury","Treasury Code","Password"]
[1,101001,"Secretary, Legislative Assembly","Legislative Assembly","Legislative Assembly","Aizawl South","090101","xxx}ad~a\u0004\u0002\u0002\u0003",{"$f":"VLOOKUP(E3,Departments!B$3:C$83,2,FALSE)","v":"Legislative Assembly"}]
[2,102001,"Secretary, Governor Secretariat","Governor Secretariat","Governor Secretariat","Aizawl South","090101","xxx}aa~a\u0004\u0002\u0002\u0002",{"$f":"VLOOKUP(E4,Departments!B$3:C$83,2,FALSE)","v":"Governor Secretariat"}]
[3,103001,"Secretary to Chief Minister Office","Chief Minister Office","Council of Ministers","Aizawl North","090102","xxx}ab~a\u0004\u0002\u0002\u0001",{"$f":"VLOOKUP(E5,Departments!B$3:C$83,2,FALSE)","v":"Chief Minister Office"}]
[4,103002,"Under Secretary, SAD","SAD","Council of Ministers","Aizawl South","060101","xxx}ab~a\u0001\u0002\u0002\u0001",{"$f":"VLOOKUP(E6,Departments!B$3:C$83,2,FALSE)","v":"Chief Minister Office"}]
[5,104001,"Secretary, Law & Judicial","LAW & JUDICIAL","LAW & JUDICIAL","Aizawl South","090101","xxx}ag~a\u0004\u0002\u0002\b",{"$f":"VLOOKUP(E7,Departments!B$3:C$83,2,FALSE)","v":"Gauhati High Court, Aizawl Bench"}]
[6,104002,"Member Secretary MSLSA","LAW & JUDICIAL","LAW & JUDICIAL","Aizawl South","090101","xxx}ag~a\u0001\u0002\u0002\b",{"$f":"VLOOKUP(E8,Departments!B$3:C$83,2,FALSE)","v":"Gauhati High Court, Aizawl Bench"}]
[7,104003,"District Session Judge","LAW & JUDICIAL","LAW & JUDICIAL","Aizawl South","090101","xxx}ag~a\u0002\u0002\u0002\b",{"$f":"VLOOKUP(E9,Departments!B$3:C$83,2,FALSE)","v":"Gauhati High Court, Aizawl Bench"}]
[8,104004,"P.O., Motor Accident Claim Tribunal","LAW & JUDICIAL","LAW & JUDICIAL","Aizawl South","090101","xxx}ag~a\u0007\u0002\u0002\b",{"$f":"VLOOKUP(E10,Departments!B$3:C$83,2,FALSE)","v":"Gauhati High Court, Aizawl Bench"}]
[9,104005,"Registrar, Gauhati High Court","Gauhati High Court, Aizawl Bench","LAW & JUDICIAL","Aizawl North","090102","xxx}ag~a\b\u0002\u0002\b",{"$f":"VLOOKUP(E11,Departments!B$3:C$83,2,FALSE)","v":"Gauhati High Court, Aizawl Bench"}]
[10,104006,"District Session Judge, Lunglei","LAW & JUDICIAL","LAW & JUDICIAL","Lunglei","090201","xxx}ag~a\u0005\u0002\u0002\b",{"$f":"VLOOKUP(E12,Departments!B$3:C$83,2,FALSE)","v":"Gauhati High Court, Aizawl Bench"}]
[11,104007,"Chief Judicial Magistrate, Saiha","LAW & JUDICIAL","LAW & JUDICIAL","Saiha","090301","xxx}ag~a\u0006\u0002\u0002\b",{"$f":"VLOOKUP(E13,Departments!B$3:C$83,2,FALSE)","v":"Gauhati High Court, Aizawl Bench"}]
[12,104008,"Magistrate A.S.D.C.C,Champhai","LAW & JUDICIAL","LAW & JUDICIAL","Champhai","090401","xxx}ag~a\u000b\u0002\u0002\b",{"$f":"VLOOKUP(E14,Departments!B$3:C$83,2,FALSE)","v":"Gauhati High Court, Aizawl Bench"}]
[13,104009,"Civil Judge (ADMJ), Koasib","LAW & JUDICIAL","LAW & JUDICIAL","Kolasib","090501","xxx}ag~a\f\u0002\u0002\b",{"$f":"VLOOKUP(E15,Departments!B$3:C$83,2,FALSE)","v":"Gauhati High Court, Aizawl Bench"}]
[14,104010,"Judicial Magistrate, Serchhip ","LAW & JUDICIAL","LAW & JUDICIAL","Serchhip ","090601","xxx}ag~b\u0003\u0002\u0002\b",{"$f":"VLOOKUP(E16,Departments!B$3:C$83,2,FALSE)","v":"Gauhati High Court, Aizawl Bench"}]
[15,104011,"Chief Judicial Magistrate, Lawngtlai","LAW & JUDICIAL","LAW & JUDICIAL","Lawngtlai","090701","xxx}ag~b\u0004\u0002\u0002\b",{"$f":"VLOOKUP(E17,Departments!B$3:C$83,2,FALSE)","v":"Gauhati High Court, Aizawl Bench"}]
[16,104012,"Chief Judicial Magistrate, Lawngtlai","LAW & JUDICIAL","LAW & JUDICIAL","Mamit","090801","xxx}ag~b\u0001\u0002\u0002\b",{"$f":"VLOOKUP(E18,Departments!B$3:C$83,2,FALSE)","v":"Gauhati High Court, Aizawl Bench"}]
[17,105001,"Chief Vigilance Officer","VIGILANCE","VIGILANCE","Aizawl South","090101","xxx}ah~a\u0004\u0002\u0002\u0007",{"$f":"VLOOKUP(E19,Departments!B$3:C$83,2,FALSE)","v":{"$error":"#N/A"}}]
[18,105002,"Supdt.Police, Anti-Corruption Bureau","Anti-Corruption Bureau","VIGILANCE","Aizawl South","090101","xxx}ah~a\u0001\u0002\u0002\u0007",{"$f":"VLOOKUP(E20,Departments!B$3:C$83,2,FALSE)","v":{"$error":"#N/A"}}]
[19,106001,"Director, Land Revenue  &Settlement","LAND REVENUE\n& SETTLEMENT","LAND REVENUE & SETTLEMENT","Aizawl South","090101","xxx}ae~a\u0004\u0002\u0002\u0006",{"$f":"VLOOKUP(E21,Departments!B$3:C$83,2,FALSE)","v":"LAND REVENUE & SETTLEMENT"}]
[20,106002,"Asst.Settlement Officer-I","LAND REVENUE\n& SETTLEMENT","LAND REVENUE & SETTLEMENT","Aizawl South","090101","xxx}ae~a\u0001\u0002\u0002\u0006",{"$f":"VLOOKUP(E22,Departments!B$3:C$83,2,FALSE)","v":"LAND REVENUE & SETTLEMENT"}]
[21,106003,"Assistant Settlement Officer, Lunglei","LAND REVENUE\n& SETTLEMENT","LAND REVENUE & SETTLEMENT","Lunglei","090201","xxx}ae~a\u0002\u0002\u0002\u0006",{"$f":"VLOOKUP(E23,Departments!B$3:C$83,2,FALSE)","v":"LAND REVENUE & SETTLEMENT"}]
[22,106004,"Assistant Settlement Officer,Champhai","LAND REVENUE\n& SETTLEMENT","LAND REVENUE & SETTLEMENT","Champhai","090401","xxx}ae~a\u0007\u0002\u0002\u0006",{"$f":"VLOOKUP(E24,Departments!B$3:C$83,2,FALSE)","v":"LAND REVENUE & SETTLEMENT"}]
[23,106005,"Assistant Settlement Officer-II,Kolasib","LAND REVENUE\n& SETTLEMENT","LAND REVENUE & SETTLEMENT","Kolasib","090501","xxx}ae~a\b\u0002\u0002\u0006",{"$f":"VLOOKUP(E25,Departments!B$3:C$83,2,FALSE)","v":"LAND REVENUE & SETTLEMENT"}]
[24,106006,"Assistant Settlement Officer, Serchhip ","LAND REVENUE\n& SETTLEMENT","LAND REVENUE & SETTLEMENT","Serchhip ","090601","xxx}ae~a\u0005\u0002\u0002\u0006",{"$f":"VLOOKUP(E26,Departments!B$3:C$83,2,FALSE)","v":"LAND REVENUE & SETTLEMENT"}]
[25,106007,"Assistant Settlement Officer, Mamit","LAND REVENUE\n& SETTLEMENT","LAND REVENUE & SETTLEMENT","Mamit","090801","xxx}ae~a\u0006\u0002\u0002\u0006",{"$f":"VLOOKUP(E27,Departments!B$3:C$83,2,FALSE)","v":"LAND REVENUE & SETTLEMENT"}]
[26,107001,"Commissioner,Excise & Narcotics","EXCISE & NARCOTICS","EXCISE & NARCOTICS","Aizawl South","090101","xxx}af~a\u0004\u0002\u0002\u0005",{"$f":"VLOOKUP(E28,Departments!B$3:C$83,2,FALSE)","v":"EXCISE & NARCOTICS"}]
[27,107002,"Supdt. of Excise& Narco.","EXCISE & NARCOTICS","EXCISE & NARCOTICS","Aizawl South","090101","xxx}af~a\u0001\u0002\u0002\u0005",{"$f":"VLOOKUP(E29,Departments!B$3:C$83,2,FALSE)","v":"EXCISE & NARCOTICS"}]
[28,107003,"Supdt. of Excise & Narco,Lunglei","EXCISE & NARCOTICS","EXCISE & NARCOTICS","Lunglei","090201","xxx}af~a\u0002\u0002\u0002\u0005",{"$f":"VLOOKUP(E30,Departments!B$3:C$83,2,FALSE)","v":"EXCISE & NARCOTICS"}]
[29,107004,"Supdt. of Excise & Narco.,Saiha","EXCISE & NARCOTICS","EXCISE & NARCOTICS","Saiha","090301","xxx}af~a\u0007\u0002\u0002\u0005",{"$f":"VLOOKUP(E31,Departments!B$3:C$83,2,FALSE)","v":"EXCISE & NARCOTICS"}]
[30,107005,"Supdt.of Excise & Narco,Champhai","EXCISE & NARCOTICS","EXCISE & NARCOTICS","Champhai","090401","xxx}af~a\b\u0002\u0002\u0005",{"$f":"VLOOKUP(E32,Departments!B$3:C$83,2,FALSE)","v":"EXCISE & NARCOTICS"}]
[31,107006,"Supdt. of Excise & Narco, Kolasib","EXCISE & NARCOTICS","EXCISE & NARCOTICS","Kolasib","090501","xxx}af~a\u0005\u0002\u0002\u0005",{"$f":"VLOOKUP(E33,Departments!B$3:C$83,2,FALSE)","v":"EXCISE & NARCOTICS"}]
[32,107007,"Supdt. of Excise & Narco, Serchhip ","EXCISE & NARCOTICS","EXCISE & NARCOTICS","Serchhip","090601","xxx}af~a\u0006\u0002\u0002\u0005",{"$f":"VLOOKUP(E34,Departments!B$3:C$83,2,FALSE)","v":"EXCISE & NARCOTICS"}]
[33,107008,"Supdt. of Excise & Narco,Mamit","EXCISE & NARCOTICS","EXCISE & NARCOTICS","Mamit","090801","xxx}af~a\u000b\u0002\u0002\u0005",{"$f":"VLOOKUP(E35,Departments!B$3:C$83,2,FALSE)","v":"EXCISE & NARCOTICS"}]
[34,108001,"Commissioner of Taxes","TAXATION","TAXATION","Aizawl South","090101","xxx}ak~a\u0004\u0002\u0002\f",{"$f":"VLOOKUP(E36,Departments!B$3:C$83,2,FALSE)","v":"TAXATION"}]
[35,108002,"Asst.Commissioner of Taxes (South)","TAXATION","TAXATION","Aizawl South","090101","xxx}ak~a\u0001\u0002\u0002\f",{"$f":"VLOOKUP(E37,Departments!B$3:C$83,2,FALSE)","v":"TAXATION"}]
[36,108003,"Asst.Commissioner of Taxes (North)","TAXATION","TAXATION","Aizawl South","090101","xxx}ak~a\u0002\u0002\u0002\f",{"$f":"VLOOKUP(E38,Departments!B$3:C$83,2,FALSE)","v":"TAXATION"}]
[37,108004,"Supdt. of Taxes (Central Zone)","TAXATION","TAXATION","Aizawl South","090101","xxx}ak~a\u0007\u0002\u0002\f",{"$f":"VLOOKUP(E39,Departments!B$3:C$83,2,FALSE)","v":"TAXATION"}]
[38,108005,"Asst. Comm. of Taxes, Lunglei","TAXATION","TAXATION","Lunglei","090201","xxx}ak~a\b\u0002\u0002\f",{"$f":"VLOOKUP(E40,Departments!B$3:C$83,2,FALSE)","v":"TAXATION"}]
[39,108006,"Supdt.t of Taxes, Saiha","TAXATION","TAXATION","Saiha","090301","xxx}ak~a\u0005\u0002\u0002\f",{"$f":"VLOOKUP(E41,Departments!B$3:C$83,2,FALSE)","v":"TAXATION"}]
[40,108007,"Supdt. of Taxes, Champhai","TAXATION","TAXATION","Champhai","090401","xxx}ak~a\u0006\u0002\u0002\f",{"$f":"VLOOKUP(E42,Departments!B$3:C$83,2,FALSE)","v":"TAXATION"}]
[41,108008,"Supdt. of Taxes, Kolasib","TAXATION","TAXATION","Kolasib","090501","xxx}ak~a\u000b\u0002\u0002\f",{"$f":"VLOOKUP(E43,Departments!B$3:C$83,2,FALSE)","v":"TAXATION"}]
[42,108009," Supdt. of Taxes, Serchhip ","TAXATION","TAXATION","Serchhip ","090601","xxx}ak~a\f\u0002\u0002\f",{"$f":"VLOOKUP(E44,Departments!B$3:C$83,2,FALSE)","v":"TAXATION"}]
[43,108010,"Supdt. of Taxes, Lawngtlai","TAXATION","TAXATION","Lawngtlai","090701","xxx}ak~b\u0003\u0002\u0002\f",{"$f":"VLOOKUP(E45,Departments!B$3:C$83,2,FALSE)","v":"TAXATION"}]
[44,108011,"Supdt. of Taxes, Mamit","TAXATION","TAXATION","Mamit","090801","xxx}ak~b\u0004\u0002\u0002\f",{"$f":"VLOOKUP(E46,Departments!B$3:C$83,2,FALSE)","v":"TAXATION"}]
[45,109001,"Chief Controller of Accounts","ACCOUNTS & TREASURIES","FINANCE","Aizawl North","090102","xxx}al~a\u0004\u0002\u0002\u000b",{"$f":"VLOOKUP(E47,Departments!B$3:C$83,2,FALSE)","v":"ACCOUNTS & TREASURIES"}]
[46,109002,"Chief Controller of Accounts","ACCOUNTS & TREASURIES","FINANCE","Aizawl North","090102","xxx}al~a\u0001\u0002\u0002\u000b",{"$f":"VLOOKUP(E48,Departments!B$3:C$83,2,FALSE)","v":"ACCOUNTS & TREASURIES"}]
[47,109003,"Director, IF & State Lottery","IF & SL","FINANCE","Aizawl South","090101","xxx}al~a\u0002\u0002\u0002\u000b",{"$f":"VLOOKUP(E49,Departments!B$3:C$83,2,FALSE)","v":"ACCOUNTS & TREASURIES"}]
[48,109004,"Treasury Officer Aizawl South","ACCOUNTS & TREASURIES","FINANCE","Aizawl South","090101","xxx}al~a\u0007\u0002\u0002\u000b",{"$f":"VLOOKUP(E50,Departments!B$3:C$83,2,FALSE)","v":"ACCOUNTS & TREASURIES"}]
[49,109005,"Prog.Director & FMU","Finance","FINANCE","Aizawl South","090101","xxx}al~a\b\u0002\u0002\u000b",{"$f":"VLOOKUP(E51,Departments!B$3:C$83,2,FALSE)","v":"ACCOUNTS & TREASURIES"}]
[50,109006,"Treasury Officer Lunglei","ACCOUNTS & TREASURIES","FINANCE","Lunglei","090201","xxx}al~a\u0005\u0002\u0002\u000b",{"$f":"VLOOKUP(E52,Departments!B$3:C$83,2,FALSE)","v":"ACCOUNTS & TREASURIES"}]
[51,109007,"Treasury Officer, Saiha","ACCOUNTS & TREASURIES","FINANCE","Saiha","090301","xxx}al~a\u0006\u0002\u0002\u000b",{"$f":"VLOOKUP(E53,Departments!B$3:C$83,2,FALSE)","v":"ACCOUNTS & TREASURIES"}]
[52,109008,"Treasury Officer, Champhai","ACCOUNTS & TREASURIES","FINANCE","Champhai","090401","xxx}al~a\u000b\u0002\u0002\u000b",{"$f":"VLOOKUP(E54,Departments!B$3:C$83,2,FALSE)","v":"ACCOUNTS & TREASURIES"}]
[53,109009,"Treasury Officer, Kolasib","ACCOUNTS & TREASURIES","FINANCE","Koalsib","090501","xxx}al~a\f\u0002\u0002\u000b",{"$f":"VLOOKUP(E55,Departments!B$3:C$83,2,FALSE)","v":"ACCOUNTS & TREASURIES"}]
[54,109010,"Treasury Officer, Serchhip ","ACCOUNTS & TREASURIES","FINANCE","Sechhip ","090601","xxx}al~b\u0003\u0002\u0002\u000b",{"$f":"VLOOKUP(E56,Departments!B$3:C$83,2,FALSE)","v":"ACCOUNTS & TREASURIES"}]
[55,109011,"Treasury Officer,Lawngtlai","ACCOUNTS & TREASURIES","FINANCE","Lawngtlai","090701","xxx}al~b\u0004\u0002\u0002\u000b",{"$f":"VLOOKUP(E57,Departments!B$3:C$83,2,FALSE)","v":"ACCOUNTS & TREASURIES"}]
[56,109012,"Treasury Officer,Mamit ","ACCOUNTS & TREASURIES","FINANCE","Mamit","090801","xxx}al~b\u0001\u0002\u0002\u000b",{"$f":"VLOOKUP(E58,Departments!B$3:C$83,2,FALSE)","v":"ACCOUNTS & TREASURIES"}]
[57,109013,"Deputy Secretary Mizoram Finance Commission","State Finance Commission","FINANCE","Aizawl South","090101","xxx}al~b\u0002\u0002\u0002\u000b",{"$f":"VLOOKUP(E59,Departments!B$3:C$83,2,FALSE)","v":"ACCOUNTS & TREASURIES"}]
[58,110001,"Secy. M.P.S.C","MPSC","M.P.S.C","Aizawl North","090102","xxx}bc~a\u0004\u0002\u0001\u0004",{"$f":"VLOOKUP(E60,Departments!B$3:C$83,2,FALSE)","v":"MPSC"}]
[59,111001,"Secretary,  SAD","SAD","SAD","Aizawl South","090101","xxx}bd~a\u0004\u0002\u0001\u0003",{"$f":"VLOOKUP(E61,Departments!B$3:C$83,2,FALSE)","v":"SAD"}]
[60,111002,"Secretary, MSIC","State Information Commission","SAD","Aizawl South","090101","xxx}bd~a\u0001\u0002\u0001\u0003",{"$f":"VLOOKUP(E62,Departments!B$3:C$83,2,FALSE)","v":"SAD"}]
[61,112001,"Secretary,  Parliamentary Affairs","Parliamentary Affairs","Parlamentary Affairs","Aizawl 'S'","090101","xxx}ba~a\u0004\u0002\u0001\u0002",{"$f":"VLOOKUP(E63,Departments!B$3:C$83,2,FALSE)","v":{"$error":"#N/A"}}]
[62,113001,"Director, A.T.I","ATI","P.& A.R.","Aizw 'N'","090102","xxx}bb~a\u0004\u0002\u0001\u0001",{"$f":"VLOOKUP(E64,Departments!B$3:C$83,2,FALSE)","v":"ATI"}]
[63,114001,"Director, Economics  & Statistics","Economics & Statistics","Planning & Program Implementation","Aizawl 'S'","090101","xxx}bg~a\u0004\u0002\u0001\b",{"$f":"VLOOKUP(E65,Departments!B$3:C$83,2,FALSE)","v":"Economics & Statistics"}]
[64,114002,"SRO, Planning Board","State Planning Board","Planning & Program Implementation","Aizawl 'S'","090101","xxx}bg~a\u0001\u0002\u0001\b",{"$f":"VLOOKUP(E66,Departments!B$3:C$83,2,FALSE)","v":"Economics & Statistics"}]
[65,114003,"Principal S.O, Sc. & Tech","Science & Technology","Planning & Program Implementation","Aizawl 'S'","090101","xxx}bg~a\u0002\u0002\u0001\b",{"$f":"VLOOKUP(E67,Departments!B$3:C$83,2,FALSE)","v":"Economics & Statistics"}]
[66,114004,"Distirct Research Officer, Aizawl","Economics & Statistics","Planning & Program Implementation","Aizawl South","090101","xxx}bg~a\u0007\u0002\u0001\b",{"$f":"VLOOKUP(E68,Departments!B$3:C$83,2,FALSE)","v":"Economics & Statistics"}]
[67,114005,"Chief Planning Officer, Lunglei","Economics & Statistics","Planning & Program Implementation","Lunglei","090201","xxx}bg~a\b\u0002\u0001\b",{"$f":"VLOOKUP(E69,Departments!B$3:C$83,2,FALSE)","v":"Economics & Statistics"}]
[68,114006,"District Research Officer, Lunglei","Economics & Statistics","Planning & Program Implementation","Lunglei","090201","xxx}bg~a\u0005\u0002\u0001\b",{"$f":"VLOOKUP(E70,Departments!B$3:C$83,2,FALSE)","v":"Economics & Statistics"}]
[69,114007,"District Research Officer, Saiha","Economics & Statistics","Planning & Program Implementation","Saiha","090301","xxx}bg~a\u0006\u0002\u0001\b",{"$f":"VLOOKUP(E71,Departments!B$3:C$83,2,FALSE)","v":"Economics & Statistics"}]
[70,115001,"Protocol Officer, GAD","State Protocol","GAD","Aizawl 'S'","090101","xxx}bh~a\u0004\u0002\u0001\u0007",{"$f":"VLOOKUP(E72,Departments!B$3:C$83,2,FALSE)","v":"Civil Aviation"}]
[71,115002,"O.S.D.Aviation","Civil Aviation","GAD","Aizawl 'S'","090101","xxx}bh~a\u0001\u0002\u0001\u0007",{"$f":"VLOOKUP(E73,Departments!B$3:C$83,2,FALSE)","v":"Civil Aviation"}]
[72,115003,"Deputy Commissioner,Aizawl","Deputy Commissioner","GAD","Aizawl 'S'","090101","xxx}bh~a\u0002\u0002\u0001\u0007","Deputy Commissioner"]
[73,115004,"Jt.Chief Election Officer","ELECTION","GAD","Aizawl 'S'","090101","xxx}bh~a\u0007\u0002\u0001\u0007","ELECTION"]
[74,115005,"Election Officer, Aizawl","Deputy Commissioner","GAD","Aizawl 'S'","090101","xxx}bh~a\b\u0002\u0001\u0007","Deputy Commissioner"]
[75,115006,"SDO Sakawrdai","Deputy Commissioner","GAD","Aizawl 'S'","090101","xxx}bh~a\u0005\u0002\u0001\u0007","Deputy Commissioner"]
[76,115007,"SDO Saitual","Deputy Commissioner","GAD","Aizawl 'S'","090101","xxx}bh~a\u0006\u0002\u0001\u0007","Deputy Commissioner"]
[77,115008,"Dev. Officer, Sinlung Hill Dev. Council","SHDC","GAD","Aizawl 'S'","090101","xxx}bh~a\u000b\u0002\u0001\u0007","SHDC"]
[78,115009,"Deputy Commissioner, Lunglei","Deputy Commissioner","GAD","Lunglei","090201","xxx}bh~a\f\u0002\u0001\u0007","Deputy Commissioner"]
[79,115010,"Election Officer, Lunglei","Deputy Commissioner","GAD","Lunglei","090201","xxx}bh~b\u0003\u0002\u0001\u0007","Deputy Commissioner"]
[80,115011,"SDO (Civil), Hnahthial","Deputy Commissioner","GAD","Lunglei","090201","xxx}bh~b\u0004\u0002\u0001\u0007","Deputy Commissioner"]
[81,115012,"SDO (Civil), Tlabung","Deputy Commissioner","GAD","Lunglei","090201","xxx}bh~b\u0001\u0002\u0001\u0007","Deputy Commissioner"]
[82,115013,"Deputy Commissioner, Saiha","Deputy Commissioner","GAD","Saiha","090301","xxx}bh~b\u0002\u0002\u0001\u0007","Deputy Commissioner"]
[83,115014,"Election Officer, Saiha","Deputy Commissioner","GAD","Saiha","090301","xxx}bh~b\u0007\u0002\u0001\u0007","Deputy Commissioner"]
[84,115015,"Deputy Commissioner, Champhai","Deputy Commissioner","GAD","Champhai","090401","xxx}bh~b\b\u0002\u0001\u0007","Deputy Commissioner"]
[85,115016,"Election Officer,Champhai","Deputy Commissioner","GAD","Champhai","090401","xxx}bh~b\u0005\u0002\u0001\u0007","Deputy Commissioner"]
[86,115017,"SDO (Civil), Khawzawl","Deputy Commissioner","GAD","Champhai","090401","xxx}bh~b\u0006\u0002\u0001\u0007","Deputy Commissioner"]
[87,115018,"SDO (Civil), Ngopa","Deputy Commissioner","GAD","Champhai","090401","xxx}bh~b\u000b\u0002\u0001\u0007","Deputy Commissioner"]
[88,115019,"Deputy Commissioner,Kolasib","Deputy Commissioner","GAD","Kolasib","090501","xxx}bh~b\f\u0002\u0001\u0007","Deputy Commissioner"]
[89,115020,"L.O,Mizoram House, Silchar","Deputy Resident Commissioner","GAD","Kolasib","090501","xxx}bh~c\u0003\u0002\u0001\u0007","Deputy Resident Commissioner"]
[90,115021,"SDO(Civil),Kawnpui","Deputy Commissioner","GAD","Kolasib","090501","xxx}bh~c\u0004\u0002\u0001\u0007","Deputy Commissioner"]
[91,115022,"SDO(Civil), Vairengte","Deputy Commissioner","GAD","Kolasib","090501","xxx}bh~c\u0001\u0002\u0001\u0007","Deputy Commissioner"]
[92,115023,"Election Officer, Kolasib","Deputy Commissioner","GAD","Kolasib","090501","xxx}bh~c\u0002\u0002\u0001\u0007","Deputy Commissioner"]
[93,115024,"Deputy Commissioner, Serchhip ","Deputy Commissioner","GAD","Serchhip ","090601","xxx}bh~c\u0007\u0002\u0001\u0007","Deputy Commissioner"]
[94,115025,"Election Officer, Serchhip","Deputy Commissioner","GAD","Serchhip ","090601","xxx}bh~c\b\u0002\u0001\u0007","Deputy Commissioner"]
[95,115026,"SDO (Civil),Thenzawl","Deputy Commissioner","GAD","Serchhip ","090601","xxx}bh~c\u0005\u0002\u0001\u0007","Deputy Commissioner"]
[96,115027,"SDO (Civil), N.Vanlaiphai","Deputy Commissioner","GAD","Serchhip ","090601","xxx}bh~c\u0006\u0002\u0001\u0007","Deputy Commissioner"]
[97,115028,"Deputy Commissioner, Lawngtlai","Deputy Commissioner","GAD","Lawngtlai","090701","xxx}bh~c\u000b\u0002\u0001\u0007","Deputy Commissioner"]
[98,115029,"Election Officer, Lawngtlai","Deputy Commissioner","GAD","Lawngtlai","090701","xxx}bh~c\f\u0002\u0001\u0007","Deputy Commissioner"]
[99,115030,"SDO (Civil), Chawngte","Deputy Commissioner","GAD","Lawngtlai","090701","xxx}bh~d\u0003\u0002\u0001\u0007","Deputy Commissioner"]
[100,115031,"SDO (Civil), Sangau","Deputy Commissioner","GAD","Lawngtlai","090701","xxx}bh~d\u0004\u0002\u0001\u0007","Deputy Commissioner"]
[101,115032,"Deputy Commissioner, Mamit","Deputy Commissioner","GAD","Mamit","090801","xxx}bh~d\u0001\u0002\u0001\u0007","Deputy Commissioner"]
[102,115033,"Election Officer, Mamit","Deputy Commissioner","GAD","Mamit","090801","xxx}bh~d\u0002\u0002\u0001\u0007","Deputy Commissioner"]
[103,115034,"SDO (Civil), Kawrthah","Deputy Commissioner","GAD","Mamit","090801","xxx}bh~d\u0007\u0002\u0001\u0007","Deputy Commissioner"]
[104,115035,"SDO (Civil), W.Phaileng","Deputy Commissioner","GAD","Mamit","090801","xxx}bh~d\b\u0002\u0001\u0007","Deputy Commissioner"]
[105,115036,"L.O. Mizoram Haouse, Kolkata","Joint Resident Commissioner","GAD",0,0,"xxx}bh~d\u0005\u0002\u0001\u0007","Joint Resident Commissioner"]
[106,115037,"L.O. Mizoram House, Shillong","Deputy Resident Commissioner","GAD",0,0,"xxx}bh~d\u0006\u0002\u0001\u0007","Deputy Resident Commissioner"]
[107,115038,"L.O. Mizoram House, Guwahati","Deputy Resident Commissioner","GAD",0,0,"xxx}bh~d\u000b\u0002\u0001\u0007","Deputy Resident Commissioner"]
[108,115039,"L.O. Mizoram House, Mumbai","Deputy Resident Commissioner","GAD",0,0,"xxx}bh~d\f\u0002\u0001\u0007","Deputy Resident Commissioner"]
[109,115040,"Resident Commissioner, Mizoram House, New Delhi","Deputy Resident Commissioner","GAD",0,0,"xxx}bh~e\u0003\u0002\u0001\u0007","Deputy Resident Commissioner"]
[110,116001,"Inspector General of Police (IGP)","POLICE","HOME","Aizawl'S'","090101","xxx}be~a\u0004\u0002\u0001\u0006","HOME"]
[111,116002,"S.P. Aizawl","POLICE","HOME","Aizawl'S'","090101","xxx}be~a\u0001\u0002\u0001\u0006","HOME"]
[112,116003,"S.P. Traffic Police","POLICE","HOME","Aizawl'S'","090101","xxx}be~a\u0002\u0002\u0001\u0006","HOME"]
[113,116004,"S.P. CID (SB)","POLICE","HOME","Aizawl'S'","090101","xxx}be~a\u0007\u0002\u0001\u0006","HOME"]
[114,116005,"S.P. CID (Crime)","POLICE","HOME","Aizawl'S'","090101","xxx}be~a\b\u0002\u0001\u0006","HOME"]
[115,116006,"S.P. MPRO","POLICE","HOME","Aizawl'S'","090101","xxx}be~a\u0005\u0002\u0001\u0006","HOME"]
[116,116007,"S.P. Security","POLICE","HOME","Aizawl'S'","090101","xxx}be~a\u0006\u0002\u0001\u0006","HOME"]
[117,116008,"S.P. Fire & E.S.","FIRE & EMERGENCY SERVICES","HOME","Aizawl'S'","090101","xxx}be~a\u000b\u0002\u0001\u0006","HOME"]
[118,116009,"Principal,Police Training Centre","POLICE","HOME","Aizawl'S'","090101","xxx}be~a\f\u0002\u0001\u0006","HOME"]
[119,116010,"C.O Ist Bn.MAP","POLICE","HOME","Aizawl'S'","090101","xxx}be~b\u0003\u0002\u0001\u0006","HOME"]
[120,116011,"C.O 3rd Bn.MAP","POLICE","HOME","Aizawl'S'","090101","xxx}be~b\u0004\u0002\u0001\u0006","HOME"]
[121,116012,"C.O 3rd I.R.Bn","POLICE","HOME","Aizawl'S'","090101","xxx}be~b\u0001\u0002\u0001\u0006","HOME"]
[122,116013,"C.O 4th I.R. Bn","POLICE","HOME","Aizawl'S'","090101","xxx}be~b\u0002\u0002\u0001\u0006","HOME"]
[123,116014,"C.O 5th I.R. Bn.","POLICE","HOME","Aizawl'S'","090101","xxx}be~b\u0007\u0002\u0001\u0006","HOME"]
[124,116015,"Director, Sainik Welfare & Resettlement","SAINIK WELFARE & RESSETTLEMENT","HOME","Aizawl'S'","090101","xxx}be~b\b\u0002\u0001\u0006","HOME"]
[125,116016,"Dist. Sainik Welfare & Res.Officer, Aizawl","SAINIK WELFARE & RESSETTLEMENT","HOME","Aizawl'S'","090101","xxx}be~b\u0005\u0002\u0001\u0006","HOME"]
[126,116017,"Jt. Director, Forensic Science Lab.","POLICE","HOME","Aizawl'S'","090101","xxx}be~b\u0006\u0002\u0001\u0006","HOME"]
[127,116018,"Comdt. General, MRHG","MIZORAM HOME GUARD","HOME","Aizawl North","090102","xxx}be~b\u000b\u0002\u0001\u0006","HOME"]
[128,116019,"Comdt. CTI Sesawng","MIZORAM HOME GUARD","HOME","Aizawl North","090102","xxx}be~b\f\u0002\u0001\u0006","HOME"]
[129,116020,"Dist. Comdt. MRHG","MIZORAM HOME GUARD","HOME","Aizawl North","090102","xxx}be~c\u0003\u0002\u0001\u0006","HOME"]
[130,116021,"I.G.Prisons","PRISONS","HOME","Aizawl North","090102","xxx}be~c\u0004\u0002\u0001\u0006","HOME"]
[131,116022,"Spl. Supdt. Central Jail, Aizawl","PRISONS","HOME","Aizawl North","090102","xxx}be~c\u0001\u0002\u0001\u0006","HOME"]
[132,116023,"Supdt. District Jail, Aizawl","PRISONS","HOME","Aizawl North","090102","xxx}be~c\u0002\u0002\u0001\u0006","HOME"]
[133,116024,"D.I.G. (Southern Range), Lunglei","POLICE","HOME","Lunglei","090201","xxx}be~c\u0007\u0002\u0001\u0006","HOME"]
[134,116025,"S.P. (DSB), Lunglei","POLICE","HOME","Lunglei","090201","xxx}be~c\b\u0002\u0001\u0006","HOME"]
[135,116026,"S.P. (DEF), Lunglei","POLICE","HOME","Lunglei","090201","xxx}be~c\u0005\u0002\u0001\u0006","HOME"]
[136,116027,"S.P. (DVO), Lunglei","POLICE","HOME","Lunglei","090201","xxx}be~c\u0006\u0002\u0001\u0006","HOME"]
[137,116028,"Commandant 2nd. Bn. MAP, Lunglei","POLICE","HOME","Lunglei","090201","xxx}be~c\u000b\u0002\u0001\u0006","HOME"]
[138,116029,"Dy.Director, Zilla Sainik W.& Resettlement,Lunglei","SAINIK WELFARE & RESSETTLEMENT","HOME","Lunglei","090201","xxx}be~c\f\u0002\u0001\u0006","HOME"]
[139,116030,"Superintendent, District Jail, Lunglei","PRISONS","HOME","Lunglei","090201","xxx}be~d\u0003\u0002\u0001\u0006","HOME"]
[140,116031,"S.P, Saiha","POLICE","HOME","Saiha","090301","xxx}be~d\u0004\u0002\u0001\u0006","HOME"]
[141,116032,"Supdt. of District Jail, Saiha","PRISONS","HOME","Saiha","090301","xxx}be~d\u0001\u0002\u0001\u0006","HOME"]
[142,116033,"Supdt. of Police, Champhai","POLICE","HOME","Champhai","090401","xxx}be~d\u0002\u0002\u0001\u0006","HOME"]
[143,116034,"Supdt. of District Jail, Champhai","PRISONS","HOME","Champhai","090401","xxx}be~d\u0007\u0002\u0001\u0006","HOME"]
[144,116035,"Commandant I.R. Bn., Khawzawl","POLICE","HOME","Champhai","090401","xxx}be~d\b\u0002\u0001\u0006","HOME"]
[145,116036,"Supdt. of Police, Kolasib","POLICE","HOME","Kolasib","090501","xxx}be~d\u0005\u0002\u0001\u0006","HOME"]
[146,116037,"Commandant  Ist. I.R. Bn., Mualvum","POLICE","HOME","Kolasib","090501","xxx}be~d\u0006\u0002\u0001\u0006","HOME"]
[147,116038,"Supdt. of District Jail, Kolasib","PRISONS","HOME","Kolasib","090501","xxx}be~d\u000b\u0002\u0001\u0006","HOME"]
[148,116039,"Supdt. of Police, Serchhip ","POLICE","HOME","Serchhip  ","090601","xxx}be~d\f\u0002\u0001\u0006","HOME"]
[149,116040,"Supdt. of Police, Lawngtlai ","POLICE","HOME","Lawngtlai","090701","xxx}be~e\u0003\u0002\u0001\u0006","HOME"]
[150,116041,"Supdt. of Police, Mamit","POLICE","HOME","Mamit","090801","xxx}be~e\u0004\u0002\u0001\u0006","HOME"]
[151,116042,"Dist. Sainik Welfare & Rest.Officer, Kolasib","SAINIK WELFARE & RESSETTLEMENT","HOME","Kolasib","090501","xxx}be~e\u0001\u0002\u0001\u0006","HOME"]
[152,116043,"Supdt. of District Jail, Lawngtlai","PRISONS","HOME","Lawngtlai","090701","xxx}be~e\u0002\u0002\u0001\u0006","HOME"]
[153,116044,"Dist. Sainik Welf & Resst. Officer, Lunglei","SAINIK WELFARE & RESSETTLEMENT","HOME","Lunglei","090201","xxx}be~e\u0007\u0002\u0001\u0006","HOME"]
[154,117001,"Director, Food Civil Supplies & Consumer Affairs","F.C.S &CA","FOOD CIVIL SUPPLIES & CONSUMER AFFAIRS","Aizawl South","090101","xxx}bf~a\u0004\u0002\u0001\u0005",{"$f":"VLOOKUP(E156,Departments!B$3:C$83,2,FALSE)","v":"F.C.S &CA"}]
[155,117002,"Dist. Civil Supplies Officer  (West)","F.C.S &CA","FOOD CIVIL SUPPLIES & CONSUMER AFFAIRS","Aizawl South","090101","xxx}bf~a\u0001\u0002\u0001\u0005",{"$f":"VLOOKUP(E157,Departments!B$3:C$83,2,FALSE)","v":"F.C.S &CA"}]
[156,117003,"District Civil Ssupplies Officer (East)","F.C.S &CA","FOOD CIVIL SUPPLIES & CONSUMER AFFAIRS","Aizawl South","090101","xxx}bf~a\u0002\u0002\u0001\u0005",{"$f":"VLOOKUP(E158,Departments!B$3:C$83,2,FALSE)","v":"F.C.S &CA"}]
[157,117004,"Registrar, SCDRC","F.C.S &CA","FOOD CIVIL SUPPLIES & CONSUMER AFFAIRS","Aizawl South","090101","xxx}bf~a\u0007\u0002\u0001\u0005",{"$f":"VLOOKUP(E159,Departments!B$3:C$83,2,FALSE)","v":"F.C.S &CA"}]
[158,117005,"Jt.Director,Legal Metrology","LEGAL METROLOGY","FOOD CIVIL SUPPLIES & CONSUMER AFFAIRS","Aizawl South","090101","xxx}bf~a\b\u0002\u0001\u0005",{"$f":"VLOOKUP(E160,Departments!B$3:C$83,2,FALSE)","v":"F.C.S &CA"}]
[159,117006,"Dy.Controller, Legal Metrology, Lunglei","LEGAL METROLOGY","FOOD CIVIL SUPPLIES & CONSUMER AFFAIRS","Lunglei","090201","xxx}bf~a\u0005\u0002\u0001\u0005",{"$f":"VLOOKUP(E161,Departments!B$3:C$83,2,FALSE)","v":"F.C.S &CA"}]
[160,117007,"District Civil Supply officer, Lunglei","F.C.S &CA","FOOD CIVIL SUPPLIES & CONSUMER AFFAIRS","Lunglei","090201","xxx}bf~a\u0006\u0002\u0001\u0005",{"$f":"VLOOKUP(E162,Departments!B$3:C$83,2,FALSE)","v":"F.C.S &CA"}]
[161,117008,"Sub Dvisional FCS & C. A, Tlabung","F.C.S &CA","FOOD CIVIL SUPPLIES & CONSUMER AFFAIRS","Lunglei","090201","xxx}bf~a\u000b\u0002\u0001\u0005",{"$f":"VLOOKUP(E163,Departments!B$3:C$83,2,FALSE)","v":"F.C.S &CA"}]
[162,117009,"Assistant Controller, Legal Metrology, Saiha","LEGAL METROLOGY","FOOD CIVIL SUPPLIES & CONSUMER AFFAIRS","Saiha","090301","xxx}bf~a\f\u0002\u0001\u0005",{"$f":"VLOOKUP(E164,Departments!B$3:C$83,2,FALSE)","v":"F.C.S &CA"}]
[163,117010,"DCSO, Saiha","F.C.S &CA","FOOD CIVIL SUPPLIES & CONSUMER AFFAIRS","Saiha","090301","xxx}bf~b\u0003\u0002\u0001\u0005",{"$f":"VLOOKUP(E165,Departments!B$3:C$83,2,FALSE)","v":"F.C.S &CA"}]
[164,117011,"DCSO, Champhai","F.C.S &CA","FOOD CIVIL SUPPLIES & CONSUMER AFFAIRS","Champhai","090401","xxx}bf~b\u0004\u0002\u0001\u0005",{"$f":"VLOOKUP(E166,Departments!B$3:C$83,2,FALSE)","v":"F.C.S &CA"}]
[165,117012,"DCSO, Kolasib","F.C.S &CA","FOOD CIVIL SUPPLIES & CONSUMER AFFAIRS","Kolasib","090501","xxx}bf~b\u0001\u0002\u0001\u0005",{"$f":"VLOOKUP(E167,Departments!B$3:C$83,2,FALSE)","v":"F.C.S &CA"}]
[166,117013,"DCSO, Serchhip ","F.C.S &CA","FOOD CIVIL SUPPLIES & CONSUMER AFFAIRS","Serchhip ","090601","xxx}bf~b\u0002\u0002\u0001\u0005",{"$f":"VLOOKUP(E168,Departments!B$3:C$83,2,FALSE)","v":"F.C.S &CA"}]
[167,117014,"DCSO,Lawngtlai","F.C.S &CA","FOOD CIVIL SUPPLIES & CONSUMER AFFAIRS","Lawngtlai","090701","xxx}bf~b\u0007\u0002\u0001\u0005",{"$f":"VLOOKUP(E169,Departments!B$3:C$83,2,FALSE)","v":"F.C.S &CA"}]
[168,117015,"DCSO, Mamit","F.C.S &CA","FOOD CIVIL SUPPLIES & CONSUMER AFFAIRS","Mamit","090801","xxx}bf~b\b\u0002\u0001\u0005",{"$f":"VLOOKUP(E170,Departments!B$3:C$83,2,FALSE)","v":"F.C.S &CA"}]
[169,118001,"Deputy Controller, Printing  & Stationeries ","PRINTING & STATIONERY","PRINTING & STATIONERY","Aizawl South","090101","xxx}bk~a\u0004\u0002\u0001\f",{"$f":"VLOOKUP(E171,Departments!B$3:C$83,2,FALSE)","v":"PRINTING & STATIONERY"}]
[170,118002,"Asst.Controller, P & S, Lunglei","PRINTING & STATIONERY","PRINTING & STATIONERY","Lunglei","090201","xxx}bk~a\u0001\u0002\u0001\f",{"$f":"VLOOKUP(E172,Departments!B$3:C$83,2,FALSE)","v":"PRINTING & STATIONERY"}]
[171,118003,"Asst.Controller, P & S, Saiha","PRINTING & STATIONERY","PRINTING & STATIONERY","Saiha","090301","xxx}bk~a\u0002\u0002\u0001\f",{"$f":"VLOOKUP(E173,Departments!B$3:C$83,2,FALSE)","v":"PRINTING & STATIONERY"}]
[172,119001,"Director, Local Admn. Department","LAD","LOCAL ADMINISTRATION DEPARTMENT","Aizawl South","090101","xxx}bl~a\u0004\u0002\u0001\u000b",{"$f":"VLOOKUP(E174,Departments!B$3:C$83,2,FALSE)","v":"LAD"}]
[173,119002,"D.L.A.O  (LAD), Aizawl","LAD","LOCAL ADMINISTRATION DEPARTMENT","Aizawl South","090101","xxx}bl~a\u0001\u0002\u0001\u000b",{"$f":"VLOOKUP(E175,Departments!B$3:C$83,2,FALSE)","v":"LAD"}]
[174,119003,"D.L.A.O  (LAD), Lunglei","LAD","LOCAL ADMINISTRATION DEPARTMENT","Lunglei","090201","xxx}bl~a\u0002\u0002\u0001\u000b",{"$f":"VLOOKUP(E176,Departments!B$3:C$83,2,FALSE)","v":"LAD"}]
[175,119004,"D.L.A.O  (LAD), Champhai","LAD","LOCAL ADMINISTRATION DEPARTMENT","Champhai","090401","xxx}bl~a\u0007\u0002\u0001\u000b",{"$f":"VLOOKUP(E177,Departments!B$3:C$83,2,FALSE)","v":"LAD"}]
[176,119005,"D.L.A.O  (LAD), Kolasib","LAD","LOCAL ADMINISTRATION DEPARTMENT","Kolasib","090501","xxx}bl~a\b\u0002\u0001\u000b",{"$f":"VLOOKUP(E178,Departments!B$3:C$83,2,FALSE)","v":"LAD"}]
[177,119006,"D.L.A.O  (LAD), Serchhip","LAD","LOCAL ADMINISTRATION DEPARTMENT","Serchhip ","090601","xxx}bl~a\u0005\u0002\u0001\u000b",{"$f":"VLOOKUP(E179,Departments!B$3:C$83,2,FALSE)","v":"LAD"}]
[178,119007,"D.L.A.O  (LAD), Mamit","LAD","LOCAL ADMINISTRATION DEPARTMENT","Mamit","090801","xxx}bl~a\u0006\u0002\u0001\u000b",{"$f":"VLOOKUP(E180,Departments!B$3:C$83,2,FALSE)","v":"LAD"}]
[179,120001,"Director, School Education","SCHOOL EDUCATION","HUMAN RESOURCES & DEVELOPMENT","Aizawl North","090102","xxx}cc~a\u0004\u0002\u0004\u0004",{"$f":"VLOOKUP(E181,Departments!B$3:C$83,2,FALSE)","v":"SCERT"}]
[180,120002,"Jt.Director, Adult Edn.","SCHOOL EDUCATION","HUMAN RESOURCES & DEVELOPMENT","Aizawl North","090102","xxx}cc~a\u0001\u0002\u0004\u0004",{"$f":"VLOOKUP(E182,Departments!B$3:C$83,2,FALSE)","v":"SCERT"}]
[181,120003,"Director, SCERT, Aizawl","SCERT","HUMAN RESOURCES & DEVELOPMENT","Aizawl North","090102","xxx}cc~a\u0002\u0002\u0004\u0004",{"$f":"VLOOKUP(E183,Departments!B$3:C$83,2,FALSE)","v":"SCERT"}]
[182,120004,"Principal, DIET","SCERT","HUMAN RESOURCES & DEVELOPMENT","Aizawl North","090102","xxx}cc~a\u0007\u0002\u0004\u0004",{"$f":"VLOOKUP(E184,Departments!B$3:C$83,2,FALSE)","v":"SCERT"}]
[183,120005,"Principal, MICE","SCERT","HUMAN RESOURCES & DEVELOPMENT","Aizawl North","090102","xxx}cc~a\b\u0002\u0004\u0004",{"$f":"VLOOKUP(E185,Departments!B$3:C$83,2,FALSE)","v":"SCERT"}]
[184,120006,"Project Officer, RFLP","SCHOOL EDUCATION","HUMAN RESOURCES & DEVELOPMENT","Aizawl North","090102","xxx}cc~a\u0005\u0002\u0004\u0004",{"$f":"VLOOKUP(E186,Departments!B$3:C$83,2,FALSE)","v":"SCERT"}]
[185,120007,"Dist. Adult Edn. Officer (E)","SCHOOL EDUCATION","HUMAN RESOURCES & DEVELOPMENT","Aizawl North","090102","xxx}cc~a\u0006\u0002\u0004\u0004",{"$f":"VLOOKUP(E187,Departments!B$3:C$83,2,FALSE)","v":"SCERT"}]
[186,120008,"Dist. Adult Edn. Officer (W)","SCHOOL EDUCATION","HUMAN RESOURCES & DEVELOPMENT","Aizawl North","090102","xxx}cc~a\u000b\u0002\u0004\u0004",{"$f":"VLOOKUP(E188,Departments!B$3:C$83,2,FALSE)","v":"SCERT"}]
[187,120009,"Dist. Education Officer, Aizawl","SCHOOL EDUCATION","HUMAN RESOURCES & DEVELOPMENT","Aizawl North","090102","xxx}cc~a\f\u0002\u0004\u0004",{"$f":"VLOOKUP(E189,Departments!B$3:C$83,2,FALSE)","v":"SCERT"}]
[188,120010,"S.D.E.O. Aizawl East ","SCHOOL EDUCATION","HUMAN RESOURCES & DEVELOPMENT","Aizawl North","090102","xxx}cc~b\u0003\u0002\u0004\u0004",{"$f":"VLOOKUP(E190,Departments!B$3:C$83,2,FALSE)","v":"SCERT"}]
[189,120011,"S.D.E.O Saitual","SCHOOL EDUCATION","HUMAN RESOURCES & DEVELOPMENT","Aizawl North","090102","xxx}cc~b\u0004\u0002\u0004\u0004",{"$f":"VLOOKUP(E191,Departments!B$3:C$83,2,FALSE)","v":"SCERT"}]
[190,120012,"S.D.E.O. Aizawl West","SCHOOL EDUCATION","HUMAN RESOURCES & DEVELOPMENT","Aizawl North","090102","xxx}cc~b\u0001\u0002\u0004\u0004",{"$f":"VLOOKUP(E192,Departments!B$3:C$83,2,FALSE)","v":"SCERT"}]
[191,120013,"S.D.E.O. Darlawn","SCHOOL EDUCATION","HUMAN RESOURCES & DEVELOPMENT","Aizawl North","090102","xxx}cc~b\u0002\u0002\u0004\u0004",{"$f":"VLOOKUP(E193,Departments!B$3:C$83,2,FALSE)","v":"SCERT"}]
[192,120014,"S.D.E.O. South","SCHOOL EDUCATION","HUMAN RESOURCES & DEVELOPMENT","Aizawl North","090102","xxx}cc~b\u0007\u0002\u0004\u0004",{"$f":"VLOOKUP(E194,Departments!B$3:C$83,2,FALSE)","v":"SCERT"}]
[193,120015,"Principal Govt. HSS, Aizawl","SCHOOL EDUCATION","HUMAN RESOURCES & DEVELOPMENT","Aizawl North","090102","xxx}cc~b\b\u0002\u0004\u0004",{"$f":"VLOOKUP(E195,Departments!B$3:C$83,2,FALSE)","v":"SCERT"}]
[194,120016,"Principal, Mamawii HSS","SCHOOL EDUCATION","HUMAN RESOURCES & DEVELOPMENT","Aizawl North","090102","xxx}cc~b\u0005\u0002\u0004\u0004",{"$f":"VLOOKUP(E196,Departments!B$3:C$83,2,FALSE)","v":"SCERT"}]
[195,120017,"Principal, Saitual HSS","SCHOOL EDUCATION","HUMAN RESOURCES & DEVELOPMENT","Aizawl North","090102","xxx}cc~b\u0006\u0002\u0004\u0004",{"$f":"VLOOKUP(E197,Departments!B$3:C$83,2,FALSE)","v":"SCERT"}]
[196,120018,"Principal, Central HSS, Aizawl","SCHOOL EDUCATION","HUMAN RESOURCES & DEVELOPMENT","Aizawl North","090102","xxx}cc~b\u000b\u0002\u0004\u0004",{"$f":"VLOOKUP(E198,Departments!B$3:C$83,2,FALSE)","v":"SCERT"}]
[197,120019,"Principal, JL HSS, Aizawl","SCHOOL EDUCATION","HUMAN RESOURCES & DEVELOPMENT","Aizawl North","090102","xxx}cc~b\f\u0002\u0004\u0004",{"$f":"VLOOKUP(E199,Departments!B$3:C$83,2,FALSE)","v":"SCERT"}]
[198,120020,"Principal Chaltlang HSS","SCHOOL EDUCATION","HUMAN RESOURCES & DEVELOPMENT","Aizawl North","090102","xxx}cc~c\u0003\u0002\u0004\u0004",{"$f":"VLOOKUP(E200,Departments!B$3:C$83,2,FALSE)","v":"SCERT"}]
[199,120021,"Principal KM HSS, Aizawl","SCHOOL EDUCATION","HUMAN RESOURCES & DEVELOPMENT","Aizawl North","090102","xxx}cc~c\u0004\u0002\u0004\u0004",{"$f":"VLOOKUP(E201,Departments!B$3:C$83,2,FALSE)","v":"SCERT"}]
[200,120022,"Principal,Zemabawk HSS","SCHOOL EDUCATION","HUMAN RESOURCES & DEVELOPMENT","Aizawl North","090102","xxx}cc~c\u0001\u0002\u0004\u0004",{"$f":"VLOOKUP(E202,Departments!B$3:C$83,2,FALSE)","v":"SCERT"}]
[201,120023,"Principal Republic HSS, Aizawl","SCHOOL EDUCATION","HUMAN RESOURCES & DEVELOPMENT","Aizawl North","090102","xxx}cc~c\u0002\u0002\u0004\u0004",{"$f":"VLOOKUP(E203,Departments!B$3:C$83,2,FALSE)","v":"SCERT"}]
[202,120024,"Headmaster, Aizawl High School","SCHOOL EDUCATION","HUMAN RESOURCES & DEVELOPMENT","Aizawl North","090102","xxx}cc~c\u0007\u0002\u0004\u0004",{"$f":"VLOOKUP(E204,Departments!B$3:C$83,2,FALSE)","v":"SCERT"}]
[203,120025,"Headmaster, Hrangchhuana H.S.","SCHOOL EDUCATION","HUMAN RESOURCES & DEVELOPMENT","Aizawl North","090102","xxx}cc~c\b\u0002\u0004\u0004",{"$f":"VLOOKUP(E205,Departments!B$3:C$83,2,FALSE)","v":"SCERT"}]
[204,120026,"Headmaster, Bethlehem H.S.","SCHOOL EDUCATION","HUMAN RESOURCES & DEVELOPMENT","Aizawl North","090102","xxx}cc~c\u0005\u0002\u0004\u0004",{"$f":"VLOOKUP(E206,Departments!B$3:C$83,2,FALSE)","v":"SCERT"}]
[205,120027,"Headmaster, Durtlang H.S.","SCHOOL EDUCATION","HUMAN RESOURCES & DEVELOPMENT","Aizawl North","090102","xxx}cc~c\u0006\u0002\u0004\u0004",{"$f":"VLOOKUP(E207,Departments!B$3:C$83,2,FALSE)","v":"SCERT"}]
[206,120028,"Headmaster, KVM H.S., Aizawl","SCHOOL EDUCATION","HUMAN RESOURCES & DEVELOPMENT","Aizawl North","090102","xxx}cc~c\u000b\u0002\u0004\u0004",{"$f":"VLOOKUP(E208,Departments!B$3:C$83,2,FALSE)","v":"SCERT"}]
[207,120029,"Headmaster,Pianghleia H.S., Aizawl","SCHOOL EDUCATION","HUMAN RESOURCES & DEVELOPMENT","Aizawl North","090102","xxx}cc~c\f\u0002\u0004\u0004",{"$f":"VLOOKUP(E209,Departments!B$3:C$83,2,FALSE)","v":"SCERT"}]
[208,120030,"Headmaster, Ch.Chhunga H.S.","SCHOOL EDUCATION","HUMAN RESOURCES & DEVELOPMENT","Aizawl North","090102","xxx}cc~d\u0003\u0002\u0004\u0004",{"$f":"VLOOKUP(E210,Departments!B$3:C$83,2,FALSE)","v":"SCERT"}]
[209,120031,"Headmaster, RM H.S.","SCHOOL EDUCATION","HUMAN RESOURCES & DEVELOPMENT","Aizawl North","090102","xxx}cc~d\u0004\u0002\u0004\u0004",{"$f":"VLOOKUP(E211,Departments!B$3:C$83,2,FALSE)","v":"SCERT"}]
[210,120032,"Headmaster, Sihphir H.S.","SCHOOL EDUCATION","HUMAN RESOURCES & DEVELOPMENT","Aizawl North","090102","xxx}cc~d\u0001\u0002\u0004\u0004",{"$f":"VLOOKUP(E212,Departments!B$3:C$83,2,FALSE)","v":"SCERT"}]
[211,120033,"Headmaster, Hlimen H.S.","SCHOOL EDUCATION","HUMAN RESOURCES & DEVELOPMENT","Aizawl North","090102","xxx}cc~d\u0002\u0002\u0004\u0004",{"$f":"VLOOKUP(E213,Departments!B$3:C$83,2,FALSE)","v":"SCERT"}]
[212,120034,"Headmaster, Bawngkawn H.S.","SCHOOL EDUCATION","HUMAN RESOURCES & DEVELOPMENT","Aizawl North","090102","xxx}cc~d\u0007\u0002\u0004\u0004",{"$f":"VLOOKUP(E214,Departments!B$3:C$83,2,FALSE)","v":"SCERT"}]
[213,120035,"Headmaster, Comprehensive H.S., Azl.","SCHOOL EDUCATION","HUMAN RESOURCES & DEVELOPMENT","Aizawl North","090102","xxx}cc~d\b\u0002\u0004\u0004",{"$f":"VLOOKUP(E215,Departments!B$3:C$83,2,FALSE)","v":"SCERT"}]
[214,120036,"Headmaster, Hrangchhunga H.S., Azl.","SCHOOL EDUCATION","HUMAN RESOURCES & DEVELOPMENT","Aizawl North","090102","xxx}cc~d\u0005\u0002\u0004\u0004",{"$f":"VLOOKUP(E216,Departments!B$3:C$83,2,FALSE)","v":"SCERT"}]
[215,120037,"Headmaster, Dinthar H.S.","SCHOOL EDUCATION","HUMAN RESOURCES & DEVELOPMENT","Aizawl North","090102","xxx}cc~d\u0006\u0002\u0004\u0004",{"$f":"VLOOKUP(E217,Departments!B$3:C$83,2,FALSE)","v":"SCERT"}]
[216,120038,"Headmaster, Bungkawn H.S.","SCHOOL EDUCATION","HUMAN RESOURCES & DEVELOPMENT","Aizawl North","090102","xxx}cc~d\u000b\u0002\u0004\u0004",{"$f":"VLOOKUP(E218,Departments!B$3:C$83,2,FALSE)","v":"SCERT"}]
[217,120039,"Headmaster, Sairang H.S.","SCHOOL EDUCATION","HUMAN RESOURCES & DEVELOPMENT","Aizawl North","090102","xxx}cc~d\f\u0002\u0004\u0004",{"$f":"VLOOKUP(E219,Departments!B$3:C$83,2,FALSE)","v":"SCERT"}]
[218,120040,"Headmaster, Lengpui H.S.","SCHOOL EDUCATION","HUMAN RESOURCES & DEVELOPMENT","Aizawl North","090102","xxx}cc~e\u0003\u0002\u0004\u0004",{"$f":"VLOOKUP(E220,Departments!B$3:C$83,2,FALSE)","v":"SCERT"}]
[219,120041,"Headmaster, Keifang H.S.","SCHOOL EDUCATION","HUMAN RESOURCES & DEVELOPMENT","Aizawl North","090102","xxx}cc~e\u0004\u0002\u0004\u0004",{"$f":"VLOOKUP(E221,Departments!B$3:C$83,2,FALSE)","v":"SCERT"}]
[220,120042,"Headmaster, Rulchawm H.S.","SCHOOL EDUCATION","HUMAN RESOURCES & DEVELOPMENT","Aizawl North","090102","xxx}cc~e\u0001\u0002\u0004\u0004",{"$f":"VLOOKUP(E222,Departments!B$3:C$83,2,FALSE)","v":"SCERT"}]
[221,120043,"Headmaster, Tlungvel H.S.","SCHOOL EDUCATION","HUMAN RESOURCES & DEVELOPMENT","Aizawl North","090102","xxx}cc~e\u0002\u0002\u0004\u0004",{"$f":"VLOOKUP(E223,Departments!B$3:C$83,2,FALSE)","v":"SCERT"}]
[222,120044,"Headmaster, Seling H.S.","SCHOOL EDUCATION","HUMAN RESOURCES & DEVELOPMENT","Aizawl North","090102","xxx}cc~e\u0007\u0002\u0004\u0004",{"$f":"VLOOKUP(E224,Departments!B$3:C$83,2,FALSE)","v":"SCERT"}]
[223,120045,"Headmaster, Thingsul H.S.","SCHOOL EDUCATION","HUMAN RESOURCES & DEVELOPMENT","Aizawl North","090102","xxx}cc~e\b\u0002\u0004\u0004",{"$f":"VLOOKUP(E225,Departments!B$3:C$83,2,FALSE)","v":"SCERT"}]
[224,120046,"Headmaster, Tanhril H.S.","SCHOOL EDUCATION","HUMAN RESOURCES & DEVELOPMENT","Aizawl North","090102","xxx}cc~e\u0005\u0002\u0004\u0004",{"$f":"VLOOKUP(E226,Departments!B$3:C$83,2,FALSE)","v":"SCERT"}]
[225,120047,"Headmaster, Kulikawn H.S.","SCHOOL EDUCATION","HUMAN RESOURCES & DEVELOPMENT","Aizawl North","090102","xxx}cc~e\u0006\u0002\u0004\u0004",{"$f":"VLOOKUP(E227,Departments!B$3:C$83,2,FALSE)","v":"SCERT"}]
[226,120048,"District Education Officer, Lunglei","SCHOOL EDUCATION","HUMAN RESOURCES & DEVELOPMENT","Lunglei","090201","xxx}cc~e\u000b\u0002\u0004\u0004",{"$f":"VLOOKUP(E228,Departments!B$3:C$83,2,FALSE)","v":"SCERT"}]
[227,120049,"SDEO, North Lunglei","SCHOOL EDUCATION","HUMAN RESOURCES & DEVELOPMENT","Lunglei","090201","xxx}cc~e\f\u0002\u0004\u0004",{"$f":"VLOOKUP(E229,Departments!B$3:C$83,2,FALSE)","v":"SCERT"}]
[228,120050,"SDEO, South Lunglei","SCHOOL EDUCATION","HUMAN RESOURCES & DEVELOPMENT","Lunglei","090201","xxx}cc~f\u0003\u0002\u0004\u0004",{"$f":"VLOOKUP(E230,Departments!B$3:C$83,2,FALSE)","v":"SCERT"}]
[229,120051,"SDEO, Hnahthial","SCHOOL EDUCATION","HUMAN RESOURCES & DEVELOPMENT","Lunglei","090201","xxx}cc~f\u0004\u0002\u0004\u0004",{"$f":"VLOOKUP(E231,Departments!B$3:C$83,2,FALSE)","v":"SCERT"}]
[230,120052,"SDEO, Lungsen","SCHOOL EDUCATION","HUMAN RESOURCES & DEVELOPMENT","Lunglei","090201","xxx}cc~f\u0001\u0002\u0004\u0004",{"$f":"VLOOKUP(E232,Departments!B$3:C$83,2,FALSE)","v":"SCERT"}]
[231,120053,"DAEO, Lunglei","SCHOOL EDUCATION","HUMAN RESOURCES & DEVELOPMENT","Lunglei","090201","xxx}cc~f\u0002\u0002\u0004\u0004",{"$f":"VLOOKUP(E233,Departments!B$3:C$83,2,FALSE)","v":"SCERT"}]
[232,120054,"Principal, Govt. HSS, Lunglei","SCHOOL EDUCATION","HUMAN RESOURCES & DEVELOPMENT","Lunglei","090201","xxx}cc~f\u0007\u0002\u0004\u0004",{"$f":"VLOOKUP(E234,Departments!B$3:C$83,2,FALSE)","v":"SCERT"}]
[233,120055,"Principal, Govt. Leitlangpui HSS, Lunglei","SCHOOL EDUCATION","HUMAN RESOURCES & DEVELOPMENT","Lunglei","090201","xxx}cc~f\b\u0002\u0004\u0004",{"$f":"VLOOKUP(E235,Departments!B$3:C$83,2,FALSE)","v":"SCERT"}]
[234,120056,"Principal, Govt, HSS, Hnahthial","SCHOOL EDUCATION","HUMAN RESOURCES & DEVELOPMENT","Lunglei","090201","xxx}cc~f\u0005\u0002\u0004\u0004",{"$f":"VLOOKUP(E236,Departments!B$3:C$83,2,FALSE)","v":"SCERT"}]
[235,120057,"Headmaster, Govt. H.S., Bazar","SCHOOL EDUCATION","HUMAN RESOURCES & DEVELOPMENT","Lunglei","090201","xxx}cc~f\u0006\u0002\u0004\u0004",{"$f":"VLOOKUP(E237,Departments!B$3:C$83,2,FALSE)","v":"SCERT"}]
[236,120058,"Headmaster, Govt H.S., Theiriat","SCHOOL EDUCATION","HUMAN RESOURCES & DEVELOPMENT","Lunglei","090201","xxx}cc~f\u000b\u0002\u0004\u0004",{"$f":"VLOOKUP(E238,Departments!B$3:C$83,2,FALSE)","v":"SCERT"}]
[237,120059,"Headmaster, Govt.  H.S Thingsai","SCHOOL EDUCATION","HUMAN RESOURCES & DEVELOPMENT","Lunglei","090201","xxx}cc~f\f\u0002\u0004\u0004",{"$f":"VLOOKUP(E239,Departments!B$3:C$83,2,FALSE)","v":"SCERT"}]
[238,120060,"Headmaster, Govt. H.S, Zobawk","SCHOOL EDUCATION","HUMAN RESOURCES & DEVELOPMENT","Lunglei","090201","xxx}cc~g\u0003\u0002\u0004\u0004",{"$f":"VLOOKUP(E240,Departments!B$3:C$83,2,FALSE)","v":"SCERT"}]
[239,120061,"Headmaster, Govt. H.S, Venglai","SCHOOL EDUCATION","HUMAN RESOURCES & DEVELOPMENT","Lunglei","090201","xxx}cc~g\u0004\u0002\u0004\u0004",{"$f":"VLOOKUP(E241,Departments!B$3:C$83,2,FALSE)","v":"SCERT"}]
[240,120062,"Headmaster, Govt. H.S, Rahsiveng","SCHOOL EDUCATION","HUMAN RESOURCES & DEVELOPMENT","Lunglei","090201","xxx}cc~g\u0001\u0002\u0004\u0004",{"$f":"VLOOKUP(E242,Departments!B$3:C$83,2,FALSE)","v":"SCERT"}]
[241,120063,"Headmaster, Govt.H.S, Zohnuai","SCHOOL EDUCATION","HUMAN RESOURCES & DEVELOPMENT","Lunglei","090201","xxx}cc~g\u0002\u0002\u0004\u0004",{"$f":"VLOOKUP(E243,Departments!B$3:C$83,2,FALSE)","v":"SCERT"}]
[242,120064,"Headmaster, Govt. H.S, Zotlang","SCHOOL EDUCATION","HUMAN RESOURCES & DEVELOPMENT","Lunglei","090201","xxx}cc~g\u0007\u0002\u0004\u0004",{"$f":"VLOOKUP(E244,Departments!B$3:C$83,2,FALSE)","v":"SCERT"}]
[243,120065,"Headmaster, Liantawna HS, Lunglawn","SCHOOL EDUCATION","HUMAN RESOURCES & DEVELOPMENT","Lunglei","090201","xxx}cc~g\b\u0002\u0004\u0004",{"$f":"VLOOKUP(E245,Departments!B$3:C$83,2,FALSE)","v":"SCERT"}]
[244,120066,"Principal, DIET, Lunglei","SCERT","HUMAN RESOURCES & DEVELOPMENT","Lunglei","090201","xxx}cc~g\u0005\u0002\u0004\u0004",{"$f":"VLOOKUP(E246,Departments!B$3:C$83,2,FALSE)","v":"SCERT"}]
[245,120067,"District Education Officer, Saiha","SCHOOL EDUCATION","HUMAN RESOURCES & DEVELOPMENT","Saiha","090301","xxx}cc~g\u0006\u0002\u0004\u0004",{"$f":"VLOOKUP(E247,Departments!B$3:C$83,2,FALSE)","v":"SCERT"}]
[246,120068,"Principal, Govt. HSS, Saiha","SCHOOL EDUCATION","HUMAN RESOURCES & DEVELOPMENT","Saiha","090301","xxx}cc~g\u000b\u0002\u0004\u0004",{"$f":"VLOOKUP(E248,Departments!B$3:C$83,2,FALSE)","v":"SCERT"}]
[247,120069,"Headmaster,Govt. Siaha H/S ","SCHOOL EDUCATION","HUMAN RESOURCES & DEVELOPMENT","Saiha","090301","xxx}cc~g\f\u0002\u0004\u0004",{"$f":"VLOOKUP(E249,Departments!B$3:C$83,2,FALSE)","v":"SCERT"}]
[248,120070,"Principal, Mini DIET, Saiha","SCERT","HUMAN RESOURCES & DEVELOPMENT","Saiha","090301","xxx}cc~h\u0003\u0002\u0004\u0004",{"$f":"VLOOKUP(E250,Departments!B$3:C$83,2,FALSE)","v":"SCERT"}]
[249,120071,"District Education Officer, Champhai","SCHOOL EDUCATION","HUMAN RESOURCES & DEVELOPMENT","Champhai","090401","xxx}cc~h\u0004\u0002\u0004\u0004",{"$f":"VLOOKUP(E251,Departments!B$3:C$83,2,FALSE)","v":"SCERT"}]
[250,120072,"SDEO, Champhai","SCHOOL EDUCATION","HUMAN RESOURCES & DEVELOPMENT","Champhai","090401","xxx}cc~h\u0001\u0002\u0004\u0004",{"$f":"VLOOKUP(E252,Departments!B$3:C$83,2,FALSE)","v":"SCERT"}]
[251,120073,"SDEO, Khawzawl","SCHOOL EDUCATION","HUMAN RESOURCES & DEVELOPMENT","Champhai","090401","xxx}cc~h\u0002\u0002\u0004\u0004",{"$f":"VLOOKUP(E253,Departments!B$3:C$83,2,FALSE)","v":"SCERT"}]
[252,120074,"Headmaster, Govt.G.M HS, Champhai ","SCHOOL EDUCATION","HUMAN RESOURCES & DEVELOPMENT","Champhai","090401","xxx}cc~h\u0007\u0002\u0004\u0004",{"$f":"VLOOKUP(E254,Departments!B$3:C$83,2,FALSE)","v":"SCERT"}]
[253,120075,"Headmaster, Champhai High School","SCHOOL EDUCATION","HUMAN RESOURCES & DEVELOPMENT","Champhai","090401","xxx}cc~h\b\u0002\u0004\u0004",{"$f":"VLOOKUP(E255,Departments!B$3:C$83,2,FALSE)","v":"SCERT"}]
[254,120076,"Headmaster, Ruantlang High School","SCHOOL EDUCATION","HUMAN RESOURCES & DEVELOPMENT","Champhai","090401","xxx}cc~h\u0005\u0002\u0004\u0004",{"$f":"VLOOKUP(E256,Departments!B$3:C$83,2,FALSE)","v":"SCERT"}]
[255,120077,"Hedmaster, T.M.High School","SCHOOL EDUCATION","HUMAN RESOURCES & DEVELOPMENT","Champhai","090401","xxx}cc~h\u0006\u0002\u0004\u0004",{"$f":"VLOOKUP(E257,Departments!B$3:C$83,2,FALSE)","v":"SCERT"}]
[256,120078,"Headmaster, R.Hranga High School","SCHOOL EDUCATION","HUMAN RESOURCES & DEVELOPMENT","Champhai","090401","xxx}cc~h\u000b\u0002\u0004\u0004",{"$f":"VLOOKUP(E258,Departments!B$3:C$83,2,FALSE)","v":"SCERT"}]
[257,120079,"Principal, Mini DIET, Champhai","SCERT","HUMAN RESOURCES & DEVELOPMENT","Champhai","090401","xxx}cc~h\f\u0002\u0004\u0004",{"$f":"VLOOKUP(E259,Departments!B$3:C$83,2,FALSE)","v":"SCERT"}]
[258,120080,"District Educaton Officer, Kolasib","SCHOOL EDUCATION","HUMAN RESOURCES & DEVELOPMENT","Kolasib","090501","xxx}cc~i\u0003\u0002\u0004\u0004",{"$f":"VLOOKUP(E260,Departments!B$3:C$83,2,FALSE)","v":"SCERT"}]
[259,120081,"SDEO, Kolasib","SCHOOL EDUCATION","HUMAN RESOURCES & DEVELOPMENT","Kolasib","090501","xxx}cc~i\u0004\u0002\u0004\u0004",{"$f":"VLOOKUP(E261,Departments!B$3:C$83,2,FALSE)","v":"SCERT"}]
[260,120082,"SDEO, Kawnpui","SCHOOL EDUCATION","HUMAN RESOURCES & DEVELOPMENT","Kolasib","090501","xxx}cc~i\u0001\u0002\u0004\u0004",{"$f":"VLOOKUP(E262,Departments!B$3:C$83,2,FALSE)","v":"SCERT"}]
[261,120083,"Headmaster, Govt. HS, Kawnpui","SCHOOL EDUCATION","HUMAN RESOURCES & DEVELOPMENT","Kolasib","090501","xxx}cc~i\u0002\u0002\u0004\u0004",{"$f":"VLOOKUP(E263,Departments!B$3:C$83,2,FALSE)","v":"SCERT"}]
[262,120084,"Headmaster, Govt. HS, Kolasib","SCHOOL EDUCATION","HUMAN RESOURCES & DEVELOPMENT","Kolasib","090501","xxx}cc~i\u0007\u0002\u0004\u0004",{"$f":"VLOOKUP(E264,Departments!B$3:C$83,2,FALSE)","v":"SCERT"}]
[263,120085,"Headmaster, Govt. HS, Diakkawn","SCHOOL EDUCATION","HUMAN RESOURCES & DEVELOPMENT","Kolasib","090501","xxx}cc~i\b\u0002\u0004\u0004",{"$f":"VLOOKUP(E265,Departments!B$3:C$83,2,FALSE)","v":"SCERT"}]
[264,120086,"Headmaster, Govt. HS, Thingdawl","SCHOOL EDUCATION","HUMAN RESOURCES & DEVELOPMENT","Kolasib","090501","xxx}cc~i\u0005\u0002\u0004\u0004",{"$f":"VLOOKUP(E266,Departments!B$3:C$83,2,FALSE)","v":"SCERT"}]
[265,120087,"Headmaster, Govt. HS, Lungdai","SCHOOL EDUCATION","HUMAN RESOURCES & DEVELOPMENT","Kolasib","090501","xxx}cc~i\u0006\u0002\u0004\u0004",{"$f":"VLOOKUP(E267,Departments!B$3:C$83,2,FALSE)","v":"SCERT"}]
[266,120088,"Principal, Mini DIET, Kolasib","SCERT","HUMAN RESOURCES & DEVELOPMENT","Kolasib","090501","xxx}cc~i\u000b\u0002\u0004\u0004",{"$f":"VLOOKUP(E268,Departments!B$3:C$83,2,FALSE)","v":"SCERT"}]
[267,120089,"District Education Officer, Serchhip ","SCHOOL EDUCATION","HUMAN RESOURCES & DEVELOPMENT","Serchhip ","090601","xxx}cc~i\f\u0002\u0004\u0004",{"$f":"VLOOKUP(E269,Departments!B$3:C$83,2,FALSE)","v":"SCERT"}]
[268,120090,"SDEO, Serchhip ","SCHOOL EDUCATION","HUMAN RESOURCES & DEVELOPMENT","Serchhip ","090601","xxx}cc~j\u0003\u0002\u0004\u0004",{"$f":"VLOOKUP(E270,Departments!B$3:C$83,2,FALSE)","v":"SCERT"}]
[269,120091,"SDEO, Thenzawl","SCHOOL EDUCATION","HUMAN RESOURCES & DEVELOPMENT","Serchhip ","090601","xxx}cc~j\u0004\u0002\u0004\u0004",{"$f":"VLOOKUP(E271,Departments!B$3:C$83,2,FALSE)","v":"SCERT"}]
[270,120092,"SDEO, N.Vanlaiphai ","SCHOOL EDUCATION","HUMAN RESOURCES & DEVELOPMENT","Serchhip ","090601","xxx}cc~j\u0001\u0002\u0004\u0004",{"$f":"VLOOKUP(E272,Departments!B$3:C$83,2,FALSE)","v":"SCERT"}]
[271,120093,"Headmaster, Govt. PCR HS,Serchhip ","SCHOOL EDUCATION","HUMAN RESOURCES & DEVELOPMENT","Serchhip ","090601","xxx}cc~j\u0002\u0002\u0004\u0004",{"$f":"VLOOKUP(E273,Departments!B$3:C$83,2,FALSE)","v":"SCERT"}]
[272,120094,"Headmaster, Govt. JM HS, Serchhip","SCHOOL EDUCATION","HUMAN RESOURCES & DEVELOPMENT","Serchhip ","090601","xxx}cc~j\u0007\u0002\u0004\u0004",{"$f":"VLOOKUP(E274,Departments!B$3:C$83,2,FALSE)","v":"SCERT"}]
[273,120095,"Headmaster, Govt. Thenzawl HS","SCHOOL EDUCATION","HUMAN RESOURCES & DEVELOPMENT","Serchhip ","090601","xxx}cc~j\b\u0002\u0004\u0004",{"$f":"VLOOKUP(E275,Departments!B$3:C$83,2,FALSE)","v":"SCERT"}]
[274,120096,"Headmaster, Govt. Lalengvunga HS","SCHOOL EDUCATION","HUMAN RESOURCES & DEVELOPMENT","Serchhip ","090601","xxx}cc~j\u0005\u0002\u0004\u0004",{"$f":"VLOOKUP(E276,Departments!B$3:C$83,2,FALSE)","v":"SCERT"}]
[275,120097,"Headmaster, Govt. Keitum HS","SCHOOL EDUCATION","HUMAN RESOURCES & DEVELOPMENT","Serchhip ","090601","xxx}cc~j\u0006\u0002\u0004\u0004",{"$f":"VLOOKUP(E277,Departments!B$3:C$83,2,FALSE)","v":"SCERT"}]
[276,120098,"Headmaster, Govt. Baktawng HS","SCHOOL EDUCATION","HUMAN RESOURCES & DEVELOPMENT","Serchhip ","090601","xxx}cc~j\u000b\u0002\u0004\u0004",{"$f":"VLOOKUP(E278,Departments!B$3:C$83,2,FALSE)","v":"SCERT"}]
[277,120099,"Hdm., Govt. Democratic HS, Khumtung","SCHOOL EDUCATION","HUMAN RESOURCES & DEVELOPMENT","Serchhip ","090601","xxx}cc~j\f\u0002\u0004\u0004",{"$f":"VLOOKUP(E279,Departments!B$3:C$83,2,FALSE)","v":"SCERT"}]
[278,120100,"Hdm., Govt. Chhiahtlang HS","SCHOOL EDUCATION","HUMAN RESOURCES & DEVELOPMENT","Serchhip ","090601","xxx}cc}a\u0003\u0002\u0004\u0004",{"$f":"VLOOKUP(E280,Departments!B$3:C$83,2,FALSE)","v":"SCERT"}]
[279,120101,"Principal, Govt. HSS, Serchhip","SCHOOL EDUCATION","HUMAN RESOURCES & DEVELOPMENT","Serchhip ","090601","xxx}cc}a\u0004\u0002\u0004\u0004",{"$f":"VLOOKUP(E281,Departments!B$3:C$83,2,FALSE)","v":"SCERT"}]
[280,120102,"Principal, Mini DIET, Serchhip","SCERT","HUMAN RESOURCES & DEVELOPMENT","Serchhip ","090601","xxx}cc}a\u0001\u0002\u0004\u0004",{"$f":"VLOOKUP(E282,Departments!B$3:C$83,2,FALSE)","v":"SCERT"}]
[281,120103,"Principal, Govt. HSS, Serchhip","SCHOOL EDUCATION","HUMAN RESOURCES & DEVELOPMENT","Lawngtlai","090701","xxx}cc}a\u0002\u0002\u0004\u0004",{"$f":"VLOOKUP(E283,Departments!B$3:C$83,2,FALSE)","v":"SCERT"}]
[282,120104,"Hdm.,Chanmari Govt. HS, Lawngtlai","SCHOOL EDUCATION","HUMAN RESOURCES & DEVELOPMENT","Lawngtlai","090701","xxx}cc}a\u0007\u0002\u0004\u0004",{"$f":"VLOOKUP(E284,Departments!B$3:C$83,2,FALSE)","v":"SCERT"}]
[283,120105,"Hdm., Govt. High School, Chawngte","SCHOOL EDUCATION","HUMAN RESOURCES & DEVELOPMENT","Lawngtlai","090701","xxx}cc}a\b\u0002\u0004\u0004",{"$f":"VLOOKUP(E285,Departments!B$3:C$83,2,FALSE)","v":"SCERT"}]
[284,120106,"Principal,Govt.Region HSS, Lawngtlai","SCHOOL EDUCATION","HUMAN RESOURCES & DEVELOPMENT","Lawngtlai","090701","xxx}cc}a\u0005\u0002\u0004\u0004",{"$f":"VLOOKUP(E286,Departments!B$3:C$83,2,FALSE)","v":"SCERT"}]
[285,120107,"Principal, Mini DIET, Lawngtlai","SCERT","HUMAN RESOURCES & DEVELOPMENT","Lawngtlai","090701","xxx}cc}a\u0006\u0002\u0004\u0004",{"$f":"VLOOKUP(E287,Departments!B$3:C$83,2,FALSE)","v":"SCERT"}]
[286,120108,"District Education Officer, Mamit ","SCHOOL EDUCATION","HUMAN RESOURCES & DEVELOPMENT","Mamit","090801","xxx}cc}a\u000b\u0002\u0004\u0004",{"$f":"VLOOKUP(E288,Departments!B$3:C$83,2,FALSE)","v":"SCERT"}]
[287,120109,"S.D.E.O, Mamit","SCHOOL EDUCATION","HUMAN RESOURCES & DEVELOPMENT","Mamit","090801","xxx}cc}a\f\u0002\u0004\u0004",{"$f":"VLOOKUP(E289,Departments!B$3:C$83,2,FALSE)","v":"SCERT"}]
[288,120110,"S.D.E.O, West Phaileng","SCHOOL EDUCATION","HUMAN RESOURCES & DEVELOPMENT","Mamit","090801","xxx}cc}b\u0003\u0002\u0004\u0004",{"$f":"VLOOKUP(E290,Departments!B$3:C$83,2,FALSE)","v":"SCERT"}]
[289,120111,"S.D.E.O, Kawrthah","SCHOOL EDUCATION","HUMAN RESOURCES & DEVELOPMENT","Mamit","090801","xxx}cc}b\u0004\u0002\u0004\u0004",{"$f":"VLOOKUP(E291,Departments!B$3:C$83,2,FALSE)","v":"SCERT"}]
[290,120112,"Principal, Govt. HSS, Mamit","SCHOOL EDUCATION","HUMAN RESOURCES & DEVELOPMENT","Mamit","090801","xxx}cc}b\u0001\u0002\u0004\u0004",{"$f":"VLOOKUP(E292,Departments!B$3:C$83,2,FALSE)","v":"SCERT"}]
[291,120113,"Principal, Mini DIET, Mamit ","SCERT","HUMAN RESOURCES & DEVELOPMENT","Mamit","090801","xxx}cc}b\u0002\u0002\u0004\u0004",{"$f":"VLOOKUP(E293,Departments!B$3:C$83,2,FALSE)","v":"SCERT"}]
[292,120114,"Principal, GHSS, Kawrthah","SCHOOL EDUCATION","HUMAN RESOURCES & DEVELOPMENT","Mamit","090801","xxx}cc}b\u0007\u0002\u0004\u0004",{"$f":"VLOOKUP(E294,Departments!B$3:C$83,2,FALSE)","v":"SCERT"}]
[293,121001,"Director, Higher & Technical Education.","HIGHER & TECHNICAL EDUCATION","HIGHER &  TECHNICAL EDUCATION","Aizawl North","090102","xxx}cd~a\u0004\u0002\u0004\u0003",{"$f":"VLOOKUP(E295,Departments!B$3:C$83,2,FALSE)","v":"Mizoram Scholarship Board"}]
[294,121002,"Jt.Director,Scholarship Board","Mizoram Scholarship Board","HIGHER &  TECHNICAL EDUCATION","Aizawl North","090102","xxx}cd~a\u0001\u0002\u0004\u0003",{"$f":"VLOOKUP(E296,Departments!B$3:C$83,2,FALSE)","v":"Mizoram Scholarship Board"}]
[295,121003,"Jt. Director. H.T.E. (Tech Wing)","HIGHER & TECHNICAL EDUCATION","HIGHER &  TECHNICAL EDUCATION","Aizawl North","090102","xxx}cd~a\u0002\u0002\u0004\u0003",{"$f":"VLOOKUP(E297,Departments!B$3:C$83,2,FALSE)","v":"Mizoram Scholarship Board"}]
[296,121004,"Principal, Govt.Aizawl College","HIGHER & TECHNICAL EDUCATION","HIGHER &  TECHNICAL EDUCATION","Aizawl North","090102","xxx}cd~a\u0007\u0002\u0004\u0003",{"$f":"VLOOKUP(E298,Departments!B$3:C$83,2,FALSE)","v":"Mizoram Scholarship Board"}]
[297,121005,"Principal, Govt.Zirtiri College","HIGHER & TECHNICAL EDUCATION","HIGHER &  TECHNICAL EDUCATION","Aizawl North","090102","xxx}cd~a\b\u0002\u0004\u0003",{"$f":"VLOOKUP(E299,Departments!B$3:C$83,2,FALSE)","v":"Mizoram Scholarship Board"}]
[298,121006,"Principal, Hrangbanga College","HIGHER & TECHNICAL EDUCATION","HIGHER &  TECHNICAL EDUCATION","Aizawl North","090102","xxx}cd~a\u0005\u0002\u0004\u0003",{"$f":"VLOOKUP(E300,Departments!B$3:C$83,2,FALSE)","v":"Mizoram Scholarship Board"}]
[299,121007,"Principal, Mizoram Hindi Trg. College","HIGHER & TECHNICAL EDUCATION","HIGHER &  TECHNICAL EDUCATION","Aizawl North","090102","xxx}cd~a\u0006\u0002\u0004\u0003",{"$f":"VLOOKUP(E301,Departments!B$3:C$83,2,FALSE)","v":"Mizoram Scholarship Board"}]
[300,121008,"Pricipal, CTE","HIGHER & TECHNICAL EDUCATION","HIGHER &  TECHNICAL EDUCATION","Aizawl North","090102","xxx}cd~a\u000b\u0002\u0004\u0003",{"$f":"VLOOKUP(E302,Departments!B$3:C$83,2,FALSE)","v":"Mizoram Scholarship Board"}]
[301,121009,"Principal, Women Ploytechnic","HIGHER & TECHNICAL EDUCATION","HIGHER &  TECHNICAL EDUCATION","Aizawl North","090102","xxx}cd~a\f\u0002\u0004\u0003",{"$f":"VLOOKUP(E303,Departments!B$3:C$83,2,FALSE)","v":"Mizoram Scholarship Board"}]
[302,121010,"Principal, Govt.Saitual College","HIGHER & TECHNICAL EDUCATION","HIGHER &  TECHNICAL EDUCATION","Aizawl North","090102","xxx}cd~b\u0003\u0002\u0004\u0003",{"$f":"VLOOKUP(E304,Departments!B$3:C$83,2,FALSE)","v":"Mizoram Scholarship Board"}]
[303,121011,"Principal, T.Romana College","HIGHER & TECHNICAL EDUCATION","HIGHER &  TECHNICAL EDUCATION","Aizawl North","090102","xxx}cd~b\u0004\u0002\u0004\u0003",{"$f":"VLOOKUP(E305,Departments!B$3:C$83,2,FALSE)","v":"Mizoram Scholarship Board"}]
[304,121012,"Principal, J.Thankima College","HIGHER & TECHNICAL EDUCATION","HIGHER &  TECHNICAL EDUCATION","Aizawl North","090102","xxx}cd~b\u0001\u0002\u0004\u0003",{"$f":"VLOOKUP(E306,Departments!B$3:C$83,2,FALSE)","v":"Mizoram Scholarship Board"}]
[305,121013,"Pincipal, Aizawl West College","HIGHER & TECHNICAL EDUCATION","HIGHER &  TECHNICAL EDUCATION","Aizawl North","090102","xxx}cd~b\u0002\u0002\u0004\u0003",{"$f":"VLOOKUP(E307,Departments!B$3:C$83,2,FALSE)","v":"Mizoram Scholarship Board"}]
[306,121014,"Principal, Aizawl North College","HIGHER & TECHNICAL EDUCATION","HIGHER &  TECHNICAL EDUCATION","Aizawl North","090102","xxx}cd~b\u0007\u0002\u0004\u0003",{"$f":"VLOOKUP(E308,Departments!B$3:C$83,2,FALSE)","v":"Mizoram Scholarship Board"}]
[307,121015,"Principal, Johnson College","HIGHER & TECHNICAL EDUCATION","HIGHER &  TECHNICAL EDUCATION","Aizawl North","090102","xxx}cd~b\b\u0002\u0004\u0003",{"$f":"VLOOKUP(E309,Departments!B$3:C$83,2,FALSE)","v":"Mizoram Scholarship Board"}]
[308,121016,"Principal, Govt. College, Lunglei","HIGHER & TECHNICAL EDUCATION","HIGHER &  TECHNICAL EDUCATION","Lunglei","090201","xxx}cd~b\u0005\u0002\u0004\u0003",{"$f":"VLOOKUP(E310,Departments!B$3:C$83,2,FALSE)","v":"Mizoram Scholarship Board"}]
[309,121017,"Principal, Govt. College, Hnahthial","HIGHER & TECHNICAL EDUCATION","HIGHER &  TECHNICAL EDUCATION","Lunglei","090201","xxx}cd~b\u0006\u0002\u0004\u0003",{"$f":"VLOOKUP(E311,Departments!B$3:C$83,2,FALSE)","v":"Mizoram Scholarship Board"}]
[310,121018,"Principal, J.Buana College, Lunglei","HIGHER & TECHNICAL EDUCATION","HIGHER &  TECHNICAL EDUCATION","Lunglei","090201","xxx}cd~b\u000b\u0002\u0004\u0003",{"$f":"VLOOKUP(E312,Departments!B$3:C$83,2,FALSE)","v":"Mizoram Scholarship Board"}]
[311,121019,"Principal, Mizoram Polytechnic,Lunglei","HIGHER & TECHNICAL EDUCATION","HIGHER &  TECHNICAL EDUCATION","Lunglei","090201","xxx}cd~b\f\u0002\u0004\u0003",{"$f":"VLOOKUP(E313,Departments!B$3:C$83,2,FALSE)","v":"Mizoram Scholarship Board"}]
[312,121020,"Principal, Govt. Saiha College","HIGHER & TECHNICAL EDUCATION","HIGHER &  TECHNICAL EDUCATION","Saiha","090301","xxx}cd~c\u0003\u0002\u0004\u0003",{"$f":"VLOOKUP(E314,Departments!B$3:C$83,2,FALSE)","v":"Mizoram Scholarship Board"}]
[313,121021,"Principal, Govt. College, Champhai","HIGHER & TECHNICAL EDUCATION","HIGHER &  TECHNICAL EDUCATION","Champhai","090401","xxx}cd~c\u0004\u0002\u0004\u0003",{"$f":"VLOOKUP(E315,Departments!B$3:C$83,2,FALSE)","v":"Mizoram Scholarship Board"}]
[314,121022,"Principal, Govt. College, Khawzawl","HIGHER & TECHNICAL EDUCATION","HIGHER &  TECHNICAL EDUCATION","Champhai","090401","xxx}cd~c\u0001\u0002\u0004\u0003",{"$f":"VLOOKUP(E316,Departments!B$3:C$83,2,FALSE)","v":"Mizoram Scholarship Board"}]
[315,121023,"Principal, Govt. College, Kolasib","HIGHER & TECHNICAL EDUCATION","HIGHER &  TECHNICAL EDUCATION","Kolasib","090501","xxx}cd~c\u0002\u0002\u0004\u0003",{"$f":"VLOOKUP(E317,Departments!B$3:C$83,2,FALSE)","v":"Mizoram Scholarship Board"}]
[316,121024,"Principal, Govt. College, Serchhip ","HIGHER & TECHNICAL EDUCATION","HIGHER &  TECHNICAL EDUCATION","Serchhip","090601","xxx}cd~c\u0007\u0002\u0004\u0003",{"$f":"VLOOKUP(E318,Departments!B$3:C$83,2,FALSE)","v":"Mizoram Scholarship Board"}]
[317,121025,"Principal, Govt. College, Lawngtlai","HIGHER & TECHNICAL EDUCATION","HIGHER &  TECHNICAL EDUCATION","Lawngtlai","090701","xxx}cd~c\b\u0002\u0004\u0003",{"$f":"VLOOKUP(E319,Departments!B$3:C$83,2,FALSE)","v":"Mizoram Scholarship Board"}]
[318,121026,"Principal, Govt. College, Mamit","HIGHER & TECHNICAL EDUCATION","HIGHER &  TECHNICAL EDUCATION","Mamit","090801","xxx}cd~c\u0005\u0002\u0004\u0003",{"$f":"VLOOKUP(E320,Departments!B$3:C$83,2,FALSE)","v":"Mizoram Scholarship Board"}]
[319,121027,"Principal, Zawlnuam College","HIGHER & TECHNICAL EDUCATION","HIGHER &  TECHNICAL EDUCATION","Mamit","090801","xxx}cd~c\u0006\u0002\u0004\u0003",{"$f":"VLOOKUP(E321,Departments!B$3:C$83,2,FALSE)","v":"Mizoram Scholarship Board"}]
[320,122001,"Director, Sport & Youth Services","SPORT & YOUTH SERVICES","SPORTS & YOUTH SERVICES","Aizawl South","090101","xxx}ca~a\u0004\u0002\u0004\u0002",{"$f":"VLOOKUP(E322,Departments!B$3:C$83,2,FALSE)","v":"NCC"}]
[321,122002,"Liaison Officer, NSS","NSS","SPORTS & YOUTH SERVICES","Aizawl South","090101","xxx}ca~a\u0001\u0002\u0004\u0002",{"$f":"VLOOKUP(E323,Departments!B$3:C$83,2,FALSE)","v":"NCC"}]
[322,122003,"C.O.20th Mizoram NCC","NCC","SPORTS & YOUTH SERVICES","Aizawl South","090101","xxx}ca~a\u0002\u0002\u0004\u0002",{"$f":"VLOOKUP(E324,Departments!B$3:C$83,2,FALSE)","v":"NCC"}]
[323,122004,"C.O.1st.Mizo Bn.NCC","NCC","SPORTS & YOUTH SERVICES","Aizawl South","090101","xxx}ca~a\u0007\u0002\u0004\u0002",{"$f":"VLOOKUP(E325,Departments!B$3:C$83,2,FALSE)","v":"NCC"}]
[324,122005,"Dist. Sports & Youth Services Officer, Lunglei","SPORT & YOUTH SERVICES","SPORTS & YOUTH SERVICES","Lunglei","090201","xxx}ca~a\b\u0002\u0004\u0002",{"$f":"VLOOKUP(E326,Departments!B$3:C$83,2,FALSE)","v":"NCC"}]
[325,122006,"C.O. I Mizo Air Squadron NCC, Aizawl","NCC","SPORTS & YOUTH SERVICES","Aizawl South","090101","xxx}ca~a\u0005\u0002\u0004\u0002",{"$f":"VLOOKUP(E327,Departments!B$3:C$83,2,FALSE)","v":"NCC"}]
[326,123001,"Director, Art & Culture","ART & CULTURE","ART & CULTURE","Aizawl North","090102","xxx}cb~a\u0004\u0002\u0004\u0001",{"$f":"VLOOKUP(E328,Departments!B$3:C$83,2,FALSE)","v":"ART & CULTURE"}]
[327,123002,"SRO Tribal Research Inst","ART & CULTURE","ART & CULTURE","Aizawl North","090102","xxx}cb~a\u0001\u0002\u0004\u0001",{"$f":"VLOOKUP(E329,Departments!B$3:C$83,2,FALSE)","v":"ART & CULTURE"}]
[328,123003,"Archivist,State Archive","ART & CULTURE","ART & CULTURE","Aizawl North","090102","xxx}cb~a\u0002\u0002\u0004\u0001",{"$f":"VLOOKUP(E330,Departments!B$3:C$83,2,FALSE)","v":"ART & CULTURE"}]
[329,123004,"Librarian,State Library, Aizawl","ART & CULTURE","ART & CULTURE","Aizawl North","090102","xxx}cb~a\u0007\u0002\u0004\u0001",{"$f":"VLOOKUP(E331,Departments!B$3:C$83,2,FALSE)","v":"ART & CULTURE"}]
[330,123005,"District Librarian, Aizawl","ART & CULTURE","ART & CULTURE","Aizawl North","090102","xxx}cb~a\b\u0002\u0004\u0001",{"$f":"VLOOKUP(E332,Departments!B$3:C$83,2,FALSE)","v":"ART & CULTURE"}]
[331,123006,"Senior Research Officer, A&C, Lunglei","ART & CULTURE","ART & CULTURE","Lunglei","090201","xxx}cb~a\u0005\u0002\u0004\u0001",{"$f":"VLOOKUP(E333,Departments!B$3:C$83,2,FALSE)","v":"ART & CULTURE"}]
[332,123007,"Librarian,State Library, Champhai","ART & CULTURE","ART & CULTURE","Champhai","090401","xxx}cb~a\u0006\u0002\u0004\u0001",{"$f":"VLOOKUP(E334,Departments!B$3:C$83,2,FALSE)","v":"ART & CULTURE"}]
[333,123008,"Museum Curator, Mizoram State Museum","ART & CULTURE","ART & CULTURE","Aizawl North","090102","xxx}cb~a\u000b\u0002\u0004\u0001",{"$f":"VLOOKUP(E335,Departments!B$3:C$83,2,FALSE)","v":"ART & CULTURE"}]
[334,123009,"District Librarian, A&C, Kolasib","ART & CULTURE","ART & CULTURE","Kolasib","090501","xxx}cb~a\f\u0002\u0004\u0001",{"$f":"VLOOKUP(E336,Departments!B$3:C$83,2,FALSE)","v":"ART & CULTURE"}]
[335,124001,"Director, Health Services","HEALTH SERVICES","HEALTH & FAMILY WELFARE","Aizawl North","090102","xxx}cg~a\u0004\u0002\u0004\b",{"$f":"VLOOKUP(E337,Departments!B$3:C$83,2,FALSE)","v":"HEALTH SERVICES"}]
[336,124002,"Director,Hospital & Medical Education.","HOSPITAL & MEDICAL EDUCATION","HEALTH & FAMILY WELFARE","Aizawl North","090102","xxx}cg~a\u0001\u0002\u0004\b",{"$f":"VLOOKUP(E338,Departments!B$3:C$83,2,FALSE)","v":"HEALTH SERVICES"}]
[337,124003,"Medical Supdt.Civil Hospital Aizawl","HOSPITAL & MEDICAL EDUCATION","HEALTH & FAMILY WELFARE","Aizawl North","090102","xxx}cg~a\u0002\u0002\u0004\b",{"$f":"VLOOKUP(E339,Departments!B$3:C$83,2,FALSE)","v":"HEALTH SERVICES"}]
[338,124004,"Chief Medical Officer,  East","HEALTH SERVICES","HEALTH & FAMILY WELFARE","Aizawl North","090102","xxx}cg~a\u0007\u0002\u0004\b",{"$f":"VLOOKUP(E340,Departments!B$3:C$83,2,FALSE)","v":"HEALTH SERVICES"}]
[339,124005,"Chief Medical Officer,.West","HEALTH SERVICES","HEALTH & FAMILY WELFARE","Aizawl North","090102","xxx}cg~a\b\u0002\u0004\b",{"$f":"VLOOKUP(E341,Departments!B$3:C$83,2,FALSE)","v":"HEALTH SERVICES"}]
[340,124006,"PMO, Health Worker Trgn.Centre, Kulikawn","HOSPITAL & MEDICAL EDUCATION","HEALTH & FAMILY WELFARE","Aizawl North","090102","xxx}cg~a\u0005\u0002\u0004\b",{"$f":"VLOOKUP(E342,Departments!B$3:C$83,2,FALSE)","v":"HEALTH SERVICES"}]
[341,124007,"Principal, Nursing School, Aizawl","HOSPITAL & MEDICAL EDUCATION","HEALTH & FAMILY WELFARE","Aizawl North","090102","xxx}cg~a\u0006\u0002\u0004\b",{"$f":"VLOOKUP(E343,Departments!B$3:C$83,2,FALSE)","v":"HEALTH SERVICES"}]
[342,124008,"Dy. Medical Supdt. Kulikawn Hospital","HOSPITAL & MEDICAL EDUCATION","HEALTH & FAMILY WELFARE","Aizawl North","090102","xxx}cg~a\u000b\u0002\u0004\b",{"$f":"VLOOKUP(E344,Departments!B$3:C$83,2,FALSE)","v":"HEALTH SERVICES"}]
[343,124009,"Chief Medical Officer, Lunglei","HEALTH SERVICES","HEALTH & FAMILY WELFARE","Lunglei","090201","xxx}cg~a\f\u0002\u0004\b",{"$f":"VLOOKUP(E345,Departments!B$3:C$83,2,FALSE)","v":"HEALTH SERVICES"}]
[344,124010,"Medical Superintendent, Civil Hospital., Lunglei","HOSPITAL & MEDICAL EDUCATION","HEALTH & FAMILY WELFARE","Lunglei","090201","xxx}cg~b\u0003\u0002\u0004\b",{"$f":"VLOOKUP(E346,Departments!B$3:C$83,2,FALSE)","v":"HEALTH SERVICES"}]
[345,124011,"Principal Nursing School, Lunglei","HOSPITAL & MEDICAL EDUCATION","HEALTH & FAMILY WELFARE","Lunglei","090201","xxx}cg~b\u0004\u0002\u0004\b",{"$f":"VLOOKUP(E347,Departments!B$3:C$83,2,FALSE)","v":"HEALTH SERVICES"}]
[346,124012,"Senior Medical Officer, Lunglei","HEALTH SERVICES","HEALTH & FAMILY WELFARE","Lunglei","090201","xxx}cg~b\u0001\u0002\u0004\b",{"$f":"VLOOKUP(E348,Departments!B$3:C$83,2,FALSE)","v":"HEALTH SERVICES"}]
[347,124013,"Chief Medical Officer, Saiha","HEALTH SERVICES","HEALTH & FAMILY WELFARE","Saiha","090301","xxx}cg~b\u0002\u0002\u0004\b",{"$f":"VLOOKUP(E349,Departments!B$3:C$83,2,FALSE)","v":"HEALTH SERVICES"}]
[348,124014,"District Medical Superintendent, Saiha","HOSPITAL & MEDICAL EDUCATION","HEALTH & FAMILY WELFARE","Saiha","090301","xxx}cg~b\u0007\u0002\u0004\b",{"$f":"VLOOKUP(E350,Departments!B$3:C$83,2,FALSE)","v":"HEALTH SERVICES"}]
[349,124015,"Chief Medical Officer, Champhai","HEALTH SERVICES","HEALTH & FAMILY WELFARE","Champhai","090401","xxx}cg~b\b\u0002\u0004\b",{"$f":"VLOOKUP(E351,Departments!B$3:C$83,2,FALSE)","v":"HEALTH SERVICES"}]
[350,124016,"Dist. Medical Superintendent, Champhai","HOSPITAL & MEDICAL EDUCATION","HEALTH & FAMILY WELFARE","Champhai","090401","xxx}cg~b\u0005\u0002\u0004\b",{"$f":"VLOOKUP(E352,Departments!B$3:C$83,2,FALSE)","v":"HEALTH SERVICES"}]
[351,124017,"Dist. Medical Superintendent, Kolasib","HOSPITAL & MEDICAL EDUCATION","HEALTH & FAMILY WELFARE","Kolasib","090501","xxx}cg~b\u0006\u0002\u0004\b",{"$f":"VLOOKUP(E353,Departments!B$3:C$83,2,FALSE)","v":"HEALTH SERVICES"}]
[352,124018,"Chief Medical Officer, Kolasib","HEALTH SERVICES","HEALTH & FAMILY WELFARE","Kolasib","090501","xxx}cg~b\u000b\u0002\u0004\b",{"$f":"VLOOKUP(E354,Departments!B$3:C$83,2,FALSE)","v":"HEALTH SERVICES"}]
[353,124019,"Dist. Medical Superintendent, Serchhip","HOSPITAL & MEDICAL EDUCATION","HEALTH & FAMILY WELFARE","Serchhip  ","090601","xxx}cg~b\f\u0002\u0004\b",{"$f":"VLOOKUP(E355,Departments!B$3:C$83,2,FALSE)","v":"HEALTH SERVICES"}]
[354,124020,"Chief Medical Officer, Serchhip  ","HEALTH SERVICES","HEALTH & FAMILY WELFARE","Serchhip","090601","xxx}cg~c\u0003\u0002\u0004\b",{"$f":"VLOOKUP(E356,Departments!B$3:C$83,2,FALSE)","v":"HEALTH SERVICES"}]
[355,124021,"Dist. Medical Superintendent,Lawngtlai","HOSPITAL & MEDICAL EDUCATION","HEALTH & FAMILY WELFARE","Lawngtlai","090701","xxx}cg~c\u0004\u0002\u0004\b",{"$f":"VLOOKUP(E357,Departments!B$3:C$83,2,FALSE)","v":"HEALTH SERVICES"}]
[356,124022,"Chief Medical Officer, Lawngtlai  ","HEALTH SERVICES","HEALTH & FAMILY WELFARE","Lawngtlai","090701","xxx}cg~c\u0001\u0002\u0004\b",{"$f":"VLOOKUP(E358,Departments!B$3:C$83,2,FALSE)","v":"HEALTH SERVICES"}]
[357,124023,"Senior Medical Officer, Chawngte","HEALTH SERVICES","HEALTH & FAMILY WELFARE","Lawngtlai","090701","xxx}cg~c\u0002\u0002\u0004\b",{"$f":"VLOOKUP(E359,Departments!B$3:C$83,2,FALSE)","v":"HEALTH SERVICES"}]
[358,124024,"District Medical Superintendent, Mamit","HOSPITAL & MEDICAL EDUCATION","HEALTH & FAMILY WELFARE","Mamit","090801","xxx}cg~c\u0007\u0002\u0004\b",{"$f":"VLOOKUP(E360,Departments!B$3:C$83,2,FALSE)","v":"HEALTH SERVICES"}]
[359,124025,"Chief Medical Officer, Mamit  ","HEALTH SERVICES","HEALTH & FAMILY WELFARE","Mamit","090801","xxx}cg~c\b\u0002\u0004\b",{"$f":"VLOOKUP(E361,Departments!B$3:C$83,2,FALSE)","v":"HEALTH SERVICES"}]
[360,124026,"Director, Mizoram State Cancer Institute, Zemabawk","HOSPITAL & MEDICAL EDUCATION","HEALTH & FAMILY WELFARE","Aizawl North","090102","xxx}cg~c\u0005\u0002\u0004\b",{"$f":"VLOOKUP(E362,Departments!B$3:C$83,2,FALSE)","v":"HEALTH SERVICES"}]
[361,125001,"Engineer - in - Chief,  PHE","PHE","P.H.E.","Aizawl 'N'","090102","xxx}ch~a\u0004\u0002\u0004\u0007",{"$f":"VLOOKUP(E363,Departments!B$3:C$83,2,FALSE)","v":"PHE"}]
[362,125002,"Chief Engineer, PHE","PHE","P.H.E.","Aizawl 'N'","090102","xxx}ch~a\u0001\u0002\u0004\u0007",{"$f":"VLOOKUP(E364,Departments!B$3:C$83,2,FALSE)","v":"PHE"}]
[363,125003,"C.E. PHE Monitoring & Investment","PHE","P.H.E.","Aizawl 'N'","090102","xxx}ch~a\u0002\u0002\u0004\u0007",{"$f":"VLOOKUP(E365,Departments!B$3:C$83,2,FALSE)","v":"PHE"}]
[364,125004,"S.E.Aizawl WATSAN Circle","PHE","P.H.E.","Aizawl 'N'","090102","xxx}ch~a\u0007\u0002\u0004\u0007",{"$f":"VLOOKUP(E366,Departments!B$3:C$83,2,FALSE)","v":"PHE"}]
[365,125005,"S.E.Rural WATSAN Circle","PHE","P.H.E.","Aizawl 'N'","090102","xxx}ch~a\b\u0002\u0004\u0007",{"$f":"VLOOKUP(E367,Departments!B$3:C$83,2,FALSE)","v":"PHE"}]
[366,125006,"S.E. Sewerage & Sanitation Circle","PHE","P.H.E.","Aizawl 'N'","090102","xxx}ch~a\u0005\u0002\u0004\u0007",{"$f":"VLOOKUP(E368,Departments!B$3:C$83,2,FALSE)","v":"PHE"}]
[367,125007,"E.E. Aizawl Water Dist.Division.","PHE","P.H.E.","Aizawl 'N'","090102","xxx}ch~a\u0006\u0002\u0004\u0007",{"$f":"VLOOKUP(E369,Departments!B$3:C$83,2,FALSE)","v":"PHE"}]
[368,125008,"E.E. Rural Watsan Division","PHE","P.H.E.","Aizawl 'N'","090102","xxx}ch~a\u000b\u0002\u0004\u0007",{"$f":"VLOOKUP(E370,Departments!B$3:C$83,2,FALSE)","v":"PHE"}]
[369,125009,"E.E. Ground Water & Qtl.Con.Division","PHE","P.H.E.","Aizawl 'N'","090102","xxx}ch~a\f\u0002\u0004\u0007",{"$f":"VLOOKUP(E371,Departments!B$3:C$83,2,FALSE)","v":"PHE"}]
[370,125010,"E.E. AWSP","PHE","P.H.E.","Aizawl 'N'","090102","xxx}ch~b\u0003\u0002\u0004\u0007",{"$f":"VLOOKUP(E372,Departments!B$3:C$83,2,FALSE)","v":"PHE"}]
[371,125011,"E.E. AWT Division","PHE","P.H.E.","Aizawl 'N'","090102","xxx}ch~b\u0004\u0002\u0004\u0007",{"$f":"VLOOKUP(E373,Departments!B$3:C$83,2,FALSE)","v":"PHE"}]
[372,125012,"Chief Chemist","PHE","P.H.E.","Aizawl 'N'","090102","xxx}ch~b\u0001\u0002\u0004\u0007",{"$f":"VLOOKUP(E374,Departments!B$3:C$83,2,FALSE)","v":"PHE"}]
[373,125013,"S.E. PHE, Lunglei","PHE","P.H.E.","Lunglei","090201","xxx}ch~b\u0002\u0002\u0004\u0007",{"$f":"VLOOKUP(E375,Departments!B$3:C$83,2,FALSE)","v":"PHE"}]
[374,125014,"E.E.,  PHE(WATSAN), Lunglei","PHE","P.H.E.","Lunglei","090201","xxx}ch~b\u0007\u0002\u0004\u0007",{"$f":"VLOOKUP(E376,Departments!B$3:C$83,2,FALSE)","v":"PHE"}]
[375,125015,"E.E., PHE(LWSP), Lunglei","PHE","P.H.E.","Lunglei","090201","xxx}ch~b\b\u0002\u0004\u0007",{"$f":"VLOOKUP(E377,Departments!B$3:C$83,2,FALSE)","v":"PHE"}]
[376,125016,"E.E., PHE, Hnahthial","PHE","P.H.E.","Lunglei","090201","xxx}ch~b\u0005\u0002\u0004\u0007",{"$f":"VLOOKUP(E378,Departments!B$3:C$83,2,FALSE)","v":"PHE"}]
[377,125017,"E.E., PHE, Saiha","PHE","P.H.E.","Saiha","090301","xxx}ch~b\u0006\u0002\u0004\u0007",{"$f":"VLOOKUP(E379,Departments!B$3:C$83,2,FALSE)","v":"PHE"}]
[378,125018,"S.E., WATSAN, PHE, Champhai","PHE","P.H.E.","Champhai","090401","xxx}ch~b\u000b\u0002\u0004\u0007",{"$f":"VLOOKUP(E380,Departments!B$3:C$83,2,FALSE)","v":"PHE"}]
[379,125019,"E.E., PHE, Champhai","PHE","P.H.E.","Champhai","090401","xxx}ch~b\f\u0002\u0004\u0007",{"$f":"VLOOKUP(E381,Departments!B$3:C$83,2,FALSE)","v":"PHE"}]
[380,125020,"E.E., PHE, Khawzawl","PHE","P.H.E.","Champhai","090401","xxx}ch~c\u0003\u0002\u0004\u0007",{"$f":"VLOOKUP(E382,Departments!B$3:C$83,2,FALSE)","v":"PHE"}]
[381,125021,"E.E., PHE, Kolasib","PHE","P.H.E.","Koalsib","090501","xxx}ch~c\u0004\u0002\u0004\u0007",{"$f":"VLOOKUP(E383,Departments!B$3:C$83,2,FALSE)","v":"PHE"}]
[382,125022,"E.E., PHE, Serchhip ","PHE","P.H.E.","Serchhip ","090601","xxx}ch~c\u0001\u0002\u0004\u0007",{"$f":"VLOOKUP(E384,Departments!B$3:C$83,2,FALSE)","v":"PHE"}]
[383,125023,"E.E., PHE, Lawngtlai","PHE","P.H.E.","Lawngtlai","090701","xxx}ch~c\u0002\u0002\u0004\u0007",{"$f":"VLOOKUP(E385,Departments!B$3:C$83,2,FALSE)","v":"PHE"}]
[384,125024,"E.E., PHE, WATSAN  Divn.Mamit","PHE","P.H.E.","Mamit","090801","xxx}ch~c\u0007\u0002\u0004\u0007",{"$f":"VLOOKUP(E386,Departments!B$3:C$83,2,FALSE)","v":"PHE"}]
[385,125025,"Hydrogeologist, Ground Water Resources Assessment Cell, PHE, Aizawl","PHE","P.H.E.","Aizawl North","090102","xxx}ch~c\b\u0002\u0004\u0007",{"$f":"VLOOKUP(E387,Departments!B$3:C$83,2,FALSE)","v":"PHE"}]
[386,125026,"EE, Sewarage & Drainage, Aizawl East Division, PHE ","PHE","P.H.E.","Aizawl North","090102","xxx}ch~c\u0005\u0002\u0004\u0007",{"$f":"VLOOKUP(E388,Departments!B$3:C$83,2,FALSE)","v":"PHE"}]
[387,126001,"Director, Information & Public Relation","INFORMATION & PUBLIC RELATIONS","INFORMATION & PUBLIC RELATIONS","Aizawl South","090101","xxx}ce~a\u0004\u0002\u0004\u0006",{"$f":"VLOOKUP(E389,Departments!B$3:C$83,2,FALSE)","v":"INFORMATION & PUBLIC RELATIONS"}]
[388,126002,"Dist. Info. & P.R.O., Lunglei","INFORMATION & PUBLIC RELATIONS","INFORMATION & PUBLIC RELATIONS","Lunglei","090201","xxx}ce~a\u0001\u0002\u0004\u0006",{"$f":"VLOOKUP(E390,Departments!B$3:C$83,2,FALSE)","v":"INFORMATION & PUBLIC RELATIONS"}]
[389,126003,"Dist. Info. & P.R.O., Saiha","INFORMATION & PUBLIC RELATIONS","INFORMATION & PUBLIC RELATIONS","Saiha","090301","xxx}ce~a\u0002\u0002\u0004\u0006",{"$f":"VLOOKUP(E391,Departments!B$3:C$83,2,FALSE)","v":"INFORMATION & PUBLIC RELATIONS"}]
[390,126004,"Dist. Info. & P.R.O., Champhai","INFORMATION & PUBLIC RELATIONS","INFORMATION & PUBLIC RELATIONS","Champhai","090401","xxx}ce~a\u0007\u0002\u0004\u0006",{"$f":"VLOOKUP(E392,Departments!B$3:C$83,2,FALSE)","v":"INFORMATION & PUBLIC RELATIONS"}]
[391,126005,"Dist. Info. & P.R.O., Kolasib","INFORMATION & PUBLIC RELATIONS","INFORMATION & PUBLIC RELATIONS","Koalsib","090501","xxx}ce~a\b\u0002\u0004\u0006",{"$f":"VLOOKUP(E393,Departments!B$3:C$83,2,FALSE)","v":"INFORMATION & PUBLIC RELATIONS"}]
[392,126006,"Dist. Info. & P.R.O., Serchhip","INFORMATION & PUBLIC RELATIONS","INFORMATION & PUBLIC RELATIONS","Serchhip ","090601","xxx}ce~a\u0005\u0002\u0004\u0006",{"$f":"VLOOKUP(E394,Departments!B$3:C$83,2,FALSE)","v":"INFORMATION & PUBLIC RELATIONS"}]
[393,126007,"Dist. Info. & P.R.O., Lawngtlai","INFORMATION & PUBLIC RELATIONS","INFORMATION & PUBLIC RELATIONS","Lawngtlai","090701","xxx}ce~a\u0006\u0002\u0004\u0006",{"$f":"VLOOKUP(E395,Departments!B$3:C$83,2,FALSE)","v":"INFORMATION & PUBLIC RELATIONS"}]
[394,126008,"Dist. Info. & P.R.O., Mamit","INFORMATION & PUBLIC RELATIONS","INFORMATION & PUBLIC RELATIONS","Mamit","090801","xxx}ce~a\u000b\u0002\u0004\u0006",{"$f":"VLOOKUP(E396,Departments!B$3:C$83,2,FALSE)","v":"INFORMATION & PUBLIC RELATIONS"}]
[395,127001,"Executive Secretary, MADC","MADC","DISTRICT COUNCIL","Saiha","090301","xxx}cf~a\u0004\u0002\u0004\u0005",{"$f":"VLOOKUP(E397,Departments!B$3:C$83,2,FALSE)","v":"CADC"}]
[396,127002,"Executive Secretary,LADC ","LADC","DISTRICT COUNCIL","Lawngtlai","090701","xxx}cf~a\u0001\u0002\u0004\u0005",{"$f":"VLOOKUP(E398,Departments!B$3:C$83,2,FALSE)","v":"CADC"}]
[397,127003,"Executive Secretary, CADC ","CADC","DISTRICT COUNCIL","Lawngtlai","090701","xxx}cf~a\u0002\u0002\u0004\u0005",{"$f":"VLOOKUP(E399,Departments!B$3:C$83,2,FALSE)","v":"CADC"}]
[398,128001,"Director, Labour  & Employment","LABOUR \n& \nEMPLOYMENT","LABOUR & EMPLOYMENT","Aizawl South","090101","xxx}ck~a\u0004\u0002\u0004\f",{"$f":"VLOOKUP(E400,Departments!B$3:C$83,2,FALSE)","v":"LABOUR \n& \nEMPLOYMENT"}]
[399,128002,"Dist.Labour Employment Officer, Aizawl","LABOUR \n& \nEMPLOYMENT","LABOUR & EMPLOYMENT","Aizawl South","090101","xxx}ck~a\u0001\u0002\u0004\f",{"$f":"VLOOKUP(E401,Departments!B$3:C$83,2,FALSE)","v":"LABOUR \n& \nEMPLOYMENT"}]
[400,128003,"Principal, Industrial Training Institute","LABOUR \n& \nEMPLOYMENT","LABOUR & EMPLOYMENT","Aizawl South","090101","xxx}ck~a\u0002\u0002\u0004\f",{"$f":"VLOOKUP(E402,Departments!B$3:C$83,2,FALSE)","v":"LABOUR \n& \nEMPLOYMENT"}]
[401,128004,"District Employment Officer, Lunglei","LABOUR \n& \nEMPLOYMENT","LABOUR & EMPLOYMENT","Lunglei","090201","xxx}ck~a\u0007\u0002\u0004\f",{"$f":"VLOOKUP(E403,Departments!B$3:C$83,2,FALSE)","v":"LABOUR \n& \nEMPLOYMENT"}]
[402,128005,"District Employment Officer, Saiha","LABOUR \n& \nEMPLOYMENT","LABOUR & EMPLOYMENT","Saiha","090301","xxx}ck~a\b\u0002\u0004\f",{"$f":"VLOOKUP(E404,Departments!B$3:C$83,2,FALSE)","v":"LABOUR \n& \nEMPLOYMENT"}]
[403,128006,"District Employment Officer, Champhai","LABOUR \n& \nEMPLOYMENT","LABOUR & EMPLOYMENT","Champhai","090401","xxx}ck~a\u0005\u0002\u0004\f",{"$f":"VLOOKUP(E405,Departments!B$3:C$83,2,FALSE)","v":"LABOUR \n& \nEMPLOYMENT"}]
[404,128007,"District Employment Officer, Lawngtlai","LABOUR \n& \nEMPLOYMENT","LABOUR & EMPLOYMENT","Lawngtlai","090701","xxx}ck~a\u0006\u0002\u0004\f",{"$f":"VLOOKUP(E406,Departments!B$3:C$83,2,FALSE)","v":"LABOUR \n& \nEMPLOYMENT"}]
[405,128008,"Employment Officer, Chawngte","LABOUR \n& \nEMPLOYMENT","LABOUR & EMPLOYMENT","Lawngtlai","090701","xxx}ck~a\u000b\u0002\u0004\f",{"$f":"VLOOKUP(E407,Departments!B$3:C$83,2,FALSE)","v":"LABOUR \n& \nEMPLOYMENT"}]
[406,129001,"Director, Social Welfare","SOCIAL WELFARE","SOCIAL WELFARE","Aizawl North","090102","xxx}cl~a\u0004\u0002\u0004\u000b",{"$f":"VLOOKUP(E408,Departments!B$3:C$83,2,FALSE)","v":"SOCIAL WELFARE"}]
[407,129002,"Dist.Social Welfare Officer, East","SOCIAL WELFARE","SOCIAL WELFARE","Aizawl North","090102","xxx}cl~a\u0001\u0002\u0004\u000b",{"$f":"VLOOKUP(E409,Departments!B$3:C$83,2,FALSE)","v":"SOCIAL WELFARE"}]
[408,129003,"District Social Welfare Officer, West","SOCIAL WELFARE","SOCIAL WELFARE","Aizawl North","090102","xxx}cl~a\u0002\u0002\u0004\u000b",{"$f":"VLOOKUP(E410,Departments!B$3:C$83,2,FALSE)","v":"SOCIAL WELFARE"}]
[409,129004,"Secy.Mizoram S.W.C","SOCIAL WELFARE","SOCIAL WELFARE","Aizawl North","090102","xxx}cl~a\u0007\u0002\u0004\u000b",{"$f":"VLOOKUP(E411,Departments!B$3:C$83,2,FALSE)","v":"SOCIAL WELFARE"}]
[410,129005,"C.D.P.O., Tlangnuam","SOCIAL WELFARE","SOCIAL WELFARE","Aizawl North","090102","xxx}cl~a\b\u0002\u0004\u000b",{"$f":"VLOOKUP(E412,Departments!B$3:C$83,2,FALSE)","v":"SOCIAL WELFARE"}]
[411,129006,"C.D.P.O., Aibawk","SOCIAL WELFARE","SOCIAL WELFARE","Aizawl North","090102","xxx}cl~a\u0005\u0002\u0004\u000b",{"$f":"VLOOKUP(E413,Departments!B$3:C$83,2,FALSE)","v":"SOCIAL WELFARE"}]
[412,129007,"C.D.P.O., Thingsulthliah","SOCIAL WELFARE","SOCIAL WELFARE","Aizawl North","090102","xxx}cl~a\u0006\u0002\u0004\u000b",{"$f":"VLOOKUP(E414,Departments!B$3:C$83,2,FALSE)","v":"SOCIAL WELFARE"}]
[413,129008,"C.D.P.O., Darlawn","SOCIAL WELFARE","SOCIAL WELFARE","Aizawl North","090102","xxx}cl~a\u000b\u0002\u0004\u000b",{"$f":"VLOOKUP(E415,Departments!B$3:C$83,2,FALSE)","v":"SOCIAL WELFARE"}]
[414,129009,"C.D.P.O., Aizawl Urban","SOCIAL WELFARE","SOCIAL WELFARE","Aizawl North","090102","xxx}cl~a\f\u0002\u0004\u000b",{"$f":"VLOOKUP(E416,Departments!B$3:C$83,2,FALSE)","v":"SOCIAL WELFARE"}]
[415,129010,"C.D.P.O., Reiek","SOCIAL WELFARE","SOCIAL WELFARE","Aizawl North","090102","xxx}cl~b\u0003\u0002\u0004\u000b",{"$f":"VLOOKUP(E417,Departments!B$3:C$83,2,FALSE)","v":"SOCIAL WELFARE"}]
[416,129011,"Programe Officer, Dist. ICDS","SOCIAL WELFARE","SOCIAL WELFARE","Aizawl North","090102","xxx}cl~b\u0004\u0002\u0004\u000b",{"$f":"VLOOKUP(E418,Departments!B$3:C$83,2,FALSE)","v":"SOCIAL WELFARE"}]
[417,129012,"Superintendent, Remand Home","SOCIAL WELFARE","SOCIAL WELFARE","Aizawl North","090102","xxx}cl~b\u0001\u0002\u0004\u000b",{"$f":"VLOOKUP(E419,Departments!B$3:C$83,2,FALSE)","v":"SOCIAL WELFARE"}]
[418,129013,"Superintendent, Protective Home","SOCIAL WELFARE","SOCIAL WELFARE","Aizawl North","090102","xxx}cl~b\u0002\u0002\u0004\u000b",{"$f":"VLOOKUP(E420,Departments!B$3:C$83,2,FALSE)","v":"SOCIAL WELFARE"}]
[419,129014,"Superintendent, RITC","SOCIAL WELFARE","SOCIAL WELFARE","Aizawl North","090102","xxx}cl~b\u0007\u0002\u0004\u000b",{"$f":"VLOOKUP(E421,Departments!B$3:C$83,2,FALSE)","v":"SOCIAL WELFARE"}]
[420,129015,"Principal, AWTC","SOCIAL WELFARE","SOCIAL WELFARE","Aizawl North","090102","xxx}cl~b\b\u0002\u0004\u000b",{"$f":"VLOOKUP(E422,Departments!B$3:C$83,2,FALSE)","v":"SOCIAL WELFARE"}]
[421,129016,"C.D.P.O., Phullen","SOCIAL WELFARE","SOCIAL WELFARE","Aizawl North","090102","xxx}cl~b\u0005\u0002\u0004\u000b",{"$f":"VLOOKUP(E423,Departments!B$3:C$83,2,FALSE)","v":"SOCIAL WELFARE"}]
[422,129017,"istrict Social Welfare Officer, Lunglei","SOCIAL WELFARE","SOCIAL WELFARE","Lunglei","090201","xxx}cl~b\u0006\u0002\u0004\u000b",{"$f":"VLOOKUP(E424,Departments!B$3:C$83,2,FALSE)","v":"SOCIAL WELFARE"}]
[423,129018,"rogramme Officer (ICDS), Lunglei","SOCIAL WELFARE","SOCIAL WELFARE","Lunglei","090201","xxx}cl~b\u000b\u0002\u0004\u000b",{"$f":"VLOOKUP(E425,Departments!B$3:C$83,2,FALSE)","v":"SOCIAL WELFARE"}]
[424,129019,"C.D.P.O., Lunglei","SOCIAL WELFARE","SOCIAL WELFARE","Lunglei","090201","xxx}cl~b\f\u0002\u0004\u000b",{"$f":"VLOOKUP(E426,Departments!B$3:C$83,2,FALSE)","v":"SOCIAL WELFARE"}]
[425,129020,"C.D.P.O., Lungsen","SOCIAL WELFARE","SOCIAL WELFARE","Lunglei","090201","xxx}cl~c\u0003\u0002\u0004\u000b",{"$f":"VLOOKUP(E427,Departments!B$3:C$83,2,FALSE)","v":"SOCIAL WELFARE"}]
[426,129021,"C.D.P.O., Bunghmun","SOCIAL WELFARE","SOCIAL WELFARE","Lunglei","090201","xxx}cl~c\u0004\u0002\u0004\u000b",{"$f":"VLOOKUP(E428,Departments!B$3:C$83,2,FALSE)","v":"SOCIAL WELFARE"}]
[427,129022,"C.D.P.O., Hnahthial","SOCIAL WELFARE","SOCIAL WELFARE","Lunglei","090201","xxx}cl~c\u0001\u0002\u0004\u000b",{"$f":"VLOOKUP(E429,Departments!B$3:C$83,2,FALSE)","v":"SOCIAL WELFARE"}]
[428,129023,"Superintendent, Remand Home,Lunglei","SOCIAL WELFARE","SOCIAL WELFARE","Lunglei","090201","xxx}cl~c\u0002\u0002\u0004\u000b",{"$f":"VLOOKUP(E430,Departments!B$3:C$83,2,FALSE)","v":"SOCIAL WELFARE"}]
[429,129024,"District Social Welfare Officer, Saiha","SOCIAL WELFARE","SOCIAL WELFARE","Saiha","090301","xxx}cl~c\u0007\u0002\u0004\u000b",{"$f":"VLOOKUP(E431,Departments!B$3:C$83,2,FALSE)","v":"SOCIAL WELFARE"}]
[430,129025,"C.D.P.O., Tuipang","SOCIAL WELFARE","SOCIAL WELFARE","Saiha","090301","xxx}cl~c\b\u0002\u0004\u000b",{"$f":"VLOOKUP(E432,Departments!B$3:C$83,2,FALSE)","v":"SOCIAL WELFARE"}]
[431,129026,"C.D.P.O., Sangau","SOCIAL WELFARE","SOCIAL WELFARE","Saiha","090301","xxx}cl~c\u0005\u0002\u0004\u000b",{"$f":"VLOOKUP(E433,Departments!B$3:C$83,2,FALSE)","v":"SOCIAL WELFARE"}]
[432,129027,"C.D.P.O., Saiha","SOCIAL WELFARE","SOCIAL WELFARE","Saiha","090301","xxx}cl~c\u0006\u0002\u0004\u000b",{"$f":"VLOOKUP(E434,Departments!B$3:C$83,2,FALSE)","v":"SOCIAL WELFARE"}]
[433,129028,"C.D.P.O., Khawzawl","SOCIAL WELFARE","SOCIAL WELFARE","Champhai","090401","xxx}cl~c\u000b\u0002\u0004\u000b",{"$f":"VLOOKUP(E435,Departments!B$3:C$83,2,FALSE)","v":"SOCIAL WELFARE"}]
[434,129029,"C.D.P.O., Ngopa","SOCIAL WELFARE","SOCIAL WELFARE","Champhai","090401","xxx}cl~c\f\u0002\u0004\u000b",{"$f":"VLOOKUP(E436,Departments!B$3:C$83,2,FALSE)","v":"SOCIAL WELFARE"}]
[435,129030,"C.D.P.O., Khawbung","SOCIAL WELFARE","SOCIAL WELFARE","Champhai","090401","xxx}cl~d\u0003\u0002\u0004\u000b",{"$f":"VLOOKUP(E437,Departments!B$3:C$83,2,FALSE)","v":"SOCIAL WELFARE"}]
[436,129031,"C.D.P.O., Thingdawl","SOCIAL WELFARE","SOCIAL WELFARE","Kolasib","090501","xxx}cl~d\u0004\u0002\u0004\u000b",{"$f":"VLOOKUP(E438,Departments!B$3:C$83,2,FALSE)","v":"SOCIAL WELFARE"}]
[437,129032,"C.D.P.O., Bikhawthlir","SOCIAL WELFARE","SOCIAL WELFARE","Kolasib","090501","xxx}cl~d\u0001\u0002\u0004\u000b",{"$f":"VLOOKUP(E439,Departments!B$3:C$83,2,FALSE)","v":"SOCIAL WELFARE"}]
[438,129033,"C.D.P.O., Serchhip ","SOCIAL WELFARE","SOCIAL WELFARE","Serchhip ","090601","xxx}cl~d\u0002\u0002\u0004\u000b",{"$f":"VLOOKUP(E440,Departments!B$3:C$83,2,FALSE)","v":"SOCIAL WELFARE"}]
[439,129034,"C.D.P.O., East Lungdar","SOCIAL WELFARE","SOCIAL WELFARE","Serchhip ","090601","xxx}cl~d\u0007\u0002\u0004\u000b",{"$f":"VLOOKUP(E441,Departments!B$3:C$83,2,FALSE)","v":"SOCIAL WELFARE"}]
[440,129035,"C.D.P.O., Lawngtlai","SOCIAL WELFARE","SOCIAL WELFARE","Lawngtlai","090701","xxx}cl~d\b\u0002\u0004\u000b",{"$f":"VLOOKUP(E442,Departments!B$3:C$83,2,FALSE)","v":"SOCIAL WELFARE"}]
[441,129036,"C.D.P.O., Chawngte","SOCIAL WELFARE","SOCIAL WELFARE","Lawngtlai","090701","xxx}cl~d\u0005\u0002\u0004\u000b",{"$f":"VLOOKUP(E443,Departments!B$3:C$83,2,FALSE)","v":"SOCIAL WELFARE"}]
[442,129037,"C.D.P.O., Bungtlang South","SOCIAL WELFARE","SOCIAL WELFARE","Lawngtlai","090701","xxx}cl~d\u0006\u0002\u0004\u000b",{"$f":"VLOOKUP(E444,Departments!B$3:C$83,2,FALSE)","v":"SOCIAL WELFARE"}]
[443,129038,"C.D.P.O., Zawlnuam","SOCIAL WELFARE","SOCIAL WELFARE","Mamit","090801","xxx}cl~d\u000b\u0002\u0004\u000b",{"$f":"VLOOKUP(E445,Departments!B$3:C$83,2,FALSE)","v":"SOCIAL WELFARE"}]
[444,129039,"C.D.P.O., W.Phaileng","SOCIAL WELFARE","SOCIAL WELFARE","Mamit","090801","xxx}cl~d\f\u0002\u0004\u000b",{"$f":"VLOOKUP(E446,Departments!B$3:C$83,2,FALSE)","v":"SOCIAL WELFARE"}]
[445,129040,"C.D.P.O., Champhai","SOCIAL WELFARE","SOCIAL WELFARE","Champhai","090401","xxx}cl~e\u0003\u0002\u0004\u000b",{"$f":"VLOOKUP(E447,Departments!B$3:C$83,2,FALSE)","v":"SOCIAL WELFARE"}]
[446,129041,"Centre Director, De-addiction Centre,Sethawn","SOCIAL WELFARE","SOCIAL WELFARE","Kolasib","090501","xxx}cl~e\u0004\u0002\u0004\u000b",{"$f":"VLOOKUP(E448,Departments!B$3:C$83,2,FALSE)","v":"SOCIAL WELFARE"}]
[447,130001,"Director, Disaster Management & Rehabilitation","DISASTER \nMANAGEMENT &\nREHABILITATION","DISASTER MANAGEMENT & REHABILITATION","Aizawl North","090102","xxx}dc~a\u0004\u0002\u0003\u0004",{"$f":"VLOOKUP(E449,Departments!B$3:C$83,2,FALSE)","v":"DISASTER \nMANAGEMENT &\nREHABILITATION"}]
[448,131001,"Director, Agriculture(CH)","AGRICULTURE(CH)","AGRICULTURE","Aizawl South","090101","xxx}dd~a\u0004\u0002\u0003\u0003",{"$f":"VLOOKUP(E450,Departments!B$3:C$83,2,FALSE)","v":"AGRICULTURE(CH)"}]
[449,131002,"Dy.Director, R.& E","AGRICULTURE(R&E)","AGRICULTURE","Aizawl South","090101","xxx}dd~a\u0001\u0002\u0003\u0003",{"$f":"VLOOKUP(E451,Departments!B$3:C$83,2,FALSE)","v":"AGRICULTURE(CH)"}]
[450,131003,"SDAO, Darlawn","AGRICULTURE(CH)","AGRICULTURE","Aizawl South","090101","xxx}dd~a\u0002\u0002\u0003\u0003",{"$f":"VLOOKUP(E452,Departments!B$3:C$83,2,FALSE)","v":"AGRICULTURE(CH)"}]
[451,131004,"DAO, Aizawl","AGRICULTURE(CH)","AGRICULTURE","Aizawl South","090101","xxx}dd~a\u0007\u0002\u0003\u0003",{"$f":"VLOOKUP(E453,Departments!B$3:C$83,2,FALSE)","v":"AGRICULTURE(CH)"}]
[452,131005,"Prog. Co-ordinator, KVK, Lengpui","AGRICULTURE(R&E)","AGRICULTURE","Aizawl South","090101","xxx}dd~a\b\u0002\u0003\u0003",{"$f":"VLOOKUP(E454,Departments!B$3:C$83,2,FALSE)","v":"AGRICULTURE(CH)"}]
[453,131006,"DAO. Lunglei","AGRICULTURE(CH)","AGRICULTURE","Lunglei","090201","xxx}dd~a\u0005\u0002\u0003\u0003",{"$f":"VLOOKUP(E455,Departments!B$3:C$83,2,FALSE)","v":"AGRICULTURE(CH)"}]
[454,131007,"SDAO, Tlabung","AGRICULTURE(CH)","AGRICULTURE","Lunglei","090201","xxx}dd~a\u0006\u0002\u0003\u0003",{"$f":"VLOOKUP(E456,Departments!B$3:C$83,2,FALSE)","v":"AGRICULTURE(CH)"}]
[455,131008,"SDAO, Hnahthial","AGRICULTURE(CH)","AGRICULTURE","Lunglei","090201","xxx}dd~a\u000b\u0002\u0003\u0003",{"$f":"VLOOKUP(E457,Departments!B$3:C$83,2,FALSE)","v":"AGRICULTURE(CH)"}]
[456,131009,"Principal, I.T.C, Hnahthial","AGRICULTURE(R&E)","AGRICULTURE","Lunglei","090201","xxx}dd~a\f\u0002\u0003\u0003",{"$f":"VLOOKUP(E458,Departments!B$3:C$83,2,FALSE)","v":"AGRICULTURE(CH)"}]
[457,131010,"Prog. Co-ordinator, KVK, Hnahthial","AGRICULTURE(R&E)","AGRICULTURE","Lunglei","090201","xxx}dd~b\u0003\u0002\u0003\u0003",{"$f":"VLOOKUP(E459,Departments!B$3:C$83,2,FALSE)","v":"AGRICULTURE(CH)"}]
[458,131011,"DAO., Saiha","AGRICULTURE(CH)","AGRICULTURE","Saiha","090301","xxx}dd~b\u0004\u0002\u0003\u0003",{"$f":"VLOOKUP(E460,Departments!B$3:C$83,2,FALSE)","v":"AGRICULTURE(CH)"}]
[459,131012,"SDAO, Tuipang","AGRICULTURE(CH)","AGRICULTURE","Saiha","090301","xxx}dd~b\u0001\u0002\u0003\u0003",{"$f":"VLOOKUP(E461,Departments!B$3:C$83,2,FALSE)","v":"AGRICULTURE(CH)"}]
[460,131013,"Programme Co-ordinator, KVK, Saiha","AGRICULTURE(R&E)","AGRICULTURE","Saiha","090301","xxx}dd~b\u0002\u0002\u0003\u0003",{"$f":"VLOOKUP(E462,Departments!B$3:C$83,2,FALSE)","v":"AGRICULTURE(CH)"}]
[461,131014,"District Agriculture Officer, Champhai","AGRICULTURE(CH)","AGRICULTURE","Champhai","090401","xxx}dd~b\u0007\u0002\u0003\u0003",{"$f":"VLOOKUP(E463,Departments!B$3:C$83,2,FALSE)","v":"AGRICULTURE(CH)"}]
[462,131015,"SDAO, Khawzawl","AGRICULTURE(CH)","AGRICULTURE","Champhai","090401","xxx}dd~b\b\u0002\u0003\u0003",{"$f":"VLOOKUP(E464,Departments!B$3:C$83,2,FALSE)","v":"AGRICULTURE(CH)"}]
[463,131016,"Prog. Co-ordinator, KVK, Khawzawl","AGRICULTURE(R&E)","AGRICULTURE","Champhai","090401","xxx}dd~b\u0005\u0002\u0003\u0003",{"$f":"VLOOKUP(E465,Departments!B$3:C$83,2,FALSE)","v":"AGRICULTURE(CH)"}]
[464,131017,"DAO, Kolasib","AGRICULTURE(CH)","AGRICULTURE","Kolasib","090501","xxx}dd~b\u0006\u0002\u0003\u0003",{"$f":"VLOOKUP(E466,Departments!B$3:C$83,2,FALSE)","v":"AGRICULTURE(CH)"}]
[465,131018,"SDAO, Bilkhawthlir","AGRICULTURE(CH)","AGRICULTURE","Kolasib","090501","xxx}dd~b\u000b\u0002\u0003\u0003",{"$f":"VLOOKUP(E467,Departments!B$3:C$83,2,FALSE)","v":"AGRICULTURE(CH)"}]
[466,131019,"Prog. Co-ordinator, KVK, Kolasib","AGRICULTURE(R&E)","AGRICULTURE","Kolasib","090501","xxx}dd~b\f\u0002\u0003\u0003",{"$f":"VLOOKUP(E468,Departments!B$3:C$83,2,FALSE)","v":"AGRICULTURE(CH)"}]
[467,131020,"DAO, Serchhip ","AGRICULTURE(CH)","AGRICULTURE","Serchhip ","090601","xxx}dd~c\u0003\u0002\u0003\u0003",{"$f":"VLOOKUP(E469,Departments!B$3:C$83,2,FALSE)","v":"AGRICULTURE(CH)"}]
[468,131021,"Project Co-ordinator, KVK, N.Vanlaiphai","AGRICULTURE(R&E)","AGRICULTURE","Serchhip ","090601","xxx}dd~c\u0004\u0002\u0003\u0003",{"$f":"VLOOKUP(E470,Departments!B$3:C$83,2,FALSE)","v":"AGRICULTURE(CH)"}]
[469,131022,"DAO, Lawngtlai ","AGRICULTURE(CH)","AGRICULTURE","Lawngtlai","090701","xxx}dd~c\u0001\u0002\u0003\u0003",{"$f":"VLOOKUP(E471,Departments!B$3:C$83,2,FALSE)","v":"AGRICULTURE(CH)"}]
[470,131023,"Prog. Co-ordinator, KVK, Lawngtlai","AGRICULTURE(R&E)","AGRICULTURE","Lawngtlai","090701","xxx}dd~c\u0002\u0002\u0003\u0003",{"$f":"VLOOKUP(E472,Departments!B$3:C$83,2,FALSE)","v":"AGRICULTURE(CH)"}]
[471,131024,"DAO, Mamit ","AGRICULTURE(CH)","AGRICULTURE","Mamit","090801","xxx}dd~c\u0007\u0002\u0003\u0003",{"$f":"VLOOKUP(E473,Departments!B$3:C$83,2,FALSE)","v":"AGRICULTURE(CH)"}]
[472,131025,"SDAO, Zawlnuam","AGRICULTURE(CH)","AGRICULTURE","Mamit","090801","xxx}dd~c\b\u0002\u0003\u0003",{"$f":"VLOOKUP(E474,Departments!B$3:C$83,2,FALSE)","v":"AGRICULTURE(CH)"}]
[473,131026,"SDAO, Kawrtethawveng","AGRICULTURE(CH)","AGRICULTURE","Mamit","090801","xxx}dd~c\u0005\u0002\u0003\u0003",{"$f":"VLOOKUP(E475,Departments!B$3:C$83,2,FALSE)","v":"AGRICULTURE(CH)"}]
[474,132001,"Director, Horticulture","HORTICULTURE","HORTICULTURE","Aizawl South","090101","xxx}da~a\u0004\u0002\u0003\u0002",{"$f":"VLOOKUP(E476,Departments!B$3:C$83,2,FALSE)","v":"HORTICULTURE"}]
[475,132002,"Divisional Horticulture Officer, Aizawl","HORTICULTURE","HORTICULTURE","Aizawl South","090101","xxx}da~a\u0001\u0002\u0003\u0002",{"$f":"VLOOKUP(E477,Departments!B$3:C$83,2,FALSE)","v":"HORTICULTURE"}]
[476,132003,"Divisional  Horticulture Officer, Lunglei","HORTICULTURE","HORTICULTURE","Lunglei","090201","xxx}da~a\u0002\u0002\u0003\u0002",{"$f":"VLOOKUP(E478,Departments!B$3:C$83,2,FALSE)","v":"HORTICULTURE"}]
[477,132004,"Sub-Divisional  Horticulture Officer, Hnahthial","HORTICULTURE","HORTICULTURE","Lunglei","090201","xxx}da~a\u0007\u0002\u0003\u0002",{"$f":"VLOOKUP(E479,Departments!B$3:C$83,2,FALSE)","v":"HORTICULTURE"}]
[478,132005,"Divisional Horticulture Officer, Saiha","HORTICULTURE","HORTICULTURE","Saiha","090301","xxx}da~a\b\u0002\u0003\u0002",{"$f":"VLOOKUP(E480,Departments!B$3:C$83,2,FALSE)","v":"HORTICULTURE"}]
[479,132006,"Divisional Horticulture Officer, Champhai","HORTICULTURE","HORTICULTURE","Champhai","090401","xxx}da~a\u0005\u0002\u0003\u0002",{"$f":"VLOOKUP(E481,Departments!B$3:C$83,2,FALSE)","v":"HORTICULTURE"}]
[480,132007,"Sub-Divisional Horticulture Officer, Champhai","HORTICULTURE","HORTICULTURE","Champhai","090401","xxx}da~a\u0006\u0002\u0003\u0002",{"$f":"VLOOKUP(E482,Departments!B$3:C$83,2,FALSE)","v":"HORTICULTURE"}]
[481,132008,"District  Horticulture Officer, Kolasib","HORTICULTURE","HORTICULTURE","Kolasib","090501","xxx}da~a\u000b\u0002\u0003\u0002",{"$f":"VLOOKUP(E483,Departments!B$3:C$83,2,FALSE)","v":"HORTICULTURE"}]
[482,132009,"Divisional Horticulture Officer, Serchhip ","HORTICULTURE","HORTICULTURE","Serchhip ","090601","xxx}da~a\f\u0002\u0003\u0002",{"$f":"VLOOKUP(E484,Departments!B$3:C$83,2,FALSE)","v":"HORTICULTURE"}]
[483,132010,"District  Horticulture Officer, Lawngtlai","HORTICULTURE","HORTICULTURE","Lawngtlai","090701","xxx}da~b\u0003\u0002\u0003\u0002",{"$f":"VLOOKUP(E485,Departments!B$3:C$83,2,FALSE)","v":"HORTICULTURE"}]
[484,132011,"District  Horticulture Officer, Tuidam","HORTICULTURE","HORTICULTURE","Mamit","090801","xxx}da~b\u0004\u0002\u0003\u0002",{"$f":"VLOOKUP(E486,Departments!B$3:C$83,2,FALSE)","v":"HORTICULTURE"}]
[485,132012,"Sub-Div. Horticulture Officer, Rawpuichhip","HORTICULTURE","HORTICULTURE","Mamit","090801","xxx}da~b\u0001\u0002\u0003\u0002",{"$f":"VLOOKUP(E487,Departments!B$3:C$83,2,FALSE)","v":"HORTICULTURE"}]
[486,132013,"Sub Divnl. Horti. Officer, Mamit","HORTICULTURE","HORTICULTURE","Mamit","090801","xxx}da~b\u0002\u0002\u0003\u0002",{"$f":"VLOOKUP(E488,Departments!B$3:C$83,2,FALSE)","v":"HORTICULTURE"}]
[487,133001,"Director, Soil & Water Conservation","SOIL & WATER \nCONSERVATION","SOIL & WATER CONSERVATION","Aizawl North","090102","xxx}db~a\u0004\u0002\u0003\u0001",{"$f":"VLOOKUP(E489,Departments!B$3:C$83,2,FALSE)","v":"SOIL & WATER \nCONSERVATION"}]
[488,133002,"D.O, SoiI & Water Con., Aizawl","SOIL & WATER \nCONSERVATION","SOIL & WATER CONSERVATION","Aizawl North","090102","xxx}db~a\u0001\u0002\u0003\u0001",{"$f":"VLOOKUP(E490,Departments!B$3:C$83,2,FALSE)","v":"SOIL & WATER \nCONSERVATION"}]
[489,133003,"D.O, SoiI & Water Con., Mamit","SOIL & WATER \nCONSERVATION","SOIL & WATER CONSERVATION","Mamit","090801","xxx}db~a\u0002\u0002\u0003\u0001",{"$f":"VLOOKUP(E491,Departments!B$3:C$83,2,FALSE)","v":"SOIL & WATER \nCONSERVATION"}]
[490,133004,"D.O, SoiI & Water Con., Lunglei","SOIL & WATER \nCONSERVATION","SOIL & WATER CONSERVATION","Lunglei","090201","xxx}db~a\u0007\u0002\u0003\u0001",{"$f":"VLOOKUP(E492,Departments!B$3:C$83,2,FALSE)","v":"SOIL & WATER \nCONSERVATION"}]
[491,133005,"D.O, SoiI & Water Con., Hnahthial","SOIL & WATER \nCONSERVATION","SOIL & WATER CONSERVATION","Lunglei","090201","xxx}db~a\b\u0002\u0003\u0001",{"$f":"VLOOKUP(E493,Departments!B$3:C$83,2,FALSE)","v":"SOIL & WATER \nCONSERVATION"}]
[492,133006,"D.O, SoiI & Water Con., Khawzawl","SOIL & WATER \nCONSERVATION","SOIL & WATER CONSERVATION","Champhai","090401","xxx}db~a\u0005\u0002\u0003\u0001",{"$f":"VLOOKUP(E494,Departments!B$3:C$83,2,FALSE)","v":"SOIL & WATER \nCONSERVATION"}]
[493,133007,"D.O, SoiI & Water Con., Kolasib","SOIL & WATER \nCONSERVATION","SOIL & WATER CONSERVATION","Kolasib","090501","xxx}db~a\u0006\u0002\u0003\u0001",{"$f":"VLOOKUP(E495,Departments!B$3:C$83,2,FALSE)","v":"SOIL & WATER \nCONSERVATION"}]
[494,133008,"D.O, SoiI & Water Con., Serchhip ","SOIL & WATER \nCONSERVATION","SOIL & WATER CONSERVATION","Serchhip ","090601","xxx}db~a\u000b\u0002\u0003\u0001",{"$f":"VLOOKUP(E496,Departments!B$3:C$83,2,FALSE)","v":"SOIL & WATER \nCONSERVATION"}]
[495,133009,"D.O, SoiI & Water Con., Lawngtlai","SOIL & WATER \nCONSERVATION","SOIL & WATER CONSERVATION","Lawngtlai","090701","xxx}db~a\f\u0002\u0003\u0001",{"$f":"VLOOKUP(E497,Departments!B$3:C$83,2,FALSE)","v":"SOIL & WATER \nCONSERVATION"}]
[496,134001,"Director, Animal Husbandary  & Vety.","A.H. & VETY.","A.H. & VETY.","Aizawl South","090101","xxx}dg~a\u0004\u0002\u0003\b",{"$f":"VLOOKUP(E498,Departments!B$3:C$83,2,FALSE)","v":"A.H. & VETY."}]
[497,134002,"District AH & Vety. Officer, Aizawl","A.H. & VETY.","A.H. & VETY.","Aizawl South","090101","xxx}dg~a\u0001\u0002\u0003\b",{"$f":"VLOOKUP(E499,Departments!B$3:C$83,2,FALSE)","v":"A.H. & VETY."}]
[498,134003,"General Manager, Tanhril","A.H. & VETY.","A.H. & VETY.","Aizawl South","090101","xxx}dg~a\u0002\u0002\u0003\b",{"$f":"VLOOKUP(E500,Departments!B$3:C$83,2,FALSE)","v":"A.H. & VETY."}]
[499,134004,"General Manager, Selesih Farm","A.H. & VETY.","A.H. & VETY.","Aizawl South","090101","xxx}dg~a\u0007\u0002\u0003\b",{"$f":"VLOOKUP(E501,Departments!B$3:C$83,2,FALSE)","v":"A.H. & VETY."}]
[500,134005,"Joint Director, A.H.& Vety, Lunglei ","A.H. & VETY.","A.H. & VETY.","Lunglei","090201","xxx}dg~a\b\u0002\u0003\b",{"$f":"VLOOKUP(E502,Departments!B$3:C$83,2,FALSE)","v":"A.H. & VETY."}]
[501,134006,"District A H & Vety Officer, Lunglei","A.H. & VETY.","A.H. & VETY.","Lunglei","090201","xxx}dg~a\u0005\u0002\u0003\b",{"$f":"VLOOKUP(E503,Departments!B$3:C$83,2,FALSE)","v":"A.H. & VETY."}]
[502,134007,"Sub Divnl. A.H & Vety Officer, Tlabung","A.H. & VETY.","A.H. & VETY.","Lunglei","090201","xxx}dg~a\u0006\u0002\u0003\b",{"$f":"VLOOKUP(E504,Departments!B$3:C$83,2,FALSE)","v":"A.H. & VETY."}]
[503,134008,"Principal, School of Vety Sc., Lungpher","A.H. & VETY.","A.H. & VETY.","Lunglei","090201","xxx}dg~a\u000b\u0002\u0003\b",{"$f":"VLOOKUP(E505,Departments!B$3:C$83,2,FALSE)","v":"A.H. & VETY."}]
[504,134009,"District A.H.& Vety Officer, Saiha","A.H. & VETY.","A.H. & VETY.","Saiha","090301","xxx}dg~a\f\u0002\u0003\b",{"$f":"VLOOKUP(E506,Departments!B$3:C$83,2,FALSE)","v":"A.H. & VETY."}]
[505,134010,"District A.H.& Vety Officer, Champhai","A.H. & VETY.","A.H. & VETY.","Champhai","090401","xxx}dg~b\u0003\u0002\u0003\b",{"$f":"VLOOKUP(E507,Departments!B$3:C$83,2,FALSE)","v":"A.H. & VETY."}]
[506,134011,"District A.H.& Vety Officer, Kolasib","A.H. & VETY.","A.H. & VETY.","Kolasib","090501","xxx}dg~b\u0004\u0002\u0003\b",{"$f":"VLOOKUP(E508,Departments!B$3:C$83,2,FALSE)","v":"A.H. & VETY."}]
[507,134012,"District A.H.& Vety Officer, Serchhip ","A.H. & VETY.","A.H. & VETY.","Serchhip","090601","xxx}dg~b\u0001\u0002\u0003\b",{"$f":"VLOOKUP(E509,Departments!B$3:C$83,2,FALSE)","v":"A.H. & VETY."}]
[508,134013,"G.M, A.H.& Vety, Thenzawl","A.H. & VETY.","A.H. & VETY.","Serchhip","090601","xxx}dg~b\u0002\u0002\u0003\b",{"$f":"VLOOKUP(E510,Departments!B$3:C$83,2,FALSE)","v":"A.H. & VETY."}]
[509,134014,"District A.H.& Vety Officer, Lawngtlai","A.H. & VETY.","A.H. & VETY.","Lawngtlai","090701","xxx}dg~b\u0007\u0002\u0003\b",{"$f":"VLOOKUP(E511,Departments!B$3:C$83,2,FALSE)","v":"A.H. & VETY."}]
[510,134015,"District A.H & Vety Officer, Chawngte","A.H. & VETY.","A.H. & VETY.","Lawngtlai","090701","xxx}dg~b\b\u0002\u0003\b",{"$f":"VLOOKUP(E512,Departments!B$3:C$83,2,FALSE)","v":"A.H. & VETY."}]
[511,134016,"SDVO, Chawngte.","A.H. & VETY.","A.H. & VETY.","Lawngtlai","090701","xxx}dg~b\u0005\u0002\u0003\b",{"$f":"VLOOKUP(E513,Departments!B$3:C$83,2,FALSE)","v":"A.H. & VETY."}]
[512,134017,"Asst.Manager, A.H.& Vety, Mampui","A.H. & VETY.","A.H. & VETY.","Lawngtlai","090701","xxx}dg~b\u0006\u0002\u0003\b",{"$f":"VLOOKUP(E514,Departments!B$3:C$83,2,FALSE)","v":"A.H. & VETY."}]
[513,134018,"District A.H.& Vety Officer, Mamit","A.H. & VETY.","A.H. & VETY.","Mamit","090801","xxx}dg~b\u000b\u0002\u0003\b",{"$f":"VLOOKUP(E515,Departments!B$3:C$83,2,FALSE)","v":"A.H. & VETY."}]
[514,135001,"Director, Fisheries","FISHERIES","FISHERIES","Aizawl North","090102","xxx}dh~a\u0004\u0002\u0003\u0007",{"$f":"VLOOKUP(E516,Departments!B$3:C$83,2,FALSE)","v":"FISHERIES"}]
[515,135002,"District F.D.O, Aizawl","FISHERIES","FISHERIES","Aizawl North","090102","xxx}dh~a\u0001\u0002\u0003\u0007",{"$f":"VLOOKUP(E517,Departments!B$3:C$83,2,FALSE)","v":"FISHERIES"}]
[516,135003,"District F.D.O, Lunglei","FISHERIES","FISHERIES","Lunglei","090201","xxx}dh~a\u0002\u0002\u0003\u0007",{"$f":"VLOOKUP(E518,Departments!B$3:C$83,2,FALSE)","v":"FISHERIES"}]
[517,135004,"District F.D.O, Saiha","FISHERIES","FISHERIES","Saiha","090301","xxx}dh~a\u0007\u0002\u0003\u0007",{"$f":"VLOOKUP(E519,Departments!B$3:C$83,2,FALSE)","v":"FISHERIES"}]
[518,135005,"District F.D.O, Kolasib","FISHERIES","FISHERIES","Kolasib","090501","xxx}dh~a\b\u0002\u0003\u0007",{"$f":"VLOOKUP(E520,Departments!B$3:C$83,2,FALSE)","v":"FISHERIES"}]
[519,135006,"District F.D.O, Lawngtlai","FISHERIES","FISHERIES","Lawngtlai","090701","xxx}dh~a\u0005\u0002\u0003\u0007",{"$f":"VLOOKUP(E521,Departments!B$3:C$83,2,FALSE)","v":"FISHERIES"}]
[520,135007,"District F.D.O., Mamit","FISHERIES","FISHERIES","Mamit","090801","xxx}dh~a\u0006\u0002\u0003\u0007",{"$f":"VLOOKUP(E522,Departments!B$3:C$83,2,FALSE)","v":"FISHERIES"}]
[521,135008,"District F.D.O., Champhai","FISHERIES","FISHERIES","Champhai","090401","xxx}dh~a\u000b\u0002\u0003\u0007",{"$f":"VLOOKUP(E523,Departments!B$3:C$83,2,FALSE)","v":"FISHERIES"}]
[522,136001,"Pincipal Chief Conservator of Forests","FOREST DEPARTMENT","WILDLIFE &  FOREST","Aizawl South","090101","xxx}de~a\u0004\u0002\u0003\u0006",{"$f":"VLOOKUP(E524,Departments!B$3:C$83,2,FALSE)","v":{"$error":"#N/A"}}]
[523,136002,"Wildlife PO (North)","FOREST DEPARTMENT","WILDLIFE &  FOREST","Aizawl South","090101","xxx}de~a\u0001\u0002\u0003\u0006",{"$f":"VLOOKUP(E525,Departments!B$3:C$83,2,FALSE)","v":{"$error":"#N/A"}}]
[524,136003,"Chief Wildlife Warden","FOREST DEPARTMENT","WILDLIFE &  FOREST","Aizawl South","090101","xxx}de~a\u0002\u0002\u0003\u0006",{"$f":"VLOOKUP(E526,Departments!B$3:C$83,2,FALSE)","v":{"$error":"#N/A"}}]
[525,136004,"Principal, Forest Training School","FOREST DEPARTMENT","WILDLIFE &  FOREST","Aizawl South","090101","xxx}de~a\u0007\u0002\u0003\u0006",{"$f":"VLOOKUP(E527,Departments!B$3:C$83,2,FALSE)","v":{"$error":"#N/A"}}]
[526,136005,"Conservator of Forest, Central Circle","FOREST DEPARTMENT","WILDLIFE &  FOREST","Aizawl South","090101","xxx}de~a\b\u0002\u0003\u0006",{"$f":"VLOOKUP(E528,Departments!B$3:C$83,2,FALSE)","v":{"$error":"#N/A"}}]
[527,136006,"Conservator of Forests, Research & Dev.","FOREST DEPARTMENT","WILDLIFE &  FOREST","Aizawl South","090101","xxx}de~a\u0005\u0002\u0003\u0006",{"$f":"VLOOKUP(E529,Departments!B$3:C$83,2,FALSE)","v":{"$error":"#N/A"}}]
[528,136007,"Conservator of Forests, Northern Circle","FOREST DEPARTMENT","WILDLIFE &  FOREST","Aizawl South","090101","xxx}de~a\u0006\u0002\u0003\u0006",{"$f":"VLOOKUP(E530,Departments!B$3:C$83,2,FALSE)","v":{"$error":"#N/A"}}]
[529,136008,"D.F.O, Darlawn","FOREST DEPARTMENT","WILDLIFE &  FOREST","Aizawl South","090101","xxx}de~a\u000b\u0002\u0003\u0006",{"$f":"VLOOKUP(E531,Departments!B$3:C$83,2,FALSE)","v":{"$error":"#N/A"}}]
[530,136009,"D.F.O, Extension","FOREST DEPARTMENT","WILDLIFE &  FOREST","Aizawl South","090101","xxx}de~a\f\u0002\u0003\u0006",{"$f":"VLOOKUP(E532,Departments!B$3:C$83,2,FALSE)","v":{"$error":"#N/A"}}]
[531,136010,"D.F.O, Resources","FOREST DEPARTMENT","WILDLIFE &  FOREST","Aizawl South","090101","xxx}de~b\u0003\u0002\u0003\u0006",{"$f":"VLOOKUP(E533,Departments!B$3:C$83,2,FALSE)","v":{"$error":"#N/A"}}]
[532,136011,"D.F.O,  Aizawl","FOREST DEPARTMENT","WILDLIFE &  FOREST","Aizawl South","090101","xxx}de~b\u0004\u0002\u0003\u0006",{"$f":"VLOOKUP(E534,Departments!B$3:C$83,2,FALSE)","v":{"$error":"#N/A"}}]
[533,136012,"D.F.O, Protection","FOREST DEPARTMENT","WILDLIFE &  FOREST","Aizawl South","090101","xxx}de~b\u0001\u0002\u0003\u0006",{"$f":"VLOOKUP(E535,Departments!B$3:C$83,2,FALSE)","v":{"$error":"#N/A"}}]
[534,136013,"Con.of Forest, Southern Circle, Lunglei","FOREST DEPARTMENT","WILDLIFE &  FOREST","Lunglei","090201","xxx}de~b\u0002\u0002\u0003\u0006",{"$f":"VLOOKUP(E536,Departments!B$3:C$83,2,FALSE)","v":{"$error":"#N/A"}}]
[535,136014,"Dy. Con. of Forest, Working Plan Divn.","FOREST DEPARTMENT","WILDLIFE &  FOREST","Lunglei","090201","xxx}de~b\u0007\u0002\u0003\u0006",{"$f":"VLOOKUP(E537,Departments!B$3:C$83,2,FALSE)","v":{"$error":"#N/A"}}]
[536,136015,"D.F.O, Lunglei","FOREST DEPARTMENT","WILDLIFE &  FOREST","Lunglei","090201","xxx}de~b\b\u0002\u0003\u0006",{"$f":"VLOOKUP(E538,Departments!B$3:C$83,2,FALSE)","v":{"$error":"#N/A"}}]
[537,136016,"D.F.O, Tlabung","FOREST DEPARTMENT","WILDLIFE &  FOREST","Lunglei","090201","xxx}de~b\u0005\u0002\u0003\u0006",{"$f":"VLOOKUP(E539,Departments!B$3:C$83,2,FALSE)","v":{"$error":"#N/A"}}]
[538,136017,"D.F.O, Champhai","FOREST DEPARTMENT","WILDLIFE &  FOREST","Champhai","090401","xxx}de~b\u0006\u0002\u0003\u0006",{"$f":"VLOOKUP(E540,Departments!B$3:C$83,2,FALSE)","v":{"$error":"#N/A"}}]
[539,136018,"D.F.O, Wildlife Division, Khawzawl","FOREST DEPARTMENT","WILDLIFE &  FOREST","Champhai","090401","xxx}de~b\u000b\u0002\u0003\u0006",{"$f":"VLOOKUP(E541,Departments!B$3:C$83,2,FALSE)","v":{"$error":"#N/A"}}]
[540,136019,"D.F.O, Kolasib","FOREST DEPARTMENT","WILDLIFE &  FOREST","Kolasib","090501","xxx}de~b\f\u0002\u0003\u0006",{"$f":"VLOOKUP(E542,Departments!B$3:C$83,2,FALSE)","v":{"$error":"#N/A"}}]
[541,136020,"D.F.O, Thenzawl","FOREST DEPARTMENT","WILDLIFE &  FOREST","Serchhip ","090601","xxx}de~c\u0003\u0002\u0003\u0006",{"$f":"VLOOKUP(E543,Departments!B$3:C$83,2,FALSE)","v":{"$error":"#N/A"}}]
[542,136021,"D.F.O, N.Vanlaiphai","FOREST DEPARTMENT","WILDLIFE &  FOREST","Serchhip ","090601","xxx}de~c\u0004\u0002\u0003\u0006",{"$f":"VLOOKUP(E544,Departments!B$3:C$83,2,FALSE)","v":{"$error":"#N/A"}}]
[543,136022,"D.F.O, Lawngtlai","FOREST DEPARTMENT","WILDLIFE &  FOREST","Lawngtlai","090701","xxx}de~c\u0001\u0002\u0003\u0006",{"$f":"VLOOKUP(E545,Departments!B$3:C$83,2,FALSE)","v":{"$error":"#N/A"}}]
[544,136023,"D.F.O, Mamit","FOREST DEPARTMENT","WILDLIFE &  FOREST","Mamit","090801","xxx}de~c\u0002\u0002\u0003\u0006",{"$f":"VLOOKUP(E546,Departments!B$3:C$83,2,FALSE)","v":{"$error":"#N/A"}}]
[545,136024,"D.F.O, Kawrthah","FOREST DEPARTMENT","WILDLIFE &  FOREST","Mamit","090801","xxx}de~c\u0007\u0002\u0003\u0006",{"$f":"VLOOKUP(E547,Departments!B$3:C$83,2,FALSE)","v":{"$error":"#N/A"}}]
[546,136025,"Field Director,Dampa W.S, W.Phaileng","FOREST DEPARTMENT","WILDLIFE &  FOREST","Mamit","090801","xxx}de~c\b\u0002\u0003\u0006",{"$f":"VLOOKUP(E548,Departments!B$3:C$83,2,FALSE)","v":{"$error":"#N/A"}}]
[547,136026,"Dy.Conservator of Forest (Wildlife)","FOREST DEPARTMENT","WILDLIFE &  FOREST","Aizawl South","090101","xxx}de~c\u0005\u0002\u0003\u0006",{"$f":"VLOOKUP(E549,Departments!B$3:C$83,2,FALSE)","v":{"$error":"#N/A"}}]
[548,137001,"Registrar, Cooperative Society","COOPERATION","COOPERATION","Aizawl North","090102","xxx}df~a\u0004\u0002\u0003\u0005",{"$f":"VLOOKUP(E550,Departments!B$3:C$83,2,FALSE)","v":"COOPERATION"}]
[549,137002,"Asst.Registrar Coop. Society, Aiawl 'E'","COOPERATION","COOPERATION","Aizawl North","090102","xxx}df~a\u0001\u0002\u0003\u0005",{"$f":"VLOOKUP(E551,Departments!B$3:C$83,2,FALSE)","v":"COOPERATION"}]
[550,137003,"Asst.Registrar Coop.Society, Aizawl W","COOPERATION","COOPERATION","Aizawl North","090102","xxx}df~a\u0002\u0002\u0003\u0005",{"$f":"VLOOKUP(E552,Departments!B$3:C$83,2,FALSE)","v":"COOPERATION"}]
[551,137004,"Asst.Registrar Coop. Society, Lunglei","COOPERATION","COOPERATION","Lunglei","090201","xxx}df~a\u0007\u0002\u0003\u0005",{"$f":"VLOOKUP(E553,Departments!B$3:C$83,2,FALSE)","v":"COOPERATION"}]
[552,137005,"Asst.Registrar Coop. Society, Saiha","COOPERATION","COOPERATION","Saiha","090301","xxx}df~a\b\u0002\u0003\u0005",{"$f":"VLOOKUP(E554,Departments!B$3:C$83,2,FALSE)","v":"COOPERATION"}]
[553,137006,"Asst.Registrar Coop. Society, Champhai","COOPERATION","COOPERATION","Champhai","090401","xxx}df~a\u0005\u0002\u0003\u0005",{"$f":"VLOOKUP(E555,Departments!B$3:C$83,2,FALSE)","v":"COOPERATION"}]
[554,137007,"Asst.Registrar Coop. Society, Kolasib","COOPERATION","COOPERATION","Kolasib","090501","xxx}df~a\u0006\u0002\u0003\u0005",{"$f":"VLOOKUP(E556,Departments!B$3:C$83,2,FALSE)","v":"COOPERATION"}]
[555,137008,"Asst.Registrar Coop. Society, Serchhip","COOPERATION","COOPERATION","Serchhp","090601","xxx}df~a\u000b\u0002\u0003\u0005",{"$f":"VLOOKUP(E557,Departments!B$3:C$83,2,FALSE)","v":"COOPERATION"}]
[556,138001,"Deputy Secretary, RD (BADP)","RURAL DEVELOPMENT","RURAL DEVELOPMENT","Aizawl South","090101","xxx}dk~a\u0004\u0002\u0003\f",{"$f":"VLOOKUP(E558,Departments!B$3:C$83,2,FALSE)","v":"RURAL DEVELOPMENT"}]
[557,138002,"Director, Rural Development","RURAL DEVELOPMENT","RURAL DEVELOPMENT","Aizawl North","090102","xxx}dk~a\u0001\u0002\u0003\f",{"$f":"VLOOKUP(E559,Departments!B$3:C$83,2,FALSE)","v":"RURAL DEVELOPMENT"}]
[558,138003,"Project Director, SLMC","SLMC","RURAL DEVELOPMENT","Aizawl North","090102","xxx}dk~a\u0002\u0002\u0003\f",{"$f":"VLOOKUP(E560,Departments!B$3:C$83,2,FALSE)","v":"RURAL DEVELOPMENT"}]
[559,138004,"Block Development Officer, Tlangnuam","RURAL DEVELOPMENT","RURAL DEVELOPMENT","Aizawl North","090102","xxx}dk~a\u0007\u0002\u0003\f",{"$f":"VLOOKUP(E561,Departments!B$3:C$83,2,FALSE)","v":"RURAL DEVELOPMENT"}]
[560,138005,"Block Development Officer, Thingsul","RURAL DEVELOPMENT","RURAL DEVELOPMENT","Aizawl North","090102","xxx}dk~a\b\u0002\u0003\f",{"$f":"VLOOKUP(E562,Departments!B$3:C$83,2,FALSE)","v":"RURAL DEVELOPMENT"}]
[561,138006,"Block Development Officer, Darlawn","RURAL DEVELOPMENT","RURAL DEVELOPMENT","Aizawl North","090102","xxx}dk~a\u0005\u0002\u0003\f",{"$f":"VLOOKUP(E563,Departments!B$3:C$83,2,FALSE)","v":"RURAL DEVELOPMENT"}]
[562,138007,"Block Development Officer, Reiek","RURAL DEVELOPMENT","RURAL DEVELOPMENT","Aizawl North","090102","xxx}dk~a\u0006\u0002\u0003\f",{"$f":"VLOOKUP(E564,Departments!B$3:C$83,2,FALSE)","v":"RURAL DEVELOPMENT"}]
[563,138008,"Block Development Officer, Aibawk","RURAL DEVELOPMENT","RURAL DEVELOPMENT","Aizawl North","090102","xxx}dk~a\u000b\u0002\u0003\f",{"$f":"VLOOKUP(E565,Departments!B$3:C$83,2,FALSE)","v":"RURAL DEVELOPMENT"}]
[564,138009,"Block Development Officer, Phullen","RURAL DEVELOPMENT","RURAL DEVELOPMENT","Aizawl North","090102","xxx}dk~a\f\u0002\u0003\f",{"$f":"VLOOKUP(E566,Departments!B$3:C$83,2,FALSE)","v":"RURAL DEVELOPMENT"}]
[565,138010,"Block Development Officer, Lunglei","RURAL DEVELOPMENT","RURAL DEVELOPMENT","Lunglei","090201","xxx}dk~b\u0003\u0002\u0003\f",{"$f":"VLOOKUP(E567,Departments!B$3:C$83,2,FALSE)","v":"RURAL DEVELOPMENT"}]
[566,138011,"Block Development Officer, Lungsen","RURAL DEVELOPMENT","RURAL DEVELOPMENT","Lunglei","090201","xxx}dk~b\u0004\u0002\u0003\f",{"$f":"VLOOKUP(E568,Departments!B$3:C$83,2,FALSE)","v":"RURAL DEVELOPMENT"}]
[567,138012,"Block Development Officer, Hnahthial","RURAL DEVELOPMENT","RURAL DEVELOPMENT","Lunglei","090201","xxx}dk~b\u0001\u0002\u0003\f",{"$f":"VLOOKUP(E569,Departments!B$3:C$83,2,FALSE)","v":"RURAL DEVELOPMENT"}]
[568,138013,"Block Development Officer, Bunghmun","RURAL DEVELOPMENT","RURAL DEVELOPMENT","Lunglei","090201","xxx}dk~b\u0002\u0002\u0003\f",{"$f":"VLOOKUP(E570,Departments!B$3:C$83,2,FALSE)","v":"RURAL DEVELOPMENT"}]
[569,138014,"Block Development Officer, Saiha","RURAL DEVELOPMENT","RURAL DEVELOPMENT","Saiha","090301","xxx}dk~b\u0007\u0002\u0003\f",{"$f":"VLOOKUP(E571,Departments!B$3:C$83,2,FALSE)","v":"RURAL DEVELOPMENT"}]
[570,138015,"Block Development Officer, Sangau","RURAL DEVELOPMENT","RURAL DEVELOPMENT","Saiha","090301","xxx}dk~b\b\u0002\u0003\f",{"$f":"VLOOKUP(E572,Departments!B$3:C$83,2,FALSE)","v":"RURAL DEVELOPMENT"}]
[571,138016,"Block Development Officer, Tuipang","RURAL DEVELOPMENT","RURAL DEVELOPMENT","Saiha","090301","xxx}dk~b\u0005\u0002\u0003\f",{"$f":"VLOOKUP(E573,Departments!B$3:C$83,2,FALSE)","v":"RURAL DEVELOPMENT"}]
[572,138017,"Block Development Officer, Champhai","RURAL DEVELOPMENT","RURAL DEVELOPMENT","Champhai","090401","xxx}dk~b\u0006\u0002\u0003\f",{"$f":"VLOOKUP(E574,Departments!B$3:C$83,2,FALSE)","v":"RURAL DEVELOPMENT"}]
[573,138018,"Block Development Officer, Khawzawl","RURAL DEVELOPMENT","RURAL DEVELOPMENT","Champhai","090401","xxx}dk~b\u000b\u0002\u0003\f",{"$f":"VLOOKUP(E575,Departments!B$3:C$83,2,FALSE)","v":"RURAL DEVELOPMENT"}]
[574,138019,"Block Development Officer, Ngopa","RURAL DEVELOPMENT","RURAL DEVELOPMENT","Champhai","090401","xxx}dk~b\f\u0002\u0003\f",{"$f":"VLOOKUP(E576,Departments!B$3:C$83,2,FALSE)","v":"RURAL DEVELOPMENT"}]
[575,138020,"Block Development Officer, Khawbung","RURAL DEVELOPMENT","RURAL DEVELOPMENT","Champhai","090401","xxx}dk~c\u0003\u0002\u0003\f",{"$f":"VLOOKUP(E577,Departments!B$3:C$83,2,FALSE)","v":"RURAL DEVELOPMENT"}]
[576,138021,"Block Development Officer, Thingdawl","RURAL DEVELOPMENT","RURAL DEVELOPMENT","Kolasib","090501","xxx}dk~c\u0004\u0002\u0003\f",{"$f":"VLOOKUP(E578,Departments!B$3:C$83,2,FALSE)","v":"RURAL DEVELOPMENT"}]
[577,138022,"Block Development Officer,Bilkhawthlir","RURAL DEVELOPMENT","RURAL DEVELOPMENT","Kolasib","090501","xxx}dk~c\u0001\u0002\u0003\f",{"$f":"VLOOKUP(E579,Departments!B$3:C$83,2,FALSE)","v":"RURAL DEVELOPMENT"}]
[578,138023,"Block Development Officer, Serchhip","RURAL DEVELOPMENT","RURAL DEVELOPMENT","Serchhip","090601","xxx}dk~c\u0002\u0002\u0003\f",{"$f":"VLOOKUP(E580,Departments!B$3:C$83,2,FALSE)","v":"RURAL DEVELOPMENT"}]
[579,138024,"Block Development Officer, E. Lungdar","RURAL DEVELOPMENT","RURAL DEVELOPMENT","Serchhip","090601","xxx}dk~c\u0007\u0002\u0003\f",{"$f":"VLOOKUP(E581,Departments!B$3:C$83,2,FALSE)","v":"RURAL DEVELOPMENT"}]
[580,138025,"Block Development Officer, Lawngtlai","RURAL DEVELOPMENT","RURAL DEVELOPMENT","Lawngtlai","090701","xxx}dk~c\b\u0002\u0003\f",{"$f":"VLOOKUP(E582,Departments!B$3:C$83,2,FALSE)","v":"RURAL DEVELOPMENT"}]
[581,138026,"Block Development Officer, Chawngte","RURAL DEVELOPMENT","RURAL DEVELOPMENT","Lawngtlai","090701","xxx}dk~c\u0005\u0002\u0003\f",{"$f":"VLOOKUP(E583,Departments!B$3:C$83,2,FALSE)","v":"RURAL DEVELOPMENT"}]
[582,138027,"Block Development Officer, Bungtlang(S) ","RURAL DEVELOPMENT","RURAL DEVELOPMENT","Lawngtlai","090701","xxx}dk~c\u0006\u0002\u0003\f",{"$f":"VLOOKUP(E584,Departments!B$3:C$83,2,FALSE)","v":"RURAL DEVELOPMENT"}]
[583,138028,"Block Development Officer, Zawlnuam","RURAL DEVELOPMENT","RURAL DEVELOPMENT","Mamit","090801","xxx}dk~c\u000b\u0002\u0003\f",{"$f":"VLOOKUP(E585,Departments!B$3:C$83,2,FALSE)","v":"RURAL DEVELOPMENT"}]
[584,138029,"Block Development Officer, W Phaileng","RURAL DEVELOPMENT","RURAL DEVELOPMENT","Mamit","090801","xxx}dk~c\f\u0002\u0003\f",{"$f":"VLOOKUP(E586,Departments!B$3:C$83,2,FALSE)","v":"RURAL DEVELOPMENT"}]
[585,139001,"Engineer - in - Chief,  P & E","POWER & ELECTRICITY","POWER & ELECTRICITY","Aizawl North","090102","xxx}dl~a\u0004\u0002\u0003\u000b",{"$f":"VLOOKUP(E587,Departments!B$3:C$83,2,FALSE)","v":"POWER & ELECTRICITY"}]
[586,139002,"Chief Engineer, P & E, System Operation","POWER & ELECTRICITY","POWER & ELECTRICITY","Aizawl North","090102","xxx}dl~a\u0001\u0002\u0003\u000b",{"$f":"VLOOKUP(E588,Departments!B$3:C$83,2,FALSE)","v":"POWER & ELECTRICITY"}]
[587,139003,"Chief Engineer, Distribution","POWER & ELECTRICITY","POWER & ELECTRICITY","Aizawl North","090102","xxx}dl~a\u0002\u0002\u0003\u000b",{"$f":"VLOOKUP(E589,Departments!B$3:C$83,2,FALSE)","v":"POWER & ELECTRICITY"}]
[588,139004,"Supdt. Engineer, Transmission Circle","POWER & ELECTRICITY","POWER & ELECTRICITY","Aizawl North","090102","xxx}dl~a\u0007\u0002\u0003\u000b",{"$f":"VLOOKUP(E590,Departments!B$3:C$83,2,FALSE)","v":"POWER & ELECTRICITY"}]
[589,139005,"Supdt. Engineer, Aizawl Power Circle","POWER & ELECTRICITY","POWER & ELECTRICITY","Aizawl North","090102","xxx}dl~a\b\u0002\u0003\u000b",{"$f":"VLOOKUP(E591,Departments!B$3:C$83,2,FALSE)","v":"POWER & ELECTRICITY"}]
[590,139006,"Supdt. Engineer, Project Circle-I","POWER & ELECTRICITY","POWER & ELECTRICITY","Aizawl North","090102","xxx}dl~a\u0005\u0002\u0003\u000b",{"$f":"VLOOKUP(E592,Departments!B$3:C$83,2,FALSE)","v":"POWER & ELECTRICITY"}]
[591,139007,"Supdt. Engineer, Project Circle-II","POWER & ELECTRICITY","POWER & ELECTRICITY","Aizawl North","090102","xxx}dl~a\u0006\u0002\u0003\u000b",{"$f":"VLOOKUP(E593,Departments!B$3:C$83,2,FALSE)","v":"POWER & ELECTRICITY"}]
[592,139008,"Supdt.Engineer, Electrical Inspectorate","POWER & ELECTRICITY","POWER & ELECTRICITY","Aizawl North","090102","xxx}dl~a\u000b\u0002\u0003\u000b",{"$f":"VLOOKUP(E594,Departments!B$3:C$83,2,FALSE)","v":"POWER & ELECTRICITY"}]
[593,139009,"Supd.Engineer, MSLDC","POWER & ELECTRICITY","POWER & ELECTRICITY","Aizawl North","090102","xxx}dl~a\f\u0002\u0003\u000b",{"$f":"VLOOKUP(E595,Departments!B$3:C$83,2,FALSE)","v":"POWER & ELECTRICITY"}]
[594,139010,"Executive Engineer, Construction Div.","POWER & ELECTRICITY","POWER & ELECTRICITY","Aizawl North","090102","xxx}dl~b\u0003\u0002\u0003\u000b",{"$f":"VLOOKUP(E596,Departments!B$3:C$83,2,FALSE)","v":"POWER & ELECTRICITY"}]
[595,139011,"Executive Engineer, Revenue Division","POWER & ELECTRICITY","POWER & ELECTRICITY","Aizawl North","090102","xxx}dl~b\u0004\u0002\u0003\u000b",{"$f":"VLOOKUP(E597,Departments!B$3:C$83,2,FALSE)","v":"POWER & ELECTRICITY"}]
[596,139012,"Executive Engineer, Generation Div","POWER & ELECTRICITY","POWER & ELECTRICITY","Aizawl North","090102","xxx}dl~b\u0001\u0002\u0003\u000b",{"$f":"VLOOKUP(E598,Departments!B$3:C$83,2,FALSE)","v":"POWER & ELECTRICITY"}]
[597,139013,"Executive Engineer, Distribution Div.","POWER & ELECTRICITY","POWER & ELECTRICITY","Aizawl North","090102","xxx}dl~b\u0002\u0002\u0003\u000b",{"$f":"VLOOKUP(E599,Departments!B$3:C$83,2,FALSE)","v":"POWER & ELECTRICITY"}]
[598,139014,"Executive Engineer, MSLDC Aizawl","POWER & ELECTRICITY","POWER & ELECTRICITY","Aizawl North","090102","xxx}dl~b\u0007\u0002\u0003\u000b",{"$f":"VLOOKUP(E600,Departments!B$3:C$83,2,FALSE)","v":"POWER & ELECTRICITY"}]
[599,139015,"Executive Engineer, Civil Project Div.","POWER & ELECTRICITY","POWER & ELECTRICITY","Aizawl North","090102","xxx}dl~b\b\u0002\u0003\u000b",{"$f":"VLOOKUP(E601,Departments!B$3:C$83,2,FALSE)","v":"POWER & ELECTRICITY"}]
[600,139016,"Executive Engineer, MRT Division","POWER & ELECTRICITY","POWER & ELECTRICITY","Aizawl North","090102","xxx}dl~b\u0005\u0002\u0003\u000b",{"$f":"VLOOKUP(E602,Departments!B$3:C$83,2,FALSE)","v":"POWER & ELECTRICITY"}]
[601,139017,"Superintending  Engineer, P&E, Lunglei ","POWER & ELECTRICITY","POWER & ELECTRICITY","Lunglei","090201","xxx}dl~b\u0006\u0002\u0003\u000b",{"$f":"VLOOKUP(E603,Departments!B$3:C$83,2,FALSE)","v":"POWER & ELECTRICITY"}]
[602,139018,"Executive Engineer, PMD-I,  Lunglei ","POWER & ELECTRICITY","POWER & ELECTRICITY","Lunglei","090201","xxx}dl~b\u000b\u0002\u0003\u000b",{"$f":"VLOOKUP(E604,Departments!B$3:C$83,2,FALSE)","v":"POWER & ELECTRICITY"}]
[603,139019,"Executive Engineer,  PMD-II, Lunglei ","POWER & ELECTRICITY","POWER & ELECTRICITY","Lunglei","090201","xxx}dl~b\f\u0002\u0003\u000b",{"$f":"VLOOKUP(E605,Departments!B$3:C$83,2,FALSE)","v":"POWER & ELECTRICITY"}]
[604,139020,"Executive Engineer, P & E, Saiha","POWER & ELECTRICITY","POWER & ELECTRICITY","Saiha","090301","xxx}dl~c\u0003\u0002\u0003\u000b",{"$f":"VLOOKUP(E606,Departments!B$3:C$83,2,FALSE)","v":"POWER & ELECTRICITY"}]
[605,139021,"Superintending Engineer, Champhai","POWER & ELECTRICITY","POWER & ELECTRICITY","Champhai","090401","xxx}dl~c\u0004\u0002\u0003\u000b",{"$f":"VLOOKUP(E607,Departments!B$3:C$83,2,FALSE)","v":"POWER & ELECTRICITY"}]
[606,139022,"Executive Engineer,  Champhai","POWER & ELECTRICITY","POWER & ELECTRICITY","Champhai","090401","xxx}dl~c\u0001\u0002\u0003\u000b",{"$f":"VLOOKUP(E608,Departments!B$3:C$83,2,FALSE)","v":"POWER & ELECTRICITY"}]
[607,139023,"Executive Engineer,  Khawzawl","POWER & ELECTRICITY","POWER & ELECTRICITY","Champhai","090401","xxx}dl~c\u0002\u0002\u0003\u000b",{"$f":"VLOOKUP(E609,Departments!B$3:C$83,2,FALSE)","v":"POWER & ELECTRICITY"}]
[608,139024,"Executive Engineer,  Kolasib","POWER & ELECTRICITY","POWER & ELECTRICITY","Kolasib","090501","xxx}dl~c\u0007\u0002\u0003\u000b",{"$f":"VLOOKUP(E610,Departments!B$3:C$83,2,FALSE)","v":"POWER & ELECTRICITY"}]
[609,139025,"E. E.,  Serlui 'B' Project Divn.,Kolasib","POWER & ELECTRICITY","POWER & ELECTRICITY","Kolasib","090501","xxx}dl~c\b\u0002\u0003\u000b",{"$f":"VLOOKUP(E611,Departments!B$3:C$83,2,FALSE)","v":"POWER & ELECTRICITY"}]
[610,139026,"E. E.,  Serlui 'B' Dam Divn.,Bilkhawthlir","POWER & ELECTRICITY","POWER & ELECTRICITY","Kolasib","090501","xxx}dl~c\u0005\u0002\u0003\u000b",{"$f":"VLOOKUP(E612,Departments!B$3:C$83,2,FALSE)","v":"POWER & ELECTRICITY"}]
[611,139027,"E.E.,  Thermal Project Divn.Bilkhawthlir","POWER & ELECTRICITY","POWER & ELECTRICITY","Kolasib","090501","xxx}dl~c\u0006\u0002\u0003\u000b",{"$f":"VLOOKUP(E613,Departments!B$3:C$83,2,FALSE)","v":"POWER & ELECTRICITY"}]
[612,139028,"Executive Engineer,  SPD,Serchhip","POWER & ELECTRICITY","POWER & ELECTRICITY","Serchhip","090601","xxx}dl~c\u000b\u0002\u0003\u000b",{"$f":"VLOOKUP(E614,Departments!B$3:C$83,2,FALSE)","v":"POWER & ELECTRICITY"}]
[613,139029,"Executive Engineer,  MPD, Serchhip","POWER & ELECTRICITY","POWER & ELECTRICITY","Serchhip","090601","xxx}dl~c\f\u0002\u0003\u000b",{"$f":"VLOOKUP(E615,Departments!B$3:C$83,2,FALSE)","v":"POWER & ELECTRICITY"}]
[614,139030,"Executive Engineer,  P&E, Mamit Div.","POWER & ELECTRICITY","POWER & ELECTRICITY","Mamit","090801","xxx}dl~d\u0003\u0002\u0003\u000b",{"$f":"VLOOKUP(E616,Departments!B$3:C$83,2,FALSE)","v":"POWER & ELECTRICITY"}]
[615,140001,"Director, Industries","INDUSTRIES","INDUSTRIES","Aizawl South","090101","xxx}ec~a\u0004\u0002\u0006\u0004",{"$f":"VLOOKUP(E617,Departments!B$3:C$83,2,FALSE)","v":"GEOLOGY & MINERAL RESOURCES"}]
[616,140002,"Gen. Manager, District Industries Centre","INDUSTRIES","INDUSTRIES","Aizawl South","090101","xxx}ec~a\u0001\u0002\u0006\u0004",{"$f":"VLOOKUP(E618,Departments!B$3:C$83,2,FALSE)","v":"GEOLOGY & MINERAL RESOURCES"}]
[617,140003,"Jt.Director, Geology & Mining","GEOLOGY & MINERAL RESOURCES","INDUSTRIES","Aizawl South","090101","xxx}ec~a\u0002\u0002\u0006\u0004",{"$f":"VLOOKUP(E619,Departments!B$3:C$83,2,FALSE)","v":"GEOLOGY & MINERAL RESOURCES"}]
[618,140004,"General Manager (DIC), Lunglei","INDUSTRIES","INDUSTRIES","Lunglei","090201","xxx}ec~a\u0007\u0002\u0006\u0004",{"$f":"VLOOKUP(E620,Departments!B$3:C$83,2,FALSE)","v":"GEOLOGY & MINERAL RESOURCES"}]
[619,140005,"General Manager (DIC), Saiha","INDUSTRIES","INDUSTRIES","Saiha","090301","xxx}ec~a\b\u0002\u0006\u0004",{"$f":"VLOOKUP(E621,Departments!B$3:C$83,2,FALSE)","v":"GEOLOGY & MINERAL RESOURCES"}]
[620,140006,"Assistant Manager, DIC, Mampui","INDUSTRIES","INDUSTRIES","Lawngtlai","090701","xxx}ec~a\u0005\u0002\u0006\u0004",{"$f":"VLOOKUP(E622,Departments!B$3:C$83,2,FALSE)","v":"GEOLOGY & MINERAL RESOURCES"}]
[621,141001,"Director, Sericulture","SERICULTURE","SERICULTURE","Aizawl North","090102","xxx}ed~a\u0004\u0002\u0006\u0003",{"$f":"VLOOKUP(E623,Departments!B$3:C$83,2,FALSE)","v":"SERICULTURE"}]
[622,141002,"Dist.SericultureOfficer, Aizawl","SERICULTURE","SERICULTURE","Aizawl North","090102","xxx}ed~a\u0001\u0002\u0006\u0003",{"$f":"VLOOKUP(E624,Departments!B$3:C$83,2,FALSE)","v":"SERICULTURE"}]
[623,141003,"Principal, Sericulture Training Institute","SERICULTURE","SERICULTURE","Aizawl North","090102","xxx}ed~a\u0002\u0002\u0006\u0003",{"$f":"VLOOKUP(E625,Departments!B$3:C$83,2,FALSE)","v":"SERICULTURE"}]
[624,141004,"District Sericulture Officer, Lunglei","SERICULTURE","SERICULTURE","Lunglei","090201","xxx}ed~a\u0007\u0002\u0006\u0003",{"$f":"VLOOKUP(E626,Departments!B$3:C$83,2,FALSE)","v":"SERICULTURE"}]
[625,141005,"District Sericulture Officer, Saiha","SERICULTURE","SERICULTURE","Saiha","090301","xxx}ed~a\b\u0002\u0006\u0003",{"$f":"VLOOKUP(E627,Departments!B$3:C$83,2,FALSE)","v":"SERICULTURE"}]
[626,141006,"District Sericulture Officer, Champhai","SERICULTURE","SERICULTURE","Champhai","090401","xxx}ed~a\u0005\u0002\u0006\u0003",{"$f":"VLOOKUP(E628,Departments!B$3:C$83,2,FALSE)","v":"SERICULTURE"}]
[627,141007,"District Sericulture Officer, Kolasib","SERICULTURE","SERICULTURE","Kolasib","090501","xxx}ed~a\u0006\u0002\u0006\u0003",{"$f":"VLOOKUP(E629,Departments!B$3:C$83,2,FALSE)","v":"SERICULTURE"}]
[628,141008,"District Sericulture Officer, Serchhip","SERICULTURE","SERICULTURE","Serchhip","090601","xxx}ed~a\u000b\u0002\u0006\u0003",{"$f":"VLOOKUP(E630,Departments!B$3:C$83,2,FALSE)","v":"SERICULTURE"}]
[629,141009,"District Sericulture Officer, Lawngtlai","SERICULTURE","SERICULTURE","Lawngtlai","090701","xxx}ed~a\f\u0002\u0006\u0003",{"$f":"VLOOKUP(E631,Departments!B$3:C$83,2,FALSE)","v":"SERICULTURE"}]
[630,142001,"Director, Transport (Hqrs)","TRANSPORT","TRANSPORT","Aizawl South","090101","xxx}ea~a\u0004\u0002\u0006\u0002",{"$f":"VLOOKUP(E632,Departments!B$3:C$83,2,FALSE)","v":"TRANSPORT"}]
[631,142002,"Jt.Director, Transport (OP)","TRANSPORT","TRANSPORT","Aizawl South","090101","xxx}ea~a\u0001\u0002\u0006\u0002",{"$f":"VLOOKUP(E633,Departments!B$3:C$83,2,FALSE)","v":"TRANSPORT"}]
[632,142003,"Asst.Commissioner","TRANSPORT","TRANSPORT","Aizawl South","090101","xxx}ea~a\u0002\u0002\u0006\u0002",{"$f":"VLOOKUP(E634,Departments!B$3:C$83,2,FALSE)","v":"TRANSPORT"}]
[633,142004,"Dist.Transport Officer, Aizawl.","TRANSPORT","TRANSPORT","Aizawl South","090101","xxx}ea~a\u0007\u0002\u0006\u0002",{"$f":"VLOOKUP(E635,Departments!B$3:C$83,2,FALSE)","v":"TRANSPORT"}]
[634,142005,"Works Manager, Central Workshop","TRANSPORT","TRANSPORT","Aizawl South","090101","xxx}ea~a\b\u0002\u0006\u0002",{"$f":"VLOOKUP(E636,Departments!B$3:C$83,2,FALSE)","v":"TRANSPORT"}]
[635,142006,"District Transport Officer, Lunglei","TRANSPORT","TRANSPORT","Lunglei","090201","xxx}ea~a\u0005\u0002\u0006\u0002",{"$f":"VLOOKUP(E637,Departments!B$3:C$83,2,FALSE)","v":"TRANSPORT"}]
[636,142007,"District Transport Officer, Saiha","TRANSPORT","TRANSPORT","Saiha","090301","xxx}ea~a\u0006\u0002\u0006\u0002",{"$f":"VLOOKUP(E638,Departments!B$3:C$83,2,FALSE)","v":"TRANSPORT"}]
[637,142008,"District Transport Officer, Champhai","TRANSPORT","TRANSPORT","Champhai","090401","xxx}ea~a\u000b\u0002\u0006\u0002",{"$f":"VLOOKUP(E639,Departments!B$3:C$83,2,FALSE)","v":"TRANSPORT"}]
[638,142009,"District Transport Officer, Kolasib","TRANSPORT","TRANSPORT","Kolasib","090501","xxx}ea~a\f\u0002\u0006\u0002",{"$f":"VLOOKUP(E640,Departments!B$3:C$83,2,FALSE)","v":"TRANSPORT"}]
[639,142010,"District Transport Officer, Serchhip","TRANSPORT","TRANSPORT","Serchhip","090601","xxx}ea~b\u0003\u0002\u0006\u0002",{"$f":"VLOOKUP(E641,Departments!B$3:C$83,2,FALSE)","v":"TRANSPORT"}]
[640,142011,"District Transport Officer, Lawngtlai","TRANSPORT","TRANSPORT","Lawngtlai","090701","xxx}ea~b\u0004\u0002\u0006\u0002",{"$f":"VLOOKUP(E642,Departments!B$3:C$83,2,FALSE)","v":"TRANSPORT"}]
[641,142012,"Station Superintendent, MST, Kolasib","TRANSPORT","TRANSPORT","Kolasib","090501","xxx}ea~b\u0001\u0002\u0006\u0002",{"$f":"VLOOKUP(E643,Departments!B$3:C$83,2,FALSE)","v":"TRANSPORT"}]
[642,143001,"Director, Tourism","TOURISM","TOURISM","Aizawl North","090102","xxx}eb~a\u0004\u0002\u0006\u0001",{"$f":"VLOOKUP(E644,Departments!B$3:C$83,2,FALSE)","v":"TOURISM"}]
[643,144001,"Director, Trade & Commerce","Trade & Commerce","Trade & Commerce","Aizawl South","090101","xxx}eg~a\u0004\u0002\u0006\b",{"$f":"VLOOKUP(E645,Departments!B$3:C$83,2,FALSE)","v":"Trade & Commerce"}]
[644,145001,"Engineer- in - Chief, PWD","PWD","P.W.D.","Aizawl South","090101","xxx}eh~a\u0004\u0002\u0006\u0007",{"$f":"VLOOKUP(E646,Departments!B$3:C$83,2,FALSE)","v":"PWD"}]
[645,145002,"Chief Engineer, National Highway","PWD","P.W.D.","Aizawl South","090101","xxx}eh~a\u0001\u0002\u0006\u0007",{"$f":"VLOOKUP(E647,Departments!B$3:C$83,2,FALSE)","v":"PWD"}]
[646,145003,"Chief Engineer, Building","PWD","P.W.D.","Aizawl South","090101","xxx}eh~a\u0002\u0002\u0006\u0007",{"$f":"VLOOKUP(E648,Departments!B$3:C$83,2,FALSE)","v":"PWD"}]
[647,145004,"Chief Engineer, Road","PWD","P.W.D.","Aizawl South","090101","xxx}eh~a\u0007\u0002\u0006\u0007",{"$f":"VLOOKUP(E649,Departments!B$3:C$83,2,FALSE)","v":"PWD"}]
[648,145005,"S.E, Project Circle","PWD","P.W.D.","Aizawl South","090101","xxx}eh~a\b\u0002\u0006\u0007",{"$f":"VLOOKUP(E650,Departments!B$3:C$83,2,FALSE)","v":"PWD"}]
[649,145006,"S.E, Building Circle","PWD","P.W.D.","Aizawl South","090101","xxx}eh~a\u0005\u0002\u0006\u0007",{"$f":"VLOOKUP(E651,Departments!B$3:C$83,2,FALSE)","v":"PWD"}]
[650,145007,"S.E, Eastern Circle","PWD","P.W.D.","Aizawl South","090101","xxx}eh~a\u0006\u0002\u0006\u0007",{"$f":"VLOOKUP(E652,Departments!B$3:C$83,2,FALSE)","v":"PWD"}]
[651,145008,"S.E, Western Circle","PWD","P.W.D.","Aizawl South","090101","xxx}eh~a\u000b\u0002\u0006\u0007",{"$f":"VLOOKUP(E653,Departments!B$3:C$83,2,FALSE)","v":"PWD"}]
[652,145009,"S.E, Mechanical Circle","PWD","P.W.D.","Aizawl South","090101","xxx}eh~a\f\u0002\u0006\u0007",{"$f":"VLOOKUP(E654,Departments!B$3:C$83,2,FALSE)","v":"PWD"}]
[653,145010,"S.E,National Highway Circle I","PWD","P.W.D.","Aizawl South","090101","xxx}eh~b\u0003\u0002\u0006\u0007",{"$f":"VLOOKUP(E655,Departments!B$3:C$83,2,FALSE)","v":"PWD"}]
[654,145011,"S.E, National Highway Circle-II","PWD","P.W.D.","Aizawl South","090101","xxx}eh~b\u0004\u0002\u0006\u0007",{"$f":"VLOOKUP(E656,Departments!B$3:C$83,2,FALSE)","v":"PWD"}]
[655,145012,"E. E, Aizawl Road South Divn.","PWD","P.W.D.","Aizawl South","090101","xxx}eh~b\u0001\u0002\u0006\u0007",{"$f":"VLOOKUP(E657,Departments!B$3:C$83,2,FALSE)","v":"PWD"}]
[656,145013,"E. E, Aizawl Road North Divn","PWD","P.W.D.","Aizawl South","090101","xxx}eh~b\u0002\u0002\u0006\u0007",{"$f":"VLOOKUP(E658,Departments!B$3:C$83,2,FALSE)","v":"PWD"}]
[657,145014,"E. E, Building Division","PWD","P.W.D.","Aizawl South","090101","xxx}eh~b\u0007\u0002\u0006\u0007",{"$f":"VLOOKUP(E659,Departments!B$3:C$83,2,FALSE)","v":"PWD"}]
[658,145015," E. E, Mechanical Division","PWD","P.W.D.","Aizawl South","090101","xxx}eh~b\b\u0002\u0006\u0007",{"$f":"VLOOKUP(E660,Departments!B$3:C$83,2,FALSE)","v":"PWD"}]
[659,145016," E. E, Quality Control Division","PWD","P.W.D.","Aizawl South","090101","xxx}eh~b\u0005\u0002\u0006\u0007",{"$f":"VLOOKUP(E661,Departments!B$3:C$83,2,FALSE)","v":"PWD"}]
[660,145017," E. E, Hmuifang Division","PWD","P.W.D.","Aizawl South","090101","xxx}eh~b\u0006\u0002\u0006\u0007",{"$f":"VLOOKUP(E662,Departments!B$3:C$83,2,FALSE)","v":"PWD"}]
[661,145018," E. E, Saitual Division","PWD","P.W.D.","Aizawl South","090101","xxx}eh~b\u000b\u0002\u0006\u0007",{"$f":"VLOOKUP(E663,Departments!B$3:C$83,2,FALSE)","v":"PWD"}]
[662,145019," E. E,Project Division-I","PWD","P.W.D.","Aizawl South","090101","xxx}eh~b\f\u0002\u0006\u0007",{"$f":"VLOOKUP(E664,Departments!B$3:C$83,2,FALSE)","v":"PWD"}]
[663,145020," E. E, Project Division-II","PWD","P.W.D.","Aizawl South","090101","xxx}eh~c\u0003\u0002\u0006\u0007",{"$f":"VLOOKUP(E665,Departments!B$3:C$83,2,FALSE)","v":"PWD"}]
[664,145021," E. E,Project Division-III","PWD","P.W.D.","Aizawl South","090101","xxx}eh~c\u0004\u0002\u0006\u0007",{"$f":"VLOOKUP(E666,Departments!B$3:C$83,2,FALSE)","v":"PWD"}]
[665,145022," E. E, National Highway Div-I","PWD","P.W.D.","Aizawl South","090101","xxx}eh~c\u0001\u0002\u0006\u0007",{"$f":"VLOOKUP(E667,Departments!B$3:C$83,2,FALSE)","v":"PWD"}]
[666,145023," E. E, National Highway Div-II","PWD","P.W.D.","Aizawl South","090101","xxx}eh~c\u0002\u0002\u0006\u0007",{"$f":"VLOOKUP(E668,Departments!B$3:C$83,2,FALSE)","v":"PWD"}]
[667,145024," E. E, National Highway Div-III","PWD","P.W.D.","Aizawl South","090101","xxx}eh~c\u0007\u0002\u0006\u0007",{"$f":"VLOOKUP(E669,Departments!B$3:C$83,2,FALSE)","v":"PWD"}]
[668,145025," E. E, National Highway Div-IV","PWD","P.W.D.","Aizawl South","090101","xxx}eh~c\b\u0002\u0006\u0007",{"$f":"VLOOKUP(E670,Departments!B$3:C$83,2,FALSE)","v":"PWD"}]
[669,145026," E. E, Electric Division","PWD","P.W.D.","Aizawl South","090101","xxx}eh~c\u0005\u0002\u0006\u0007",{"$f":"VLOOKUP(E671,Departments!B$3:C$83,2,FALSE)","v":"PWD"}]
[670,145027," E. E, Prog. Implementing Unit","PWD","P.W.D.","Aizawl South","090101","xxx}eh~c\u0006\u0002\u0006\u0007",{"$f":"VLOOKUP(E672,Departments!B$3:C$83,2,FALSE)","v":"PWD"}]
[671,145028," S.E., P.W.D Lunglei Circle,Lunglei","PWD","P.W.D.","Lunglei","090201","xxx}eh~c\u000b\u0002\u0006\u0007",{"$f":"VLOOKUP(E673,Departments!B$3:C$83,2,FALSE)","v":"PWD"}]
[672,145029," E. E, PWD, Lunglei","PWD","P.W.D.","Lunglei","090201","xxx}eh~c\f\u0002\u0006\u0007",{"$f":"VLOOKUP(E674,Departments!B$3:C$83,2,FALSE)","v":"PWD"}]
[673,145030," E. E, PWD (Road), Lunglei","PWD","P.W.D.","Lunglei","090201","xxx}eh~d\u0003\u0002\u0006\u0007",{"$f":"VLOOKUP(E675,Departments!B$3:C$83,2,FALSE)","v":"PWD"}]
[674,145031," E. E, PWD (Building), Lunglei","PWD","P.W.D.","Lunglei","090201","xxx}eh~d\u0004\u0002\u0006\u0007",{"$f":"VLOOKUP(E676,Departments!B$3:C$83,2,FALSE)","v":"PWD"}]
[675,145032," E. E, PWD, Tlabung","PWD","P.W.D.","Lunglei","090201","xxx}eh~d\u0001\u0002\u0006\u0007",{"$f":"VLOOKUP(E677,Departments!B$3:C$83,2,FALSE)","v":"PWD"}]
[676,145033," E. E, PWD(Mechanic), Lunglei","PWD","P.W.D.","Lunglei","090201","xxx}eh~d\u0002\u0002\u0006\u0007",{"$f":"VLOOKUP(E678,Departments!B$3:C$83,2,FALSE)","v":"PWD"}]
[677,145034," E. E, PWD, Saiha","PWD","P.W.D.","Saiha","090301","xxx}eh~d\u0007\u0002\u0006\u0007",{"$f":"VLOOKUP(E679,Departments!B$3:C$83,2,FALSE)","v":"PWD"}]
[678,145035," E. E, PWD, Champhai Divn.","PWD","P.W.D.","Champhai","090401","xxx}eh~d\b\u0002\u0006\u0007",{"$f":"VLOOKUP(E680,Departments!B$3:C$83,2,FALSE)","v":"PWD"}]
[679,145036," E. E, PWD, Khawzawl Divn.","PWD","P.W.D.","Champhai","090401","xxx}eh~d\u0005\u0002\u0006\u0007",{"$f":"VLOOKUP(E681,Departments!B$3:C$83,2,FALSE)","v":"PWD"}]
[680,145037," E. E, PWD, Kolasib","PWD","P.W.D.","Kolasib","090501","xxx}eh~d\u0006\u0002\u0006\u0007",{"$f":"VLOOKUP(E682,Departments!B$3:C$83,2,FALSE)","v":"PWD"}]
[681,145038," E. E, PWD, Serchhip Divn.","PWD","P.W.D.","Serchhip","090601","xxx}eh~d\u000b\u0002\u0006\u0007",{"$f":"VLOOKUP(E683,Departments!B$3:C$83,2,FALSE)","v":"PWD"}]
[682,145039," S.E., PWD,(Multi Modal), Lawngtlai","PWD","P.W.D.","Lawngtlai","090701","xxx}eh~d\f\u0002\u0006\u0007",{"$f":"VLOOKUP(E684,Departments!B$3:C$83,2,FALSE)","v":"PWD"}]
[683,145040," E.E., PWD(Multi Modal), Lawngtlai","PWD","P.W.D.","Lawngtlai","090701","xxx}eh~e\u0003\u0002\u0006\u0007",{"$f":"VLOOKUP(E685,Departments!B$3:C$83,2,FALSE)","v":"PWD"}]
[684,145041," E. E, PWD,Multi Modal Proj-II,Chawnhu","PWD","P.W.D.","Lawngtlai","090701","xxx}eh~e\u0004\u0002\u0006\u0007",{"$f":"VLOOKUP(E686,Departments!B$3:C$83,2,FALSE)","v":"PWD"}]
[685,145042,"  E. E,  PWD,Lawngtlai","PWD","P.W.D.","Lawngtlai","090701","xxx}eh~e\u0001\u0002\u0006\u0007",{"$f":"VLOOKUP(E687,Departments!B$3:C$83,2,FALSE)","v":"PWD"}]
[686,145043," E. E, PWD, Mamit","PWD","P.W.D.","Mamit","090801","xxx}eh~e\u0002\u0002\u0006\u0007",{"$f":"VLOOKUP(E688,Departments!B$3:C$83,2,FALSE)","v":"PWD"}]
[687,145044," E. E, PWD, Kawrthah","PWD","P.W.D.","Mamit","090801","xxx}eh~e\u0007\u0002\u0006\u0007",{"$f":"VLOOKUP(E689,Departments!B$3:C$83,2,FALSE)","v":"PWD"}]
[688,146001,"Director, Urban Dev. & Poverty Alleaviation","U.D.& P.A","U.D.& P.A","Aizawl South","090101","xxx}ee~a\u0004\u0002\u0006\u0006",{"$f":"VLOOKUP(E690,Departments!B$3:C$83,2,FALSE)","v":"SIPMIU"}]
[689,146002,"Sr. Sanitation Officer","U.D.& P.A","U.D.& P.A","Aizawl South","090101","xxx}ee~a\u0001\u0002\u0006\u0006",{"$f":"VLOOKUP(E691,Departments!B$3:C$83,2,FALSE)","v":"SIPMIU"}]
[690,146003,"Sr.Town & Country Planner","U.D.& P.A","U.D.& P.A","Aizawl South","090101","xxx}ee~a\u0002\u0002\u0006\u0006",{"$f":"VLOOKUP(E692,Departments!B$3:C$83,2,FALSE)","v":"SIPMIU"}]
[691,146004,"Proj. Officer, S.J.S.R.Y.","U.D.& P.A","U.D.& P.A","Aizawl South","090101","xxx}ee~a\u0007\u0002\u0006\u0006",{"$f":"VLOOKUP(E693,Departments!B$3:C$83,2,FALSE)","v":"SIPMIU"}]
[692,146005,"Chairman, State Election Commission","STATE ELECTION COMMISSION","U.D.& P.A","Aizawl South","090101","xxx}ee~a\b\u0002\u0006\u0006",{"$f":"VLOOKUP(E694,Departments!B$3:C$83,2,FALSE)","v":"SIPMIU"}]
[693,146006,"Project Director, S.I.P.M.I.U.","SIPMIU","U.D.& P.A","Aizawl South","090101","xxx}ee~a\u0005\u0002\u0006\u0006",{"$f":"VLOOKUP(E695,Departments!B$3:C$83,2,FALSE)","v":"SIPMIU"}]
[694,146007,"District  Project Officer (SJSRY),Lunglei","U.D.& P.A","U.D.& P.A","Lunglei","090201","xxx}ee~a\u0006\u0002\u0006\u0006",{"$f":"VLOOKUP(E696,Departments!B$3:C$83,2,FALSE)","v":"SIPMIU"}]
[695,146008,"Sanitation Officer, UD&PA, Lunglei","U.D.& P.A","U.D.& P.A","Lunglei","090201","xxx}ee~a\u000b\u0002\u0006\u0006",{"$f":"VLOOKUP(E697,Departments!B$3:C$83,2,FALSE)","v":"SIPMIU"}]
[696,146009,"Asst. Town & Country Planner, Lunglei","U.D.& P.A","U.D.& P.A","Lunglei","090201","xxx}ee~a\f\u0002\u0006\u0006",{"$f":"VLOOKUP(E698,Departments!B$3:C$83,2,FALSE)","v":"SIPMIU"}]
[697,146010,"Project Officer, SJSRY, Saiha","U.D.& P.A","U.D.& P.A","Saiha","090301","xxx}ee~b\u0003\u0002\u0006\u0006",{"$f":"VLOOKUP(E699,Departments!B$3:C$83,2,FALSE)","v":"SIPMIU"}]
[698,146011,"District Project Officer (SJRY),Champhai","U.D.& P.A","U.D.& P.A","Champhai","090401","xxx}ee~b\u0004\u0002\u0006\u0006",{"$f":"VLOOKUP(E700,Departments!B$3:C$83,2,FALSE)","v":"SIPMIU"}]
[699,146012,"Sanitation Officer, Champhai","U.D.& P.A","U.D.& P.A","Champhai","090401","xxx}ee~b\u0001\u0002\u0006\u0006",{"$f":"VLOOKUP(E701,Departments!B$3:C$83,2,FALSE)","v":"SIPMIU"}]
[700,146013,"District  Project Officer (SJSRY),Kolasib","U.D.& P.A","U.D.& P.A","Kolasib","090501","xxx}ee~b\u0002\u0002\u0006\u0006",{"$f":"VLOOKUP(E702,Departments!B$3:C$83,2,FALSE)","v":"SIPMIU"}]
[701,146014,"Sanitation Officer (UD&PA), Kolasib","U.D.& P.A","U.D.& P.A","Kolasib","090501","xxx}ee~b\u0007\u0002\u0006\u0006",{"$f":"VLOOKUP(E703,Departments!B$3:C$83,2,FALSE)","v":"SIPMIU"}]
[702,146015,"Sanitation Officer, Serchhip","U.D.& P.A","U.D.& P.A","Serchhip","090601","xxx}ee~b\b\u0002\u0006\u0006",{"$f":"VLOOKUP(E704,Departments!B$3:C$83,2,FALSE)","v":"SIPMIU"}]
[703,146016,"Nodal Officer, Urban Dev. Lawngtlai","U.D.& P.A","U.D.& P.A","Lawngtlai","090701","xxx}ee~b\u0005\u0002\u0006\u0006",{"$f":"VLOOKUP(E705,Departments!B$3:C$83,2,FALSE)","v":"SIPMIU"}]
[704,146017,"Dist.Urban Development Officer, Kolasib","U.D.& P.A","U.D.& P.A","Kolasib","090501","xxx}ee~b\u0006\u0002\u0006\u0006",{"$f":"VLOOKUP(E706,Departments!B$3:C$83,2,FALSE)","v":"SIPMIU"}]
[705,147001,"Chief Engineer,  Minor Irrigation","MINOR IRRIGATION","MINOR IRRIGATION","Aizawl South","090101","xxx}ef~a\u0004\u0002\u0006\u0005",{"$f":"VLOOKUP(E707,Departments!B$3:C$83,2,FALSE)","v":"MINOR IRRIGATION"}]
[706,147002,"E.E., Minor Irrigation, Aizawl Division","MINOR IRRIGATION","MINOR IRRIGATION","Aizawl South","090101","xxx}ef~a\u0001\u0002\u0006\u0005",{"$f":"VLOOKUP(E708,Departments!B$3:C$83,2,FALSE)","v":"MINOR IRRIGATION"}]
[707,147003,"E.E., Minor Irrigation, Lunglei Division","MINOR IRRIGATION","MINOR IRRIGATION","Lunglei","090201","xxx}ef~a\u0002\u0002\u0006\u0005",{"$f":"VLOOKUP(E709,Departments!B$3:C$83,2,FALSE)","v":"MINOR IRRIGATION"}]
[708,147004,"Dist. Agriculture Engineer,  Champhai","MINOR IRRIGATION","MINOR IRRIGATION","Champhai","090401","xxx}ef~a\u0007\u0002\u0006\u0005",{"$f":"VLOOKUP(E710,Departments!B$3:C$83,2,FALSE)","v":"MINOR IRRIGATION"}]
[709,147005,"E.E., Minor Irrigation, Champhai Division","MINOR IRRIGATION","MINOR IRRIGATION","Champhai","090401","xxx}ef~a\b\u0002\u0006\u0005",{"$f":"VLOOKUP(E711,Departments!B$3:C$83,2,FALSE)","v":"MINOR IRRIGATION"}]
[710,147006,"S. D. E., Minor Irrigation, Champhai","MINOR IRRIGATION","MINOR IRRIGATION","Champhai","090401","xxx}ef~a\u0005\u0002\u0006\u0005",{"$f":"VLOOKUP(E712,Departments!B$3:C$83,2,FALSE)","v":"MINOR IRRIGATION"}]
[711,147007,"S. D E., Minor Irrigation, Khawzawl","MINOR IRRIGATION","MINOR IRRIGATION","Champhai","090401","xxx}ef~a\u0006\u0002\u0006\u0005",{"$f":"VLOOKUP(E713,Departments!B$3:C$83,2,FALSE)","v":"MINOR IRRIGATION"}]
[712,147008,"E.E., Minor Irrigation, Kolasib Division","MINOR IRRIGATION","MINOR IRRIGATION","Kolasib","090501","xxx}ef~a\u000b\u0002\u0006\u0005",{"$f":"VLOOKUP(E714,Departments!B$3:C$83,2,FALSE)","v":"MINOR IRRIGATION"}]
[713,148001,"Principal, Informatic Officer","INFORMATION AND COMMUNICATION TECHNOLOGY","INFORMATION AND COMMUNICATION TECHNOLOGY","Aizawl South","090101","xxx}ek~a\u0004\u0002\u0006\f",{"$f":"VLOOKUP(E715,Departments!B$3:C$83,2,FALSE)","v":"INFORMATION AND COMMUNICATION TECHNOLOGY"}]
[714,201001,"Senior Accounts Officer","Accountant General","CENTRAL MINISTRY OF FINANCE","Aizawl South","090101","xxx\u0080ad~a\u0004\u0003\u0002\u0003",{"$f":"VLOOKUP(E716,Departments!B$3:C$83,2,FALSE)","v":"Accountant General"}]
[715,109015,"Joint Director, Accounts and Treasury, Southern Zone","ACCOUNTS & TREASURIES","FINANCE","Lunglei","090201",{"$f":"XorC(\"MPRMP2013\",201001)","v":"xxx\u0080ad~a\u0004\u0003\u0002\u0003"},"ACCOUNTS & TREASURIES"]
[716,142013,"Station Superintendent, MST, Lunglei","TRANSPORT","TRANSPORT","Lunglei","090201",{"$f":"XorC(\"MPRMP2013\",142013)","v":"xxx}ea~b\u0002\u0002\u0006\u0002"},"TRANSPORT"]
[717,124027,"Deputy Director, Central Medical Store","HEALTH SERVICES","HEALTH & FAMILY WELFARE","Aizawl North","090102",{"$f":"XorC(\"MPRMP2013\",124027)","v":"xxx}cg~c\u0006\u0002\u0004\b"},"HEALTH SERVICES"]
[718,135009,"District Fisheries Development Officer","FISHERIES","FISHERIES","Serchhip","090601",{"$f":"XorC(\"MPRMP2013\",135009)","v":"xxx}dh~a\f\u0002\u0003\u0007"},"FISHERIES"]
[719,129042,"Assistant Commissioner, Persons with Disabilities","SOCIAL WELFARE","SOCIAL WELFARE","Aizawl North","090102",{"$f":"XorC(\"MPRMP2013\",129042)","v":"xxx}cl~e\u0001\u0002\u0004\u000b"},"SOCIAL WELFARE"]
[720,109014,"Treasury Officer, Chawngte","ACCOUNTS & TREASURIES","FINANCE","Chawngte","090702",{"$f":"XorC(\"MPRMP2013\",109014)","v":"xxx}al~b\u0007\u0002\u0002\u000b"},"ACCOUNTS & TREASURIES"]
[721,141010,"District Sericulture Officer, Mamit","SERICULTURE","SERICULTURE","Mamit","090801",{"$f":"XorC(\"MPRMP2013\",141010)","v":"xxx}ed~b\u0003\u0002\u0006\u0003"},"SERICULTURE"]
[722,100001,"Deputy Resident Commissioner - Bangalore","Deputy Resident Commissioner","GAD",0,0,{"$f":"XorC(\"MPRMP2013\",100001)","v":"xxx}ac~a\u0004\u0002\u0002\u0004"},"Deputy Resident Commissioner"]

{"sheet":"Departments","index":3,"n_rows":87,"n_cols":6,"rows_kept":87,"cut":false,"hidden":true,"merged":[]}
[{"$f":"COUNTA(A3:A1048576)","v":85},null,null,null,{"$f":"COUNTA(E3:E1048576)","v":49}]
["ID","Ministry",null,null,"ID","Ministry"]
[1,"A.H. & VETY.","A.H. & VETY.",null,1,"A.H. & VETY."]
[2,"AGRICULTURE","AGRICULTURE(CH)",null,2,"AGRICULTURE"]
[3,"AGRICULTURE","AGRICULTURE(R&E)",null,3,"ART & CULTURE"]
[4,"ART & CULTURE","ART & CULTURE",null,4,"CENTRAL MINISTRY OF FINANCE"]
[5,"CENTRAL MINISTRY OF FINANCE","Accountant General",null,5,"COOPERATION"]
[6,"COOPERATION","COOPERATION",null,6,"Council of Ministers"]
[7,"Council of Ministers","Chief Minister Office",null,7,"DISASTER MANAGEMENT & REHABILITATION"]
[8,"Council of Ministers","SAD",null,8,"DISTRICT COUNCIL"]
[9,"DISASTER MANAGEMENT & REHABILITATION","DISASTER \nMANAGEMENT &\nREHABILITATION",null,9,"EXCISE & NARCOTICS"]
[10,"DISTRICT COUNCIL","CADC",null,10,"FINANCE"]
[11,"DISTRICT COUNCIL","LADC",null,11,"FISHERIES"]
[12,"DISTRICT COUNCIL","MADC",null,12,"FOOD CIVIL SUPPLIES & CONSUMER AFFAIRS"]
[13,"EXCISE & NARCOTICS","EXCISE & NARCOTICS",null,13,"GAD"]
[14,"FINANCE","ACCOUNTS & TREASURIES",null,14,"Governor Secretariat"]
[15,"FINANCE","Finance",null,15,"HEALTH & FAMILY WELFARE"]
[16,"FINANCE","IF & SL",null,16,"HIGHER &  TECHNICAL EDUCATION"]
[17,"FINANCE","State Finance Commission",null,17,"HOME"]
[18,"FISHERIES","FISHERIES",null,18,"HORTICULTURE"]
[19,"FOOD CIVIL SUPPLIES & CONSUMER AFFAIRS","F.C.S &CA",null,19,"HUMAN RESOURCES & DEVELOPMENT"]
[20,"FOOD CIVIL SUPPLIES & CONSUMER AFFAIRS","LEGAL METROLOGY",null,20,"INDUSTRIES"]
[21,"GAD","Civil Aviation",null,21,"INFORMATION & PUBLIC RELATIONS"]
[22,"GAD","Deputy Commissioner",null,22,"INFORMATION AND COMMUNICATION TECHNOLOGY"]
[23,"GAD","ELECTION",null,23,"LABOUR & EMPLOYMENT"]
[24,"GAD","L.Os.",null,24,"LAND REVENUE & SETTLEMENT"]
[25,"GAD","SHDC",null,25,"LAW & JUDICIAL"]
[26,"GAD","State Protocol",null,26,"Legislative Assembly"]
[27,"GAD","Deputy Resident Commissioner",null,27,"LOCAL ADMINISTRATION DEPARTMENT"]
[28,"GAD","Joint Resident Commissioner",null,28,"M.P.S.C"]
[29,"Governor Secretariat","Governor Secretariat",null,29,"MINOR IRRIGATION"]
[30,"HEALTH & FAMILY WELFARE","HEALTH SERVICES",null,30,"P.& A.R."]
[31,"HEALTH & FAMILY WELFARE","HOSPITAL & MEDICAL EDUCATION",null,31,"P.H.E."]
[32,"HIGHER &  TECHNICAL EDUCATION","Mizoram Scholarship Board",null,32,"P.W.D."]
[33,"HIGHER &  TECHNICAL EDUCATION","HIGHER & TECHNICAL EDUCATION",null,33,"Parliamentary Affairs"]
[34,"HOME","FIRE & EMERGENCY SERVICES",null,34,"Planning & Program Implementation"]
[35,"HOME","MIZORAM HOME GUARD",null,35,"POWER & ELECTRICITY"]
[36,"HOME","POLICE",null,36,"PRINTING & STATIONERY"]
[37,"HOME","POLICE",null,37,"RURAL DEVELOPMENT"]
[38,"HOME","PRISONS",null,38,"SAD"]
[39,"HOME","SAINIK WELFARE & RESSETTLEMENT",null,39,"SERICULTURE"]
[40,"HOME","HOME",null,40,"SOCIAL WELFARE"]
[41,"HOME","Mizoram Home Guards Department ",null,41,"SOIL & WATER CONSERVATION"]
[42,"HORTICULTURE","HORTICULTURE",null,42,"SPORTS & YOUTH SERVICES"]
[43,"HUMAN RESOURCES & DEVELOPMENT","SCERT",null,43,"TAXATION"]
[44,"HUMAN RESOURCES & DEVELOPMENT","SCHOOL EDUCATION",null,44,"TOURISM"]
[45,"INDUSTRIES","GEOLOGY & MINERAL RESOURCES",null,45,"Trade & Commerce"]
[46,"INDUSTRIES","INDUSTRIES",null,46,"TRANSPORT"]
[47,"INFORMATION & PUBLIC RELATIONS","INFORMATION & PUBLIC RELATIONS",null,47,"U.D.& P.A"]
[48,"INFORMATION AND COMMUNICATION TECHNOLOGY","INFORMATION AND COMMUNICATION TECHNOLOGY",null,48,"VIGILANCE"]
[49,"LABOUR & EMPLOYMENT","LABOUR \n& \nEMPLOYMENT",null,49,"WILDLIFE &  FOREST"]
[50,"LAND REVENUE & SETTLEMENT","LAND REVENUE & SETTLEMENT"]
[51,"LAW & JUDICIAL","Gauhati High Court, Aizawl Bench"]
[52,"LAW & JUDICIAL","LAW & JUDICIAL"]
[53,"Legislative Assembly","Legislative Assembly"]
[54,"LOCAL ADMINISTRATION DEPARTMENT","LAD"]
[55,"M.P.S.C","MPSC"]
[56,"MINOR IRRIGATION","MINOR IRRIGATION"]
[57,"P.& A.R.","ATI"]
[58,"P.H.E.","PHE"]
[59,"P.W.D.","PWD"]
[60,"Parliamentary Affairs","Parliamentary Affairs"]
[61,"Planning & Program Implementation","Economics & Statistics"]
[62,"Planning & Program Implementation","Science & Technology"]
[63,"Planning & Program Implementation","State Planning Board"]
[64,"POWER & ELECTRICITY","POWER & ELECTRICITY"]
[65,"PRINTING & STATIONERY","PRINTING & STATIONERY"]
[66,"RURAL DEVELOPMENT","RURAL DEVELOPMENT"]
[67,"RURAL DEVELOPMENT","SLMC"]
[68,"SAD","SAD"]
[69,"SAD","State Information Commission"]
[70,"SERICULTURE","SERICULTURE"]
[71,"SOCIAL WELFARE","SOCIAL WELFARE"]
[72,"SOIL & WATER CONSERVATION","SOIL & WATER \nCONSERVATION"]
[73,"SPORTS & YOUTH SERVICES","NCC"]
[74,"SPORTS & YOUTH SERVICES","NSS"]
[75,"SPORTS & YOUTH SERVICES","SPORT & YOUTH SERVICES"]
[76,"TAXATION","TAXATION"]
[77,"TOURISM","TOURISM"]
[78,"Trade & Commerce","Trade & Commerce"]
[79,"TRANSPORT","TRANSPORT"]
[80,"U.D.& P.A","SIPMIU"]
[81,"U.D.& P.A","STATE ELECTION COMMISSION"]
[82,"U.D.& P.A","U.D.& P.A"]
[83,"VIGILANCE","Anti-Corruption Bureau"]
[84,"VIGILANCE","VIGILANCE"]
[85,"WILDLIFE &  FOREST","FOREST DEPARTMENT"]

{"sheet":"PostList","index":4,"n_rows":2876,"n_cols":6,"rows_kept":2876,"cut":false,"hidden":true,"merged":[]}
[{"$f":"COUNTA(A3:A1048576)","v":2874},null,null,null,null,{"$f":"COUNTA(F3:F1048576)","v":32}]
["S.No.","Ministry","Post",null,"Pay Band","Grade"]
[1,"A.H. & VETY.","Artist",null,0,1650]
[2,"A.H. & VETY.","Assistant ",null,1,1800]
[3,"A.H. & VETY.","Asst. Engineer",null,1,1900]
[4,"A.H. & VETY.","Asst. Engineer (Mech)",null,1,2000]
[5,"A.H. & VETY.","Asst. Genl. Manager, (Mampui)",null,1,2400]
[6,"A.H. & VETY.","Bull Attendant",null,1,2800]
[7,"A.H. & VETY.","Cattle Attendant",null,1,4200]
[8,"A.H. & VETY.","Chowkidar",null,1,4400]
[9,"A.H. & VETY.","Cinema Operator",null,1,4600]
[10,"A.H. & VETY.","Computer Operator",null,1,4800]
[11,"A.H. & VETY.","Dairy Supdt.",null,2,4200]
[12,"A.H. & VETY.","Data Entry Operator",null,2,4400]
[13,"A.H. & VETY.","Director",null,2,4600]
[14,"A.H. & VETY.","Dist. AH & VO",null,2,4800]
[15,"A.H. & VETY.","Dozer Operator",null,2,5400]
[16,"A.H. & VETY.","Driver-I Grade",null,2,6100]
[17,"A.H. & VETY.","Driver-II Grade",null,2,6600]
[18,"A.H. & VETY.","Driver-III Grade",null,2,7100]
[19,"A.H. & VETY.","Driver-Spl Grade ",null,3,5400]
[20,"A.H. & VETY.","Duftry",null,3,6100]
[21,"A.H. & VETY.","Dy. Director",null,3,6600]
[22,"A.H. & VETY.","Dy. Director (Accounts.)",null,3,7100]
[23,"A.H. & VETY.","Dy. Director (Epidemiology)",null,3,7600]
[24,"A.H. & VETY.","Dy. Director (Feed & Fodder Dev.)",null,3,8700]
[25,"A.H. & VETY.","Dy. Director (Planning)",null,3,8900]
[26,"A.H. & VETY.","Dy. Director, (Dairy Dev.)",null,3,9500]
[27,"A.H. & VETY.","Dy. Director, (REP)",null,4,8700]
[28,"A.H. & VETY.","Dy. Director, (Vety. Extn.)",null,4,8900]
[29,"A.H. & VETY.","Dy. Director, Livestock Statistics",null,4,9500]
[30,"A.H. & VETY.","Electrician",null,5,0]
[31,"A.H. & VETY.","FDO Thenzawl",null,6,0]
[32,"A.H. & VETY.","Field Assistant",null,7,0]
[33,"A.H. & VETY.","Field Assistant (Stats.)"]
[34,"A.H. & VETY.","Genl. Manager (RBCF Tanhril)"]
[35,"A.H. & VETY.","Genl. Manager (Selesih)"]
[36,"A.H. & VETY.","Genl. Manager (Thenzawl)"]
[37,"A.H. & VETY.","Handyman"]
[38,"A.H. & VETY.","Head Assistant"]
[39,"A.H. & VETY.","Inspector of Statistics"]
[40,"A.H. & VETY.","Inspector of Statistics (Field)"]
[41,"A.H. & VETY.","Inspector of Statistics (Hqrs.)"]
[42,"A.H. & VETY.","Instructor, Sch. of Vety Sc. & A.H"]
[43,"A.H. & VETY.","IV-Grade"]
[44,"A.H. & VETY.","Jr. Extension Officer"]
[45,"A.H. & VETY.","Jt. Director"]
[46,"A.H. & VETY.","Jt. Director (Biogas)"]
[47,"A.H. & VETY.","Jt. Director (LH)"]
[48,"A.H. & VETY.","Junior Engineer"]
[49,"A.H. & VETY.","Junior Farm Manager"]
[50,"A.H. & VETY.","Junior Manager"]
[51,"A.H. & VETY.","L.S"]
[52,"A.H. & VETY.","Lab. Technician"]
[53,"A.H. & VETY.","Laboratory Assistant"]
[54,"A.H. & VETY.","LDC"]
[55,"A.H. & VETY.","Livestock Supdt."]
[56,"A.H. & VETY.","Manager"]
[57,"A.H. & VETY.","Manager, CBF"]
[58,"A.H. & VETY.","Manager, CBF, Saiha."]
[59,"A.H. & VETY.","Manager, Fodder Seed Farm"]
[60,"A.H. & VETY.","Manager, Piggery Farm"]
[61,"A.H. & VETY.","Mason"]
[62,"A.H. & VETY.","Mechanic"]
[63,"A.H. & VETY.","Operator"]
[64,"A.H. & VETY.","P.I"]
[65,"A.H. & VETY.","Pig Attendant"]
[66,"A.H. & VETY.","Plant Operator"]
[67,"A.H. & VETY.","Poultry Attendant"]
[68,"A.H. & VETY.","Poultry Inspector"]
[69,"A.H. & VETY.","Principal, Sch. of Vety Sc. & A.H"]
[70,"A.H. & VETY.","Research Officer"]
[71,"A.H. & VETY.","Rider Coboy"]
[72,"A.H. & VETY.","Sr. Veterinary Officer "]
[73,"A.H. & VETY.","Sr. Veterinary Officer (D.I)"]
[74,"A.H. & VETY.","Sr. Veterinary Officer (L&PD)"]
[75,"A.H. & VETY.","Sr. Veterinary Officer (V.O)"]
[76,"A.H. & VETY.","Sr. Veterinary Officer (Vety. Extn)"]
[77,"A.H. & VETY.","Sr. Vety Officer (Dairy Dev.)"]
[78,"A.H. & VETY.","Sr. Vety Officer (Feed Mill, Selesih)"]
[79,"A.H. & VETY.","Statistical Officer"]
[80,"A.H. & VETY.","Steno-I Grade"]
[81,"A.H. & VETY.","Steno-II Grade"]
[82,"A.H. & VETY.","Steno-III Grade"]
[83,"A.H. & VETY.","Stockman"]
[84,"A.H. & VETY.","Sub-Div. AH & VO"]
[85,"A.H. & VETY.","Sub-Div. AH & VO (Sadar)"]
[86,"A.H. & VETY.","Sub-Inspector of Statistics"]
[87,"A.H. & VETY.","Superintendent"]
[88,"A.H. & VETY.","Technical Asst"]
[89,"A.H. & VETY.","Tiller Operator"]
[90,"A.H. & VETY.","Tractor Operator"]
[91,"A.H. & VETY.","Trained S.A."]
[92,"A.H. & VETY.","UDC"]
[93,"A.H. & VETY.","V.F.A"]
[94,"A.H. & VETY.","Veterinary Officer "]
[95,"A.H. & VETY.","Veterinary Officer (D.I Lab)"]
[96,"A.H. & VETY.","Veterinary Officer (L & PD)"]
[97,"A.H. & VETY.","Veterinary Officer (V.O)"]
[98,"A.H. & VETY.","Veterinary Supervisor"]
[99,"A.H. & VETY.","Vety Field Assistant & Equ"]
[100,"A.H. & VETY.","Vety Officer (Diseases Surveillance)"]
[101,"A.H. & VETY.","Vety Officer (Meat Inspector)"]
[102,"ACCOUNTS & TREASURIES","Auditor"]
[103,"ACCOUNTS & TREASURIES","Divisional Accountant"]
[104,"ACCOUNTS & TREASURIES","Treasury Accountant"]
[105,"AGRICULTURE","AAI"]
[106,"AGRICULTURE","Agril. Extension Officer"]
[107,"AGRICULTURE","Analytical Asst (AEO)"]
[108,"AGRICULTURE","APPO"]
[109,"AGRICULTURE","Artist"]
[110,"AGRICULTURE","Assistant"]
[111,"AGRICULTURE","Assistant Soil Survey Officer"]
[112,"AGRICULTURE","Asst. Dozer Operator"]
[113,"AGRICULTURE","Asst. Soil Chemist"]
[114,"AGRICULTURE","Asst. Soil Survey Officer"]
[115,"AGRICULTURE","Asst. Tractor Operator"]
[116,"AGRICULTURE","Bull Dozer Operator"]
[117,"AGRICULTURE","Carpenter"]
[118,"AGRICULTURE","Chainman"]
[119,"AGRICULTURE","Chowkidar"]
[120,"AGRICULTURE","Cinema Operator"]
[121,"AGRICULTURE","D.M"]
[122,"AGRICULTURE","Director of Agriculture (AR & E)"]
[123,"AGRICULTURE","Director of Agriculture (CH)"]
[124,"AGRICULTURE","District Agril. Officer"]
[125,"AGRICULTURE","Driver-I Grade"]
[126,"AGRICULTURE","Driver-II Grade"]
[127,"AGRICULTURE","Driver-III Grade"]
[128,"AGRICULTURE","Driver-Spl Grade "]
[129,"AGRICULTURE","Dy. Director ( Accounts)"]
[130,"AGRICULTURE","Dy. Director ( Admn)"]
[131,"AGRICULTURE","Dy. Director ( Admn) (AR & E)"]
[132,"AGRICULTURE","Dy. Director (Agro)"]
[133,"AGRICULTURE","Dy. Director (Extension)"]
[134,"AGRICULTURE","Dy. Director (Planning)"]
[135,"AGRICULTURE","Dy. Director (SS)"]
[136,"AGRICULTURE","Executive Engineer (Agril. Engg)"]
[137,"AGRICULTURE","Farm Manager (AEO)"]
[138,"AGRICULTURE","Field Asst. (AAI) "]
[139,"AGRICULTURE","Field Asst. (Vety) "]
[140,"AGRICULTURE","Foreman"]
[141,"AGRICULTURE","G.S"]
[142,"AGRICULTURE","GS (Contract)"]
[143,"AGRICULTURE","Handyman"]
[144,"AGRICULTURE","I.S"]
[145,"AGRICULTURE","Insecticide Analyst"]
[146,"AGRICULTURE","Instructor"]
[147,"AGRICULTURE","IV-Grade"]
[148,"AGRICULTURE","J.E"]
[149,"AGRICULTURE","Jr. Steno-cum-Comp. Operator"]
[150,"AGRICULTURE","Jt. Director (MMA)"]
[151,"AGRICULTURE","Jt. Director of Agriculture"]
[152,"AGRICULTURE","Lab. Assistant (for B.Sc.)"]
[153,"AGRICULTURE","Laboratory Assistant"]
[154,"AGRICULTURE","Laboratory Attendant"]
[155,"AGRICULTURE","LDC"]
[156,"AGRICULTURE","Mali"]
[157,"AGRICULTURE","Mechanic"]
[158,"AGRICULTURE","Mechanic grade - I (PP)"]
[159,"AGRICULTURE","Messenger"]
[160,"AGRICULTURE","OSA"]
[161,"AGRICULTURE","P.T.O"]
[162,"AGRICULTURE","Paultry Attendant"]
[163,"AGRICULTURE","Peon"]
[164,"AGRICULTURE","Plant Protection Officer"]
[165,"AGRICULTURE","Power Pump Operator"]
[166,"AGRICULTURE","Power Tiller Operator"]
[167,"AGRICULTURE","Principal"]
[168,"AGRICULTURE","Program Asst."]
[169,"AGRICULTURE","Program Coordinator"]
[170,"AGRICULTURE","Projectionist"]
[171,"AGRICULTURE","Research Officer"]
[172,"AGRICULTURE","SDAE"]
[173,"AGRICULTURE","SDAO"]
[174,"AGRICULTURE","Seed Analyst"]
[175,"AGRICULTURE","SO-cum-SA"]
[176,"AGRICULTURE","Sr. Soil Surveyor (AEO)"]
[177,"AGRICULTURE","Sr. Technical Officer"]
[178,"AGRICULTURE","Steno-I Grade"]
[179,"AGRICULTURE","Steno-II Grade"]
[180,"AGRICULTURE","Steno-III Grade"]
[181,"AGRICULTURE","Subject Matter Specialist"]
[182,"AGRICULTURE","Supdt.-cum-Accountant"]
[183,"AGRICULTURE","Superintendant"]
[184,"AGRICULTURE","Supp. Staff"]
[185,"AGRICULTURE","Surveyor - II (Sr. Surveyor)"]
[186,"AGRICULTURE","Tech. Assistant (AEO)"]
[187,"AGRICULTURE","Telephone Operator"]
[188,"AGRICULTURE","Tracer"]
[189,"AGRICULTURE","Tractor Operator"]
[190,"AGRICULTURE","Training Associate"]
[191,"AGRICULTURE","UDC"]
[192,"AGRICULTURE","Vice Principal"]
[193,"AGRICULTURE","Welder"]
[194,"ART & CULTURE","Archeologist"]
[195,"ART & CULTURE","Archivist"]
[196,"ART & CULTURE","Assistant "]
[197,"ART & CULTURE","Assistant -cum-Caretaker"]
[198,"ART & CULTURE","Asst. Librarian"]
[199,"ART & CULTURE","Asst. Supdt. of Archivist"]
[200,"ART & CULTURE","Binder"]
[201,"ART & CULTURE","Checker"]
[202,"ART & CULTURE","Chemist-II"]
[203,"ART & CULTURE","Codifier"]
[204,"ART & CULTURE","Counter Attendant"]
[205,"ART & CULTURE","Curator"]
[206,"ART & CULTURE","Dance Instructor"]
[207,"ART & CULTURE","Director"]
[208,"ART & CULTURE","District Librarian"]
[209,"ART & CULTURE","District Research Officer"]
[210,"ART & CULTURE","Drama Instructor"]
[211,"ART & CULTURE","Driver-I Grade"]
[212,"ART & CULTURE","Driver-II Grade"]
[213,"ART & CULTURE","Driver-III Grade"]
[214,"ART & CULTURE","Driver-Spl Grade"]
[215,"ART & CULTURE","Duftry"]
[216,"ART & CULTURE","Dy. Director"]
[217,"ART & CULTURE","Gallery Attendant"]
[218,"ART & CULTURE","Inspectir of Statistics"]
[219,"ART & CULTURE","Instructor (Music, Dance, Drama)"]
[220,"ART & CULTURE","IV-Grade"]
[221,"ART & CULTURE","Jt. Director"]
[222,"ART & CULTURE","Junior Engineer"]
[223,"ART & CULTURE","LDC"]
[224,"ART & CULTURE","Library Asst."]
[225,"ART & CULTURE","Museum Asst."]
[226,"ART & CULTURE","Museum Guide"]
[227,"ART & CULTURE","Music Instructor"]
[228,"ART & CULTURE","Night Guard"]
[229,"ART & CULTURE","Peon"]
[230,"ART & CULTURE","Photographer"]
[231,"ART & CULTURE","Programe Co-ordinator"]
[232,"ART & CULTURE","Receptn-cum-Counter Attdnt"]
[233,"ART & CULTURE","Record Attendant"]
[234,"ART & CULTURE","Research Investigator"]
[235,"ART & CULTURE","Research Investigator (Archeo)"]
[236,"ART & CULTURE","Research Officer"]
[237,"ART & CULTURE","Senior Instructor"]
[238,"ART & CULTURE","Senior Research Officer"]
[239,"ART & CULTURE","Special Officer"]
[240,"ART & CULTURE","State Librarian"]
[241,"ART & CULTURE","Steno-I Grade"]
[242,"ART & CULTURE","Steno-II Grade"]
[243,"ART & CULTURE","Steno-III Grade"]
[244,"ART & CULTURE","Store Keeper"]
[245,"ART & CULTURE","Sub-Div. Librarian"]
[246,"ART & CULTURE","Supdt. of Archivist"]
[247,"ART & CULTURE","Superintendent"]
[248,"ART & CULTURE","Taxidermist"]
[249,"ART & CULTURE","Technical Asst."]
[250,"ART & CULTURE","Technician"]
[251,"ART & CULTURE","Translator"]
[252,"ART & CULTURE","UDC"]
[253,"COMMON SERVICE","Blue/Ferro Printer Association"]
[254,"COMMON SERVICE","Draftsman - II"]
[255,"COMMON SERVICE","Driver-I Grade"]
[256,"COMMON SERVICE","Driver-II Grade"]
[257,"COMMON SERVICE","Driver-III Grade"]
[258,"COMMON SERVICE","Driver-Spl Grade"]
[259,"COMMON SERVICE","Overseer Grade -II (OS-II)"]
[260,"COMMON SERVICE","S.A (Trained)"]
[261,"COMMON SERVICE","Telephone Operator - II"]
[262,"COOPERATION","Accountant"]
[263,"COOPERATION","Addl. R.C.S."]
[264,"COOPERATION","Assistant"]
[265,"COOPERATION","Asst. R.C.S."]
[266,"COOPERATION","Chowkidar"]
[267,"COOPERATION","Driver-I Grade"]
[268,"COOPERATION","Driver-II Grade"]
[269,"COOPERATION","Driver-III Grade"]
[270,"COOPERATION","Driver-Spl Grade"]
[271,"COOPERATION","Duftry"]
[272,"COOPERATION","Dy. R.C.S."]
[273,"COOPERATION","Head Assistant"]
[274,"COOPERATION","J.I.C.S."]
[275,"COOPERATION","Jt. R.C.S."]
[276,"COOPERATION","Junior Engineer"]
[277,"COOPERATION","L.D.C."]
[278,"COOPERATION","Peon"]
[279,"COOPERATION","Process Server"]
[280,"COOPERATION","R.C.S."]
[281,"COOPERATION","S.I.C.S"]
[282,"COOPERATION","Senior Inspector"]
[283,"COOPERATION","Steno-I Grade"]
[284,"COOPERATION","Steno-II Grade"]
[285,"COOPERATION","Steno-III Grade"]
[286,"COOPERATION","Superintendent"]
[287,"COOPERATION","Sweeper"]
[288,"COOPERATION","U.D.C."]
[289,"Council of Ministers","Assistant"]
[290,"Council of Ministers","Driver-I Grade"]
[291,"Council of Ministers","Driver-II Grade"]
[292,"Council of Ministers","Driver-III Grade"]
[293,"Council of Ministers","Driver-Spl Grade"]
[294,"Council of Ministers","LDC"]
[295,"Council of Ministers","P.P.S"]
[296,"Council of Ministers","P.S. to C.M"]
[297,"Council of Ministers","Peon"]
[298,"Council of Ministers","Principal Secretary"]
[299,"Council of Ministers","Superintendent"]
[300,"Council of Ministers","Sweeper"]
[301,"Council of Ministers","Sweeper-cum-Gardener"]
[302,"Council of Ministers","UDC"]
[303,"Council of Ministers","Under Secretary"]
[304,"DEVELOPMENT","Others"]
[305,"DISASTER MANAGEMENT & REHABILITATION","Assistant"]
[306,"DISASTER MANAGEMENT & REHABILITATION","Asst. Engineer"]
[307,"DISASTER MANAGEMENT & REHABILITATION","Chowkidar"]
[308,"DISASTER MANAGEMENT & REHABILITATION","Data Entry Operator"]
[309,"DISASTER MANAGEMENT & REHABILITATION","Director"]
[310,"DISASTER MANAGEMENT & REHABILITATION","District Organizer"]
[311,"DISASTER MANAGEMENT & REHABILITATION","Driver-I Grade"]
[312,"DISASTER MANAGEMENT & REHABILITATION","Driver-II Grade"]
[313,"DISASTER MANAGEMENT & REHABILITATION","Driver-III Grade"]
[314,"DISASTER MANAGEMENT & REHABILITATION","Driver-Spl Grade"]
[315,"DISASTER MANAGEMENT & REHABILITATION","Duftry"]
[316,"DISASTER MANAGEMENT & REHABILITATION","Dy. Director"]
[317,"DISASTER MANAGEMENT & REHABILITATION","Dy. Director (Admn)"]
[318,"DISASTER MANAGEMENT & REHABILITATION","Finance & Accounts Officer"]
[319,"DISASTER MANAGEMENT & REHABILITATION","Inspector of Statistics"]
[320,"DISASTER MANAGEMENT & REHABILITATION","Jt. Director"]
[321,"DISASTER MANAGEMENT & REHABILITATION","Junior Engineer"]
[322,"DISASTER MANAGEMENT & REHABILITATION","LDC"]
[323,"DISASTER MANAGEMENT & REHABILITATION","Peon"]
[324,"DISASTER MANAGEMENT & REHABILITATION","Steno-I Grade"]
[325,"DISASTER MANAGEMENT & REHABILITATION","Steno-II Grade"]
[326,"DISASTER MANAGEMENT & REHABILITATION","Steno-III Grade"]
[327,"DISASTER MANAGEMENT & REHABILITATION","Superintendent"]
[328,"DISASTER MANAGEMENT & REHABILITATION","Sweeper"]
[329,"DISASTER MANAGEMENT & REHABILITATION","UDC"]
[330,"ECO & STATS","-"]
[331,"ENVIRONMENT & FORESTS","Constable, Forest"]
[332,"EXCISE & NARCOTICS","Accounts Officer"]
[333,"EXCISE & NARCOTICS","Assistant/H.A"]
[334,"EXCISE & NARCOTICS","Asst. Commissioner"]
[335,"EXCISE & NARCOTICS","Asst. Sub-Inspector "]
[336,"EXCISE & NARCOTICS","Commissioner"]
[337,"EXCISE & NARCOTICS","Constable"]
[338,"EXCISE & NARCOTICS","Driver-I Grade"]
[339,"EXCISE & NARCOTICS","Driver-II Grade"]
[340,"EXCISE & NARCOTICS","Driver-III Grade"]
[341,"EXCISE & NARCOTICS","Driver-Spl Grade"]
[342,"EXCISE & NARCOTICS","Dy. Commissioner"]
[343,"EXCISE & NARCOTICS","Head Constable"]
[344,"EXCISE & NARCOTICS","Inspector "]
[345,"EXCISE & NARCOTICS","Inspector of Legal  Metrology"]
[346,"EXCISE & NARCOTICS","Inspector of Supply"]
[347,"EXCISE & NARCOTICS","LDC"]
[348,"EXCISE & NARCOTICS","Steno-I Grade"]
[349,"EXCISE & NARCOTICS","Steno-II Grade"]
[350,"EXCISE & NARCOTICS","Steno-III Grade"]
[351,"EXCISE & NARCOTICS","Sub-Inspector "]
[352,"EXCISE & NARCOTICS","Sub-Inspector of Supply"]
[353,"EXCISE & NARCOTICS","Supdt. of Accounts"]
[354,"EXCISE & NARCOTICS","Supdt.of Excise & Narcotics"]
[355,"EXCISE & NARCOTICS","Superintendent"]
[356,"EXCISE & NARCOTICS","UDC"]
[357,"EXCISE & NARCOTICS","Wireless Operator"]
[358,"EXCISE & NARCOTICS","Gestener Operator"]
[359,"EXCISE & NARCOTICS","Group 'D'"]
[360,"FINANCE","Assistant"]
[361,"FINANCE","Asst. Auditor"]
[362,"FINANCE","Asst. Director, A & T"]
[363,"FINANCE","Asst. Director, IF & SS"]
[364,"FINANCE","Asst. Director, LFA"]
[365,"FINANCE","Asst. Treasury Accountant"]
[366,"FINANCE","Auditor"]
[367,"FINANCE","Chief Controller of Accounts"]
[368,"FINANCE","Data Entry Operator"]
[369,"FINANCE","Director, A & T"]
[370,"FINANCE","Director, IF & S"]
[371,"FINANCE","Director, L F A"]
[372,"FINANCE","Driver-I Grade"]
[373,"FINANCE","Driver-II Grade"]
[374,"FINANCE","Driver-III Grade"]
[375,"FINANCE","Driver-Spl Grade "]
[376,"FINANCE","Duftry"]
[377,"FINANCE","Dy. Director, A & T"]
[378,"FINANCE","Dy. Director, IF & SS"]
[379,"FINANCE","Dy. Director, LFA"]
[380,"FINANCE","Dy. Secretary, State Fin. Comn. "]
[381,"FINANCE","Jt. Director, A & T"]
[382,"FINANCE","Jt. Director, IF & SS"]
[383,"FINANCE","LDC"]
[384,"FINANCE","Peon"]
[385,"FINANCE","Research Investigator"]
[386,"FINANCE","Research Officer"]
[387,"FINANCE","Secretary, State Fin. Comn."]
[388,"FINANCE","Steno-I Grade"]
[389,"FINANCE","Steno-II Grade"]
[390,"FINANCE","Steno-III Grade"]
[391,"FINANCE","Superintendent"]
[392,"FINANCE","Treasury Accountant"]
[393,"FINANCE","Treasury Officer"]
[394,"FINANCE","UDC"]
[395,"FINANCE","Under Secretary, State Fin. Comn. "]
[396,"FISHERIES","Accountant"]
[397,"FISHERIES","Assistant"]
[398,"FISHERIES","Asst. Director"]
[399,"FISHERIES","Asst. Director/ DFDO/ CEO"]
[400,"FISHERIES","Asst. Fishery Officer"]
[401,"FISHERIES","DFDO"]
[402,"FISHERIES","Director"]
[403,"FISHERIES","Driver-I Grade"]
[404,"FISHERIES","Driver-II Grade"]
[405,"FISHERIES","Driver-III Grade"]
[406,"FISHERIES","Driver-Spl Grade "]
[407,"FISHERIES","Dy. Director"]
[408,"FISHERIES","Dy. Director (Stats)"]
[409,"FISHERIES","FD"]
[410,"FISHERIES","FEO"]
[411,"FISHERIES","Fisherman"]
[412,"FISHERIES","Fishery Extn. Officer"]
[413,"FISHERIES","Investigator"]
[414,"FISHERIES","IV-Grade"]
[415,"FISHERIES","Jt. Director"]
[416,"FISHERIES","Junior Engineer"]
[417,"FISHERIES","LDC"]
[418,"FISHERIES","P.O"]
[419,"FISHERIES","PPO"]
[420,"FISHERIES","Steno-I Grade"]
[421,"FISHERIES","Steno-II Grade"]
[422,"FISHERIES","Steno-III Grade"]
[423,"FISHERIES","Superintendent"]
[424,"FISHERIES","Tech. Assistant"]
[425,"FISHERIES","UDC"]
[426,"FOOD CIVIL SUPPLIES & CONSUMER AFFAIRS","Accounts Officer"]
[427,"FOOD CIVIL SUPPLIES & CONSUMER AFFAIRS","Addl. Director, FSC & CA"]
[428,"FOOD CIVIL SUPPLIES & CONSUMER AFFAIRS","Assistant"]
[429,"FOOD CIVIL SUPPLIES & CONSUMER AFFAIRS","Asst. Controller (W & M)"]
[430,"FOOD CIVIL SUPPLIES & CONSUMER AFFAIRS","Asst. DCSO"]
[431,"FOOD CIVIL SUPPLIES & CONSUMER AFFAIRS","Asst. Director of Supply"]
[432,"FOOD CIVIL SUPPLIES & CONSUMER AFFAIRS","Asst. Supdt. of Accounts"]
[433,"FOOD CIVIL SUPPLIES & CONSUMER AFFAIRS","Cook"]
[434,"FOOD CIVIL SUPPLIES & CONSUMER AFFAIRS","DCSO"]
[435,"FOOD CIVIL SUPPLIES & CONSUMER AFFAIRS","Despatch Rider-I Grade"]
[436,"FOOD CIVIL SUPPLIES & CONSUMER AFFAIRS","Director, FSC & CA"]
[437,"FOOD CIVIL SUPPLIES & CONSUMER AFFAIRS","Driver-I Grade"]
[438,"FOOD CIVIL SUPPLIES & CONSUMER AFFAIRS","Driver-II Grade"]
[439,"FOOD CIVIL SUPPLIES & CONSUMER AFFAIRS","Driver-III Grade"]
[440,"FOOD CIVIL SUPPLIES & CONSUMER AFFAIRS","Driver-Spl Grade "]
[441,"FOOD CIVIL SUPPLIES & CONSUMER AFFAIRS","Duftry"]
[442,"FOOD CIVIL SUPPLIES & CONSUMER AFFAIRS","Dy. Controller (W & M)"]
[443,"FOOD CIVIL SUPPLIES & CONSUMER AFFAIRS","Dy. Director (Accounts)"]
[444,"FOOD CIVIL SUPPLIES & CONSUMER AFFAIRS","Dy. Director, FSC & CA"]
[445,"FOOD CIVIL SUPPLIES & CONSUMER AFFAIRS","Finance & Accounts Officer"]
[446,"FOOD CIVIL SUPPLIES & CONSUMER AFFAIRS","Godown Chawkidar"]
[447,"FOOD CIVIL SUPPLIES & CONSUMER AFFAIRS","Govt. Porter"]
[448,"FOOD CIVIL SUPPLIES & CONSUMER AFFAIRS","Handyman"]
[449,"FOOD CIVIL SUPPLIES & CONSUMER AFFAIRS","Head Assistant"]
[450,"FOOD CIVIL SUPPLIES & CONSUMER AFFAIRS","IFCS"]
[451,"FOOD CIVIL SUPPLIES & CONSUMER AFFAIRS","Inspector, W & M"]
[452,"FOOD CIVIL SUPPLIES & CONSUMER AFFAIRS","Jamadar"]
[453,"FOOD CIVIL SUPPLIES & CONSUMER AFFAIRS","Jt. Controller (W & M)"]
[454,"FOOD CIVIL SUPPLIES & CONSUMER AFFAIRS","Jt. Director, FSC & CA"]
[455,"FOOD CIVIL SUPPLIES & CONSUMER AFFAIRS","Junior Engineer"]
[456,"FOOD CIVIL SUPPLIES & CONSUMER AFFAIRS","LDC"]
[457,"FOOD CIVIL SUPPLIES & CONSUMER AFFAIRS","Manual Asst. W & M"]
[458,"FOOD CIVIL SUPPLIES & CONSUMER AFFAIRS","Masalchi"]
[459,"FOOD CIVIL SUPPLIES & CONSUMER AFFAIRS","Office Chawkidar"]
[460,"FOOD CIVIL SUPPLIES & CONSUMER AFFAIRS","Peon "]
[461,"FOOD CIVIL SUPPLIES & CONSUMER AFFAIRS","Porter"]
[462,"FOOD CIVIL SUPPLIES & CONSUMER AFFAIRS","Room Bearer"]
[463,"FOOD CIVIL SUPPLIES & CONSUMER AFFAIRS","S.A (T)"]
[464,"FOOD CIVIL SUPPLIES & CONSUMER AFFAIRS","Scaleman"]
[465,"FOOD CIVIL SUPPLIES & CONSUMER AFFAIRS","SDO"]
[466,"FOOD CIVIL SUPPLIES & CONSUMER AFFAIRS","SIFCS"]
[467,"FOOD CIVIL SUPPLIES & CONSUMER AFFAIRS","Steno-I Grade"]
[468,"FOOD CIVIL SUPPLIES & CONSUMER AFFAIRS","Steno-II Grade"]
[469,"FOOD CIVIL SUPPLIES & CONSUMER AFFAIRS","Steno-III Grade"]
[470,"FOOD CIVIL SUPPLIES & CONSUMER AFFAIRS","Store Keeper"]
[471,"FOOD CIVIL SUPPLIES & CONSUMER AFFAIRS","Supdt. of Accounts"]
[472,"FOOD CIVIL SUPPLIES & CONSUMER AFFAIRS","Superintendent"]
[473,"FOOD CIVIL SUPPLIES & CONSUMER AFFAIRS","Sweeper"]
[474,"FOOD CIVIL SUPPLIES & CONSUMER AFFAIRS","Transport Sirdar"]
[475,"FOOD CIVIL SUPPLIES & CONSUMER AFFAIRS","UDC"]
[476,"GAD","A.E"]
[477,"GAD","A.O (Ng)"]
[478,"GAD","A/Peon"]
[479,"GAD","Accountant"]
[480,"GAD","Addl. D.C"]
[481,"GAD","Assistant"]
[482,"GAD","Asst. Chief Electoral Officer"]
[483,"GAD","Asst. Commissioner"]
[484,"GAD","Asst. Commissioner for I.A.S (P)"]
[485,"GAD","Asst. Director"]
[486,"GAD","Asst. L.O"]
[487,"GAD","Attendant"]
[488,"GAD","Bhobi"]
[489,"GAD","CA-I"]
[490,"GAD","CA-II"]
[491,"GAD","Care Taker"]
[492,"GAD","Carpenter"]
[493,"GAD","Chowkidar"]
[494,"GAD","Computer Operator"]
[495,"GAD","Controller"]
[496,"GAD","Cook"]
[497,"GAD","Data Base Operator"]
[498,"GAD","Deputy Commissioner"]
[499,"GAD","Despatch Rider"]
[500,"GAD","Dozer Operator"]
[501,"GAD","Driver-I Grade"]
[502,"GAD","Driver-II Grade"]
[503,"GAD","Driver-III Grade"]
[504,"GAD","Driver-Spl grade "]
[505,"GAD","Duftry"]
[506,"GAD","Dy. Liaison Officer"]
[507,"GAD","EGS Accountant"]
[508,"GAD","Election Officer"]
[509,"GAD","Electrician"]
[510,"GAD","Group 'D'"]
[511,"GAD","Handle Man"]
[512,"GAD","Head Attendant"]
[513,"GAD","Head Cook"]
[514,"GAD","IV-Grade"]
[515,"GAD","Jamadar"]
[516,"GAD","Jt. Chief Election Commissioner"]
[517,"GAD","Jt. Residential Commissioner"]
[518,"GAD","Junior Engineer"]
[519,"GAD","Khansama"]
[520,"GAD","Lakher Clerk"]
[521,"GAD","LDC"]
[522,"GAD","Deputy Resident Commissioner"]
[523,"GAD","Liftman"]
[524,"GAD","Lushai Clerk"]
[525,"GAD","Mali"]
[526,"GAD","Marboat Operator"]
[527,"GAD","Masalji"]
[528,"GAD","Nazir"]
[529,"GAD","O.S."]
[530,"GAD","P.S to Prin R.C"]
[531,"GAD","Painter"]
[532,"GAD","Paniwala"]
[533,"GAD","Peon"]
[534,"GAD","Potdar"]
[535,"GAD","Pr. Residential Commissioner"]
[536,"GAD","Principal Adviser"]
[537,"GAD","Programer"]
[538,"GAD","Receptionist"]
[539,"GAD","Room Waiter "]
[540,"GAD","S.D.O"]
[541,"GAD","S.D.O (Civil)"]
[542,"GAD","S.D.O (Sadar)"]
[543,"GAD","S.D.O (TC)"]
[544,"GAD","S/C"]
[545,"GAD","Sadar Accountant"]
[546,"GAD","Scale Man"]
[547,"GAD","SDyM"]
[548,"GAD","Secretary/DO"]
[549,"GAD","Sr. Liaison Officer"]
[550,"GAD","Sr. Nazir"]
[551,"GAD","Steno-I Grade"]
[552,"GAD","Steno-II Grade"]
[553,"GAD","Steno-III Grade"]
[554,"GAD","Sub-Deputy Commissioner"]
[555,"GAD","Superintendent"]
[556,"GAD","Sweeper"]
[557,"GAD","Town Overseer"]
[558,"GAD","UDC"]
[559,"Governor Secretariat","ADC to Governor"]
[560,"Governor Secretariat","Annexe Attendant"]
[561,"Governor Secretariat","Bearer"]
[562,"Governor Secretariat","Butler"]
[563,"Governor Secretariat","Cleaner"]
[564,"Governor Secretariat","COH"]
[565,"Governor Secretariat","Cook"]
[566,"Governor Secretariat","Cook-cum-Masalchi"]
[567,"Governor Secretariat","Darban"]
[568,"Governor Secretariat","Driver-I Grade"]
[569,"Governor Secretariat","Driver-II Grade"]
[570,"Governor Secretariat","Driver-III Grade"]
[571,"Governor Secretariat","Driver-Spl grade "]
[572,"Governor Secretariat","Head Cook"]
[573,"Governor Secretariat","LDC"]
[574,"Governor Secretariat","Mali"]
[575,"Governor Secretariat","Special Officer"]
[576,"Governor Secretariat","Sweeper"]
[577,"Governor Secretariat","Waiter"]
[578,"Governor Secretariat","Washerman"]
[579,"HEALTH & FAMILY WELFARE","AC Tech"]
[580,"HEALTH & FAMILY WELFARE","Accupuncturist"]
[581,"HEALTH & FAMILY WELFARE","Aneasthetist ( Sr. Spl)"]
[582,"HEALTH & FAMILY WELFARE","Aneasthetist (Spl)"]
[583,"HEALTH & FAMILY WELFARE","ANM"]
[584,"HEALTH & FAMILY WELFARE","Artist-cum-Photographer"]
[585,"HEALTH & FAMILY WELFARE","Assistant"]
[586,"HEALTH & FAMILY WELFARE","Asst. Director (Nursing)"]
[587,"HEALTH & FAMILY WELFARE","Asst. Director, HS"]
[588,"HEALTH & FAMILY WELFARE","Asst. Drug Controller"]
[589,"HEALTH & FAMILY WELFARE","Asst. Editor"]
[590,"HEALTH & FAMILY WELFARE","Asst. Malaria Officer"]
[591,"HEALTH & FAMILY WELFARE","Attendant "]
[592,"HEALTH & FAMILY WELFARE","Barber."]
[593,"HEALTH & FAMILY WELFARE","BCG Team Leader."]
[594,"HEALTH & FAMILY WELFARE","Bearer-cum-Cook"]
[595,"HEALTH & FAMILY WELFARE","Bhisty"]
[596,"HEALTH & FAMILY WELFARE","BHMS"]
[597,"HEALTH & FAMILY WELFARE","Block Extn. Educator"]
[598,"HEALTH & FAMILY WELFARE","Blood Bank Oficer"]
[599,"HEALTH & FAMILY WELFARE","Cardiologist (Sr. Spl)"]
[600,"HEALTH & FAMILY WELFARE","Carpenter"]
[601,"HEALTH & FAMILY WELFARE","Casualty Officer "]
[602,"HEALTH & FAMILY WELFARE","Casualty Officer (Sr.)"]
[603,"HEALTH & FAMILY WELFARE","CHO"]
[604,"HEALTH & FAMILY WELFARE","Chowkider"]
[605,"HEALTH & FAMILY WELFARE","Cleaner"]
[606,"HEALTH & FAMILY WELFARE","Clinical (Spl)"]
[607,"HEALTH & FAMILY WELFARE","Clinical Instructor"]
[608,"HEALTH & FAMILY WELFARE","Clinical Psychologist "]
[609,"HEALTH & FAMILY WELFARE","CMO"]
[610,"HEALTH & FAMILY WELFARE","Community Health Officer"]
[611,"HEALTH & FAMILY WELFARE","Computor Operator"]
[612,"HEALTH & FAMILY WELFARE","Consultant (Grd-II)"]
[613,"HEALTH & FAMILY WELFARE","Consultant (Sr. Spl)"]
[614,"HEALTH & FAMILY WELFARE","Cook"]
[615,"HEALTH & FAMILY WELFARE","CSSD Tech."]
[616,"HEALTH & FAMILY WELFARE","Cyto Pathologist"]
[617,"HEALTH & FAMILY WELFARE","Cyto Technician"]
[618,"HEALTH & FAMILY WELFARE","Cyto Technologist"]
[619,"HEALTH & FAMILY WELFARE","Dark Room Asst."]
[620,"HEALTH & FAMILY WELFARE","DEMO"]
[621,"HEALTH & FAMILY WELFARE","Dental Surgeon "]
[622,"HEALTH & FAMILY WELFARE","Dental Surgeon (Sr)"]
[623,"HEALTH & FAMILY WELFARE","Dermatologist (Sr. Spl)"]
[624,"HEALTH & FAMILY WELFARE","Dermatologist (Sr. Spl)"]
[625,"HEALTH & FAMILY WELFARE","DFWMO"]
[626,"HEALTH & FAMILY WELFARE","Dialysis Technologist"]
[627,"HEALTH & FAMILY WELFARE","Diet Sister"]
[628,"HEALTH & FAMILY WELFARE","Dietrician"]
[629,"HEALTH & FAMILY WELFARE","DIO"]
[630,"HEALTH & FAMILY WELFARE","Director, H & ME"]
[631,"HEALTH & FAMILY WELFARE","Director,HS"]
[632,"HEALTH & FAMILY WELFARE","Dist. Lab Officer"]
[633,"HEALTH & FAMILY WELFARE","Dist. PH Supervisor (PHNO)"]
[634,"HEALTH & FAMILY WELFARE","Dist. Supervisor"]
[635,"HEALTH & FAMILY WELFARE","District Nursing Supdt."]
[636,"HEALTH & FAMILY WELFARE","District TB Officer"]
[637,"HEALTH & FAMILY WELFARE","DLO"]
[638,"HEALTH & FAMILY WELFARE","Driver-I Grade"]
[639,"HEALTH & FAMILY WELFARE","Driver-II Grade"]
[640,"HEALTH & FAMILY WELFARE","Driver-III Grade"]
[641,"HEALTH & FAMILY WELFARE","Driver-Spl grade "]
[642,"HEALTH & FAMILY WELFARE","Drug Inspector"]
[643,"HEALTH & FAMILY WELFARE","Duftry"]
[644,"HEALTH & FAMILY WELFARE","Dy. CM & HO"]
[645,"HEALTH & FAMILY WELFARE","Dy. DEMO"]
[646,"HEALTH & FAMILY WELFARE","Dy. Director, HME"]
[647,"HEALTH & FAMILY WELFARE","Dy. Director, HS"]
[648,"HEALTH & FAMILY WELFARE","Dy. Director, HS (CMS)"]
[649,"HEALTH & FAMILY WELFARE","Dy. Director, HS (Gen)"]
[650,"HEALTH & FAMILY WELFARE","Dy. Director, HS (Nursing)"]
[651,"HEALTH & FAMILY WELFARE","Dy. Director, HS, (Admn)"]
[652,"HEALTH & FAMILY WELFARE","Dy. Drug Controller"]
[653,"HEALTH & FAMILY WELFARE","Dy. Med Supdt."]
[654,"HEALTH & FAMILY WELFARE","Dy. MRO"]
[655,"HEALTH & FAMILY WELFARE","Dy.Director (Mal)"]
[656,"HEALTH & FAMILY WELFARE","ECG Tech."]
[657,"HEALTH & FAMILY WELFARE","Electrician"]
[658,"HEALTH & FAMILY WELFARE","Electrician (DTE & Hosp)"]
[659,"HEALTH & FAMILY WELFARE","ENT ( Sr. Spl)"]
[660,"HEALTH & FAMILY WELFARE","ENT (Spl)"]
[661,"HEALTH & FAMILY WELFARE","Entomologist"]
[662,"HEALTH & FAMILY WELFARE","Executive Engineer"]
[663,"HEALTH & FAMILY WELFARE","Extension Educator"]
[664,"HEALTH & FAMILY WELFARE","Eye Specialist "]
[665,"HEALTH & FAMILY WELFARE","Eye Specialist (Sr)"]
[666,"HEALTH & FAMILY WELFARE","F.W. Extension Educator"]
[667,"HEALTH & FAMILY WELFARE","FA"]
[668,"HEALTH & FAMILY WELFARE","Finance & Accounts Officer"]
[669,"HEALTH & FAMILY WELFARE","Food Inspector"]
[670,"HEALTH & FAMILY WELFARE","Fridge Mechanic"]
[671,"HEALTH & FAMILY WELFARE","Generator Operator."]
[672,"HEALTH & FAMILY WELFARE","Gyneacologist "]
[673,"HEALTH & FAMILY WELFARE","Gyneacologist ( Spl)"]
[674,"HEALTH & FAMILY WELFARE","Gyneacologist (Sr)"]
[675,"HEALTH & FAMILY WELFARE","Head Asst."]
[676,"HEALTH & FAMILY WELFARE","Head Cook."]
[677,"HEALTH & FAMILY WELFARE","Head Pharmacist"]
[678,"HEALTH & FAMILY WELFARE","Health Educator"]
[679,"HEALTH & FAMILY WELFARE","Health Educator (Sr)"]
[680,"HEALTH & FAMILY WELFARE","Health Supervisor (F)"]
[681,"HEALTH & FAMILY WELFARE","Health Supervisor (M)"]
[682,"HEALTH & FAMILY WELFARE","Health Worker (F)"]
[683,"HEALTH & FAMILY WELFARE","Health Worker (M)"]
[684,"HEALTH & FAMILY WELFARE","HEO"]
[685,"HEALTH & FAMILY WELFARE","Hostel Warden"]
[686,"HEALTH & FAMILY WELFARE","Inspector of Statistics"]
[687,"HEALTH & FAMILY WELFARE","IV-Grade"]
[688,"HEALTH & FAMILY WELFARE","Jr. Scientific Officer"]
[689,"HEALTH & FAMILY WELFARE","Jt. Director, (Accounts)"]
[690,"HEALTH & FAMILY WELFARE","Jt. Director, (Nursing)"]
[691,"HEALTH & FAMILY WELFARE","Jt. Director, H & ME"]
[692,"HEALTH & FAMILY WELFARE","Jt. Director, HS"]
[693,"HEALTH & FAMILY WELFARE","Jt. Director, HS (Mal)"]
[694,"HEALTH & FAMILY WELFARE","Jt. Director, HS (P)"]
[695,"HEALTH & FAMILY WELFARE","Jt. Director,H & ME"]
[696,"HEALTH & FAMILY WELFARE","Junior Engineer"]
[697,"HEALTH & FAMILY WELFARE","Lab. Asst."]
[698,"HEALTH & FAMILY WELFARE","Lab. Attendant"]
[699,"HEALTH & FAMILY WELFARE","Lab. Tech"]
[700,"HEALTH & FAMILY WELFARE","Lab. Tech (Sr)"]
[701,"HEALTH & FAMILY WELFARE","Lab. Technician (H&FW/Police)"]
[702,"HEALTH & FAMILY WELFARE","LDC"]
[703,"HEALTH & FAMILY WELFARE","Lecturer (Comty Health Nursing)"]
[704,"HEALTH & FAMILY WELFARE","Lecturer (Med. Surgical Nursing)"]
[705,"HEALTH & FAMILY WELFARE","Lecturer (Paed or CHN)"]
[706,"HEALTH & FAMILY WELFARE","Lecturer (Sr)"]
[707,"HEALTH & FAMILY WELFARE","Lecturer, Nursing College."]
[708,"HEALTH & FAMILY WELFARE","LHV"]
[709,"HEALTH & FAMILY WELFARE","Librarian"]
[710,"HEALTH & FAMILY WELFARE","Linen Keeper"]
[711,"HEALTH & FAMILY WELFARE","M.O"]
[712,"HEALTH & FAMILY WELFARE","M.O. (Lep) (Sr)"]
[713,"HEALTH & FAMILY WELFARE","Magic Lantern Oprt (Mech-II)"]
[714,"HEALTH & FAMILY WELFARE","Mal. Mech-II"]
[715,"HEALTH & FAMILY WELFARE","Malaria Inspector"]
[716,"HEALTH & FAMILY WELFARE","Mali"]
[717,"HEALTH & FAMILY WELFARE","MCW Spl."]
[718,"HEALTH & FAMILY WELFARE","Med. Supdt."]
[719,"HEALTH & FAMILY WELFARE","Medical Physicist"]
[720,"HEALTH & FAMILY WELFARE","Medical Record Officer"]
[721,"HEALTH & FAMILY WELFARE","Medical Record Technician"]
[722,"HEALTH & FAMILY WELFARE","Microbiologist"]
[723,"HEALTH & FAMILY WELFARE","Microscopist"]
[724,"HEALTH & FAMILY WELFARE","Motor Mechanic"]
[725,"HEALTH & FAMILY WELFARE","MRO"]
[726,"HEALTH & FAMILY WELFARE","MRT"]
[727,"HEALTH & FAMILY WELFARE","Multipurpose Rehab. Asst."]
[728,"HEALTH & FAMILY WELFARE","Non-Clinical (Spl)"]
[729,"HEALTH & FAMILY WELFARE","Non-Med. Supervisor"]
[730,"HEALTH & FAMILY WELFARE","Non-Med. Supervisor (Sr)"]
[731,"HEALTH & FAMILY WELFARE","Nursing Orderly"]
[732,"HEALTH & FAMILY WELFARE","Nursing Supdt."]
[733,"HEALTH & FAMILY WELFARE","O.T Asst."]
[734,"HEALTH & FAMILY WELFARE","O.T Attendant"]
[735,"HEALTH & FAMILY WELFARE","O.T Nurse"]
[736,"HEALTH & FAMILY WELFARE","O.T Sister"]
[737,"HEALTH & FAMILY WELFARE","Occupational Therapist"]
[738,"HEALTH & FAMILY WELFARE","Office Supdt. H & ME"]
[739,"HEALTH & FAMILY WELFARE","Office Supdt. HS"]
[740,"HEALTH & FAMILY WELFARE","Officer i/c Cold Chain"]
[741,"HEALTH & FAMILY WELFARE","Opthalmic Asst."]
[742,"HEALTH & FAMILY WELFARE","Orthopaedic Surgeon ( Sr. Spl)"]
[743,"HEALTH & FAMILY WELFARE","Orthopaedic Surgeon (Spl)"]
[744,"HEALTH & FAMILY WELFARE","Orthotist Tech-II Grade"]
[745,"HEALTH & FAMILY WELFARE","Orthotist Tech-III Grade"]
[746,"HEALTH & FAMILY WELFARE","Packer"]
[747,"HEALTH & FAMILY WELFARE","Paedestrician"]
[748,"HEALTH & FAMILY WELFARE","Paediatrician ( Sr. Spl)"]
[749,"HEALTH & FAMILY WELFARE","Paediatrician (Spl)"]
[750,"HEALTH & FAMILY WELFARE","Para Med. Asst."]
[751,"HEALTH & FAMILY WELFARE","Para Med. Worker"]
[752,"HEALTH & FAMILY WELFARE","Pathologist (Spl)"]
[753,"HEALTH & FAMILY WELFARE","Peon"]
[754,"HEALTH & FAMILY WELFARE","Pharmacist"]
[755,"HEALTH & FAMILY WELFARE","PHN Officer"]
[756,"HEALTH & FAMILY WELFARE","Phy. Technician."]
[757,"HEALTH & FAMILY WELFARE","Physician"]
[758,"HEALTH & FAMILY WELFARE","Physician (Sr. Spl)"]
[759,"HEALTH & FAMILY WELFARE","Physiotherapist"]
[760,"HEALTH & FAMILY WELFARE","Physiotherapy Tech. "]
[761,"HEALTH & FAMILY WELFARE","PMO"]
[762,"HEALTH & FAMILY WELFARE","PMW (Sr)"]
[763,"HEALTH & FAMILY WELFARE","PNO"]
[764,"HEALTH & FAMILY WELFARE","Principal"]
[765,"HEALTH & FAMILY WELFARE","Principal, School of Nursing Collg."]
[766,"HEALTH & FAMILY WELFARE","Projectionist"]
[767,"HEALTH & FAMILY WELFARE","Pros/ Ortho Tech - II"]
[768,"HEALTH & FAMILY WELFARE","Prothetist Tech-II Grade"]
[769,"HEALTH & FAMILY WELFARE","Prothetist Tech-III Grade"]
[770,"HEALTH & FAMILY WELFARE","Psychiatrict Nurse"]
[771,"HEALTH & FAMILY WELFARE","Psychiatrist  Social Worker"]
[772,"HEALTH & FAMILY WELFARE","Psychiatrist (Spl)"]
[773,"HEALTH & FAMILY WELFARE","Psychiatrist (Spl) (Deputation)"]
[774,"HEALTH & FAMILY WELFARE","Psychiatrist (Sr. Spl)"]
[775,"HEALTH & FAMILY WELFARE","Psychological Social Worker"]
[776,"HEALTH & FAMILY WELFARE","Public Analyst"]
[777,"HEALTH & FAMILY WELFARE","Public Health Nurse"]
[778,"HEALTH & FAMILY WELFARE","Radiographer"]
[779,"HEALTH & FAMILY WELFARE","Radiological Safety Officer/ Medical Physicist"]
[780,"HEALTH & FAMILY WELFARE","Radiologist ( Spl)"]
[781,"HEALTH & FAMILY WELFARE","Radiologist (Sr. Spl)"]
[782,"HEALTH & FAMILY WELFARE","Radiotherapist (Spl)"]
[783,"HEALTH & FAMILY WELFARE","Radiotherapy Technologist"]
[784,"HEALTH & FAMILY WELFARE","Reciptionist"]
[785,"HEALTH & FAMILY WELFARE","Record Keeper/Clerk "]
[786,"HEALTH & FAMILY WELFARE","Record Officer (Sr.)"]
[787,"HEALTH & FAMILY WELFARE","Rehabilitation Asst."]
[788,"HEALTH & FAMILY WELFARE","RO"]
[789,"HEALTH & FAMILY WELFARE","Safai Karamchari"]
[790,"HEALTH & FAMILY WELFARE","Sanitary Inspector"]
[791,"HEALTH & FAMILY WELFARE","Sister"]
[792,"HEALTH & FAMILY WELFARE","Sister i/c CSSD"]
[793,"HEALTH & FAMILY WELFARE","SLO"]
[794,"HEALTH & FAMILY WELFARE","SMEMO"]
[795,"HEALTH & FAMILY WELFARE","SMEMO cum Dy Director"]
[796,"HEALTH & FAMILY WELFARE","SMI"]
[797,"HEALTH & FAMILY WELFARE","SMO"]
[798,"HEALTH & FAMILY WELFARE","Social Science Instructor"]
[799,"HEALTH & FAMILY WELFARE","Special Officer (Mal)"]
[800,"HEALTH & FAMILY WELFARE","Sr. MRO"]
[801,"HEALTH & FAMILY WELFARE","Sr. Para Medical Worker"]
[802,"HEALTH & FAMILY WELFARE","Sr. Sanitary Inspector"]
[803,"HEALTH & FAMILY WELFARE","Sr. Spl for Dist. Med. Supdt."]
[804,"HEALTH & FAMILY WELFARE","Staff Nurse"]
[805,"HEALTH & FAMILY WELFARE","Statistical Asst."]
[806,"HEALTH & FAMILY WELFARE","Statistical Investigator"]
[807,"HEALTH & FAMILY WELFARE","Statistician-cum-Clerk"]
[808,"HEALTH & FAMILY WELFARE","Steno Typist"]
[809,"HEALTH & FAMILY WELFARE","Steno-II Grade"]
[810,"HEALTH & FAMILY WELFARE","Steno-III Grade"]
[811,"HEALTH & FAMILY WELFARE","Sub-Inspector of Statistics"]
[812,"HEALTH & FAMILY WELFARE","Supdt. Pharmacist."]
[813,"HEALTH & FAMILY WELFARE","Supervisor-II Grade"]
[814,"HEALTH & FAMILY WELFARE","Supervisor-III Grade"]
[815,"HEALTH & FAMILY WELFARE","Supervisor-Pros Ortho"]
[816,"HEALTH & FAMILY WELFARE","Surgeon"]
[817,"HEALTH & FAMILY WELFARE","Surgeon ( Spl)"]
[818,"HEALTH & FAMILY WELFARE","Surgeon ( Sr. Spl)"]
[819,"HEALTH & FAMILY WELFARE","Surgical Booth Maker"]
[820,"HEALTH & FAMILY WELFARE","Sweeper"]
[821,"HEALTH & FAMILY WELFARE","Tailor."]
[822,"HEALTH & FAMILY WELFARE","TB Health Visitor"]
[823,"HEALTH & FAMILY WELFARE","Technical Asst."]
[824,"HEALTH & FAMILY WELFARE","Technical Officer"]
[825,"HEALTH & FAMILY WELFARE","Telephone Operator."]
[826,"HEALTH & FAMILY WELFARE","Trained Social Worker"]
[827,"HEALTH & FAMILY WELFARE","Treatment Organizer"]
[828,"HEALTH & FAMILY WELFARE","Tutor"]
[829,"HEALTH & FAMILY WELFARE","UDC"]
[830,"HEALTH & FAMILY WELFARE","Vaccinator"]
[831,"HEALTH & FAMILY WELFARE","Vaccine Attendant"]
[832,"HEALTH & FAMILY WELFARE","Van Cleaner"]
[833,"HEALTH & FAMILY WELFARE","Ward Boy"]
[834,"HEALTH & FAMILY WELFARE","Ward Supdt."]
[835,"HEALTH & FAMILY WELFARE","Warden"]
[836,"HEALTH & FAMILY WELFARE","X-Ray Attendant"]
[837,"HEALTH & FAMILY WELFARE","X-Ray Tech."]
[838,"HEALTH & FAMILY WELFARE","X-Ray Tech. ( Sr.)"]
[839,"HEALTH & FAMILY WELFARE","X-Ray Technologist"]
[840,"HIGHER &  TECHNICAL EDUCATION","Asst. Librarian (MPL & CTE)"]
[841,"HIGHER &  TECHNICAL EDUCATION","Data Entry Operator (10+2 and Certificate 6 Months)"]
[842,"HIGHER &  TECHNICAL EDUCATION","Foreman (MPL)"]
[843,"HIGHER &  TECHNICAL EDUCATION","Foreman (WP)"]
[844,"HIGHER &  TECHNICAL EDUCATION","Lang. Lab. Tech (MHTC)"]
[845,"HIGHER &  TECHNICAL EDUCATION","Librarian (MPL)"]
[846,"HIGHER &  TECHNICAL EDUCATION","Sr. Draftsman (MPL)"]
[847,"HIGHER &  TECHNICAL EDUCATION","Account Assistant"]
[848,"HIGHER &  TECHNICAL EDUCATION","Accountant"]
[849,"HIGHER &  TECHNICAL EDUCATION","Assistant"]
[850,"HIGHER &  TECHNICAL EDUCATION","Associate Professor"]
[851,"HIGHER &  TECHNICAL EDUCATION","Asst. Professor-I"]
[852,"HIGHER &  TECHNICAL EDUCATION","Asst. Professor-II"]
[853,"HIGHER &  TECHNICAL EDUCATION","Asst. Professor-III"]
[854,"HIGHER &  TECHNICAL EDUCATION","Cinema Operator"]
[855,"HIGHER &  TECHNICAL EDUCATION","Compositor"]
[856,"HIGHER &  TECHNICAL EDUCATION","Computer Operator"]
[857,"HIGHER &  TECHNICAL EDUCATION","Conductor"]
[858,"HIGHER &  TECHNICAL EDUCATION","Data Entry Operator"]
[859,"HIGHER &  TECHNICAL EDUCATION","Demonstrator"]
[860,"HIGHER &  TECHNICAL EDUCATION","Director"]
[861,"HIGHER &  TECHNICAL EDUCATION","Driver-I Grade"]
[862,"HIGHER &  TECHNICAL EDUCATION","Driver-II Grade"]
[863,"HIGHER &  TECHNICAL EDUCATION","Driver-III Grade"]
[864,"HIGHER &  TECHNICAL EDUCATION","Driver-Spl Grade "]
[865,"HIGHER &  TECHNICAL EDUCATION","Duftry"]
[866,"HIGHER &  TECHNICAL EDUCATION","Dy. Director"]
[867,"HIGHER &  TECHNICAL EDUCATION","Dy. Librarian"]
[868,"HIGHER &  TECHNICAL EDUCATION","Finance & Accounts Officer"]
[869,"HIGHER &  TECHNICAL EDUCATION","Foreman"]
[870,"HIGHER &  TECHNICAL EDUCATION","Group 'D'"]
[871,"HIGHER &  TECHNICAL EDUCATION","Hostel Supdt"]
[872,"HIGHER &  TECHNICAL EDUCATION","Inspector of Statistics"]
[873,"HIGHER &  TECHNICAL EDUCATION","IV-Grade"]
[874,"HIGHER &  TECHNICAL EDUCATION","Jt. Director"]
[875,"HIGHER &  TECHNICAL EDUCATION","Junior Engineer"]
[876,"HIGHER &  TECHNICAL EDUCATION","Lab. Assistant"]
[877,"HIGHER &  TECHNICAL EDUCATION","Lab. Technician"]
[878,"HIGHER &  TECHNICAL EDUCATION","Lang. Lab. Tech"]
[879,"HIGHER &  TECHNICAL EDUCATION","Language Research Officer"]
[880,"HIGHER &  TECHNICAL EDUCATION","LDC"]
[881,"HIGHER &  TECHNICAL EDUCATION","Lecturer: WPA & MPL"]
[882,"HIGHER &  TECHNICAL EDUCATION","Lib. Assistant"]
[883,"HIGHER &  TECHNICAL EDUCATION","Librarian"]
[884,"HIGHER &  TECHNICAL EDUCATION","Principal"]
[885,"HIGHER &  TECHNICAL EDUCATION","Senior Draftman"]
[886,"HIGHER &  TECHNICAL EDUCATION","Steno-I Grade"]
[887,"HIGHER &  TECHNICAL EDUCATION","Steno-II Grade"]
[888,"HIGHER &  TECHNICAL EDUCATION","Steno-III Grade"]
[889,"HIGHER &  TECHNICAL EDUCATION","Superintendent"]
[890,"HIGHER &  TECHNICAL EDUCATION","UDC"]
[891,"HIGHER &  TECHNICAL EDUCATION","Work Instructor"]
[892,"HIGHER &  TECHNICAL EDUCATION","Work Instructor (MPL)"]
[893,"HIGHER &  TECHNICAL EDUCATION","Work Superintendent"]
[894,"HOME","A.I.G"]
[895,"HOME","ADC"]
[896,"HOME","Addl. D.G.P"]
[897,"HOME","Addl.Supdt.of Police "]
[898,"HOME","ADM Subedar"]
[899,"HOME","AIG/ Special Supt."]
[900,"HOME","Armourer"]
[901,"HOME","Asst. Comanding Officer"]
[902,"HOME","Asst. Engineer"]
[903,"HOME","Asst. I.G Prisons"]
[904,"HOME","Asst. Jailor"]
[905,"HOME","Asst. Principal"]
[906,"HOME","Asst. Sub-Inspector"]
[907,"HOME","Asst. to Dist. Comdt."]
[908,"HOME","Bandman"]
[909,"HOME","Bandman/ OG Homegaurd/ Gaurdman"]
[910,"HOME","BB. Havildar"]
[911,"HOME","BB. L/Nk"]
[912,"HOME","BB. Naik"]
[913,"HOME","Bugler"]
[914,"HOME","C.Hd. Warder"]
[915,"HOME","Carpenter"]
[916,"HOME","Centre Commander"]
[917,"HOME","Centre Commander/ JSO"]
[918,"HOME","Chief Head Warder"]
[919,"HOME","Chief Instructor"]
[920,"HOME","Chowkidar"]
[921,"HOME","Comandant Genl. (MHG)"]
[922,"HOME","Comanding Officer"]
[923,"HOME","Commandant, CTI"]
[924,"HOME","Constable"]
[925,"HOME","Coy. Commander"]
[926,"HOME","D.G.P"]
[927,"HOME","D.I.G (Headquarters)"]
[928,"HOME","D.I.G (Training)"]
[929,"HOME","D.I.G (Northern Range)"]
[930,"HOME","D.I.G (Southern Range)"]
[931,"HOME","D.I.G (C.I.D.)"]
[932,"HOME","D/Grade-II"]
[933,"HOME","D/Grade-III"]
[934,"HOME","Demonstrator"]
[935,"HOME","Despatch Rider-I"]
[936,"HOME","Dfm-III"]
[937,"HOME","DG-I"]
[938,"HOME","DG-II"]
[939,"HOME","DG-III"]
[940,"HOME","Director, F & ES"]
[941,"HOME","Director, SS & W"]
[942,"HOME","Dist. Commandant"]
[943,"HOME","Draftman-II"]
[944,"HOME","Driver-I Grade"]
[945,"HOME","Driver-II Grade"]
[946,"HOME","Driver-III Grade"]
[947,"HOME","Driver-Spl Grade "]
[948,"HOME","Duftry"]
[949,"HOME","DWW"]
[950,"HOME","Dy. Comandant Genl. (MHG)"]
[951,"HOME","Dy. Comanding Officer"]
[952,"HOME","Dy. Director (Accounts)"]
[953,"HOME","Dy. I.G Prisons"]
[954,"HOME","Dy. Store Officer"]
[955,"HOME","Dy.Supdt.of Police "]
[956,"HOME","Executive Engineer"]
[957,"HOME","Fire Man"]
[958,"HOME","Follower"]
[959,"HOME","Forensic Science Assistant"]
[960,"HOME","Group 'D'"]
[961,"HOME","Guardman"]
[962,"HOME","H/Warder"]
[963,"HOME","Hav. Instructor"]
[964,"HOME","Havildar"]
[965,"HOME","Havildar/ Jr/ Instructor"]
[966,"HOME","Head Asst."]
[967,"HOME","Head Constable"]
[968,"HOME","Head Constable/ Havilder Clerk/ Armed Havilder"]
[969,"HOME","Head Pharmacist"]
[970,"HOME","Head Subedar"]
[971,"HOME","Head Warder "]
[972,"HOME","Head Warder (Store)"]
[973,"HOME","Health Worker"]
[974,"HOME","I.G Prisons"]
[975,"HOME","Inspector"]
[976,"HOME","IV-Grade"]
[977,"HOME","Jail  Supdt"]
[978,"HOME","Jailor"]
[979,"HOME","Jr. Instructor/tress"]
[980,"HOME","Junior Staff Officer"]
[981,"HOME","Junior. Engineer"]
[982,"HOME","Kote Havildar"]
[983,"HOME","Lab. Tech"]
[984,"HOME","LDC"]
[985,"HOME","LFM"]
[986,"HOME","Mechanic"]
[987,"HOME","Medical Officer"]
[988,"HOME","Micro"]
[989,"HOME","Naik"]
[990,"HOME","Office Superintendent"]
[991,"HOME","Peon"]
[992,"HOME","Pharmacist"]
[993,"HOME","Platoon Commander"]
[994,"HOME","Principal"]
[995,"HOME","QG Home Guard"]
[996,"HOME","QG. Havildar"]
[997,"HOME","QG. L/Nk"]
[998,"HOME","QG. Naik"]
[999,"HOME","QM. Havildae"]
[1000,"HOME","Rider"]
[1001,"HOME","S.M.O"]
[1002,"HOME","Section Asst."]
[1003,"HOME","Seismic Reader"]
[1004,"HOME","Senior Staff Officer"]
[1005,"HOME","Sister"]
[1006,"HOME","SO"]
[1007,"HOME","Special Supdt (Jail)"]
[1008,"HOME","SSO"]
[1009,"HOME","Staff Nurse"]
[1010,"HOME","Steno-I Grade"]
[1011,"HOME","Steno-II Grade"]
[1012,"HOME","Steno-III Grade"]
[1013,"HOME","Storeman"]
[1014,"HOME","Sub-Inspector"]
[1015,"HOME","Supdt. Of Jails"]
[1016,"HOME","Supdt.of Police"]
[1017,"HOME","Superintendent"]
[1018,"HOME","Translator"]
[1019,"HOME","UDC"]
[1020,"HOME","V.D.O"]
[1021,"HOME","Vice Principal"]
[1022,"HOME","Warder"]
[1023,"HOME","Inspector General of Police (IGP)"]
[1024,"HOME","S.D.P.O."]
[1025,"HOME","Commandant"]
[1026,"HOME","Dy. Commandant"]
[1027,"HOME","Asst. Commandant"]
[1028,"HOME","Adjutant"]
[1029,"HOME","Adm. (Inspector)"]
[1030,"HOME","Chief Drill Instructor"]
[1031,"HOME","Junior Adm. (Sub Inspector)"]
[1032,"HOME","Chaplain"]
[1033,"HOME","Legal Advisor"]
[1034,"HOME","S.P. (M)"]
[1035,"HOME","Addl. S.P. (M)"]
[1036,"HOME","Dy. S.P. (M)"]
[1037,"HOME","Inspector (M)"]
[1038,"HOME","Sub Inspector (M)"]
[1039,"HOME","Asst. Sub Inspector (M)"]
[1040,"HOME","A.I.G.P. - I"]
[1041,"HOME","A.I.G.P. - II"]
[1042,"HOME","A.I.G.P. - III"]
[1043,"HOME","A.I.G.P. (Training)"]
[1044,"HORTICULTURE","A.D.H.O"]
[1045,"HORTICULTURE","A.D.O"]
[1046,"HORTICULTURE","A.T.O"]
[1047,"HORTICULTURE","Assistant"]
[1048,"HORTICULTURE","Asst. Dozer Optr."]
[1049,"HORTICULTURE","Asst. Engineer"]
[1050,"HORTICULTURE","Asst. Tractor Optr."]
[1051,"HORTICULTURE","Bull Dozer Operator-I "]
[1052,"HORTICULTURE","Bull Dozer Operator-III "]
[1053,"HORTICULTURE","D.H.O"]
[1054,"HORTICULTURE","Director"]
[1055,"HORTICULTURE","Draftman"]
[1056,"HORTICULTURE","Driver-I Grade"]
[1057,"HORTICULTURE","Driver-II Grade"]
[1058,"HORTICULTURE","Driver-III Grade"]
[1059,"HORTICULTURE","Driver-Spl Grade "]
[1060,"HORTICULTURE","Dy. Director"]
[1061,"HORTICULTURE","H.D. (Trained)"]
[1062,"HORTICULTURE","H.D. (Untrained)"]
[1063,"HORTICULTURE","H.D.O"]
[1064,"HORTICULTURE","H.E.O"]
[1065,"HORTICULTURE","IV-Grade"]
[1066,"HORTICULTURE","Jt. Director"]
[1067,"HORTICULTURE","Junior Engineer"]
[1068,"HORTICULTURE","Lab. Assistant"]
[1069,"HORTICULTURE","LDC"]
[1070,"HORTICULTURE","P.T.O"]
[1071,"HORTICULTURE","Peon"]
[1072,"HORTICULTURE","S.D.H.O"]
[1073,"HORTICULTURE","Sr. H/D"]
[1074,"HORTICULTURE","Steno-I Grade"]
[1075,"HORTICULTURE","Steno-II Grade"]
[1076,"HORTICULTURE","Steno-III Grade"]
[1077,"HORTICULTURE","Superintendent"]
[1078,"HORTICULTURE","Tracer"]
[1079,"HORTICULTURE","Tractor Operator-I "]
[1080,"HORTICULTURE","Tractor Operator-III "]
[1081,"HORTICULTURE","UDC"]
[1082,"HUMAN RESOURCES & DEVELOPMENT"," Headmaster, P/S"]
[1083,"HUMAN RESOURCES & DEVELOPMENT","(MBSE)-Academic Officer"]
[1084,"HUMAN RESOURCES & DEVELOPMENT","(MBSE)-Assistant"]
[1085,"HUMAN RESOURCES & DEVELOPMENT","(MBSE)-Asst. Contrlr of Examination"]
[1086,"HUMAN RESOURCES & DEVELOPMENT","(MBSE)-Chairman"]
[1087,"HUMAN RESOURCES & DEVELOPMENT","(MBSE)-Computer Operator"]
[1088,"HUMAN RESOURCES & DEVELOPMENT","(MBSE)-Controller of Examination"]
[1089,"HUMAN RESOURCES & DEVELOPMENT","(MBSE)-Director (Academic)"]
[1090,"HUMAN RESOURCES & DEVELOPMENT","(MBSE)-Driver-I Grade"]
[1091,"HUMAN RESOURCES & DEVELOPMENT","(MBSE)-Driver-II Grade"]
[1092,"HUMAN RESOURCES & DEVELOPMENT","(MBSE)-Driver-III Grade"]
[1093,"HUMAN RESOURCES & DEVELOPMENT","(MBSE)-Driver-Spl Grade "]
[1094,"HUMAN RESOURCES & DEVELOPMENT","(MBSE)-Duftry"]
[1095,"HUMAN RESOURCES & DEVELOPMENT","(MBSE)-Finance Officer"]
[1096,"HUMAN RESOURCES & DEVELOPMENT","(MBSE)-IV-Grade"]
[1097,"HUMAN RESOURCES & DEVELOPMENT","(MBSE)-LDC"]
[1098,"HUMAN RESOURCES & DEVELOPMENT","(MBSE)-P.S to President"]
[1099,"HUMAN RESOURCES & DEVELOPMENT","(MBSE)-Research Officer"]
[1100,"HUMAN RESOURCES & DEVELOPMENT","(MBSE)-Secretary"]
[1101,"HUMAN RESOURCES & DEVELOPMENT","(MBSE)-Superintendent"]
[1102,"HUMAN RESOURCES & DEVELOPMENT","(MBSE)-UDC"]
[1103,"HUMAN RESOURCES & DEVELOPMENT","(MBSE)-Under Secretary"]
[1104,"HUMAN RESOURCES & DEVELOPMENT","Accountant"]
[1105,"HUMAN RESOURCES & DEVELOPMENT","ADEO"]
[1106,"HUMAN RESOURCES & DEVELOPMENT","APC (AIEP)"]
[1107,"HUMAN RESOURCES & DEVELOPMENT","APO"]
[1108,"HUMAN RESOURCES & DEVELOPMENT","APO (EOSE)"]
[1109,"HUMAN RESOURCES & DEVELOPMENT","Assistant"]
[1110,"HUMAN RESOURCES & DEVELOPMENT","Asst. Director"]
[1111,"HUMAN RESOURCES & DEVELOPMENT","Asst. Engineer"]
[1112,"HUMAN RESOURCES & DEVELOPMENT","Asst. Hindi Propgn. Officer"]
[1113,"HUMAN RESOURCES & DEVELOPMENT","Asst. Lib.-cum-Publicity"]
[1114,"HUMAN RESOURCES & DEVELOPMENT","Audio Producer"]
[1115,"HUMAN RESOURCES & DEVELOPMENT","CAEO"]
[1116,"HUMAN RESOURCES & DEVELOPMENT","CEO"]
[1117,"HUMAN RESOURCES & DEVELOPMENT","Cinema Operator"]
[1118,"HUMAN RESOURCES & DEVELOPMENT","Comp. Operator"]
[1119,"HUMAN RESOURCES & DEVELOPMENT","Comp. Programer"]
[1120,"HUMAN RESOURCES & DEVELOPMENT","Conductor"]
[1121,"HUMAN RESOURCES & DEVELOPMENT","Councellor"]
[1122,"HUMAN RESOURCES & DEVELOPMENT","CPEO"]
[1123,"HUMAN RESOURCES & DEVELOPMENT","DAEO"]
[1124,"HUMAN RESOURCES & DEVELOPMENT","DEO"]
[1125,"HUMAN RESOURCES & DEVELOPMENT","Director"]
[1126,"HUMAN RESOURCES & DEVELOPMENT","Director, School Edn."]
[1127,"HUMAN RESOURCES & DEVELOPMENT","Driver-I Grade"]
[1128,"HUMAN RESOURCES & DEVELOPMENT","Driver-II Grade"]
[1129,"HUMAN RESOURCES & DEVELOPMENT","Driver-III Grade"]
[1130,"HUMAN RESOURCES & DEVELOPMENT","Driver-Spl Grade "]
[1131,"HUMAN RESOURCES & DEVELOPMENT","Duftry"]
[1132,"HUMAN RESOURCES & DEVELOPMENT","Dy. Director"]
[1133,"HUMAN RESOURCES & DEVELOPMENT","Dy. Director (Accounts.)"]
[1134,"HUMAN RESOURCES & DEVELOPMENT","Dy. Director (Hindi)"]
[1135,"HUMAN RESOURCES & DEVELOPMENT","Dy. Director of Adult Edn."]
[1136,"HUMAN RESOURCES & DEVELOPMENT","Dy. Director, School Edn."]
[1137,"HUMAN RESOURCES & DEVELOPMENT","Dy. Director,Admn"]
[1138,"HUMAN RESOURCES & DEVELOPMENT","Dy. Librarian"]
[1139,"HUMAN RESOURCES & DEVELOPMENT","ERO"]
[1140,"HUMAN RESOURCES & DEVELOPMENT","Finance & Accounts Officer"]
[1141,"HUMAN RESOURCES & DEVELOPMENT","Graduate Headmaster (Entry) (PS)"]
[1142,"HUMAN RESOURCES & DEVELOPMENT","Graduate Teacher"]
[1143,"HUMAN RESOURCES & DEVELOPMENT","Graphic Artist"]
[1144,"HUMAN RESOURCES & DEVELOPMENT","Group 'D'"]
[1145,"HUMAN RESOURCES & DEVELOPMENT","Headmaster"]
[1146,"HUMAN RESOURCES & DEVELOPMENT","Headmaster (Entry) (MS)"]
[1147,"HUMAN RESOURCES & DEVELOPMENT","Headmaster (Entry) (PS)"]
[1148,"HUMAN RESOURCES & DEVELOPMENT","Headmaster (MISE)"]
[1149,"HUMAN RESOURCES & DEVELOPMENT","Headmaster, M/S"]
[1150,"HUMAN RESOURCES & DEVELOPMENT","Headmistress"]
[1151,"HUMAN RESOURCES & DEVELOPMENT","Hindi Propagation Officer"]
[1152,"HUMAN RESOURCES & DEVELOPMENT","Hindi Teacher, H/S"]
[1153,"HUMAN RESOURCES & DEVELOPMENT","Hindi Teacher, M/S"]
[1154,"HUMAN RESOURCES & DEVELOPMENT","Inspector of Statistics"]
[1155,"HUMAN RESOURCES & DEVELOPMENT","Instructor"]
[1156,"HUMAN RESOURCES & DEVELOPMENT","IV-Grade"]
[1157,"HUMAN RESOURCES & DEVELOPMENT","Jt. Director"]
[1158,"HUMAN RESOURCES & DEVELOPMENT","Jt. Director, School Edn."]
[1159,"HUMAN RESOURCES & DEVELOPMENT","Lab. Assistant"]
[1160,"HUMAN RESOURCES & DEVELOPMENT","Lab. Bearer"]
[1161,"HUMAN RESOURCES & DEVELOPMENT","LDC"]
[1162,"HUMAN RESOURCES & DEVELOPMENT","Lecturer"]
[1163,"HUMAN RESOURCES & DEVELOPMENT","Librarian"]
[1164,"HUMAN RESOURCES & DEVELOPMENT","Matron (DIET)"]
[1165,"HUMAN RESOURCES & DEVELOPMENT","Non Formal Teacher"]
[1166,"HUMAN RESOURCES & DEVELOPMENT","Office Superintendent"]
[1167,"HUMAN RESOURCES & DEVELOPMENT","P.O (Eose)"]
[1168,"HUMAN RESOURCES & DEVELOPMENT","PEO"]
[1169,"HUMAN RESOURCES & DEVELOPMENT","PET"]
[1170,"HUMAN RESOURCES & DEVELOPMENT","Principal "]
[1171,"HUMAN RESOURCES & DEVELOPMENT","Principal (DIET, DRC under SCERT) (Future recruits)"]
[1172,"HUMAN RESOURCES & DEVELOPMENT","Principal (HSS)"]
[1173,"HUMAN RESOURCES & DEVELOPMENT","Process Cameramen"]
[1174,"HUMAN RESOURCES & DEVELOPMENT","Production Asst."]
[1175,"HUMAN RESOURCES & DEVELOPMENT","Prog. Assistant"]
[1176,"HUMAN RESOURCES & DEVELOPMENT","Project Co-ordinator"]
[1177,"HUMAN RESOURCES & DEVELOPMENT","Projectionist"]
[1178,"HUMAN RESOURCES & DEVELOPMENT","R.O "]
[1179,"HUMAN RESOURCES & DEVELOPMENT","Research Asst."]
[1180,"HUMAN RESOURCES & DEVELOPMENT","Research Officer"]
[1181,"HUMAN RESOURCES & DEVELOPMENT","Sc. Consultant"]
[1182,"HUMAN RESOURCES & DEVELOPMENT","Sc. Supervisor"]
[1183,"HUMAN RESOURCES & DEVELOPMENT","SDEO"]
[1184,"HUMAN RESOURCES & DEVELOPMENT","SFA"]
[1185,"HUMAN RESOURCES & DEVELOPMENT","Sound Recordist"]
[1186,"HUMAN RESOURCES & DEVELOPMENT","Special Edn. Officer"]
[1187,"HUMAN RESOURCES & DEVELOPMENT","Sr. Lecturer"]
[1188,"HUMAN RESOURCES & DEVELOPMENT","Steno-I Grade"]
[1189,"HUMAN RESOURCES & DEVELOPMENT","Steno-II Grade"]
[1190,"HUMAN RESOURCES & DEVELOPMENT","Steno-III Grade"]
[1191,"HUMAN RESOURCES & DEVELOPMENT","Superintendent"]
[1192,"HUMAN RESOURCES & DEVELOPMENT","Supervisor"]
[1193,"HUMAN RESOURCES & DEVELOPMENT","Supervisor (AIEP)"]
[1194,"HUMAN RESOURCES & DEVELOPMENT","Teacher"]
[1195,"HUMAN RESOURCES & DEVELOPMENT","Teacher (MISE)"]
[1196,"HUMAN RESOURCES & DEVELOPMENT","Teacher, M/S"]
[1197,"HUMAN RESOURCES & DEVELOPMENT","Teacher, P/S"]
[1198,"HUMAN RESOURCES & DEVELOPMENT","Technician"]
[1199,"HUMAN RESOURCES & DEVELOPMENT","Trained Graduate Teacher (Sr)/ Trained Graduate Hindi Teacher (Sr.) (HS)"]
[1200,"HUMAN RESOURCES & DEVELOPMENT","Trained Graduate Teacher (Sr)/ Trained Graduate Hindi Teacher (Sr.) (MS)"]
[1201,"HUMAN RESOURCES & DEVELOPMENT","Trained Graduate Teacher (Sr)/ Trained Graduate Hindi Teacher (Sr.) (PS)"]
[1202,"HUMAN RESOURCES & DEVELOPMENT","Trained Lecturer (Jr.)"]
[1203,"HUMAN RESOURCES & DEVELOPMENT","Trained Lecturer (Selection)"]
[1204,"HUMAN RESOURCES & DEVELOPMENT","Trained Lecturer (Sr.)"]
[1205,"HUMAN RESOURCES & DEVELOPMENT","Trained UG Hindi Teacher (Sel) (MS)"]
[1206,"HUMAN RESOURCES & DEVELOPMENT","Trained UG Hindi Teacher (Sr) (MS)"]
[1207,"HUMAN RESOURCES & DEVELOPMENT","Trained Under Graduate Teacher (Sel.)/ Trained Under Graduate Hindi Teacher (Sel) (PS)"]
[1208,"HUMAN RESOURCES & DEVELOPMENT","Trained Under Graduate Teacher (Sr)/ Trained Under Graduate Hindi Teacher (Sr.) (PS)"]
[1209,"HUMAN RESOURCES & DEVELOPMENT","Tutor"]
[1210,"HUMAN RESOURCES & DEVELOPMENT","UDC"]
[1211,"HUMAN RESOURCES & DEVELOPMENT","Untrained Lecturer"]
[1212,"HUMAN RESOURCES & DEVELOPMENT","V.G.O"]
[1213,"HUMAN RESOURCES & DEVELOPMENT","Vice Principal"]
[1214,"HUMAN RESOURCES & DEVELOPMENT","Vice Principal (DIET)"]
[1215,"HUMAN RESOURCES & DEVELOPMENT","Vice Principal (HSS)"]
[1216,"HUMAN RESOURCES & DEVELOPMENT","Vocational Teacher (Electronic)"]
[1217,"HUMAN RESOURCES & DEVELOPMENT","Vocational Teacher (Steno)"]
[1218,"HUMAN RESOURCES & DEVELOPMENT","W.E Teacher"]
[1219,"INDUSTRIES","(MIFCO)-Accountant"]
[1220,"INDUSTRIES","(MIFCO)-Accounts Assistant"]
[1221,"INDUSTRIES","(MIFCO)-Assistant"]
[1222,"INDUSTRIES","(MIFCO)-Asst. Engineer"]
[1223,"INDUSTRIES","(MIFCO)-Asst. Manager"]
[1224,"INDUSTRIES","(MIFCO)-Driver-I Grade"]
[1225,"INDUSTRIES","(MIFCO)-Driver-II Grade"]
[1226,"INDUSTRIES","(MIFCO)-Driver-III Grade"]
[1227,"INDUSTRIES","(MIFCO)-Driver-Spl Grade "]
[1228,"INDUSTRIES","(MIFCO)-Dy. Manager"]
[1229,"INDUSTRIES","(MIFCO)-General Manager"]
[1230,"INDUSTRIES","(MIFCO)-IV-Grade"]
[1231,"INDUSTRIES","(MIFCO)-Junior Engineer"]
[1232,"INDUSTRIES","(MIFCO)-Lab. Assistant"]
[1233,"INDUSTRIES","(MIFCO)-Lab. Technician"]
[1234,"INDUSTRIES","(MIFCO)-LDC"]
[1235,"INDUSTRIES","(MIFCO)-Manager"]
[1236,"INDUSTRIES","(MIFCO)-Managing Director"]
[1237,"INDUSTRIES","(MIFCO)-Marketing Assistant"]
[1238,"INDUSTRIES","(MIFCO)-Operator-I"]
[1239,"INDUSTRIES","(MIFCO)-Operator-II"]
[1240,"INDUSTRIES","(MIFCO)-Production Foreman"]
[1241,"INDUSTRIES","(MIFCO)-Sales Assistant"]
[1242,"INDUSTRIES","(MIFCO)-Sales Girl"]
[1243,"INDUSTRIES","(MIFCO)-Sectional  Assistant"]
[1244,"INDUSTRIES","(MIFCO)-Steno-I Grade"]
[1245,"INDUSTRIES","(MIFCO)-Steno-II Grade"]
[1246,"INDUSTRIES","(MIFCO)-Steno-III Grade"]
[1247,"INDUSTRIES","(MIFCO)-Supervisor"]
[1248,"INDUSTRIES","(MIFCO)-Technical Asst."]
[1249,"INDUSTRIES","(MIFCO)-Tracer"]
[1250,"INDUSTRIES","(MIFCO)-UDC"]
[1251,"INDUSTRIES","(MKVIB)-Accounts Officer"]
[1252,"INDUSTRIES","(MKVIB)-Assistant"]
[1253,"INDUSTRIES","(MKVIB)-Asst. Project Engineer"]
[1254,"INDUSTRIES","(MKVIB)-Bee-Man"]
[1255,"INDUSTRIES","(MKVIB)-C.E.O"]
[1256,"INDUSTRIES","(MKVIB)-Carpentry Helper"]
[1257,"INDUSTRIES","(MKVIB)-Demonstrator"]
[1258,"INDUSTRIES","(MKVIB)-Deplicating Operator"]
[1259,"INDUSTRIES","(MKVIB)-Dev. Officer"]
[1260,"INDUSTRIES","(MKVIB)-Driver-I Grade"]
[1261,"INDUSTRIES","(MKVIB)-Driver-II Grade"]
[1262,"INDUSTRIES","(MKVIB)-Driver-III Grade"]
[1263,"INDUSTRIES","(MKVIB)-Driver-Spl Grade "]
[1264,"INDUSTRIES","(MKVIB)-Dy. C.E.O"]
[1265,"INDUSTRIES","(MKVIB)-Eco. Investigator"]
[1266,"INDUSTRIES","(MKVIB)-Executive Officer"]
[1267,"INDUSTRIES","(MKVIB)-Instructor"]
[1268,"INDUSTRIES","(MKVIB)-IV- Grade"]
[1269,"INDUSTRIES","(MKVIB)-J.E.I"]
[1270,"INDUSTRIES","(MKVIB)-Jr. Technician"]
[1271,"INDUSTRIES","(MKVIB)-Jt. C.E.O"]
[1272,"INDUSTRIES","(MKVIB)-LDC"]
[1273,"INDUSTRIES","(MKVIB)-Mechanic-I"]
[1274,"INDUSTRIES","(MKVIB)-Mechanic-II"]
[1275,"INDUSTRIES","(MKVIB)-Mechanic-II  (Sr)"]
[1276,"INDUSTRIES","(MKVIB)-Mechanic-III"]
[1277,"INDUSTRIES","(MKVIB)-Skilled Worker"]
[1278,"INDUSTRIES","(MKVIB)-Steno-I Grade"]
[1279,"INDUSTRIES","(MKVIB)-Steno-II Grade"]
[1280,"INDUSTRIES","(MKVIB)-Steno-III Grade"]
[1281,"INDUSTRIES","(MKVIB)-Supervisor"]
[1282,"INDUSTRIES","(MKVIB)-UDC"]
[1283,"INDUSTRIES","(ZIDCO)-Accountant"]
[1284,"INDUSTRIES","(ZIDCO)-Accounts Officer"]
[1285,"INDUSTRIES","(ZIDCO)-Asst. Manager"]
[1286,"INDUSTRIES","(ZIDCO)-Asst. Staff Officer"]
[1287,"INDUSTRIES","(ZIDCO)-Driver-I Grade"]
[1288,"INDUSTRIES","(ZIDCO)-Driver-II Grade"]
[1289,"INDUSTRIES","(ZIDCO)-Driver-III Grade"]
[1290,"INDUSTRIES","(ZIDCO)-Driver-Spl Grade "]
[1291,"INDUSTRIES","(ZIDCO)-Duftry"]
[1292,"INDUSTRIES","(ZIDCO)-Dy. Manager"]
[1293,"INDUSTRIES","(ZIDCO)-General Manager"]
[1294,"INDUSTRIES","(ZIDCO)-Jr. Accountant"]
[1295,"INDUSTRIES","(ZIDCO)-LDC"]
[1296,"INDUSTRIES","(ZIDCO)-Manager"]
[1297,"INDUSTRIES","(ZIDCO)-Peon"]
[1298,"INDUSTRIES","(ZIDCO)-PS to MD"]
[1299,"INDUSTRIES","(ZIDCO)-Staff Assistant"]
[1300,"INDUSTRIES","(ZIDCO)-Staff Officer"]
[1301,"INDUSTRIES","(ZIDCO)-UDC"]
[1302,"INDUSTRIES","(ZOHANDCO)-Accountant"]
[1303,"INDUSTRIES","(ZOHANDCO)-Accountant-cum-Sk"]
[1304,"INDUSTRIES","(ZOHANDCO)-Assistant"]
[1305,"INDUSTRIES","(ZOHANDCO)-Asst. Manager (A)"]
[1306,"INDUSTRIES","(ZOHANDCO)-Asst. Manager (M)"]
[1307,"INDUSTRIES","(ZOHANDCO)-Asst. Manager (P)"]
[1308,"INDUSTRIES","(ZOHANDCO)-Asst. Manager (S)"]
[1309,"INDUSTRIES","(ZOHANDCO)-Carpenter"]
[1310,"INDUSTRIES","(ZOHANDCO)-Cashier-cum-Sk"]
[1311,"INDUSTRIES","(ZOHANDCO)-Despatch Rider"]
[1312,"INDUSTRIES","(ZOHANDCO)-Driver-I Grade"]
[1313,"INDUSTRIES","(ZOHANDCO)-Driver-II Grade"]
[1314,"INDUSTRIES","(ZOHANDCO)-Driver-III Grade"]
[1315,"INDUSTRIES","(ZOHANDCO)-Driver-Spl Grade"]
[1316,"INDUSTRIES","(ZOHANDCO)-Dy. Manager"]
[1317,"INDUSTRIES","(ZOHANDCO)-General Manager"]
[1318,"INDUSTRIES","(ZOHANDCO)-IV- Grade"]
[1319,"INDUSTRIES","(ZOHANDCO)-Jr. Accountant"]
[1320,"INDUSTRIES","(ZOHANDCO)-Jr. Marketing  Assistant"]
[1321,"INDUSTRIES","(ZOHANDCO)-Jr. Production Assistant"]
[1322,"INDUSTRIES","(ZOHANDCO)-LDC"]
[1323,"INDUSTRIES","(ZOHANDCO)-Marketing  Assistant"]
[1324,"INDUSTRIES","(ZOHANDCO)-Production Assistant"]
[1325,"INDUSTRIES","(ZOHANDCO)-Project  Assistant"]
[1326,"INDUSTRIES","(ZOHANDCO)-Project  Manager"]
[1327,"INDUSTRIES","(ZOHANDCO)-Sale Assistant"]
[1328,"INDUSTRIES","(ZOHANDCO)-Steno-I Grade"]
[1329,"INDUSTRIES","(ZOHANDCO)-Steno-II Grade"]
[1330,"INDUSTRIES","(ZOHANDCO)-Steno-III Grade"]
[1331,"INDUSTRIES","(ZOHANDCO)-Superintendent"]
[1332,"INDUSTRIES","(ZOHANDCO)-Textile Designer"]
[1333,"INDUSTRIES","(ZOHANDCO)-UDC"]
[1334,"INDUSTRIES","(ZOHANDCO)-Wraper-cum-Skweaver"]
[1335,"INDUSTRIES","A.I."]
[1336,"INDUSTRIES","Accountant"]
[1337,"INDUSTRIES","Addl. Director of Industries"]
[1338,"INDUSTRIES","Apiarist"]
[1339,"INDUSTRIES","Assistant"]
[1340,"INDUSTRIES","Asst. Controller of Mines"]
[1341,"INDUSTRIES","Asst. Director of Ind. (H)"]
[1342,"INDUSTRIES","Asst. Engineer"]
[1343,"INDUSTRIES","ATO"]
[1344,"INDUSTRIES","AVO"]
[1345,"INDUSTRIES","B/O"]
[1346,"INDUSTRIES","BKD"]
[1347,"INDUSTRIES","CE"]
[1348,"INDUSTRIES","Chowkidar"]
[1349,"INDUSTRIES","CRI"]
[1350,"INDUSTRIES","D. Manager"]
[1351,"INDUSTRIES","D/O"]
[1352,"INDUSTRIES","DEO"]
[1353,"INDUSTRIES","Director of Industries"]
[1354,"INDUSTRIES","Draftman"]
[1355,"INDUSTRIES","Draftman-II"]
[1356,"INDUSTRIES","Driller"]
[1357,"INDUSTRIES","Drilling Asst."]
[1358,"INDUSTRIES","Driver-I Grade"]
[1359,"INDUSTRIES","Driver-II Grade"]
[1360,"INDUSTRIES","Driver-III Grade"]
[1361,"INDUSTRIES","Driver-Spl Grade "]
[1362,"INDUSTRIES","Duftry"]
[1363,"INDUSTRIES","Dy. Director (Accounts)"]
[1364,"INDUSTRIES","Dy. Director (Admn)"]
[1365,"INDUSTRIES","Dy. Director of Industries"]
[1366,"INDUSTRIES","EI"]
[1367,"INDUSTRIES","Electrician"]
[1368,"INDUSTRIES","EO"]
[1369,"INDUSTRIES","Field Asst."]
[1370,"INDUSTRIES","Finance & Accounts Officer"]
[1371,"INDUSTRIES","Fitter"]
[1372,"INDUSTRIES","Foreman"]
[1373,"INDUSTRIES","Functional Manager"]
[1374,"INDUSTRIES","G/D"]
[1375,"INDUSTRIES","General Manager"]
[1376,"INDUSTRIES","Geologist (Junior)"]
[1377,"INDUSTRIES","Geologist (Senior)"]
[1378,"INDUSTRIES","Geophysicist (Junior)"]
[1379,"INDUSTRIES","H/O"]
[1380,"INDUSTRIES","HD"]
[1381,"INDUSTRIES","Helper"]
[1382,"INDUSTRIES","IPO"]
[1383,"INDUSTRIES","IV-Grade"]
[1384,"INDUSTRIES","JCI"]
[1385,"INDUSTRIES","JCI (K & B)"]
[1386,"INDUSTRIES","Jr. Geologist"]
[1387,"INDUSTRIES","Jr. Instructor"]
[1388,"INDUSTRIES","Jt. Technician"]
[1389,"INDUSTRIES","Jt.Director of Industries"]
[1390,"INDUSTRIES","Jugali"]
[1391,"INDUSTRIES","Junior Engineer"]
[1392,"INDUSTRIES","K/D"]
[1393,"INDUSTRIES","K/I"]
[1394,"INDUSTRIES","Lab. Assistant"]
[1395,"INDUSTRIES","LDC"]
[1396,"INDUSTRIES","Manager"]
[1397,"INDUSTRIES","Manager (C & B)"]
[1398,"INDUSTRIES","Mechanic"]
[1399,"INDUSTRIES","Mechanic-II"]
[1400,"INDUSTRIES","Mine Surveyor"]
[1401,"INDUSTRIES","P.M"]
[1402,"INDUSTRIES","PM (H)"]
[1403,"INDUSTRIES","PM (Production)"]
[1404,"INDUSTRIES","Printer"]
[1405,"INDUSTRIES","RI"]
[1406,"INDUSTRIES","S.D.I.O"]
[1407,"INDUSTRIES","S/C"]
[1408,"INDUSTRIES","S/W"]
[1409,"INDUSTRIES","Sale Girl"]
[1410,"INDUSTRIES","SC"]
[1411,"INDUSTRIES","SCI"]
[1412,"INDUSTRIES","SDIO"]
[1413,"INDUSTRIES","Section Assistant"]
[1414,"INDUSTRIES","Section Cutter"]
[1415,"INDUSTRIES","Sr. Technician"]
[1416,"INDUSTRIES","Sr.Lab. Technician"]
[1417,"INDUSTRIES","SSW"]
[1418,"INDUSTRIES","Steno-I Grade"]
[1419,"INDUSTRIES","Steno-II Grade"]
[1420,"INDUSTRIES","Steno-III Grade"]
[1421,"INDUSTRIES","Superintendent"]
[1422,"INDUSTRIES","Supervisor"]
[1423,"INDUSTRIES","Surveyor-I"]
[1424,"INDUSTRIES","TO (E)"]
[1425,"INDUSTRIES","Turner"]
[1426,"INDUSTRIES","UDC"]
[1427,"INDUSTRIES","W/J"]
[1428,"INDUSTRIES","WD"]
[1429,"INDUSTRIES","Welder-III"]
[1430,"INDUSTRIES","WI"]
[1431,"INFORMATION & PUBLIC RELATIONS","Artist"]
[1432,"INFORMATION & PUBLIC RELATIONS","Assistant"]
[1433,"INFORMATION & PUBLIC RELATIONS","Asst. Khadi Inspector"]
[1434,"INFORMATION & PUBLIC RELATIONS","Asst. Tech. Officer"]
[1435,"INFORMATION & PUBLIC RELATIONS","Audio Visual Operator"]
[1436,"INFORMATION & PUBLIC RELATIONS","Boiler Operator - I"]
[1437,"INFORMATION & PUBLIC RELATIONS","Boiler Operator - II"]
[1438,"INFORMATION & PUBLIC RELATIONS","Cameraman"]
[1439,"INFORMATION & PUBLIC RELATIONS","carpentry Expert"]
[1440,"INFORMATION & PUBLIC RELATIONS","Cleaner"]
[1441,"INFORMATION & PUBLIC RELATIONS","Craft Research Investigator"]
[1442,"INFORMATION & PUBLIC RELATIONS","Darkroom Asst"]
[1443,"INFORMATION & PUBLIC RELATIONS","Depot Manager"]
[1444,"INFORMATION & PUBLIC RELATIONS","Despatch Rider"]
[1445,"INFORMATION & PUBLIC RELATIONS","Director"]
[1446,"INFORMATION & PUBLIC RELATIONS","Driver-I Grade"]
[1447,"INFORMATION & PUBLIC RELATIONS","Driver-II Grade"]
[1448,"INFORMATION & PUBLIC RELATIONS","Driver-III Grade"]
[1449,"INFORMATION & PUBLIC RELATIONS","Driver-Spl Grade "]
[1450,"INFORMATION & PUBLIC RELATIONS","Dy. Director (Admn)"]
[1451,"INFORMATION & PUBLIC RELATIONS","Dyer"]
[1452,"INFORMATION & PUBLIC RELATIONS","EO/EI"]
[1453,"INFORMATION & PUBLIC RELATIONS","Extension Officer (H)"]
[1454,"INFORMATION & PUBLIC RELATIONS","Foreman (Mechanic)"]
[1455,"INFORMATION & PUBLIC RELATIONS","Foreman (RSW)"]
[1456,"INFORMATION & PUBLIC RELATIONS","Fruit Pre. Technician"]
[1457,"INFORMATION & PUBLIC RELATIONS","Gestener Operator"]
[1458,"INFORMATION & PUBLIC RELATIONS","Handloom Designer"]
[1459,"INFORMATION & PUBLIC RELATIONS","Handloom Officer"]
[1460,"INFORMATION & PUBLIC RELATIONS","Handloom Research Investigator"]
[1461,"INFORMATION & PUBLIC RELATIONS","Industrial Promotion Officer"]
[1462,"INFORMATION & PUBLIC RELATIONS","Instructor (Blacksmithy)"]
[1463,"INFORMATION & PUBLIC RELATIONS","Instructor (IMP Tools)"]
[1464,"INFORMATION & PUBLIC RELATIONS","IPRO"]
[1465,"INFORMATION & PUBLIC RELATIONS","Jr. Craft Instructor"]
[1466,"INFORMATION & PUBLIC RELATIONS","Jt.Director"]
[1467,"INFORMATION & PUBLIC RELATIONS","Lab. Assistant (G&M) for B.Sc."]
[1468,"INFORMATION & PUBLIC RELATIONS","Laboratory Assistant (B.Sc.)"]
[1469,"INFORMATION & PUBLIC RELATIONS","LDC"]
[1470,"INFORMATION & PUBLIC RELATIONS","Lib-cum-Receptionist"]
[1471,"INFORMATION & PUBLIC RELATIONS","Manager (Dyeing)"]
[1472,"INFORMATION & PUBLIC RELATIONS","Manager Sales Emporium"]
[1473,"INFORMATION & PUBLIC RELATIONS","Mechanic Grade - I"]
[1474,"INFORMATION & PUBLIC RELATIONS","Peon-I"]
[1475,"INFORMATION & PUBLIC RELATIONS","Peon-II"]
[1476,"INFORMATION & PUBLIC RELATIONS","Peon-III"]
[1477,"INFORMATION & PUBLIC RELATIONS","Photographer"]
[1478,"INFORMATION & PUBLIC RELATIONS","Production Asst/ Tech. Asst."]
[1479,"INFORMATION & PUBLIC RELATIONS","Production Manager"]
[1480,"INFORMATION & PUBLIC RELATIONS","Project Foreman/ Production Manager"]
[1481,"INFORMATION & PUBLIC RELATIONS","Recorder"]
[1482,"INFORMATION & PUBLIC RELATIONS","Sr. Craft Instructor"]
[1483,"INFORMATION & PUBLIC RELATIONS","Steno-I Grade"]
[1484,"INFORMATION & PUBLIC RELATIONS","Steno-II Grade"]
[1485,"INFORMATION & PUBLIC RELATIONS","Steno-III Grade"]
[1486,"INFORMATION & PUBLIC RELATIONS","Superintendent "]
[1487,"INFORMATION & PUBLIC RELATIONS","Surveyor - I (G&M)"]
[1488,"INFORMATION & PUBLIC RELATIONS","Technical Asst"]
[1489,"INFORMATION & PUBLIC RELATIONS","AV Production Assistant-I"]
[1490,"INFORMATION & PUBLIC RELATIONS","AV Production Assistant-II"]
[1491,"INFORMATION & PUBLIC RELATIONS","AV Production Assistant-III"]
[1492,"INFORMATION & PUBLIC RELATIONS","UDC"]
[1493,"INFORMATION & PUBLIC RELATIONS","Weaving/ Khadi Insptr."]
[1494,"INFORMATION & PUBLIC RELATIONS","Wood Machinist cum Tool Setter"]
[1495,"INFORMATION AND COMMUNICATION TECHNOLOGY","(ZENICS)-Accountant"]
[1496,"INFORMATION AND COMMUNICATION TECHNOLOGY","(ZENICS)-Accounts Officer"]
[1497,"INFORMATION AND COMMUNICATION TECHNOLOGY","(ZENICS)-Admn. Officer"]
[1498,"INFORMATION AND COMMUNICATION TECHNOLOGY","(ZENICS)-Assistant"]
[1499,"INFORMATION AND COMMUNICATION TECHNOLOGY","(ZENICS)-Asst. Accountant"]
[1500,"INFORMATION AND COMMUNICATION TECHNOLOGY","(ZENICS)-Asst. Manager"]
[1501,"INFORMATION AND COMMUNICATION TECHNOLOGY","(ZENICS)-Asst. Programer"]
[1502,"INFORMATION AND COMMUNICATION TECHNOLOGY","(ZENICS)-Computer Operator"]
[1503,"INFORMATION AND COMMUNICATION TECHNOLOGY","(ZENICS)-Data Entry Operator"]
[1504,"INFORMATION AND COMMUNICATION TECHNOLOGY","(ZENICS)-Driver-I Grade"]
[1505,"INFORMATION AND COMMUNICATION TECHNOLOGY","(ZENICS)-Driver-II Grade"]
[1506,"INFORMATION AND COMMUNICATION TECHNOLOGY","(ZENICS)-Driver-III Grade"]
[1507,"INFORMATION AND COMMUNICATION TECHNOLOGY","(ZENICS)-Driver-Spl Grade"]
[1508,"INFORMATION AND COMMUNICATION TECHNOLOGY","(ZENICS)-General Manager"]
[1509,"INFORMATION AND COMMUNICATION TECHNOLOGY","(ZENICS)-IV-Grade"]
[1510,"INFORMATION AND COMMUNICATION TECHNOLOGY","(ZENICS)-Jr. Technician"]
[1511,"INFORMATION AND COMMUNICATION TECHNOLOGY","(ZENICS)-LDC"]
[1512,"INFORMATION AND COMMUNICATION TECHNOLOGY","(ZENICS)-Manager"]
[1513,"INFORMATION AND COMMUNICATION TECHNOLOGY","(ZENICS)-Managing Director"]
[1514,"INFORMATION AND COMMUNICATION TECHNOLOGY","(ZENICS)-Sr. Technician"]
[1515,"INFORMATION AND COMMUNICATION TECHNOLOGY","(ZENICS)-Steno-I Grade"]
[1516,"INFORMATION AND COMMUNICATION TECHNOLOGY","(ZENICS)-Steno-II Grade"]
[1517,"INFORMATION AND COMMUNICATION TECHNOLOGY","(ZENICS)-Steno-III Grade"]
[1518,"INFORMATION AND COMMUNICATION TECHNOLOGY","(ZENICS)-Technician"]
[1519,"INFORMATION AND COMMUNICATION TECHNOLOGY","(ZENICS)-UDC"]
[1520,"INFORMATION AND COMMUNICATION TECHNOLOGY","Assistant"]
[1521,"INFORMATION AND COMMUNICATION TECHNOLOGY","Chief Informatics Officer"]
[1522,"INFORMATION AND COMMUNICATION TECHNOLOGY","Computer Maint. Engineer"]
[1523,"INFORMATION AND COMMUNICATION TECHNOLOGY","Computer Operator"]
[1524,"INFORMATION AND COMMUNICATION TECHNOLOGY","Dy. Director (Admn)"]
[1525,"INFORMATION AND COMMUNICATION TECHNOLOGY","Finance & Accounts Officer"]
[1526,"INFORMATION AND COMMUNICATION TECHNOLOGY","IV-Grade"]
[1527,"INFORMATION AND COMMUNICATION TECHNOLOGY","LDC"]
[1528,"INFORMATION AND COMMUNICATION TECHNOLOGY","Network Administrator"]
[1529,"INFORMATION AND COMMUNICATION TECHNOLOGY","Principal  Informatics Officer"]
[1530,"INFORMATION AND COMMUNICATION TECHNOLOGY","Senior System Analyst"]
[1531,"INFORMATION AND COMMUNICATION TECHNOLOGY","Steno-I Grade"]
[1532,"INFORMATION AND COMMUNICATION TECHNOLOGY","Steno-II Grade"]
[1533,"INFORMATION AND COMMUNICATION TECHNOLOGY","Steno-III Grade"]
[1534,"INFORMATION AND COMMUNICATION TECHNOLOGY","Superintendent"]
[1535,"INFORMATION AND COMMUNICATION TECHNOLOGY","Sys Operator & Maintenance"]
[1536,"INFORMATION AND COMMUNICATION TECHNOLOGY","System Administrator"]
[1537,"INFORMATION AND COMMUNICATION TECHNOLOGY","System Analyst"]
[1538,"INFORMATION AND COMMUNICATION TECHNOLOGY","System Engineer"]
[1539,"INFORMATION AND COMMUNICATION TECHNOLOGY","System Integrator"]
[1540,"INFORMATION AND COMMUNICATION TECHNOLOGY","Technician"]
[1541,"INFORMATION AND COMMUNICATION TECHNOLOGY","UDC"]
[1542,"INFORMATION AND COMMUNICATION TECHNOLOGY","Web Content Developer"]
[1543,"LABOUR & EMPLOYMENT","(YOUTH COMMISSION)-Assistant"]
[1544,"LABOUR & EMPLOYMENT","(YOUTH COMMISSION)-Despatch Rider"]
[1545,"LABOUR & EMPLOYMENT","(YOUTH COMMISSION)-IV-Grade"]
[1546,"LABOUR & EMPLOYMENT","(YOUTH COMMISSION)-LDC"]
[1547,"LABOUR & EMPLOYMENT","(YOUTH COMMISSION)-Secretary"]
[1548,"LABOUR & EMPLOYMENT","(YOUTH COMMISSION)-Steno-I Grade"]
[1549,"LABOUR & EMPLOYMENT","(YOUTH COMMISSION)-Steno-II Grade"]
[1550,"LABOUR & EMPLOYMENT","(YOUTH COMMISSION)-Steno-III Grade"]
[1551,"LABOUR & EMPLOYMENT","(YOUTH COMMISSION)-Superintendent"]
[1552,"LABOUR & EMPLOYMENT","(YOUTH COMMISSION)-UDC"]
[1553,"LABOUR & EMPLOYMENT","(YOUTH COMMISSION)-Under Secretary"]
[1554,"LABOUR & EMPLOYMENT","(YOUTH COMMISSION)-Youth Commission Officer"]
[1555,"LABOUR & EMPLOYMENT","Accountant"]
[1556,"LABOUR & EMPLOYMENT","Assistant"]
[1557,"LABOUR & EMPLOYMENT","Asst. Labour Officer"]
[1558,"LABOUR & EMPLOYMENT","Conductor"]
[1559,"LABOUR & EMPLOYMENT","Director"]
[1560,"LABOUR & EMPLOYMENT","Dist.Employment Officer"]
[1561,"LABOUR & EMPLOYMENT","Driver-I Grade"]
[1562,"LABOUR & EMPLOYMENT","Driver-II Grade"]
[1563,"LABOUR & EMPLOYMENT","Driver-III Grade"]
[1564,"LABOUR & EMPLOYMENT","Driver-Spl Grade"]
[1565,"LABOUR & EMPLOYMENT","Dy. Director "]
[1566,"LABOUR & EMPLOYMENT","Dy. Labour Commissioner"]
[1567,"LABOUR & EMPLOYMENT","Employment Officer"]
[1568,"LABOUR & EMPLOYMENT","Group Instructor"]
[1569,"LABOUR & EMPLOYMENT","Group Instructor (to be Instructor Sel. Gr)"]
[1570,"LABOUR & EMPLOYMENT","Inspector of Factories"]
[1571,"LABOUR & EMPLOYMENT","Inspector of Statistics"]
[1572,"LABOUR & EMPLOYMENT","Instructor (Entry Grade)"]
[1573,"LABOUR & EMPLOYMENT","Instructor (Sel Grade)"]
[1574,"LABOUR & EMPLOYMENT","Instructor (Senior Grade)"]
[1575,"LABOUR & EMPLOYMENT","IV-Grade"]
[1576,"LABOUR & EMPLOYMENT","Jr. Employment Officer"]
[1577,"LABOUR & EMPLOYMENT","Jt.Director"]
[1578,"LABOUR & EMPLOYMENT","Junior Engineer"]
[1579,"LABOUR & EMPLOYMENT","Labour Officer"]
[1580,"LABOUR & EMPLOYMENT","LDC"]
[1581,"LABOUR & EMPLOYMENT","Principal"]
[1582,"LABOUR & EMPLOYMENT","Steno-I Grade"]
[1583,"LABOUR & EMPLOYMENT","Steno-II Grade"]
[1584,"LABOUR & EMPLOYMENT","Steno-III Grade"]
[1585,"LABOUR & EMPLOYMENT","Store Keeper"]
[1586,"LABOUR & EMPLOYMENT","Sub-Inspector of Statistics"]
[1587,"LABOUR & EMPLOYMENT","Superintendent "]
[1588,"LABOUR & EMPLOYMENT","Supervisor"]
[1589,"LABOUR & EMPLOYMENT","Supervisor (to be Instructor Sel. Gr)"]
[1590,"LABOUR & EMPLOYMENT","UDC"]
[1591,"LABOUR & EMPLOYMENT","Vice Principal"]
[1592,"LABOUR & EMPLOYMENT","Vice Principal (ITI)"]
[1593,"LAND REVENUE & SETTLEMENT","Accountant"]
[1594,"LAND REVENUE & SETTLEMENT","Assistant"]
[1595,"LAND REVENUE & SETTLEMENT","Asst. Director"]
[1596,"LAND REVENUE & SETTLEMENT","Asst. Settlement Officer"]
[1597,"LAND REVENUE & SETTLEMENT","Asst.Director of Survey"]
[1598,"LAND REVENUE & SETTLEMENT","Cartographer"]
[1599,"LAND REVENUE & SETTLEMENT","Cartographer -I Grade"]
[1600,"LAND REVENUE & SETTLEMENT","Chowkidar"]
[1601,"LAND REVENUE & SETTLEMENT","Data Entry Operator"]
[1602,"LAND REVENUE & SETTLEMENT","Director"]
[1603,"LAND REVENUE & SETTLEMENT","Driver-I Grade"]
[1604,"LAND REVENUE & SETTLEMENT","Driver-II Grade"]
[1605,"LAND REVENUE & SETTLEMENT","Driver-III Grade"]
[1606,"LAND REVENUE & SETTLEMENT","Driver-Spl Grade"]
[1607,"LAND REVENUE & SETTLEMENT","Dy. Director (A)"]
[1608,"LAND REVENUE & SETTLEMENT","Dy. Director of Survey"]
[1609,"LAND REVENUE & SETTLEMENT","Dy.Director"]
[1610,"LAND REVENUE & SETTLEMENT","Finance & Accounts Officer"]
[1611,"LAND REVENUE & SETTLEMENT","Handyman"]
[1612,"LAND REVENUE & SETTLEMENT","Jt. Director (A)"]
[1613,"LAND REVENUE & SETTLEMENT","Jt. Director of Survey"]
[1614,"LAND REVENUE & SETTLEMENT","LDC"]
[1615,"LAND REVENUE & SETTLEMENT","Peon"]
[1616,"LAND REVENUE & SETTLEMENT","Record Keeper"]
[1617,"LAND REVENUE & SETTLEMENT","Revenue Assistant"]
[1618,"LAND REVENUE & SETTLEMENT","Revenue Field Worker"]
[1619,"LAND REVENUE & SETTLEMENT","Revenue Inspector"]
[1620,"LAND REVENUE & SETTLEMENT","Revenue Sub-Inspector"]
[1621,"LAND REVENUE & SETTLEMENT","Settlement Officer"]
[1622,"LAND REVENUE & SETTLEMENT","Steno-I Grade"]
[1623,"LAND REVENUE & SETTLEMENT","Steno-II Grade"]
[1624,"LAND REVENUE & SETTLEMENT","Steno-III Grade"]
[1625,"LAND REVENUE & SETTLEMENT","Store Keeper"]
[1626,"LAND REVENUE & SETTLEMENT","Superintendent"]
[1627,"LAND REVENUE & SETTLEMENT","Surveyor"]
[1628,"LAND REVENUE & SETTLEMENT","Surveyor-I Grade"]
[1629,"LAND REVENUE & SETTLEMENT","Sweeper"]
[1630,"LAND REVENUE & SETTLEMENT","Tracer"]
[1631,"LAND REVENUE & SETTLEMENT","UDC"]
[1632,"LAND REVENUE & SETTLEMENT","Village Assistant"]
[1633,"LAW & JUDICIAL","Addl. Dist. & Session Judge"]
[1634,"LAW & JUDICIAL","Assistant"]
[1635,"LAW & JUDICIAL","Bench Clerk-I Grade "]
[1636,"LAW & JUDICIAL","Bench Clerk-II Grade "]
[1637,"LAW & JUDICIAL","Bench Clerk-III Grade "]
[1638,"LAW & JUDICIAL","Chief Administrative Officer"]
[1639,"LAW & JUDICIAL","Chief Judicial Magistrate"]
[1640,"LAW & JUDICIAL","Civil Judge"]
[1641,"LAW & JUDICIAL","Computer Operator "]
[1642,"LAW & JUDICIAL","Court Manager"]
[1643,"LAW & JUDICIAL","Despatch Rider"]
[1644,"LAW & JUDICIAL","Dist. & Session Judge (Selection)"]
[1645,"LAW & JUDICIAL","District Judge (Supertime)"]
[1646,"LAW & JUDICIAL","Driver-I Grade"]
[1647,"LAW & JUDICIAL","Driver-II Grade"]
[1648,"LAW & JUDICIAL","Driver-III Grade"]
[1649,"LAW & JUDICIAL","Driver-Spl Grade"]
[1650,"LAW & JUDICIAL","IV-Grade"]
[1651,"LAW & JUDICIAL","Jt. Secretary"]
[1652,"LAW & JUDICIAL","Judge"]
[1653,"LAW & JUDICIAL","Judicial Magistrate"]
[1654,"LAW & JUDICIAL","LDC"]
[1655,"LAW & JUDICIAL","Librarian "]
[1656,"LAW & JUDICIAL","Member Secretary"]
[1657,"LAW & JUDICIAL","P.S. to Chairman"]
[1658,"LAW & JUDICIAL","P.S. to Executive Chairman"]
[1659,"LAW & JUDICIAL","Peon"]
[1660,"LAW & JUDICIAL","Peshkar"]
[1661,"LAW & JUDICIAL","Presiding  Offficer"]
[1662,"LAW & JUDICIAL","Principal Judge"]
[1663,"LAW & JUDICIAL","Process Server"]
[1664,"LAW & JUDICIAL","Protocol Asst."]
[1665,"LAW & JUDICIAL","Special Judge"]
[1666,"LAW & JUDICIAL","Sr. Civil Judge"]
[1667,"LAW & JUDICIAL","Steno-I Grade"]
[1668,"LAW & JUDICIAL","Steno-II Grade"]
[1669,"LAW & JUDICIAL","Steno-III Grade"]
[1670,"LAW & JUDICIAL","Sub-Divisional Judicial Magistrate"]
[1671,"LAW & JUDICIAL","Superintendent"]
[1672,"LAW & JUDICIAL","UDC"]
[1673,"Legislative Assembly","Addl. Secretary"]
[1674,"Legislative Assembly","Assistant"]
[1675,"Legislative Assembly","Asst. Editor of Debates"]
[1676,"Legislative Assembly","Asst. Operator"]
[1677,"Legislative Assembly","Bindery Asst."]
[1678,"Legislative Assembly","Committee Officer"]
[1679,"Legislative Assembly","Compositor-III Grade"]
[1680,"Legislative Assembly","Despatch Rider-I Grade"]
[1681,"Legislative Assembly","Despatch Rider-II Grade"]
[1682,"Legislative Assembly","Driver-I Grade"]
[1683,"Legislative Assembly","Driver-II Grade"]
[1684,"Legislative Assembly","Driver-III Grade"]
[1685,"Legislative Assembly","Driver-Spl Grade "]
[1686,"Legislative Assembly","Dy. Secretary"]
[1687,"Legislative Assembly","Editor of Debates"]
[1688,"Legislative Assembly","Framer"]
[1689,"Legislative Assembly","IV-Grade"]
[1690,"Legislative Assembly","Jt. Secretary"]
[1691,"Legislative Assembly","LDC"]
[1692,"Legislative Assembly","Liaison Officer"]
[1693,"Legislative Assembly","Librarian"]
[1694,"Legislative Assembly","Machineman"]
[1695,"Legislative Assembly","Marshal"]
[1696,"Legislative Assembly","Operator"]
[1697,"Legislative Assembly","P.S. to Dy.Speaker"]
[1698,"Legislative Assembly","P.S. to Speaker"]
[1699,"Legislative Assembly","Secretary"]
[1700,"Legislative Assembly","Senior Operator"]
[1701,"Legislative Assembly","Steno-I Grade"]
[1702,"Legislative Assembly","Steno-II Grade"]
[1703,"Legislative Assembly","Steno-III Grade"]
[1704,"Legislative Assembly","Superintendent"]
[1705,"Legislative Assembly","Translator"]
[1706,"Legislative Assembly","UDC"]
[1707,"Legislative Assembly","Under Secretary"]
[1708,"LOCAL ADMINISTRATION DEPARTMENT","A.C.O"]
[1709,"LOCAL ADMINISTRATION DEPARTMENT","A.F.I"]
[1710,"LOCAL ADMINISTRATION DEPARTMENT","Assistant"]
[1711,"LOCAL ADMINISTRATION DEPARTMENT","Asst. Circle Officer"]
[1712,"LOCAL ADMINISTRATION DEPARTMENT","Asst. Director"]
[1713,"LOCAL ADMINISTRATION DEPARTMENT","Asst. Engineer"]
[1714,"LOCAL ADMINISTRATION DEPARTMENT","C.A-I"]
[1715,"LOCAL ADMINISTRATION DEPARTMENT","C.A-II"]
[1716,"LOCAL ADMINISTRATION DEPARTMENT","C.O (Depttll)"]
[1717,"LOCAL ADMINISTRATION DEPARTMENT","C.O (MCS)"]
[1718,"LOCAL ADMINISTRATION DEPARTMENT","Chainman"]
[1719,"LOCAL ADMINISTRATION DEPARTMENT","Chowkidar"]
[1720,"LOCAL ADMINISTRATION DEPARTMENT","Circle Officer"]
[1721,"LOCAL ADMINISTRATION DEPARTMENT","Dev. Engineer"]
[1722,"LOCAL ADMINISTRATION DEPARTMENT","Director"]
[1723,"LOCAL ADMINISTRATION DEPARTMENT","DLAO (Depttll)"]
[1724,"LOCAL ADMINISTRATION DEPARTMENT","DLAO (MCS)"]
[1725,"LOCAL ADMINISTRATION DEPARTMENT","Driver-I Grade"]
[1726,"LOCAL ADMINISTRATION DEPARTMENT","Driver-II Grade"]
[1727,"LOCAL ADMINISTRATION DEPARTMENT","Driver-III Grade"]
[1728,"LOCAL ADMINISTRATION DEPARTMENT","Driver-Spl Grade "]
[1729,"LOCAL ADMINISTRATION DEPARTMENT","Dy. Director"]
[1730,"LOCAL ADMINISTRATION DEPARTMENT","Dy. Director (Accounts)"]
[1731,"LOCAL ADMINISTRATION DEPARTMENT","Executive Engineer"]
[1732,"LOCAL ADMINISTRATION DEPARTMENT","F.I"]
[1733,"LOCAL ADMINISTRATION DEPARTMENT","Handyman"]
[1734,"LOCAL ADMINISTRATION DEPARTMENT","Head C.A"]
[1735,"LOCAL ADMINISTRATION DEPARTMENT","Jt. Director"]
[1736,"LOCAL ADMINISTRATION DEPARTMENT","Junior Engineer"]
[1737,"LOCAL ADMINISTRATION DEPARTMENT","LDC"]
[1738,"LOCAL ADMINISTRATION DEPARTMENT","Peon"]
[1739,"LOCAL ADMINISTRATION DEPARTMENT","Prog. Assistant"]
[1740,"LOCAL ADMINISTRATION DEPARTMENT","Steno-I Grade"]
[1741,"LOCAL ADMINISTRATION DEPARTMENT","Steno-II Grade"]
[1742,"LOCAL ADMINISTRATION DEPARTMENT","Steno-III Grade"]
[1743,"LOCAL ADMINISTRATION DEPARTMENT","Superintendent"]
[1744,"LOCAL ADMINISTRATION DEPARTMENT","Sweeper"]
[1745,"LOCAL ADMINISTRATION DEPARTMENT","Trained  S.A"]
[1746,"LOCAL ADMINISTRATION DEPARTMENT","UDC"]
[1747,"M.P.S.C","Assistant"]
[1748,"M.P.S.C","Asst. Controller of Exam"]
[1749,"M.P.S.C","Chairman"]
[1750,"M.P.S.C","Driver-I Grade"]
[1751,"M.P.S.C","Driver-II Grade"]
[1752,"M.P.S.C","Driver-III Grade"]
[1753,"M.P.S.C","Driver-Spl Grade "]
[1754,"M.P.S.C","Duftry"]
[1755,"M.P.S.C","Dy. Controller of Exam"]
[1756,"M.P.S.C","Dy. Secretary"]
[1757,"M.P.S.C","Jt. Secretary"]
[1758,"M.P.S.C","LDC"]
[1759,"M.P.S.C","Member"]
[1760,"M.P.S.C","P.P.S"]
[1761,"M.P.S.C","Peon"]
[1762,"M.P.S.C","Secretary"]
[1763,"M.P.S.C","Steno-I Grade"]
[1764,"M.P.S.C","Steno-II Grade"]
[1765,"M.P.S.C","Steno-III Grade"]
[1766,"M.P.S.C","Superintendent"]
[1767,"M.P.S.C","UDC"]
[1768,"M.P.S.C","Under Secretary"]
[1769,"MINOR IRRIGATION","Section Assistant (Trained)"]
[1770,"MINOR IRRIGATION","Section Assistant (Un-Trained)"]
[1771,"MINOR IRRIGATION","Assistant"]
[1772,"MINOR IRRIGATION","Asst. Engineer"]
[1773,"MINOR IRRIGATION","Blue Printer"]
[1774,"MINOR IRRIGATION","Chief Engineer"]
[1775,"MINOR IRRIGATION","Chowkidar"]
[1776,"MINOR IRRIGATION","Divisional Accountant"]
[1777,"MINOR IRRIGATION","Draftman-I"]
[1778,"MINOR IRRIGATION","Draftman-II"]
[1779,"MINOR IRRIGATION","Driver-I Grade"]
[1780,"MINOR IRRIGATION","Driver-II Grade"]
[1781,"MINOR IRRIGATION","Driver-III Grade"]
[1782,"MINOR IRRIGATION","Driver-Spl Grade "]
[1783,"MINOR IRRIGATION","Duftry"]
[1784,"MINOR IRRIGATION","Dy. Director (Admn)"]
[1785,"MINOR IRRIGATION","Executive Engineer"]
[1786,"MINOR IRRIGATION","Finance & Accounts Officer"]
[1787,"MINOR IRRIGATION","Fitter"]
[1788,"MINOR IRRIGATION","G.R"]
[1789,"MINOR IRRIGATION","Group 'D'"]
[1790,"MINOR IRRIGATION","Inspector of Statistics"]
[1791,"MINOR IRRIGATION","Junior Engineer"]
[1792,"MINOR IRRIGATION","LDC"]
[1793,"MINOR IRRIGATION","Peon"]
[1794,"MINOR IRRIGATION","Research Officer"]
[1795,"MINOR IRRIGATION","Steno-I Grade"]
[1796,"MINOR IRRIGATION","Steno-II Grade"]
[1797,"MINOR IRRIGATION","Steno-III Grade"]
[1798,"MINOR IRRIGATION","Sub-Divisional Officer"]
[1799,"MINOR IRRIGATION","Superintendent "]
[1800,"MINOR IRRIGATION","Superintendent of Engineer"]
[1801,"MINOR IRRIGATION","Surveyor-II"]
[1802,"MINOR IRRIGATION","Surveyor-III"]
[1803,"MINOR IRRIGATION","Sweeper"]
[1804,"MINOR IRRIGATION","Tracer"]
[1805,"MINOR IRRIGATION","UDC"]
[1806,"ORGANISED SERVICE","MAS (Agri) Grade - IV"]
[1807,"ORGANISED SERVICE","MAS (Agri) Grade - V"]
[1808,"ORGANISED SERVICE","MHS (Health) Grade - I"]
[1809,"ORGANISED SERVICE","MHS (Health) Special Grade"]
[1810,"ORGANISED SERVICE","MHS (Horti) Grade - IV"]
[1811,"ORGANISED SERVICE","MHS (Horti) Grade - V"]
[1812,"P.& A.R.","Assistant"]
[1813,"P.& A.R.","Asst. Director, ATI"]
[1814,"P.& A.R.","Chowkidar"]
[1815,"P.& A.R.","Comp. Operator-cum-Tech."]
[1816,"P.& A.R.","Despatch Rider"]
[1817,"P.& A.R.","Director, ATI"]
[1818,"P.& A.R.","Driver-I Grade"]
[1819,"P.& A.R.","Driver-II Grade"]
[1820,"P.& A.R.","Driver-III Grade"]
[1821,"P.& A.R.","Driver-Spl Grade "]
[1822,"P.& A.R.","Duftry"]
[1823,"P.& A.R.","Dy. Director, ATI"]
[1824,"P.& A.R.","Jt. Director, ATI"]
[1825,"P.& A.R.","LDC"]
[1826,"P.& A.R.","Librarian"]
[1827,"P.& A.R.","Machine Operator"]
[1828,"P.& A.R.","Peon"]
[1829,"P.& A.R.","Programer, IT Cell"]
[1830,"P.& A.R.","Steno-I Grade"]
[1831,"P.& A.R.","Steno-II Grade"]
[1832,"P.& A.R.","Steno-III Grade"]
[1833,"P.& A.R.","Superintendent"]
[1834,"P.& A.R.","UDC"]
[1835,"P.H.E.","Analyst (Lab)"]
[1836,"P.H.E.","Assistant"]
[1837,"P.H.E.","Asst. Divisional Accountant"]
[1838,"P.H.E.","Asst. Driller"]
[1839,"P.H.E.","Asst. Engineer"]
[1840,"P.H.E.","Asst. Hydro"]
[1841,"P.H.E.","Asst. Mechanic"]
[1842,"P.H.E.","Auditor"]
[1843,"P.H.E.","Bacteriologist"]
[1844,"P.H.E.","Blue Printer"]
[1845,"P.H.E.","Carpenter"]
[1846,"P.H.E.","Chemist"]
[1847,"P.H.E.","Chief Chemist"]
[1848,"P.H.E.","Chief Engineer"]
[1849,"P.H.E.","D/Man"]
[1850,"P.H.E.","D/Man-I"]
[1851,"P.H.E.","D/Man-II"]
[1852,"P.H.E.","DEO"]
[1853,"P.H.E.","Div. Mechanic"]
[1854,"P.H.E.","Divisional Accountant"]
[1855,"P.H.E.","Driver-I Grade"]
[1856,"P.H.E.","Driver-II Grade"]
[1857,"P.H.E.","Driver-III Grade"]
[1858,"P.H.E.","Driver-Spl Grade "]
[1859,"P.H.E.","Duftry"]
[1860,"P.H.E.","Dy. Director (Accounts.)"]
[1861,"P.H.E.","Dy. Director (Admn)"]
[1862,"P.H.E.","Electrician-I"]
[1863,"P.H.E.","Electrician-II"]
[1864,"P.H.E.","Engineer-in-Chief"]
[1865,"P.H.E.","Executive Engineer"]
[1866,"P.H.E.","Executive Engineer (Senior)"]
[1867,"P.H.E.","Finance & Accounts Officer"]
[1868,"P.H.E.","H.P Mechanic"]
[1869,"P.H.E.","Hydrogeologist"]
[1870,"P.H.E.","Inspector of Statistics"]
[1871,"P.H.E.","Junior Engineer"]
[1872,"P.H.E.","Khalasi"]
[1873,"P.H.E.","Lab. Analyst"]
[1874,"P.H.E.","Lab. Attendant"]
[1875,"P.H.E.","Lab.Assistant"]
[1876,"P.H.E.","Lab.Technician"]
[1877,"P.H.E.","LDC"]
[1878,"P.H.E.","O.S-II"]
[1879,"P.H.E.","Office Chowkidar"]
[1880,"P.H.E.","Peon"]
[1881,"P.H.E.","PH Chowkidar"]
[1882,"P.H.E.","Plant Operator"]
[1883,"P.H.E.","Plumber"]
[1884,"P.H.E.","Programer"]
[1885,"P.H.E.","Pump Operator"]
[1886,"P.H.E.","Sample Collector"]
[1887,"P.H.E.","Section Assistant"]
[1888,"P.H.E.","Sr. Chemist"]
[1889,"P.H.E.","Sr. Chemist"]
[1890,"P.H.E.","Sr.Analyst"]
[1891,"P.H.E.","Steno-I Grade"]
[1892,"P.H.E.","Steno-II Grade"]
[1893,"P.H.E.","Steno-III Grade"]
[1894,"P.H.E.","Store Keeper"]
[1895,"P.H.E.","Sub-Divisional Officer"]
[1896,"P.H.E.","Superintendent "]
[1897,"P.H.E.","Superintendent of Engineer"]
[1898,"P.H.E.","Surveyor"]
[1899,"P.H.E.","Sweeper"]
[1900,"P.H.E.","System Analyst"]
[1901,"P.H.E.","Tracer"]
[1902,"P.H.E.","Trained Section Assistant"]
[1903,"P.H.E.","UDC"]
[1904,"P.H.E.","Valveman"]
[1905,"P.H.E.","W/S Chowkidar"]
[1906,"P.H.E.","Welder"]
[1907,"P.W.D.","Architect"]
[1908,"P.W.D.","Architect Draftman"]
[1909,"P.W.D.","Assistant"]
[1910,"P.W.D.","Asst. Architect"]
[1911,"P.W.D.","Asst. Divisional Accountant"]
[1912,"P.W.D.","Asst. Engineer"]
[1913,"P.W.D.","Blacksmith"]
[1914,"P.W.D.","Blue Printer"]
[1915,"P.W.D.","Boatman"]
[1916,"P.W.D.","Carpenter"]
[1917,"P.W.D.","Chief Architect"]
[1918,"P.W.D.","Chief Engineer"]
[1919,"P.W.D.","Chowkider"]
[1920,"P.W.D.","Divisional Accountant"]
[1921,"P.W.D.","Draftman-I"]
[1922,"P.W.D.","Draftman-II"]
[1923,"P.W.D.","Draftman-III"]
[1924,"P.W.D.","Driller"]
[1925,"P.W.D.","Driver-I Grade"]
[1926,"P.W.D.","Driver-II Grade"]
[1927,"P.W.D.","Driver-III Grade"]
[1928,"P.W.D.","Driver-Spl Grade "]
[1929,"P.W.D.","Duftry"]
[1930,"P.W.D.","Dy. Director (Admn)"]
[1931,"P.W.D.","Electrician-I"]
[1932,"P.W.D.","Electrician-II"]
[1933,"P.W.D.","Electrict Fitter"]
[1934,"P.W.D.","Engineer-in-Chief"]
[1935,"P.W.D.","EPABX Operator"]
[1936,"P.W.D.","Executive Engineer"]
[1937,"P.W.D.","Executive Engineer (Senior)"]
[1938,"P.W.D.","Finance & Accounts Officer"]
[1939,"P.W.D.","Gate Keeper"]
[1940,"P.W.D.","Handyman"]
[1941,"P.W.D.","Head Assistant"]
[1942,"P.W.D.","IB Chowkidar"]
[1943,"P.W.D.","Inspector of Statistics"]
[1944,"P.W.D.","Jt. Director (Accounts)"]
[1945,"P.W.D.","Jugali"]
[1946,"P.W.D.","Junior Engineer"]
[1947,"P.W.D.","LAC"]
[1948,"P.W.D.","LDC"]
[1949,"P.W.D.","Mechanic-I"]
[1950,"P.W.D.","Mechanic-II"]
[1951,"P.W.D.","Overseer-II"]
[1952,"P.W.D.","Peon"]
[1953,"P.W.D.","Plant Operator"]
[1954,"P.W.D.","Research Officer"]
[1955,"P.W.D.","S.D.O"]
[1956,"P.W.D.","Section Asst. (Trained)"]
[1957,"P.W.D.","SLAO"]
[1958,"P.W.D.","SR & RS"]
[1959,"P.W.D.","Sr. Architect"]
[1960,"P.W.D.","Steno-I Grade"]
[1961,"P.W.D.","Steno-II Grade"]
[1962,"P.W.D.","Steno-III Grade"]
[1963,"P.W.D.","Superintendent "]
[1964,"P.W.D.","Superintendent of Engineer"]
[1965,"P.W.D.","Surveyor"]
[1966,"P.W.D.","Sweeper"]
[1967,"P.W.D.","Tinsmith"]
[1968,"P.W.D.","UDC"]
[1969,"P.W.D.","Welder"]
[1970,"P.W.D.","Wireman"]
[1971,"P.W.D.","WW Fitter"]
[1972,"Parliamentary Affairs","DGCW"]
[1973,"Parliamentary Affairs","Driver-I Grade"]
[1974,"Parliamentary Affairs","Driver-II Grade"]
[1975,"Parliamentary Affairs","Driver-III Grade"]
[1976,"Parliamentary Affairs","Driver-Spl Grade "]
[1977,"Parliamentary Affairs","LDC"]
[1978,"Parliamentary Affairs","P.S. to DGCW"]
[1979,"Parliamentary Affairs","Peon"]
[1980,"Parliamentary Affairs","Steno-I Grade"]
[1981,"Parliamentary Affairs","Steno-II Grade"]
[1982,"Parliamentary Affairs","Steno-III Grade"]
[1983,"Parliamentary Affairs","UDC"]
[1984,"Planning & Program Implementation","Adviser"]
[1985,"Planning & Program Implementation","Artist"]
[1986,"Planning & Program Implementation","Assistant"]
[1987,"Planning & Program Implementation","Chief Planning Officer"]
[1988,"Planning & Program Implementation","Compositor"]
[1989,"Planning & Program Implementation","Computer Operator"]
[1990,"Planning & Program Implementation","Consultant"]
[1991,"Planning & Program Implementation","Despatch Rider-I Grade"]
[1992,"Planning & Program Implementation","Director"]
[1993,"Planning & Program Implementation","Driver-I Grade"]
[1994,"Planning & Program Implementation","Driver-II Grade"]
[1995,"Planning & Program Implementation","Driver-III Grade"]
[1996,"Planning & Program Implementation","Driver-Spl Grade "]
[1997,"Planning & Program Implementation","Duftry"]
[1998,"Planning & Program Implementation","Dy. Adviser"]
[1999,"Planning & Program Implementation","Dy. Director"]
[2000,"Planning & Program Implementation","Economist"]
[2001,"Planning & Program Implementation","F.A.S"]
[2002,"Planning & Program Implementation","Inspector of Statistics"]
[2003,"Planning & Program Implementation","IV- Grade"]
[2004,"Planning & Program Implementation","Jt. Director"]
[2005,"Planning & Program Implementation","LDC"]
[2006,"Planning & Program Implementation","Machine Man"]
[2007,"Planning & Program Implementation","Member Secretary"]
[2008,"Planning & Program Implementation","Peon"]
[2009,"Planning & Program Implementation","Principal Adviser"]
[2010,"Planning & Program Implementation","Proof Puller"]
[2011,"Planning & Program Implementation","Research Officer"]
[2012,"Planning & Program Implementation","Sr. Research Officer"]
[2013,"Planning & Program Implementation","Steno-I Grade"]
[2014,"Planning & Program Implementation","Steno-II Grade"]
[2015,"Planning & Program Implementation","Steno-III Grade"]
[2016,"Planning & Program Implementation","Sub-Inspector of Statistics"]
[2017,"Planning & Program Implementation","Superintendent"]
[2018,"Planning & Program Implementation","UDC"]
[2019,"Planning & Program Implementation","Vice Chairman"]
[2020,"Planning & Program Implementation","Chief Scientific Officer"]
[2021,"Planning & Program Implementation","Pr. Scientific Officer"]
[2022,"Planning & Program Implementation","Sr. Scientific Officer"]
[2023,"Planning & Program Implementation","Scientific Officer"]
[2024,"POWER & ELECTRICITY","Armature Winder"]
[2025,"POWER & ELECTRICITY","Assistant"]
[2026,"POWER & ELECTRICITY","Asst. Auditor"]
[2027,"POWER & ELECTRICITY","Asst. Divisional Accountant"]
[2028,"POWER & ELECTRICITY","Asst. Engineer"]
[2029,"POWER & ELECTRICITY","ATO"]
[2030,"POWER & ELECTRICITY","Blacksmith"]
[2031,"POWER & ELECTRICITY","Blue Printer"]
[2032,"POWER & ELECTRICITY","Buldozer Operator"]
[2033,"POWER & ELECTRICITY","Cable Jointer"]
[2034,"POWER & ELECTRICITY","Carpenter"]
[2035,"POWER & ELECTRICITY","Chief Engineer"]
[2036,"POWER & ELECTRICITY","Chowkidar"]
[2037,"POWER & ELECTRICITY","Computer Operator"]
[2038,"POWER & ELECTRICITY","D.D.I"]
[2039,"POWER & ELECTRICITY","DEO"]
[2040,"POWER & ELECTRICITY","Divisional Accountant"]
[2041,"POWER & ELECTRICITY","Draftman"]
[2042,"POWER & ELECTRICITY","Draughtsman"]
[2043,"POWER & ELECTRICITY","Driller"]
[2044,"POWER & ELECTRICITY","Driver-I Grade"]
[2045,"POWER & ELECTRICITY","Driver-II Grade"]
[2046,"POWER & ELECTRICITY","Driver-III Grade"]
[2047,"POWER & ELECTRICITY","Driver-Spl Grade "]
[2048,"POWER & ELECTRICITY","Duftry"]
[2049,"POWER & ELECTRICITY","Dy. Director (Accounts)"]
[2050,"POWER & ELECTRICITY","Dy. Director (Admn)"]
[2051,"POWER & ELECTRICITY","EI"]
[2052,"POWER & ELECTRICITY","Electrical Worker"]
[2053,"POWER & ELECTRICITY","Electrician-I"]
[2054,"POWER & ELECTRICITY","Electrician-II"]
[2055,"POWER & ELECTRICITY","Engine Operator - I"]
[2056,"POWER & ELECTRICITY","Engineer-in-Chief"]
[2057,"POWER & ELECTRICITY","EO"]
[2058,"POWER & ELECTRICITY","EO-I"]
[2059,"POWER & ELECTRICITY","EO-II"]
[2060,"POWER & ELECTRICITY","Executive Engineer"]
[2061,"POWER & ELECTRICITY","Ferro Printer"]
[2062,"POWER & ELECTRICITY","Finance & Accounts Officer"]
[2063,"POWER & ELECTRICITY","Fitter"]
[2064,"POWER & ELECTRICITY","Foreman"]
[2065,"POWER & ELECTRICITY","Guage Reader"]
[2066,"POWER & ELECTRICITY","Head Mechanic"]
[2067,"POWER & ELECTRICITY","IPO"]
[2068,"POWER & ELECTRICITY","Jr. Technician"]
[2069,"POWER & ELECTRICITY","Jt. Director (Accounts)"]
[2070,"POWER & ELECTRICITY","Junior Engineer"]
[2071,"POWER & ELECTRICITY","LDC"]
[2072,"POWER & ELECTRICITY","Line Supervisor"]
[2073,"POWER & ELECTRICITY","Lineman-I"]
[2074,"POWER & ELECTRICITY","Lineman-II"]
[2075,"POWER & ELECTRICITY","Mechanic-I"]
[2076,"POWER & ELECTRICITY","Mechanic-II"]
[2077,"POWER & ELECTRICITY","Meter Reader"]
[2078,"POWER & ELECTRICITY","Peon"]
[2079,"POWER & ELECTRICITY","S.A. (Trained)"]
[2080,"POWER & ELECTRICITY","S.A. (Un-Trained)"]
[2081,"POWER & ELECTRICITY","SBO-I"]
[2082,"POWER & ELECTRICITY","SBO-II"]
[2083,"POWER & ELECTRICITY","SDO"]
[2084,"POWER & ELECTRICITY","Sr. Blacksmith"]
[2085,"POWER & ELECTRICITY","Sr. Electrician"]
[2086,"POWER & ELECTRICITY","Sr. Engine Operator"]
[2087,"POWER & ELECTRICITY","Sr. EO"]
[2088,"POWER & ELECTRICITY","Sr. Executive Engineer"]
[2089,"POWER & ELECTRICITY","Sr. Lineman"]
[2090,"POWER & ELECTRICITY","Sr. Meter Reader"]
[2091,"POWER & ELECTRICITY","Sr. SBO"]
[2092,"POWER & ELECTRICITY","Sr. Store Keeper"]
[2093,"POWER & ELECTRICITY","Sr. Technician"]
[2094,"POWER & ELECTRICITY","Sr.Electrician"]
[2095,"POWER & ELECTRICITY","Steno-I Grade"]
[2096,"POWER & ELECTRICITY","Steno-II Grade"]
[2097,"POWER & ELECTRICITY","Steno-III Grade"]
[2098,"POWER & ELECTRICITY","Store Keeper"]
[2099,"POWER & ELECTRICITY","Superintendent"]
[2100,"POWER & ELECTRICITY","Superintendent of Engineer"]
[2101,"POWER & ELECTRICITY","Surveyor"]
[2102,"POWER & ELECTRICITY","Sweeper"]
[2103,"POWER & ELECTRICITY","Switchboard Operatoru - I"]
[2104,"POWER & ELECTRICITY","TO (E)"]
[2105,"POWER & ELECTRICITY","Tracer"]
[2106,"POWER & ELECTRICITY","UDC"]
[2107,"POWER & ELECTRICITY","W/T Operator"]
[2108,"POWER & ELECTRICITY","Welder"]
[2109,"POWER & ELECTRICITY","Wireman"]
[2110,"PRINTING & STATIONERY","Assistant"]
[2111,"PRINTING & STATIONERY","Asst. Controller, P & S."]
[2112,"PRINTING & STATIONERY","Asst. Manager"]
[2113,"PRINTING & STATIONERY","Asst. Manager (DTP)"]
[2114,"PRINTING & STATIONERY","ATO"]
[2115,"PRINTING & STATIONERY","Binder-I"]
[2116,"PRINTING & STATIONERY","Binder-II"]
[2117,"PRINTING & STATIONERY","Binder-III"]
[2118,"PRINTING & STATIONERY","Binder-IV"]
[2119,"PRINTING & STATIONERY","Carpenter"]
[2120,"PRINTING & STATIONERY","Chowkidar"]
[2121,"PRINTING & STATIONERY","Compositor-I"]
[2122,"PRINTING & STATIONERY","Compositor-II"]
[2123,"PRINTING & STATIONERY","Compositor-III"]
[2124,"PRINTING & STATIONERY","Compositor-IV"]
[2125,"PRINTING & STATIONERY","Controller, P & S."]
[2126,"PRINTING & STATIONERY","Copy Holder"]
[2127,"PRINTING & STATIONERY","Darwan"]
[2128,"PRINTING & STATIONERY","Depot  Manager"]
[2129,"PRINTING & STATIONERY","Despatch Rider-III Grade"]
[2130,"PRINTING & STATIONERY","Driver-I Grade"]
[2131,"PRINTING & STATIONERY","Driver-II Grade"]
[2132,"PRINTING & STATIONERY","Driver-III Grade"]
[2133,"PRINTING & STATIONERY","Driver-Spl Grade "]
[2134,"PRINTING & STATIONERY","Duftry"]
[2135,"PRINTING & STATIONERY","Dy. Controller, P & S."]
[2136,"PRINTING & STATIONERY","Editor"]
[2137,"PRINTING & STATIONERY","Electrician-I"]
[2138,"PRINTING & STATIONERY","Electrician-II"]
[2139,"PRINTING & STATIONERY","Finance & Accounts Officer"]
[2140,"PRINTING & STATIONERY","Generator Operator"]
[2141,"PRINTING & STATIONERY","Genl. Store Keeper"]
[2142,"PRINTING & STATIONERY","Head Reader"]
[2143,"PRINTING & STATIONERY","J.E (PWD)"]
[2144,"PRINTING & STATIONERY","J.E. (Elect)"]
[2145,"PRINTING & STATIONERY","LDC"]
[2146,"PRINTING & STATIONERY","Manager"]
[2147,"PRINTING & STATIONERY","Operator-I"]
[2148,"PRINTING & STATIONERY","Operator-II"]
[2149,"PRINTING & STATIONERY","Operator-III"]
[2150,"PRINTING & STATIONERY","Operator-IV"]
[2151,"PRINTING & STATIONERY","Peon"]
[2152,"PRINTING & STATIONERY","Proof Reader"]
[2153,"PRINTING & STATIONERY","Retail Store Keeper"]
[2154,"PRINTING & STATIONERY","Section Supervisor"]
[2155,"PRINTING & STATIONERY","Steno-I Grade"]
[2156,"PRINTING & STATIONERY","Steno-II Grade"]
[2157,"PRINTING & STATIONERY","Steno-III Grade"]
[2158,"PRINTING & STATIONERY","Store Keeper"]
[2159,"PRINTING & STATIONERY","Supdt. W/W Staff"]
[2160,"PRINTING & STATIONERY","Superintendent"]
[2161,"PRINTING & STATIONERY","Sweeper"]
[2162,"PRINTING & STATIONERY","Technical Officer"]
[2163,"PRINTING & STATIONERY","Time Keeper"]
[2164,"PRINTING & STATIONERY","UDC"]
[2165,"PRINTING & STATIONERY","W/W Staff"]
[2166,"REVENUE","-"]
[2167,"RURAL DEVELOPMENT","Gram Sevika (Trained)"]
[2168,"RURAL DEVELOPMENT","Accountant"]
[2169,"RURAL DEVELOPMENT","Accounts Officer"]
[2170,"RURAL DEVELOPMENT","AEO"]
[2171,"RURAL DEVELOPMENT","APO"]
[2172,"RURAL DEVELOPMENT","ARE"]
[2173,"RURAL DEVELOPMENT","Assistant"]
[2174,"RURAL DEVELOPMENT","Asst. Accountant"]
[2175,"RURAL DEVELOPMENT","Asst. Director"]
[2176,"RURAL DEVELOPMENT","Block Dev. Officer"]
[2177,"RURAL DEVELOPMENT","Dak Rider"]
[2178,"RURAL DEVELOPMENT","Director"]
[2179,"RURAL DEVELOPMENT","Driver-I Grade"]
[2180,"RURAL DEVELOPMENT","Driver-II Grade"]
[2181,"RURAL DEVELOPMENT","Driver-III Grade"]
[2182,"RURAL DEVELOPMENT","Driver-Spl Grade "]
[2183,"RURAL DEVELOPMENT","Dy. Director"]
[2184,"RURAL DEVELOPMENT","Dy. Director (Accounts.)"]
[2185,"RURAL DEVELOPMENT","Dy. Project Director"]
[2186,"RURAL DEVELOPMENT","EO (Forest)"]
[2187,"RURAL DEVELOPMENT","EO (Industries)"]
[2188,"RURAL DEVELOPMENT","ERE"]
[2189,"RURAL DEVELOPMENT","Finance & Accounts Officer"]
[2190,"RURAL DEVELOPMENT","Gram Sevika"]
[2191,"RURAL DEVELOPMENT","Head Mechanic"]
[2192,"RURAL DEVELOPMENT","HEO"]
[2193,"RURAL DEVELOPMENT","Inspector of Statistics"]
[2194,"RURAL DEVELOPMENT","IV- Grade"]
[2195,"RURAL DEVELOPMENT","JEO (Vety)"]
[2196,"RURAL DEVELOPMENT","JPO"]
[2197,"RURAL DEVELOPMENT","Jt. Director"]
[2198,"RURAL DEVELOPMENT","Junior Engineer"]
[2199,"RURAL DEVELOPMENT","LDC"]
[2200,"RURAL DEVELOPMENT","Messenger"]
[2201,"RURAL DEVELOPMENT","Mukya Sevika"]
[2202,"RURAL DEVELOPMENT","Prog. Co-ordinator"]
[2203,"RURAL DEVELOPMENT","Project Director"]
[2204,"RURAL DEVELOPMENT","RPO"]
[2205,"RURAL DEVELOPMENT","Seri Demonstrator"]
[2206,"RURAL DEVELOPMENT","Soil Demonstrator"]
[2207,"RURAL DEVELOPMENT","SR. Scientific Officer"]
[2208,"RURAL DEVELOPMENT","Statistic Officer"]
[2209,"RURAL DEVELOPMENT","Steno-I Grade"]
[2210,"RURAL DEVELOPMENT","Steno-II Grade"]
[2211,"RURAL DEVELOPMENT","Steno-III Grade"]
[2212,"RURAL DEVELOPMENT","Superintendent"]
[2213,"RURAL DEVELOPMENT","Technician"]
[2214,"RURAL DEVELOPMENT","Tracer (DM-III)"]
[2215,"RURAL DEVELOPMENT","UDC"]
[2216,"RURAL DEVELOPMENT","Vety Surgeon"]
[2217,"RURAL DEVELOPMENT","VFA"]
[2218,"RURAL DEVELOPMENT","VLW"]
[2219,"SAD","P.P.S"]
[2220,"SAD","Accountant"]
[2221,"SAD","Accounts Officer"]
[2222,"SAD","Addl. Chief Secretary"]
[2223,"SAD","Addl.Secretary"]
[2224,"SAD","Analyst"]
[2225,"SAD","Assistant"]
[2226,"SAD","Asst. Nazir"]
[2227,"SAD","Asst. Receptionist"]
[2228,"SAD","Chief Secretary"]
[2229,"SAD","Chowkidar"]
[2230,"SAD","Commissioner/Secretary"]
[2231,"SAD","Computer Operator"]
[2232,"SAD","Consultant-OSD"]
[2233,"SAD","Cook"]
[2234,"SAD","Cypher Assistant"]
[2235,"SAD","Data Entry Operator"]
[2236,"SAD","Despatch Rider"]
[2237,"SAD","Driver-I Grade"]
[2238,"SAD","Driver-II Grade"]
[2239,"SAD","Driver-III Grade"]
[2240,"SAD","Driver-Spl Grade "]
[2241,"SAD","Duftry"]
[2242,"SAD","Dy. Protocol Officer"]
[2243,"SAD","Dy.Secretary"]
[2244,"SAD","Finance & Accounts Officer"]
[2245,"SAD","Gardener"]
[2246,"SAD","Handyman"]
[2247,"SAD","Investigator"]
[2248,"SAD","Jamadar"]
[2249,"SAD","Jr. Analyst"]
[2250,"SAD","Jt.Secretary"]
[2251,"SAD","LDC"]
[2252,"SAD","Librarian"]
[2253,"SAD","Mechanic-I Grade"]
[2254,"SAD","Mechanic-II Grade"]
[2255,"SAD","Messenger"]
[2256,"SAD","Nazir"]
[2257,"SAD","O.S.D."]
[2258,"SAD","P.S to Ministers"]
[2259,"SAD","Peon"]
[2260,"SAD","Protocol Officer"]
[2261,"SAD","Secretary"]
[2262,"SAD","Special Secretary"]
[2263,"SAD","Sr. Analyst"]
[2264,"SAD","Sr. P.P.S"]
[2265,"SAD","Sr. Pool Officer"]
[2266,"SAD","Steno-I Grade"]
[2267,"SAD","Steno-II Grade"]
[2268,"SAD","Steno-III Grade"]
[2269,"SAD","Superintendent"]
[2270,"SAD","Sweeper"]
[2271,"SAD","Telephone Operator"]
[2272,"SAD","Translator"]
[2273,"SAD","UDC"]
[2274,"SAD","Under Secretary"]
[2275,"SAD","Vehicle Supervisor"]
[2276,"SERICULTURE","Assistant"]
[2277,"SERICULTURE","Asst. Dir/ DSO"]
[2278,"SERICULTURE","Asst. Director "]
[2279,"SERICULTURE","Director"]
[2280,"SERICULTURE","Dist. Sericulture Officer"]
[2281,"SERICULTURE","Driver-I Grade"]
[2282,"SERICULTURE","Driver-II Grade"]
[2283,"SERICULTURE","Driver-III Grade"]
[2284,"SERICULTURE","Driver-Spl Grade "]
[2285,"SERICULTURE","Duftry"]
[2286,"SERICULTURE","Dy. Director"]
[2287,"SERICULTURE","Extension Officer"]
[2288,"SERICULTURE","Farm Manager"]
[2289,"SERICULTURE","Head Assistant"]
[2290,"SERICULTURE","IV-Grade"]
[2291,"SERICULTURE","Jt. Director"]
[2292,"SERICULTURE","Junior Engineer"]
[2293,"SERICULTURE","LDC"]
[2294,"SERICULTURE","Mechanic"]
[2295,"SERICULTURE","Principal"]
[2296,"SERICULTURE","Rearer"]
[2297,"SERICULTURE","Reeler"]
[2298,"SERICULTURE","Reeling Foreman"]
[2299,"SERICULTURE","Sales Girl"]
[2300,"SERICULTURE","Seri Promotion Officer"]
[2301,"SERICULTURE","Seri. Demonstrator"]
[2302,"SERICULTURE","Seri. Instructor"]
[2303,"SERICULTURE","Steno-I Grade"]
[2304,"SERICULTURE","Steno-II Grade"]
[2305,"SERICULTURE","Steno-III Grade"]
[2306,"SERICULTURE","Superintendent"]
[2307,"SERICULTURE","UDC"]
[2308,"SERICULTURE","Weaver"]
[2309,"SERICULTURE","Weaving Instructor"]
[2310,"SOCIAL WELFARE","Welfare Officer"]
[2311,"SOCIAL WELFARE","Accountant"]
[2312,"SOCIAL WELFARE","ANM"]
[2313,"SOCIAL WELFARE","Assistant"]
[2314,"SOCIAL WELFARE","Asst. Commissioner"]
[2315,"SOCIAL WELFARE","Asst. Commissioner (PWD)"]
[2316,"SOCIAL WELFARE","Asst. Director"]
[2317,"SOCIAL WELFARE","Asst. Engineer"]
[2318,"SOCIAL WELFARE","Asst. Proj. Director"]
[2319,"SOCIAL WELFARE","Asst. Project Director (ACC)"]
[2320,"SOCIAL WELFARE","Care Taker"]
[2321,"SOCIAL WELFARE","Case Worker"]
[2322,"SOCIAL WELFARE","CDPO"]
[2323,"SOCIAL WELFARE","Centre Director"]
[2324,"SOCIAL WELFARE","Chairman"]
[2325,"SOCIAL WELFARE","Chief Executive Officer"]
[2326,"SOCIAL WELFARE","Cinema Operator"]
[2327,"SOCIAL WELFARE","Circle Officer"]
[2328,"SOCIAL WELFARE","Councellor"]
[2329,"SOCIAL WELFARE","Counselor (Edn/Career/General)"]
[2330,"SOCIAL WELFARE","D.E.O"]
[2331,"SOCIAL WELFARE","Director"]
[2332,"SOCIAL WELFARE","Dist. Social Welfare Officer"]
[2333,"SOCIAL WELFARE","Driver-I Grade"]
[2334,"SOCIAL WELFARE","Driver-II Grade"]
[2335,"SOCIAL WELFARE","Driver-III Grade"]
[2336,"SOCIAL WELFARE","Driver-Spl Grade "]
[2337,"SOCIAL WELFARE","Dy. Director"]
[2338,"SOCIAL WELFARE","Educational Instructor"]
[2339,"SOCIAL WELFARE","Health Instructor"]
[2340,"SOCIAL WELFARE","Inspector of Statistics"]
[2341,"SOCIAL WELFARE","Instructor"]
[2342,"SOCIAL WELFARE","Instructor (AWTC)"]
[2343,"SOCIAL WELFARE","Instructor/ Sr. Instructor"]
[2344,"SOCIAL WELFARE","IV-Grade"]
[2345,"SOCIAL WELFARE","Jt. Director"]
[2346,"SOCIAL WELFARE","Junior Engineer"]
[2347,"SOCIAL WELFARE","LDC"]
[2348,"SOCIAL WELFARE","Mechanic"]
[2349,"SOCIAL WELFARE","Mechanic (Auto/Elect)"]
[2350,"SOCIAL WELFARE","Medical Officer"]
[2351,"SOCIAL WELFARE","Member-Secretary"]
[2352,"SOCIAL WELFARE","Nutritionist"]
[2353,"SOCIAL WELFARE","P.H. Nurse"]
[2354,"SOCIAL WELFARE","Physical Instructor"]
[2355,"SOCIAL WELFARE","Pre-School Instructor"]
[2356,"SOCIAL WELFARE","Pre-School Teacher"]
[2357,"SOCIAL WELFARE","Principal"]
[2358,"SOCIAL WELFARE","Principal (AWTC)"]
[2359,"SOCIAL WELFARE","Program Officer"]
[2360,"SOCIAL WELFARE","Psychologist"]
[2361,"SOCIAL WELFARE","Research-cum-Prog. Asst."]
[2362,"SOCIAL WELFARE","S.W. Teacher/ Health Instructor"]
[2363,"SOCIAL WELFARE","Secretary"]
[2364,"SOCIAL WELFARE","Security Officer"]
[2365,"SOCIAL WELFARE","Sign Language Interpreter"]
[2366,"SOCIAL WELFARE","Sign Language Interpreter (PWD)"]
[2367,"SOCIAL WELFARE","Social Work Teacher"]
[2368,"SOCIAL WELFARE","Special Officer (N)"]
[2369,"SOCIAL WELFARE","Staff Nurse"]
[2370,"SOCIAL WELFARE","Steno-I Grade"]
[2371,"SOCIAL WELFARE","Steno-II Grade"]
[2372,"SOCIAL WELFARE","Steno-III Grade"]
[2373,"SOCIAL WELFARE","Store Keeper"]
[2374,"SOCIAL WELFARE","Supdt. (PWD)"]
[2375,"SOCIAL WELFARE","Superintendent"]
[2376,"SOCIAL WELFARE","UDC"]
[2377,"SOCIAL WELFARE","Vocational Trg. Instructor"]
[2378,"SOCIAL WELFARE","Vocational Trg. Instructor (Comp/Auto/Elect)"]
[2379,"SOCIAL WELFARE","Warden"]
[2380,"SOCIAL WELFARE","Welfare Officer"]
[2381,"SOIL & WATER CONSERVATION","ASCE"]
[2382,"SOIL & WATER CONSERVATION","ASCE/ Asst. Director"]
[2383,"SOIL & WATER CONSERVATION","ASCO"]
[2384,"SOIL & WATER CONSERVATION","Assistant"]
[2385,"SOIL & WATER CONSERVATION","Assistant Trator Operator"]
[2386,"SOIL & WATER CONSERVATION","Asst. Soil Con. Officer"]
[2387,"SOIL & WATER CONSERVATION","Carto Asst."]
[2388,"SOIL & WATER CONSERVATION","Chowkidar"]
[2389,"SOIL & WATER CONSERVATION","Cinema Operator"]
[2390,"SOIL & WATER CONSERVATION","Dak Runner"]
[2391,"SOIL & WATER CONSERVATION","Director"]
[2392,"SOIL & WATER CONSERVATION","Draftman"]
[2393,"SOIL & WATER CONSERVATION","Driver-I Grade"]
[2394,"SOIL & WATER CONSERVATION","Driver-II Grade"]
[2395,"SOIL & WATER CONSERVATION","Driver-III Grade"]
[2396,"SOIL & WATER CONSERVATION","Driver-Spl Grade "]
[2397,"SOIL & WATER CONSERVATION","DSCE"]
[2398,"SOIL & WATER CONSERVATION","DSCO"]
[2399,"SOIL & WATER CONSERVATION","Duftry"]
[2400,"SOIL & WATER CONSERVATION","Dy. Director"]
[2401,"SOIL & WATER CONSERVATION","Dy. Ranger"]
[2402,"SOIL & WATER CONSERVATION","Finance & Accounts Officer"]
[2403,"SOIL & WATER CONSERVATION","Foreman"]
[2404,"SOIL & WATER CONSERVATION","Handyman"]
[2405,"SOIL & WATER CONSERVATION","Hostel Supdt."]
[2406,"SOIL & WATER CONSERVATION","Jt. Director"]
[2407,"SOIL & WATER CONSERVATION","Junior Engineer"]
[2408,"SOIL & WATER CONSERVATION","LDC"]
[2409,"SOIL & WATER CONSERVATION","Overseer"]
[2410,"SOIL & WATER CONSERVATION","Peon"]
[2411,"SOIL & WATER CONSERVATION","Principal (RETI)"]
[2412,"SOIL & WATER CONSERVATION","Research Officer"]
[2413,"SOIL & WATER CONSERVATION","S.C Ranger"]
[2414,"SOIL & WATER CONSERVATION","SCD"]
[2415,"SOIL & WATER CONSERVATION","SCFM"]
[2416,"SOIL & WATER CONSERVATION","SCFW"]
[2417,"SOIL & WATER CONSERVATION","Soil Conservation Field Man"]
[2418,"SOIL & WATER CONSERVATION","Soil Overseer"]
[2419,"SOIL & WATER CONSERVATION","Steno-I Grade"]
[2420,"SOIL & WATER CONSERVATION","Steno-II Grade"]
[2421,"SOIL & WATER CONSERVATION","Steno-III Grade"]
[2422,"SOIL & WATER CONSERVATION","Superintendent"]
[2423,"SOIL & WATER CONSERVATION","Survey Asst."]
[2424,"SOIL & WATER CONSERVATION","Surveyor"]
[2425,"SOIL & WATER CONSERVATION","Sweeper"]
[2426,"SOIL & WATER CONSERVATION","UDC"]
[2427,"SPORTS & YOUTH SERVICES","(SPORT COUNCIL)-Accounts Officer"]
[2428,"SPORTS & YOUTH SERVICES","(SPORT COUNCIL)-Assistant"]
[2429,"SPORTS & YOUTH SERVICES","(SPORT COUNCIL)-Asst. Engineer"]
[2430,"SPORTS & YOUTH SERVICES","(SPORT COUNCIL)-Chowkidar"]
[2431,"SPORTS & YOUTH SERVICES","(SPORT COUNCIL)-Coach-III Grade"]
[2432,"SPORTS & YOUTH SERVICES","(SPORT COUNCIL)-Despatch Rider"]
[2433,"SPORTS & YOUTH SERVICES","(SPORT COUNCIL)-Driver-I Grade"]
[2434,"SPORTS & YOUTH SERVICES","(SPORT COUNCIL)-Driver-II Grade"]
[2435,"SPORTS & YOUTH SERVICES","(SPORT COUNCIL)-Driver-III Grade"]
[2436,"SPORTS & YOUTH SERVICES","(SPORT COUNCIL)-Driver-Spl Grade"]
[2437,"SPORTS & YOUTH SERVICES","(SPORT COUNCIL)-Duplicating Operator"]
[2438,"SPORTS & YOUTH SERVICES","(SPORT COUNCIL)-Field Asst."]
[2439,"SPORTS & YOUTH SERVICES","(SPORT COUNCIL)-Handyman"]
[2440,"SPORTS & YOUTH SERVICES","(SPORT COUNCIL)-IV-Grade"]
[2441,"SPORTS & YOUTH SERVICES","(SPORT COUNCIL)-Junior Engineer"]
[2442,"SPORTS & YOUTH SERVICES","(SPORT COUNCIL)-LDC"]
[2443,"SPORTS & YOUTH SERVICES","(SPORT COUNCIL)-Mechanic"]
[2444,"SPORTS & YOUTH SERVICES","(SPORT COUNCIL)-Operator"]
[2445,"SPORTS & YOUTH SERVICES","(SPORT COUNCIL)-Program Officer"]
[2446,"SPORTS & YOUTH SERVICES","(SPORT COUNCIL)-Secretary"]
[2447,"SPORTS & YOUTH SERVICES","(SPORT COUNCIL)-Sectional Asst. (Trained)"]
[2448,"SPORTS & YOUTH SERVICES","(SPORT COUNCIL)-Sr. Administrative Officer"]
[2449,"SPORTS & YOUTH SERVICES","(SPORT COUNCIL)-Sr. Sport Promotion Officer"]
[2450,"SPORTS & YOUTH SERVICES","(SPORT COUNCIL)-UDC"]
[2451,"SPORTS & YOUTH SERVICES","Accountant"]
[2452,"SPORTS & YOUTH SERVICES","Adventure Organizer"]
[2453,"SPORTS & YOUTH SERVICES","Air Modelling Instructor"]
[2454,"SPORTS & YOUTH SERVICES","Assistant"]
[2455,"SPORTS & YOUTH SERVICES","Asst. Adventure Organizer"]
[2456,"SPORTS & YOUTH SERVICES","Asst. Organiser (SG)"]
[2457,"SPORTS & YOUTH SERVICES","Asst. State Organizer ( S & G )"]
[2458,"SPORTS & YOUTH SERVICES","Chief Coach"]
[2459,"SPORTS & YOUTH SERVICES","Chowkidar"]
[2460,"SPORTS & YOUTH SERVICES","Coach-I Grade"]
[2461,"SPORTS & YOUTH SERVICES","Coach-II Grade"]
[2462,"SPORTS & YOUTH SERVICES","Coach-III Grade"]
[2463,"SPORTS & YOUTH SERVICES","Data Entry Operator"]
[2464,"SPORTS & YOUTH SERVICES","Director"]
[2465,"SPORTS & YOUTH SERVICES","Dist. Organiser"]
[2466,"SPORTS & YOUTH SERVICES","Dist. Sports & Youth Officer"]
[2467,"SPORTS & YOUTH SERVICES","Driver-I Grade"]
[2468,"SPORTS & YOUTH SERVICES","Driver-II Grade"]
[2469,"SPORTS & YOUTH SERVICES","Driver-III Grade"]
[2470,"SPORTS & YOUTH SERVICES","Driver-Spl Grade "]
[2471,"SPORTS & YOUTH SERVICES","Dy. Director"]
[2472,"SPORTS & YOUTH SERVICES","Dy. Secy-cum-State LO/NSS"]
[2473,"SPORTS & YOUTH SERVICES","Head Assistant"]
[2474,"SPORTS & YOUTH SERVICES","IV-Grade"]
[2475,"SPORTS & YOUTH SERVICES","Jt. Director"]
[2476,"SPORTS & YOUTH SERVICES","Laskar"]
[2477,"SPORTS & YOUTH SERVICES","LDC"]
[2478,"SPORTS & YOUTH SERVICES","Organizer (S & G)"]
[2479,"SPORTS & YOUTH SERVICES","Peon"]
[2480,"SPORTS & YOUTH SERVICES","Sport Helper"]
[2481,"SPORTS & YOUTH SERVICES","Sr. F.A. / State Organiser"]
[2482,"SPORTS & YOUTH SERVICES","Sr. Field Assistant"]
[2483,"SPORTS & YOUTH SERVICES","State Adventure Organizer"]
[2484,"SPORTS & YOUTH SERVICES","State Organizer ( S & G )"]
[2485,"SPORTS & YOUTH SERVICES","Steno-I Grade"]
[2486,"SPORTS & YOUTH SERVICES","Steno-II Grade"]
[2487,"SPORTS & YOUTH SERVICES","Steno-III Grade"]
[2488,"SPORTS & YOUTH SERVICES","Superintendent"]
[2489,"SPORTS & YOUTH SERVICES","Sweeper"]
[2490,"SPORTS & YOUTH SERVICES","UDC"]
[2491,"SPORTS & YOUTH SERVICES","Yoga Instructor"]
[2492,"SPORTS & YOUTH SERVICES","Youth Welfare Officer"]
[2493,"TAXATION","Assistant"]
[2494,"TAXATION","Asst. Commissioner of Taxes"]
[2495,"TAXATION","Checker"]
[2496,"TAXATION","Chowkidar"]
[2497,"TAXATION","Commissioner of Taxes"]
[2498,"TAXATION","Computer Operator"]
[2499,"TAXATION","Driver-I Grade"]
[2500,"TAXATION","Driver-II Grade"]
[2501,"TAXATION","Driver-III Grade"]
[2502,"TAXATION","Driver-Spl Grade "]
[2503,"TAXATION","Dy. Commissioner of Taxes"]
[2504,"TAXATION","Head Assistant"]
[2505,"TAXATION","Inspector of Taxes"]
[2506,"TAXATION","Jt. Commissioner of Taxes"]
[2507,"TAXATION","LDC"]
[2508,"TAXATION","Peon"]
[2509,"TAXATION","Statistician"]
[2510,"TAXATION","Steno-I Grade"]
[2511,"TAXATION","Steno-II Grade"]
[2512,"TAXATION","Steno-III Grade"]
[2513,"TAXATION","Superintendent "]
[2514,"TAXATION","Superintendent of Taxes"]
[2515,"TAXATION","UDC"]
[2516,"TOURISM","Assistant"]
[2517,"TOURISM","Asst. Receptionist"]
[2518,"TOURISM","Asst. Tourist Officer"]
[2519,"TOURISM","Director"]
[2520,"TOURISM","Driver-I Grade"]
[2521,"TOURISM","Driver-II Grade"]
[2522,"TOURISM","Driver-III Grade"]
[2523,"TOURISM","Driver-Spl Grade "]
[2524,"TOURISM","Dy. Director "]
[2525,"TOURISM","Electrician"]
[2526,"TOURISM","Gestener Operator"]
[2527,"TOURISM","Inspector of Statistics"]
[2528,"TOURISM","IV-Grade"]
[2529,"TOURISM","Jt. Director "]
[2530,"TOURISM","LDC"]
[2531,"TOURISM","Receptionist"]
[2532,"TOURISM","Steno-I Grade"]
[2533,"TOURISM","Steno-II Grade"]
[2534,"TOURISM","Steno-III Grade"]
[2535,"TOURISM","Superintendent"]
[2536,"TOURISM","Tourist Guide"]
[2537,"TOURISM","Tourist Officer"]
[2538,"TOURISM","UDC"]
[2539,"Trade & Commerce","(MAMCO)-Accountant"]
[2540,"Trade & Commerce","(MAMCO)-Assistant"]
[2541,"Trade & Commerce","(MAMCO)-Asst. Manager "]
[2542,"Trade & Commerce","(MAMCO)-Despatch Rider"]
[2543,"Trade & Commerce","(MAMCO)-Driver-I Grade"]
[2544,"Trade & Commerce","(MAMCO)-Driver-II Grade"]
[2545,"Trade & Commerce","(MAMCO)-Driver-III Grade"]
[2546,"Trade & Commerce","(MAMCO)-Driver-Spl Grade"]
[2547,"Trade & Commerce","(MAMCO)-Dy. Manager"]
[2548,"Trade & Commerce","(MAMCO)-IV-Grade"]
[2549,"Trade & Commerce","(MAMCO)-LDC"]
[2550,"Trade & Commerce","(MAMCO)-Marketing Assistant"]
[2551,"Trade & Commerce","(MAMCO)-Procurement  Assistant"]
[2552,"Trade & Commerce","(MAMCO)-Steno-I Grade"]
[2553,"Trade & Commerce","(MAMCO)-Steno-II Grade"]
[2554,"Trade & Commerce","(MAMCO)-Steno-III Grade"]
[2555,"Trade & Commerce","(MAMCO)-UDC"]
[2556,"Trade & Commerce","A.M.I"]
[2557,"Trade & Commerce","Assistant"]
[2558,"Trade & Commerce","Asst. Director "]
[2559,"Trade & Commerce","Chowkider"]
[2560,"Trade & Commerce","Director"]
[2561,"Trade & Commerce","Driver-I Grade"]
[2562,"Trade & Commerce","Driver-II Grade"]
[2563,null,"Driver-III Grade"]
[2564,null,"Driver-Spl Grade "]
[2565,"Trade & Commerce","Dy. Director "]
[2566,"Trade & Commerce","Finance & Accounts Officer"]
[2567,"Trade & Commerce","Jt. Director "]
[2568,"Trade & Commerce","LDC"]
[2569,"Trade & Commerce","M.I"]
[2570,"Trade & Commerce","Market Checker"]
[2571,"Trade & Commerce","Marketing Officer"]
[2572,"Trade & Commerce","Peon"]
[2573,"Trade & Commerce","Peon-I"]
[2574,"Trade & Commerce","Steno-I Grade"]
[2575,"Trade & Commerce","Steno-II Grade"]
[2576,"Trade & Commerce","Steno-III Grade"]
[2577,"Trade & Commerce","Superintendent"]
[2578,"Trade & Commerce","Sweeper"]
[2579,"Trade & Commerce","Sweeper-I"]
[2580,"Trade & Commerce","UDC"]
[2581,"TRANSPORT","A.C.P"]
[2582,"TRANSPORT","A.S.A"]
[2583,"TRANSPORT","A.S.O"]
[2584,"TRANSPORT","ACT"]
[2585,"TRANSPORT","Assistant"]
[2586,"TRANSPORT","Asst. Commissioner (STA)"]
[2587,"TRANSPORT","Asst. Director "]
[2588,"TRANSPORT","Asst. Dist. Transport Officer"]
[2589,"TRANSPORT","Asst. Engineer"]
[2590,"TRANSPORT","Asst. Station Supdt."]
[2591,"TRANSPORT","Asst. Store Officer"]
[2592,"TRANSPORT","Asst. Supdt. Of Accounts"]
[2593,"TRANSPORT","Asst.Work manager"]
[2594,"TRANSPORT","Blacksmith"]
[2595,"TRANSPORT","Booking Clerk"]
[2596,"TRANSPORT","C. Programer"]
[2597,"TRANSPORT","Carpenter"]
[2598,"TRANSPORT","Carwasher"]
[2599,"TRANSPORT","Chowkidar"]
[2600,"TRANSPORT","Cleaner"]
[2601,"TRANSPORT","Cleaner-cum-Chowkidar"]
[2602,"TRANSPORT","Conductor-I"]
[2603,"TRANSPORT","Conductor-II"]
[2604,"TRANSPORT","Conductor-III"]
[2605,"TRANSPORT","D.C.T"]
[2606,"TRANSPORT","D.E.O"]
[2607,"TRANSPORT","Deputy Commissioner"]
[2608,"TRANSPORT","Director"]
[2609,"TRANSPORT","Dist. Transport Officer"]
[2610,"TRANSPORT","Driver-I Grade"]
[2611,"TRANSPORT","Driver-II Grade"]
[2612,"TRANSPORT","Driver-III Grade"]
[2613,"TRANSPORT","Driver-Spl Grade "]
[2614,"TRANSPORT","DTO"]
[2615,"TRANSPORT","Duftry"]
[2616,"TRANSPORT","Dy. Director "]
[2617,"TRANSPORT","E.I"]
[2618,"TRANSPORT","E.S.I"]
[2619,"TRANSPORT","Electrician-I"]
[2620,"TRANSPORT","Electrician-II"]
[2621,"TRANSPORT","Electrician-III"]
[2622,"TRANSPORT","Enforcement Inspector"]
[2623,"TRANSPORT","Enforcement Sub Inspector"]
[2624,"TRANSPORT","Finance & Accounts Officer"]
[2625,"TRANSPORT","Fitter"]
[2626,"TRANSPORT","Foreman"]
[2627,"TRANSPORT","Gatekeeper"]
[2628,"TRANSPORT","Handyman"]
[2629,"TRANSPORT","Head Assistant"]
[2630,"TRANSPORT","Head Mechanic"]
[2631,"TRANSPORT","Inspector of Statistics"]
[2632,"TRANSPORT","IV-Grade"]
[2633,"TRANSPORT","Joint Director (MVI)"]
[2634,"TRANSPORT","Jt. Director "]
[2635,"TRANSPORT","Junior Engineer"]
[2636,"TRANSPORT","LDC"]
[2637,"TRANSPORT","Line Checker"]
[2638,"TRANSPORT","Line Inspector"]
[2639,"TRANSPORT","Machinist-I"]
[2640,"TRANSPORT","Machinist-II"]
[2641,"TRANSPORT","Mechanic-I"]
[2642,"TRANSPORT","Mechanic-II"]
[2643,"TRANSPORT","Motor Vehicle Inspector"]
[2644,"TRANSPORT","Painter"]
[2645,"TRANSPORT","Peon"]
[2646,"TRANSPORT","Peon-cum-Chowkidar"]
[2647,"TRANSPORT","R.O"]
[2648,"TRANSPORT","Scaleman"]
[2649,"TRANSPORT","Scaleman-cum-Peon"]
[2650,"TRANSPORT","Station Supdt."]
[2651,"TRANSPORT","Steno-I Grade"]
[2652,"TRANSPORT","Steno-II Grade"]
[2653,"TRANSPORT","Steno-III Grade"]
[2654,"TRANSPORT","Store Keeper"]
[2655,"TRANSPORT","Store Officer"]
[2656,"TRANSPORT","Supdt. Of Accounts"]
[2657,"TRANSPORT","Superintendent"]
[2658,"TRANSPORT","Supervisor"]
[2659,"TRANSPORT","Sweeper"]
[2660,"TRANSPORT","T & C Smith"]
[2661,"TRANSPORT","Tracer"]
[2662,"TRANSPORT","Turner"]
[2663,"TRANSPORT","UDC"]
[2664,"TRANSPORT","Upsholter"]
[2665,"TRANSPORT","Vulcanize"]
[2666,"TRANSPORT","Welder"]
[2667,"TRANSPORT","Work Manager"]
[2668,"U.D.& P.A","(ADA)-Accountant"]
[2669,"U.D.& P.A","(ADA)-Accounts Officer"]
[2670,"U.D.& P.A","(ADA)-Assistant"]
[2671,"U.D.& P.A","(ADA)-Asst. Architect"]
[2672,"U.D.& P.A","(ADA)-Asst. Engineer"]
[2673,"U.D.& P.A","(ADA)-Asst. Town Planner"]
[2674,"U.D.& P.A","(ADA)-CAO"]
[2675,"U.D.& P.A","(ADA)-Chowkidar"]
[2676,"U.D.& P.A","(ADA)-Coach-III Grade"]
[2677,"U.D.& P.A","(ADA)-Despatch Rider"]
[2678,"U.D.& P.A","(ADA)-Driver-I Grade"]
[2679,"U.D.& P.A","(ADA)-Driver-II Grade"]
[2680,"U.D.& P.A","(ADA)-Driver-III Grade"]
[2681,"U.D.& P.A","(ADA)-Driver-Spl Grade"]
[2682,"U.D.& P.A","(ADA)-Engineering Member"]
[2683,"U.D.& P.A","(ADA)-Executive Engineer"]
[2684,"U.D.& P.A","(ADA)-IV-Grade"]
[2685,"U.D.& P.A","(ADA)-Junior Assistant"]
[2686,"U.D.& P.A","(ADA)-Junior Engineer"]
[2687,"U.D.& P.A","(ADA)-Member Secretary"]
[2688,"U.D.& P.A","(ADA)-P.S"]
[2689,"U.D.& P.A","(ADA)-Peon"]
[2690,"U.D.& P.A","(ADA)-Planning Assistant"]
[2691,"U.D.& P.A","(ADA)-PPS"]
[2692,"U.D.& P.A","(ADA)-Private Assistant"]
[2693,"U.D.& P.A","(ADA)-Sectional Asst. (Trained)"]
[2694,"U.D.& P.A","(ADA)-Surveyor"]
[2695,"U.D.& P.A","(ADA)-Surveyor-I"]
[2696,"U.D.& P.A","(ADA)-Sweeper"]
[2697,"U.D.& P.A","(ADA)-Town Planner"]
[2698,"U.D.& P.A","(ADA)-Town Planning Manager"]
[2699,"U.D.& P.A","(ADA)-UDC"]
[2700,"U.D.& P.A","(ADA)-Vice Chairman"]
[2701,"U.D.& P.A","(AMC)- Assistant"]
[2702,"U.D.& P.A","(AMC)-Accountant"]
[2703,"U.D.& P.A","(AMC)-Chief Executive Officer"]
[2704,"U.D.& P.A","(AMC)-Data Entry Operator"]
[2705,"U.D.& P.A","(AMC)-Draftman-III"]
[2706,"U.D.& P.A","(AMC)-Driver-I Grade"]
[2707,"U.D.& P.A","(AMC)-Driver-II Grade"]
[2708,"U.D.& P.A","(AMC)-Driver-III Grade"]
[2709,"U.D.& P.A","(AMC)-Driver-Spl Grade"]
[2710,"U.D.& P.A","(AMC)-Executive Engineer"]
[2711,"U.D.& P.A","(AMC)-Executive Officer"]
[2712,"U.D.& P.A","(AMC)-Finance & Accounts Officer"]
[2713,"U.D.& P.A","(AMC)-IV-Grade"]
[2714,"U.D.& P.A","(AMC)-Junior Engineer"]
[2715,"U.D.& P.A","(AMC)-LDC"]
[2716,"U.D.& P.A","(AMC)-Medical Officer"]
[2717,"U.D.& P.A","(AMC)-Sanitary Inspector"]
[2718,"U.D.& P.A","(AMC)-Secretary"]
[2719,"U.D.& P.A","(AMC)-Superintendent"]
[2720,"U.D.& P.A","(AMC)-Surveyor"]
[2721,"U.D.& P.A","(AMC)-UDC"]
[2722,"U.D.& P.A","Account Assistant"]
[2723,"U.D.& P.A","Accounts Officer"]
[2724,"U.D.& P.A","Accounts Officer (State Elect Comsn)"]
[2725,"U.D.& P.A","Assistant"]
[2726,"U.D.& P.A","Asst. Architect"]
[2727,"U.D.& P.A","Asst. Director (TP)"]
[2728,"U.D.& P.A","Asst. Divisional Accountant"]
[2729,"U.D.& P.A","Asst. Engineer"]
[2730,"U.D.& P.A","Asst. Sanitation Officer"]
[2731,"U.D.& P.A","Chainman"]
[2732,"U.D.& P.A","Chowkider"]
[2733,"U.D.& P.A","Computer Programing"]
[2734,"U.D.& P.A","Data Entry Operator"]
[2735,"U.D.& P.A","Despatch Rider"]
[2736,"U.D.& P.A","Director"]
[2737,"U.D.& P.A","Divisional Accountant"]
[2738,"U.D.& P.A","Draftman-II"]
[2739,"U.D.& P.A","Draftman-III"]
[2740,"U.D.& P.A","Driver-I Grade"]
[2741,"U.D.& P.A","Driver-II Grade"]
[2742,"U.D.& P.A","Driver-III Grade"]
[2743,"U.D.& P.A","Driver-Spl Grade "]
[2744,"U.D.& P.A","Dy. Director"]
[2745,"U.D.& P.A","Dy. Director (TP)"]
[2746,"U.D.& P.A","Dy. Project Director"]
[2747,"U.D.& P.A","Dy. Secretary"]
[2748,"U.D.& P.A","EPABX/Telephone Operator"]
[2749,"U.D.& P.A","Executive Engineer"]
[2750,"U.D.& P.A","Ferrow Printer"]
[2751,"U.D.& P.A","Group 'D'"]
[2752,"U.D.& P.A","Handyman"]
[2753,"U.D.& P.A","Head Assistant"]
[2754,"U.D.& P.A","Inspector of Statistics"]
[2755,"U.D.& P.A","IV-Grade"]
[2756,"U.D.& P.A","Jt. Director"]
[2757,"U.D.& P.A","Jt. Director (TP)"]
[2758,"U.D.& P.A","Junior Engineer"]
[2759,"U.D.& P.A","LDC"]
[2760,"U.D.& P.A","Lorry Attendant"]
[2761,"U.D.& P.A","MIS Officer"]
[2762,"U.D.& P.A","Office Manager"]
[2763,"U.D.& P.A","Peon"]
[2764,"U.D.& P.A","Planning Assistant"]
[2765,"U.D.& P.A","Procurement Engineer"]
[2766,"U.D.& P.A","Project Director"]
[2767,"U.D.& P.A","Research Officer"]
[2768,"U.D.& P.A","Rider"]
[2769,"U.D.& P.A","Sanitation Officer"]
[2770,"U.D.& P.A","Secretary"]
[2771,"U.D.& P.A","Section Assistant (Trained)"]
[2772,"U.D.& P.A","Senior Accounts Officer"]
[2773,"U.D.& P.A","Sirder"]
[2774,"U.D.& P.A","Social Dev. Officer"]
[2775,"U.D.& P.A","Sr. Sanitation Officer"]
[2776,"U.D.& P.A","State Election Commissioner"]
[2777,"U.D.& P.A","Steno-I Grade"]
[2778,"U.D.& P.A","Steno-II Grade"]
[2779,"U.D.& P.A","Steno-III Grade"]
[2780,"U.D.& P.A","Superintendent"]
[2781,"U.D.& P.A","Surveyor"]
[2782,"U.D.& P.A","Surveyor (Sr.)"]
[2783,"U.D.& P.A","Sweeper"]
[2784,"U.D.& P.A","T.S"]
[2785,"U.D.& P.A","Town Sanitory Inspector"]
[2786,"U.D.& P.A","Town Supervisor"]
[2787,"U.D.& P.A","Tracer"]
[2788,"U.D.& P.A","TSI"]
[2789,"U.D.& P.A","UDC"]
[2790,"U.D.& P.A","Under Secretary"]
[2791,"U.D.& P.A","Urban Surveyor-I"]
[2792,"U.D.& P.A","Urban Surveyor-II"]
[2793,"U.D.& P.A","Urban Surveyor-III"]
[2794,"VIGILANCE","A.S.I."]
[2795,"VIGILANCE","Addl. S.P"]
[2796,"VIGILANCE","Constable"]
[2797,"VIGILANCE","D/G-I"]
[2798,"VIGILANCE","D/G-II"]
[2799,"VIGILANCE","Director"]
[2800,"VIGILANCE","Dy. S.P."]
[2801,"VIGILANCE","H/C"]
[2802,"VIGILANCE","Inspector"]
[2803,"VIGILANCE","IV-Grade"]
[2804,"VIGILANCE","S.I"]
[2805,"VIGILANCE","Supdt. Of Police"]
[2806,"WILDLIFE &  FOREST","A.C.F"]
[2807,"WILDLIFE &  FOREST","A.C.F (IFS)"]
[2808,"WILDLIFE &  FOREST","A/ Feeder"]
[2809,"WILDLIFE &  FOREST","Addl. C.C.F"]
[2810,"WILDLIFE &  FOREST","Assistant"]
[2811,"WILDLIFE &  FOREST","Asst. Auditor"]
[2812,"WILDLIFE &  FOREST","Boatman"]
[2813,"WILDLIFE &  FOREST","Botanist"]
[2814,"WILDLIFE &  FOREST","C. Follower"]
[2815,"WILDLIFE &  FOREST","C.C.F (Admn)"]
[2816,"WILDLIFE &  FOREST","C.C.F (P & D)"]
[2817,"WILDLIFE &  FOREST","Chainman"]
[2818,"WILDLIFE &  FOREST","Chowkidar"]
[2819,"WILDLIFE &  FOREST","Chowkidar-I"]
[2820,"WILDLIFE &  FOREST","Cinema Operator"]
[2821,"WILDLIFE &  FOREST","Computer Operator"]
[2822,"WILDLIFE &  FOREST","Conductor"]
[2823,"WILDLIFE &  FOREST","Cook"]
[2824,"WILDLIFE &  FOREST","Coservator of Forest "]
[2825,"WILDLIFE &  FOREST","CWLW"]
[2826,"WILDLIFE &  FOREST","D.C.F"]
[2827,"WILDLIFE &  FOREST","D.F.O"]
[2828,"WILDLIFE &  FOREST","Dak Rider"]
[2829,"WILDLIFE &  FOREST","Dak Runner"]
[2830,"WILDLIFE &  FOREST","Draftsman-I"]
[2831,"WILDLIFE &  FOREST","Draftsman-II"]
[2832,"WILDLIFE &  FOREST","Driver-I Grade"]
[2833,"WILDLIFE &  FOREST","Driver-II Grade"]
[2834,"WILDLIFE &  FOREST","Driver-III Grade"]
[2835,"WILDLIFE &  FOREST","Driver-Spl Grade "]
[2836,"WILDLIFE &  FOREST","Duftry"]
[2837,"WILDLIFE &  FOREST","Dy. Director (Accounts.)"]
[2838,"WILDLIFE &  FOREST","Dy. Director (Admn)"]
[2839,"WILDLIFE &  FOREST","Dy. Ranger"]
[2840,"WILDLIFE &  FOREST","F.R"]
[2841,"WILDLIFE &  FOREST","Forest Constable"]
[2842,"WILDLIFE &  FOREST","Forest Guard"]
[2843,"WILDLIFE &  FOREST","Forester"]
[2844,"WILDLIFE &  FOREST","Handyman"]
[2845,"WILDLIFE &  FOREST","Head Constable"]
[2846,"WILDLIFE &  FOREST","Inspector of Statistics"]
[2847,"WILDLIFE &  FOREST","Junior Engineer"]
[2848,"WILDLIFE &  FOREST","Lab. Asst."]
[2849,"WILDLIFE &  FOREST","LDC"]
[2850,"WILDLIFE &  FOREST","Orchidiologist"]
[2851,"WILDLIFE &  FOREST","P. Mali"]
[2852,"WILDLIFE &  FOREST","P.C.C.F"]
[2853,"WILDLIFE &  FOREST","P/L"]
[2854,"WILDLIFE &  FOREST","Peon"]
[2855,"WILDLIFE &  FOREST","Peon-I"]
[2856,"WILDLIFE &  FOREST","PTI"]
[2857,"WILDLIFE &  FOREST","Pub. Asst."]
[2858,"WILDLIFE &  FOREST","R. Asst."]
[2859,"WILDLIFE &  FOREST","Res. Officer"]
[2860,"WILDLIFE &  FOREST","S.I"]
[2861,"WILDLIFE &  FOREST","Steno-I Grade"]
[2862,"WILDLIFE &  FOREST","Steno-II Grade"]
[2863,"WILDLIFE &  FOREST","Steno-III Grade"]
[2864,"WILDLIFE &  FOREST","Superintendent"]
[2865,"WILDLIFE &  FOREST","Surveyor"]
[2866,"WILDLIFE &  FOREST","Sweeper"]
[2867,"WILDLIFE &  FOREST","UDC"]
[2868,"WILDLIFE &  FOREST","V.A.S"]
[2869,"WILDLIFE &  FOREST","V.F.A"]
[2870,"WILDLIFE &  FOREST","W.P.O"]
[2871,"CENTRAL MINISTRY OF FINANCE","Accountant General"]
[2872,"ACCOUNTS & TREASURIES","Joint Director"]
[2873,"HEALTH & FAMILY WELFARE","Dy. Director, Central Medical Store"]
[2874,"DISTRICT COUNCIL","-"]

{"sheet":"MasterList","index":5,"n_rows":37,"n_cols":23,"rows_kept":37,"cut":false,"hidden":true,"merged":[]}
[{"$f":"COUNTA(A3:A1048576)","v":4},2,5,4,8,35,7,9,6,8,14,13,{"$f":"COUNTA(M3:M1048576)","v":4},4,9,4,3,4,{"$f":"COUNTA(S3:S1048576)","v":10},{"$f":"COUNTA(T3:T1048576)","v":18},{"$f":"COUNTA(U3:U1048576)","v":4},{"$f":"COUNTA(V3:V1048576)","v":16},{"$f":"COUNTA(W3:W1048576)","v":4}]
["Title","Gender","Marital Status","Caste","Blood Group","State","Spouse Employee","EduLevel","EduField","Mode of Allotment","Loans","Pay Band","Grade","Group of Post","Type of Deployment","Where Deployed","Post Classification","Post type","Treasuries","Allowances","Deductions","Family","Nominations"]
["Dr.","Female","Divorced","Others","A-","Andaman and Nicobar Islands","Central Government","Diploma","Arts","Absorption","Conveyance Advance","1S (4440 - 7440)","Grade I","Group A","Lien ","Deputation to Central Government/Organisation","Permanent","CSS","Aizawl North","Cash Handling Allowance","MGEGIS-Insurance Fund","Brother","GPF"]
["Mr.","Male","Married","SC","A+","Andhra Pradesh","Local Authorities","Doctorate","Commerce","Direct","Cycle Advance","PB-1 (5200 - 20200)","Grade II","Group B","Long Term Leave","Deputation to State Government Organisation/Undetaking","Temporary","Grants-in-Aid","Aizawl South","Dearness Allowances","MGEGIS-Savings Fund","Daughter","DCRG"]
["Mrs.",null,"Separated","SEBC/OBC","AB-","Arunachal Pradesh","NGO","Graduation","Engineering","Limited Departmental Examination","Fan Advance","PB-2 (9300 - 34800)","Grade III","Group C","Long Term Training","Foreign Body","Work Charge","Non Plan","Lunglei","Family Planning Allowance ","New Pension Scheme","Father","MGEGIS"]
["Ms.",null,"Single","ST","AB+","Assam","Others","Intermediate","Medical Sciences","Promotion","Festival Advance","PB-3 (15600 - 39100)","Grade IV","Group D","On Deputation","State Government",null,"Plan","Serchhip","Gestetner Operating Allowance","Professional Tax","Grandfather","NPS"]
[null,null,"Widowed",null,"B-","Bihar","Private","Master of Philisophy","Others","Redeployment","Flood/Drought/Cyclone Advance","PB-4 (37400 - 67000)",null,null,"On Duty/Post",null,null,null,"Champhai","House Rent Allowance",null,"Grandmother"]
[null,null,null,null,"B+","Chandigarh","State Government","Matric","Science","Regularization","Hindi Training Advance","HAG (69000 - 79000)",null,null,"Study Leave",null,null,null,"Saiha","Kit Maintenance Allowance",null,"Mother"]
[null,null,null,null,"O-","Chhattisgarh","Unemployed","Post-Doctorate",null,"Selection","House Building Advance","HAG+Scale (75500 - 80000)",null,null,"Unauthorised Posting",null,null,null,"Lawngtlai","Leave Compensaory Allowance",null,"Sister"]
[null,null,null,null,"O+","Dadra and Nagar Haveli",null,"Post-Graduation",null,"Validation","House Building Advance (HUDCO)","Apex (80000)",null,null,"Under Suspension",null,null,null,"Mamit","Non-Practising Allowance",null,"Son"]
[null,null,null,null,null,"Daman and Diu",null,"Under Matric",null,null,"House Building Advance (LIC)","Cabinet Secretary (90000)",null,null,"Waiting for Posting",null,null,null,"Kolasib","Nursing Allowance",null,"Son's Daughter"]
[null,null,null,null,null,"Goa",null,null,null,null,"Motor Car Advance","FIXED",null,null,null,null,null,null,"Chawngte","Ration Money",null,"Son's Son"]
[null,null,null,null,null,"Gujarat",null,null,null,null,"Motor Cycle/Scooter Advance","CONTRACT",null,null,null,null,null,null,null,"Rifle Allowance",null,"Son's Spouse"]
[null,null,null,null,null,"Haryana",null,null,null,null,"Personal Computer Advance","MUSTER",null,null,null,null,null,null,null,"Special Compensatory (Remote Locality) Allowance",null,"Spouse"]
[null,null,null,null,null,"Himachal Pradesh",null,null,null,null,"Typewriter Advance","CO-TERMINUS",null,null,null,null,null,null,null,"Training Allowance",null,"Step-Father"]
[null,null,null,null,null,"Jammu and Kashmir",null,null,null,null,"Warm Clothing Advance",null,null,null,null,null,null,null,null,"Transport Allowance",null,"Step-Mother"]
[null,null,null,null,null,"Jharkhand",null,null,null,null,null,null,null,null,null,null,null,null,null,"Uniform Allowance",null,"Adopted Son"]
[null,null,null,null,null,"Karnataka",null,null,null,null,null,null,null,null,null,null,null,null,null,"Washing Allowance",null,"Adopted Daughter"]
[null,null,null,null,null,"Kerala",null,null,null,null,null,null,null,null,null,null,null,null,null,"Special Allowance"]
[null,null,null,null,null,"Lakshadweep",null,null,null,null,null,null,null,null,null,null,null,null,null,"North-east Allowance"]
[null,null,null,null,null,"Madhya Pradesh"]
[null,null,null,null,null,"Maharashtra"]
[null,null,null,null,null,"Manipur"]
[null,null,null,null,null,"Meghalaya"]
[null,null,null,null,null,"Mizoram"]
[null,null,null,null,null,"Nagaland"]
[null,null,null,null,null,"National Capital Territory of Delhi"]
[null,null,null,null,null,"Odisha"]
[null,null,null,null,null,"Pondicherry"]
[null,null,null,null,null,"Punjab"]
[null,null,null,null,null,"Rajasthan"]
[null,null,null,null,null,"Sikkim"]
[null,null,null,null,null,"Tamil Nadu"]
[null,null,null,null,null,"Tripura"]
[null,null,null,null,null,"Uttar Pradesh"]
[null,null,null,null,null,"Uttarakhand"]
[null,null,null,null,null,"West Bengal"]

{"sheet":"DataP","index":6,"n_rows":3,"n_cols":149,"rows_kept":3,"cut":false,"hidden":true,"merged":[]}
[{"$f":"COUNTA(A3:A1048576)","v":1},{"$f":"COUNTA(2:2)","v":149},null,null,null,null,null,null,null,1,1,1,1,null,null,null,1,null,1,null,1,1,1,null,null,null,null,null,null,null,null,null,null,null,null,null,null,null,null,null,null,null,null,null,null,null,null,null,null,null,null,null,null,null,null,null,null,null,null,null,null,null,null,null,null,null,1,1,1,1,1,1,null,null,null,null,null,null,1,null,null,null,null,null,null,null,1,1,1,1,1,1,1,null,1,1,1,1,1,1,1,null,null,null,null,null,null,null,null,null,null,null,null,null,null,null,null,null,null,null,null,null,null,null,1,1,null,null,null,null,null,null,null,null,1,null,1,null,null,null,null,null,null,1,1]
["ID","DDOCode","Status","Title","First Name","Middle Name","Last Name","GPF/NPS","GPF/NPS No.","DOB","Gender","Marital Status","Caste","Blood Group","Height","PI Mark","Permanent Address1","Line2","Village/Town/City","Block","District","Pin","State","STD","Phone","Is Permanent same as present","Present Address1","Line2","Village/Town/City","Block","District","Pin","State","STD","Phone","Mobile","Email","PAN","EPIC","EPIC Place","EPIC Date","DL","DLPLace","DLIssue","DLExpiry","PP","PPPLace","PPIssue","PPExpiry","Cancelled","Cancelled","Cancelled","Cancelled","Cancelled","Cancelled","Cancelled","Cancelled","Cancelled","Cancelled","Cancelled","Cancelled","Cancelled","Cancelled","Cancelled","Cancelled","Cancelled","Start Date","First Post","Order No","Appointing Authority","Order Date","Cadre?","Name","Grade","Authority","Year","Cadre Level","CANCELLED","Cadre?","CadreName","Grade","Allotment","CadreAuthority","Date of Appointment","Cadre Level","Cadre Department","ServiceBook Available?","Date of Last Entry","Date of last verification","Place of Service Book","Deployment","Where","Post","GenericPost","Place","Group","Class","Type","Headquarters","Department","Date of Joining","Office","OffAdd1","OffAdd2","Off Town","Off Block","Off District","Off Pin","Off State","Off STD","Off Phone","Off Ext","Off STDfx","Off Fax","Off Email","Headquarters","Head Add1","Head Add2","Head Town","head Block","head District","Head PinCode","Head State","Grade Pay","Pay Band","Band Pay","Cancelled","Cancelled","Cancelled","Cancelled","Cancelled","Cancelled","Cancelled","Cancelled","Mandatory GPF","Voluntary  GPF","Impounded DA","Recovery Amount","Installment No.","Total Installments","Approval No.","Foreign Body","Treasury","Date","Time","PRAN","GPF Advance Amount","Date of Paybill","Remarks"]
[1,104001,0,"Mr.","A","B","C","GPF No.","DDJDPOE908",null,null,null,null,null,null,null,null,null,null,null,null,null,null,null,null,null,null,null,null,null,null,null,null,null,null,null,null,null,null,null,null,null,null,null,null,null,null,null,null,null,null,null,null,null,null,null,null,null,null,null,null,null,null,null,null,null,null,null,null,null,null,false,null,null,null,null,null,null,true,8,2,5,0,null,null,null,false,null,null,null,null,null,null,null,null,null,null,null,null,null,null,null,null,null,null,null,null,null,null,null,null,null,null,null,null,null,null,null,null,null,null,null,null,null,null,null,null,null,null,null,null,null,null,null,null,null,null,null,null,null,null,null,null,"2014-02-05","14:10:46"]

{"sheet":"DataED","index":7,"n_rows":2,"n_cols":8,"rows_kept":2,"cut":false,"hidden":true,"merged":[]}
[{"$f":"COUNTA(A3:A1048576)","v":0}]
["ID","EMPID","Level","Field","Qualification","Institute","Board","Year of Award"]

{"sheet":"DataAC","index":8,"n_rows":2,"n_cols":6,"rows_kept":2,"cut":false,"hidden":true,"merged":[]}
[{"$f":"COUNTA(A3:A1048576)","v":0}]
["S.No.","EMPID","Ministry","Department","Post","Office"]

{"sheet":"DataLR","index":9,"n_rows":2,"n_cols":9,"rows_kept":2,"cut":false,"hidden":true,"merged":[]}
[{"$f":"COUNTA(A3:A1048576)","v":0}]
["S.No.","EMPID","Type","Amount","Monthly Recovery Amount","Installment No.","Total Installments","Loan No.","Monthly Recovery Amount Type"]

{"sheet":"DataAD","index":10,"n_rows":2,"n_cols":13,"rows_kept":2,"cut":false,"hidden":true,"merged":[]}
[{"$f":"COUNTA(A3:A1048576)","v":0},null,null,null,null,null,null,null,null,{"$f":"COUNTA(J3:J1048576)","v":0}]
["S.No.","EMPID","Allowance","Amount",null,null,null,null,null,"S.No.","EMPID","Deductions","Amount"]

{"sheet":"DataFam","index":11,"n_rows":2,"n_cols":14,"rows_kept":2,"cut":false,"hidden":true,"merged":[]}
[{"$f":"COUNTA(A3:A1048576)","v":0}]
["ID","EMPID","Relationship","Title","First Name","Last Name","Marital Status","Employment","Date of Birth","GPF/NPS","GPF/PPAN","Medical","Pension","Travel"]

{"sheet":"Master Cadre","index":12,"n_rows":2131,"n_cols":18,"rows_kept":2131,"cut":false,"hidden":true,"merged":[]}
[{"$f":"COUNTA(A3:A1048576)","v":10},null,{"$f":"COUNTA(C3:C1048576)","v":17},null,null,null,{"$f":"COUNTA(G3:G1048576)","v":14}]
["Cadres",null,"Cadre","Cadre Department",null,null,"Cadres","Count"]
["Mizoram Finance & Accounts Service",null,0,"Finance Department",null,null,0,6,"Junior Grade","Senior Grade","JAG","Selection Grade","Supertime Grade B","Supertime Grade A"]
["Mizoram Civil Service",null,1,"DPAR (CSW)",null,null,1,6,"Junior Grade","Senior Grade","JAG","Selection Grade","Supertime Grade B","Supertime Grade A"]
["Mizoram Police Service",null,2,"Home Department",null,null,2,5,"Junior Grade","Senior Grade","JAG","Selection Grade","SAG"]
["Mizoram Engineering Service",null,3,"Public Works Department\n",null,null,3,6,"Junior Grade","Senior Grade","JAG","SAG","Selection Grade","Grade - I(A)"]
["Mizoram Planning, Economics & Statistical Service",null,3,"PHED",null,null,4,5,"Junior Grade","Senior Grade","JAG","Selection Grade","Supertime Grade"]
["Mizoram Forest Service",null,3,"Power & Electricity Department",null,null,5,4,"Junior Grade","Senior Grade","JAG","Selection Grade"]
["Mizoram Secretariat Service (Steno)",null,4,"Planing & Programme Implementation",null,null,6,3,"Junior Grade","Senior Grade","JAG"]
["Mizoram Secretariat Service (Ministerial)",null,5,"Forest Department",null,null,7,6,"Junior Grade","Senior Grade","JAG","Selection Grade","Supertime Grade B","Supertime Grade"]
["Mizoram Information Service",null,6,"DPAR (SSW)",null,null,8,4,"Junior Grade","Senior Grade","JAG","Selection Grade"]
["Mizoram Health Service",null,7,"DPAR (SSW)",null,null,9,6,"Grade III","Grade II","Grade I","Spl. Grade","Supertime Grade B","Supertime Grade A"]
[null,null,8,"Information and Public Relation Department",null,null,10,4,"Cat. III","Cat. II","Cat. I","Spl Grade/ Addl. RCS"]
[null,null,9,"Health Department ",null,null,11,5,"Grade-V","Grade-IV","Grade-III","Grade-II","Grade-I"]
[null,null,10,"Co-operative Department",null,null,12,5,"Grade-V","Grade-IV","Grade-III","Grade-II","Grade-I"]
[null,null,11,"AH &Vety Department",null,null,13,10,"Administrative Subedar","Assistant to District Commandant","Assistant","Boot Maker","Barber","Cook","Dhobi","Laboratory Assistant","Sweeper","Water Carrier"]
[null,null,12,"Horticulture Department"]
[null,null,13,"Home Department"]
[]
[]
[]
[]
[]
[]
[]
[]
[]
[]
[]
[]
[]
[]
[]
[]
[]
[]
[]
[]
[]
[]
[]
[]
[]
[]
[]
[]
[]
[]
[]
[]
[]
[]
[]
[]
[]
[]
[]
[]
[]
[]
[]
[]
[]
[]
[]
[]
[]
[]
[]
[]
[]
[]
[]
[]
[]
[]
[]
[]
[]
[]
[]
[]
[]
[]
[]
[]
[]
[]
[]
[]
[]
[]
[]
[]
[]
[]
[]
[]
[]
[]
[]
[]
[]
[]
[]
[]
[]
[]
[]
[]
[]
[]
[]
[]
[]
[]
[]
[]
[]
[]
[]
[]
[]
[]
[]
[]
[]
[]
[]
[]
[]
[]
[]
[]
[]
[]
[]
[]
[]
[]
[]
[]
[]
[]
[]
[]
[]
[]
[]
[]
[]
[]
[]
[]
[]
[]
[]
[]
[]
[]
[]
[]
[]
[]
[]
[]
[]
[]
[]
[]
[]
[]
[]
[]
[]
[]
[]
[]
[]
[]
[]
[]
[]
[]
[]
[]
[]
[]
[]
[]
[]
[]
[]
[]
[]
[]
[]
[]
[]
[]
[]
[]
[]
[]
[]
[]
[]
[]
[]
[]
[]
[]
[]
[]
[]
[]
[]
[]
[]
[]
[]
[]
[]
[]
[]
[]
[]
[]
[]
[]
[]
[]
[]
[]
[]
[]
[]
[]
[]
[]
[]
[]
[]
[]
[]
[]
[]
[]
[]
[]
[]
[]
[]
[]
[]
[]
[]
[]
[]
[]
[]
[]
[]
[]
[]
[]
[]
[]
[]
[]
[]
[]
[]
[]
[]
[]
[]
[]
[]
[]
[]
[]
[]
[]
[]
[]
[]
[]
[]
[]
[]
[]
[]
[]
[]
[]
[]
[]
[]
[]
[]
[]
[]
[]
[]
[]
[]
[]
[]
[]
[]
[]
[]
[]
[]
[]
[]
[]
[]
[]
[]
[]
[]
[]
[]
[]
[]
[]
[]
[]
[]
[]
[]
[]
[]
[]
[]
[]
[]
[]
[]
[]
[]
[]
[]
[]
[]
[]
[]
[]
[]
[]
[]
[]
[]
[]
[]
[]
[]
[]
[]
[]
[]
[]
[]
[]
[]
[]
[]
[]
[]
[]
[]
[]
[]
[]
[]
[]
[]
[]
[]
[]
[]
[]
[]
[]
[]
[]
[]
[]
[]
[]
[]
[]
[]
[]
[]
[]
[]
[]
[]
[]
[]
[]
[]
[]
[]
[]
[]
[]
[]
[]
[]
[]
[]
[]
[]
[]
[]
[]
[]
[]
[]
[]
[]
[]
[]
[]
[]
[]
[]
[]
[]
[]
[]
[]
[]
[]
[]
[]
[]
[]
[]
[]
[]
[]
[]
[]
[]
[]
[]
[]
[]
[]
[]
[]
[]
[]
[]
[]
[]
[]
[]
[]
[]
[]
[]
[]
[]
[]
[]
[]
[]
[]
[]
[]
[]
[]
[]
[]
[]
[]
[]
[]
[]
[]
[]
[]
[]
[]
[]
[]
[]
[]
[]
[]
[]
[]
[]
[]
[]
[]
[]
[]
[]
[]
[]
[]
[]
[]
[]
[]
[]
[]
[]
[]
[]
[]
[]
[]
[]
[]
[]
[]
[]
[]
[]
[]
[]
[]
[]
[]
[]
[]
[]
[]
[]
[]
[]
[]
[]
[]
[]
[]
[]
[]
[]
[]
[]
[]
[]
[]
[]
[]
[]
[]
[]
[]
[]
[]
[]
[]
[]
[]
[]
[]
[]
[]
[]
[]
[]
[]
[]
[]
[]
[]
[]
[]
[]
[]
[]
[]
[]
[]
[]
[]
[]
[]
[]
[]
[]
[]
[]
[]
[]
[]
[]
[]
[]
[]
[]
[]
[]
[]
[]
[]
[]
[]
[]
[]
[]
[]
[]
[]
[]
[]
[]
[]
[]
[]
[]
[]
[]
[]
[]
[]
[]
[]
[]
[]
[]
[]
[]
[]
[]
[]
[]
[]
[]
[]
[]
[]
[]
[]
[]
[]
[]
[]
[]
[]
[]
[]
[]
[]
[]
[]
[]
[]
[]
[]
[]
[]
[]
[]
[]
[]
[]
[]
[]
[]
[]
[]
[]
[]
[]
[]
[]
[]
[]
[]
[]
[]
[]
[]
[]
[]
[]
[]
[]
[]
[]
[]
[]
[]
[]
[]
[]
[]
[]
[]
[]
[]
[]
[]
[]
[]
[]
[]
[]
[]
[]
[]
[]
[]
[]
[]
[]
[]
[]
[]
[]
[]
[]
[]
[]
[]
[]
[]
[]
[]
[]
[]
[]
[]
[]
[]
[]
[]
[]
[]
[]
[]
[]
[]
[]
[]
[]
[]
[]
[]
[]
[]
[]
[]
[]
[]
[]
[]
[]
[]
[]
[]
[]
[]
[]
[]
[]
[]
[]
[]
[]
[]
[]
[]
[]
[]
[]
[]
[]
[]
[]
[]
[]
[]
[]
[]
[]
[]
[]
[]
[]
[]
[]
[]
[]
[]
[]
[]
[]
[]
[]
[]
[]
[]
[]
[]
[]
[]
[]
[]
[]
[]
[]
[]
[]
[]
[]
[]
[]
[]
[]
[]
[]
[]
[]
[]
[]
[]
[]
[]
[]
[]
[]
[]
[]
[]
[]
[]
[]
[]
[]
[]
[]
[]
[]
[]
[]
[]
[]
[]
[]
[]
[]
[]
[]
[]
[]
[]
[]
[]
[]
[]
[]
[]
[]
[]
[]
[]
[]
[]
[]
[]
[]
[]
[]
[]
[]
[]
[]
[]
[]
[]
[]
[]
[]
[]
[]
[]
[]
[]
[]
[]
[]
[]
[]
[]
[]
[]
[]
[]
[]
[]
[]
[]
[]
[]
[]
[]
[]
[]
[]
[]
[]
[]
[]
[]
[]
[]
[]
[]
[]
[]
[]
[]
[]
[]
[]
[]
[]
[]
[]
[]
[]
[]
[]
[]
[]
[]
[]
[]
[]
[]
[]
[]
[]
[]
[]
[]
[]
[]
[]
[]
[]
[]
[]
[]
[]
[]
[]
[]
[]
[]
[]
[]
[]
[]
[]
[]
[]
[]
[]
[]
[]
[]
[]
[]
[]
[]
[]
[]
[]
[]
[]
[]
[]
[]
[]
[]
[]
[]
[]
[]
[]
[]
[]
[]
[]
[]
[]
[]
[]
[]
[]
[]
[]
[]
[]
[]
[]
[]
[]
[]
[]
[]
[]
[]
[]
[]
[]
[]
[]
[]
[]
[]
[]
[]
[]
[]
[]
[]
[]
[]
[]
[]
[]
[]
[]
[]
[]
[]
[]
[]
[]
[]
[]
[]
[]
[]
[]
[]
[]
[]
[]
[]
[]
[]
[]
[]
[]
[]
[]
[]
[]
[]
[]
[]
[]
[]
[]
[]
[]
[]
[]
[]
[]
[]
[]
[]
[]
[]
[]
[]
[]
[]
[]
[]
[]
[]
[]
[]
[]
[]
[]
[]
[]
[]
[]
[]
[]
[]
[]
[]
[]
[]
[]
[]
[]
[]
[]
[]
[]
[]
[]
[]
[]
[]
[]
[]
[]
[]
[]
[]
[]
[]
[]
[]
[]
[]
[]
[]
[]
[]
[]
[]
[]
[]
[]
[]
[]
[]
[]
[]
[]
[]
[]
[]
[]
[]
[]
[]
[]
[]
[]
[]
[]
[]
[]
[]
[]
[]
[]
[]
[]
[]
[]
[]
[]
[]
[]
[]
[]
[]
[]
[]
[]
[]
[]
[]
[]
[]
[]
[]
[]
[]
[]
[]
[]
[]
[]
[]
[]
[]
[]
[]
[]
[]
[]
[]
[]
[]
[]
[]
[]
[]
[]
[]
[]
[]
[]
[]
[]
[]
[]
[]
[]
[]
[]
[]
[]
[]
[]
[]
[]
[]
[]
[]
[]
[]
[]
[]
[]
[]
[]
[]
[]
[]
[]
[]
[]
[]
[]
[]
[]
[]
[]
[]
[]
[]
[]
[]
[]
[]
[]
[]
[]
[]
[]
[]
[]
[]
[]
[]
[]
[]
[]
[]
[]
[]
[]
[]
[]
[]
[]
[]
[]
[]
[]
[]
[]
[]
[]
[]
[]
[]
[]
[]
[]
[]
[]
[]
[]
[]
[]
[]
[]
[]
[]
[]
[]
[]
[]
[]
[]
[]
[]
[]
[]
[]
[]
[]
[]
[]
[]
[]
[]
[]
[]
[]
[]
[]
[]
[]
[]
[]
[]
[]
[]
[]
[]
[]
[]
[]
[]
[]
[]
[]
[]
[]
[]
[]
[]
[]
[]
[]
[]
[]
[]
[]
[]
[]
[]
[]
[]
[]
[]
[]
[]
[]
[]
[]
[]
[]
[]
[]
[]
[]
[]
[]
[]
[]
[]
[]
[]
[]
[]
[]
[]
[]
[]
[]
[]
[]
[]
[]
[]
[]
[]
[]
[]
[]
[]
[]
[]
[]
[]
[]
[]
[]
[]
[]
[]
[]
[]
[]
[]
[]
[]
[]
[]
[]
[]
[]
[]
[]
[]
[]
[]
[]
[]
[]
[]
[]
[]
[]
[]
[]
[]
[]
[]
[]
[]
[]
[]
[]
[]
[]
[]
[]
[]
[]
[]
[]
[]
[]
[]
[]
[]
[]
[]
[]
[]
[]
[]
[]
[]
[]
[]
[]
[]
[]
[]
[]
[]
[]
[]
[]
[]
[]
[]
[]
[]
[]
[]
[]
[]
[]
[]
[]
[]
[]
[]
[]
[]
[]
[]
[]
[]
[]
[]
[]
[]
[]
[]
[]
[]
[]
[]
[]
[]
[]
[]
[]
[]
[]
[]
[]
[]
[]
[]
[]
[]
[]
[]
[]
[]
[]
[]
[]
[]
[]
[]
[]
[]
[]
[]
[]
[]
[]
[]
[]
[]
[]
[]
[]
[]
[]
[]
[]
[]
[]
[]
[]
[]
[]
[]
[]
[]
[]
[]
[]
[]
[]
[]
[]
[]
[]
[]
[]
[]
[]
[]
[]
[]
[]
[]
[]
[]
[]
[]
[]
[]
[]
[]
[]
[]
[]
[]
[]
[]
[]
[]
[]
[]
[]
[]
[]
[]
[]
[]
[]
[]
[]
[]
[]
[]
[]
[]
[]
[]
[]
[]
[]
[]
[]
[]
[]
[]
[]
[]
[]
[]
[]
[]
[]
[]
[]
[]
[]
[]
[]
[]
[]
[]
[]
[]
[]
[]
[]
[]
[]
[]
[]
[]
[]
[]
[]
[]
[]
[]
[]
[]
[]
[]
[]
[]
[]
[]
[]
[]
[]
[]
[]
[]
[]
[]
[]
[]
[]
[]
[]
[]
[]
[]
[]
[]
[]
[]
[]
[]
[]
[]
[]
[]
[]
[]
[]
[]
[]
[]
[]
[]
[]
[]
[]
[]
[]
[]
[]
[]
[]
[]
[]
[]
[]
[]
[]
[]
[]
[]
[]
[]
[]
[]
[]
[]
[]
[]
[]
[]
[]
[]
[]
[]
[]
[]
[]
[]
[]
[]
[]
[]
[]
[]
[]
[]
[]
[]
[]
[]
[]
[]
[]
[]
[]
[]
[]
[]
[]
[]
[]
[]
[]
[]
[]
[]
[]
[]
[]
[]
[]
[]
[]
[]
[]
[]
[]
[]
[]
[]
[]
[]
[]
[]
[]
[]
[]
[]
[]
[]
[]
[]
[]
[]
[]
[]
[]
[]
[]
[]
[]
[]
[]
[]
[]
[]
[]
[]
[]
[]
[]
[]
[]
[]
[]
[]
[]
[]
[]
[]
[]
[]
[]
[]
[]
[]
[]
[]
[]
[]
[]
[]
[]
[]
[]
[]
[]
[]
[]
[]
[]
[]
[]
[]
[]
[]
[]
[]
[]
[]
[]
[]
[]
[]
[]
[]
[]
[]
[]
[]
[]
[]
[]
[]
[]
[]
[]
[]
[]
[]
[]
[]
[]
[]
[]
[]
[]
[]
[]
[]
[]
[]
[]
[]
[]
[]
[]
[]
[]
[]
[]
[]
[]
[]
[]
[]
[]
[]
[]
[]
[]
[]
[]
[]
[]
[]
[]
[]
[]
[]
[]
[]
[]
[]
[]
[]
[]
[]
[]
[]
[]
[]
[]
[]
[]
[]
[]
[]
[]
[]
[]
[]
[]
[]
[]
[]
[]
[]
[]
[]
[]
[]
[]
[]
[]
[]
[]
[]
[]
[]
[]
[]
[]
[]
[]
[]
[]
[]
[]
[]
[]
[]
[]
[]
[]
[]
[]
[]
[]
[]
[]
[]
[]
[]
[]
[]
[]
[]
[]
[]
[]
[]
[]
[]
[]
[]
[]
[]
[]
[]
[]
[]
[]
[]
[]
[]
[]
[]
[]
[]
[]
[]
[]
[]
[]
[]
[]
[]
[]
[]
[]
[]
[]
[]
[]
[]
[]
[]
[]
[]
[]
[]
[]
[]
[]
[]
[]
[]
[]
[]
[]
[]
[]
[]
[]
[]
[]
[]
[]
[]
[]
[]
[]
[]
[]
[]
[]
[]
[]
[]
[]
[]
[]
[]
[]
[]
[]
[]
[]
[]
[]
[]
[]
[]
[]
[]
[]
[]
[]
[]
[]
[]
[]
[]
[]
[]
[]
[]
[]
[]
[]
[]
[]
[]
[]
[]
[]
[]
[]
[]
[]
[]
[]
[]
[]
[]
[]
[]
[]
[]
[]
[]
[]
[]
[]
[]
[]
[]
[]
[]
[]
[]
[]
[]
[]
[]
[]
[]
[]
[]
[]
[]
[]
[]
[]
[]
[]
[]
[]
[]
[]
[]
[]
[]
[]
[]
[]
[]
[]
[]
[]
[]
[]
[]
[]
[]
[]
[]
[]
[]
[]
[null,null,"P.P.S"]

{"sheet":"DataDYN","index":13,"n_rows":2,"n_cols":67,"rows_kept":2,"cut":false,"hidden":true,"merged":[]}
[{"$f":"COUNTA(A3:A1048576)","v":0},null,null,null,null,null,null,null,null,{"$f":"COUNTA(J3:J1048576)","v":0},null,null,null,null,null,null,{"$f":"COUNTA(Q3:Q1048576)","v":0},null,null,null,null,null,null,null,null,null,{"$f":"COUNTA(AA3:AA1048576)","v":0},null,null,null,null,null,{"$f":"COUNTA(AG3:AG1048576)","v":0},null,null,null,null,null,null,{"$f":"COUNTA(AN3:AN1048576)","v":0},null,null,null,null,null,null,null,null,null,null,null,null,null,{"$f":"COUNTA(BB3:BB1048576)","v":0},null,null,null,null,null,null,null,{"$f":"COUNTA(BJ3:BJ1048576)","v":0}]
["ID","EMPID","Level","Field","Qualification","Institute","Board","Year of Award",null,"S.No.","EMPID","Ministry","Department","Post","Office",null,"S.No.","EMPID","Type","Amount","Monthly Recovery Amount","Installment No.","Total Installments","Loan No.","Monthly Recovery Amount Type",null,"S.No.","EMPID","Allowance","Amount",null,null,"S.No.","EMPID","Allowance","Amount",null,null,null,"ID","EMPID","Relationship","Title","First Name","Middle Name","Last Name","Employment","Date of Birth","GPF/NPS","GPF/PPAN","Medical","Pension","Travel","ID","EMPID","Type","Name","Relationship","Allocation",null,null,"ID","EMPID","Type","Name","Relationship","Allocation"]

{"sheet":"DataNom","index":14,"n_rows":2,"n_cols":16,"rows_kept":2,"cut":false,"hidden":true,"merged":[]}
[{"$f":"COUNTA(A3:A1048576)","v":0},null,null,null,null,null,null,null,null,null,{"$f":"COUNTA(K3:K1048576)","v":0}]
["ID","EMPID","Type","Name","Relationship","Allocation",null,null,null,null,"ID","EMPID","Type","Name","Relationship","Allocation"]